Workbook

Sheet Index
A3: Credicorp Ltd. Financial Data 2Q26
B6: Index
B8: 0. Overview BAP
B9: 0.1. Contribution BAP
B10: 0.2. ROAE
B11: 1.1.Colocaciones Subs
B12: 1.2. Portfolio Quality
B13: 2. Deposits
B14: 3.1. IEAs
B15: 3.2. Funding
B16: 3.3. Saldos y margen x moneda
B17: 4. Net Interest Income
B18: 5. Provisions
B19: 6.1. Other Income - core
B20: 6.2. Other Income - non core
B21: 8. Operating Expenses
B22: 9. Operating Efficiency
B23: 12. Annexes

Sheet 0. Overview BAP
B1: Back to index
B3: (IFRS, under regulation as of December 2022) | X3: ( IFRS, under current regulation as of January 2023)
B4: Credicorp Ltd. | C4: Quarter | S4: As of | X4: Quarter
B5: S/000
C6: 1Q19 | D6: 2Q19 | E6: 3Q19 | F6: 4Q19 | G6: 1Q20 | H6: 2Q20 | I6: 3Q20 | J6: 4Q20 | K6: 1Q21 | L6: 2Q21 | M6: 3Q21 | N6: 4Q21 | O6: 1Q22 | P6: 2Q22 | Q6: 3Q22 | R6: 4Q22 | S6: 2019 | T6: 2020 | U6: 2021 | V6: 2022 | X6: 1Q22 | Y6: 2Q22 | Z6: 3Q22 | AA6: 4Q22 | AB6: 1Q23 | AC6: 2Q23 | AD6: 3Q23 | AE6: 4Q23 | AF6: 1Q24 | AG6: 2Q24 | AH6: 3Q24 | AI6: 4Q24 | AJ6: 1Q25 | AK6: 2Q25 | AL6: 3Q25 | AM6: 4Q25 | AN6: 1Q26 | AO6: 2Q26
B7: Net interest, similar income and expenses | C7: 2197168 | D7: 2252403 | E7: 2276400 | F7: 2365050 | G7: 2379527 | H7: 1961350 | I7: 2161905 | J7: 2068560 | K7: 2123383 | L7: 2309042 | M7: 2451099 | N7: 2477234 | O7: 2534090 | P7: 2740440 | Q7: 3001426 | R7: 3243018 | S7: 9091751 | T7: 8571342 | U7: 9359604 | V7: 11518095 | X7: 2431707 | Y7: 2637106 | Z7: 2882400.773 | AA7: 3140404 | AB7: 3132089 | AC7: 3204156 | AD7: 3254043 | AE7: 3347684 | AF7: 3426123 | AG7: 3468464 | AH7: 3590750 | AI7: 3629794 | AJ7: 3572012 | AK7: 3615371 | AL7: =+'12.5.1.Credicorp Consolidated '!BL91 -> 3687829 | AM7: =+'12.5.1.Credicorp Consolidated '!BM91 -> 3841267 | AN7: =+'12.5.1.Credicorp Consolidated '!BN91 -> 3962727 | AO7: 4096951
B8: Provision for credit losses on loan portfolio, net of recoveries | C8: -383211 | D8: -448294 | E8: -502772 | F8: -511659 | G8: -1341481 | H8: -2540457 | I8: -1305905 | J8: -732665 | K8: -557647 | L8: -363380 | M8: -164414 | N8: -126782 | O8: -257590 | P8: -363291 | Q8: -459976 | R8: -730681 | S8: -1845936 | T8: -5920508 | U8: -1212223 | V8: -1811538 | X8: -257590 | Y8: -363291 | Z8: -459976 | AA8: -730681 | AB8: -726998 | AC8: -804251 | AD8: -917642 | AE8: -1173454 | AF8: -814699 | AG8: -1093371 | AH8: -868081 | AI8: -743296 | AJ8: -581893 | AK8: -575159 | AL8: =+'12.5.1.Credicorp Consolidated '!BL95 -> -602918 | AM8: =+'12.5.1.Credicorp Consolidated '!BM95 -> -646286 | AN8: =+'12.5.1.Credicorp Consolidated '!BN95 -> -482088 | AO8: -731208
B9: Net interest, similar income and expenses, after provision for credit losses on loan portfolio | C9: 1813957 | D9: 1804109 | E9: 1773628 | F9: 1853391 | G9: 1038046 | H9: -579107 | I9: 856000 | J9: 1335895 | K9: 1565736 | L9: 1945662 | M9: 2286685 | N9: 2350452 | O9: 2276500 | P9: 2377149 | Q9: 2541450 | R9: 2512337 | S9: 7245815 | T9: 2650834 | U9: 8147381 | V9: 9706557 | X9: 2174117 | Y9: 2273815 | Z9: 2422424.773 | AA9: 2409723 | AB9: 2405091 | AC9: 2399905 | AD9: 2336401 | AE9: 2174230 | AF9: 2611424 | AG9: 2375093 | AH9: 2722669 | AI9: 2886498 | AJ9: 2990119 | AK9: 3040212 | AL9: =+AL7+AL8 -> 3084911 | AM9: =+AM7+AM8 -> 3194981 | AN9: 3480639 | AO9: 3365743
B10: Other income | C10: 1176337 | D10: 1195115 | E10: 1299256 | F10: 1265545 | G10: 958255 | H10: 1015663 | I10: 1102766 | J10: 1329533 | K10: 1194530 | L10: 1191694 | M10: 1238683 | N10: 1304163 | O10: 1242749 | P10: 1203980 | Q10: 1310585 | R10: 1350661 | S10: 4897769 | T10: 4406217 | U10: 4929717 | V10: 5108349 | X10: 1239398 | Y10: 1197592 | Z10: 1301252.303 | AA10: 1327862 | AB10: 1333275 | AC10: 1433786 | AD10: 1407362 | AE10: 1486823 | AF10: =+'12.5.1.Credicorp Consolidated '!BF107 -> 1392559 | AG10: =+'12.5.1.Credicorp Consolidated '!BG107 -> 1591330 | AH10: =+'12.5.1.Credicorp Consolidated '!BH107 -> 1545344 | AI10: =+'12.5.1.Credicorp Consolidated '!BI107 -> 1582733 | AJ10: 1690216 | AK10: 1677373 | AL10: =+'12.5.1.Credicorp Consolidated '!BL107 -> 1654191 | AM10: =+'12.5.1.Credicorp Consolidated '!BM107 -> 1799499 | AN10: =+'12.5.1.Credicorp Consolidated '!BN107 -> 1856324 | AO10: 2042202
B11: Insurance underwriting result | C11: 109111 | D11: 118225 | E11: 125151 | F11: 142443 | G11: 141926 | H11: 135680 | I11: -4340 | J11: 84867 | K11: -65247 | L11: -136335 | M11: 70204 | N11: 127657 | O11: 141546 | P11: 137042 | Q11: 198842 | R11: 184168 | S11: 496977 | T11: 358133 | U11: -3721 | V11: 661598 | X11: 206667 | Y11: 194197 | Z11: 303760 | AA11: 136824 | AB11: 296341 | AC11: 296564 | AD11: 352551 | AE11: 287295 | AF11: 279062 | AG11: 315500 | AH11: 291775 | AI11: 312683 | AJ11: 329134 | AK11: 350873 | AL11: =+'12.5.1.Credicorp Consolidated '!BL112 -> 388350 | AM11: =+'12.5.1.Credicorp Consolidated '!BM112 -> 320843 | AN11: =+'12.5.1.Credicorp Consolidated '!BN112 -> 299063 | AO11: 288014
B12: Medical services result | AJ12: 42689 | AK12: 123319 | AL12: =+'12.5.1.Credicorp Consolidated '!BL117 -> 123953 | AM12: =+'12.5.1.Credicorp Consolidated '!BM117 -> 124673 | AN12: =+'12.5.1.Credicorp Consolidated '!BN117 -> 123838 | AO12: 133439
B13: Total expenses | C13: -1553976 | D13: -1582452 | E13: -1679234 | F13: -1885172 | G13: -1779306 | H13: -1628398 | I13: -1802009 | J13: -1981310 | K13: -1680271 | L13: -1860447 | M13: -1977185 | N13: -2223165 | O13: -1950182 | P13: -2054810 | Q13: -2141519 | R13: -2474609 | S13: -6665048 | T13: -7191023 | U13: -7740561 | V13: -8620615 | X13: -1874519 | Y13: -1981125 | Z13: -2097590 | AA13: -2363787 | AB13: -2126908 | AC13: -2195966 | AD13: -2377167 | AE13: -2661542 | AF13: =+'12.5.1.Credicorp Consolidated '!BF126 -> -2212482 | AG13: =+'12.5.1.Credicorp Consolidated '!BG126 -> -2395205 | AH13: =+'12.5.1.Credicorp Consolidated '!BH126 -> -2448229 | AI13: =+'12.5.1.Credicorp Consolidated '!BI126 -> -3026227 | AJ13: -2532874 | AK13: -2630310 | AL13: =+'12.5.1.Credicorp Consolidated '!BL126 -> -2744642 | AM13: =+'12.5.1.Credicorp Consolidated '!BM126 -> -3079957 | AN13: =+'12.5.1.Credicorp Consolidated '!BN126 -> -2840831 | AO13: -2989462
B14: Profit before income tax | C14: 1545429 | D14: 1534997 | E14: 1518801 | F14: 1376207 | G14: 358921 | H14: -1056162 | I14: 152417 | J14: 768985 | K14: 1014748 | L14: 1140574 | M14: 1618387 | N14: 1559107 | O14: 1710613 | P14: 1663361 | Q14: 1909358 | R14: 1572557 | S14: 5975513 | T14: 224161 | U14: 5332816 | V14: 6855889 | X14: 1745663 | Y14: 1684479 | Z14: 1929847.076 | AA14: 1510622 | AB14: 1907799 | AC14: 1934289 | AD14: 1719147 | AE14: 1286806 | AF14: 2070563 | AG14: 1886718 | AH14: 2111560 | AI14: 1755686 | AJ14: 2519284 | AK14: 2561467 | AL14: =+'12.5.1.Credicorp Consolidated '!BL128 -> 2506763 | AM14: =+'12.5.1.Credicorp Consolidated '!BM128 -> 2360039 | AN14: =+'12.5.1.Credicorp Consolidated '!BN128 -> 2919033 | AO14: 2839936
B15: Income tax | C15: -422165 | D15: -414466 | E15: -403221 | F15: -383250 | G15: -145746 | H15: 414726 | I15: -55829 | J15: -103174 | K15: -337599 | L15: -423491 | M15: -428037 | N15: -471860 | O15: -546001 | P15: -513181 | Q15: -575083 | R15: -476236 | S15: -1623182 | T15: 109977 | U15: -1660987 | V15: -2110501 | X15: -546000 | Y15: -513182 | Z15: -575083 | AA15: -476236 | AB15: -493466 | AC15: -504472 | AD15: -455577 | AE15: -434648.234 | AF15: -528466 | AG15: -519344 | AH15: -555117 | AI15: -598348 | AJ15: -704469 | AK15: -696969 | AL15: =+'12.5.1.Credicorp Consolidated '!BL130 -> -728308 | AM15: =+'12.5.1.Credicorp Consolidated '!BM130 -> -735153 | AN15: =+'12.5.1.Credicorp Consolidated '!BN130 -> -808891 | AO15: -814357
B16: Net profit | C16: 1123264 | D16: 1120531 | E16: 1115580 | F16: 992957 | G16: 213175 | H16: -641436 | I16: 96588 | J16: 665811 | K16: 677149 | L16: 717083 | M16: 1190350 | N16: 1087247 | O16: 1164612 | P16: 1150180 | Q16: 1334275 | R16: 1096321 | S16: 4352331 | T16: 334138 | U16: 3671829 | V16: 4745388 | X16: 1199663 | Y16: 1171297 | Z16: 1354764.076 | AA16: 1034386 | AB16: 1414333 | AC16: 1429817 | AD16: 1263570 | AE16: 852157.766 | AF16: 1542097 | AG16: 1367374 | AH16: 1556443 | AI16: 1157338 | AJ16: 1814815 | AK16: 1864498 | AL16: =+AL14+AL15 -> 1778455 | AM16: =+AM14+AM15 -> 1624886 | AN16: 2110142 | AO16: 2025579
B17: Non-controlling interest | C17: 22397 | D17: 21958 | E17: 22545 | F17: 20127 | G17: 3901 | H17: -21046 | I17: -8018 | J17: 12407 | K17: 16351 | L17: 17614 | M17: 26651 | N17: 26631 | O17: 27786 | P17: 28420 | Q17: 31855 | R17: 24231 | S17: 87027 | T17: -12756 | U17: 87247 | V17: 112292 | X17: 27786 | Y17: 28420 | Z17: 31855 | AA17: 24231 | AB17: 30060 | AC17: 28550 | AD17: 25397 | AE17: 10331 | AF17: 30440 | AG17: 28278 | AH17: 32655 | AI17: 30625 | AJ17: 37118 | AK17: 42483 | AL17: =+'12.5.1.Credicorp Consolidated '!BL133 -> 39800 | AM17: =+'12.5.1.Credicorp Consolidated '!BM133 -> 37876 | AN17: =+'12.5.1.Credicorp Consolidated '!BN133 -> 46958 | AO17: 43657
B18: Net profit attributable to Credicorp | C18: 1100867 | D18: 1098573 | E18: 1093035 | F18: 972830 | G18: 209274 | H18: -620390 | I18: 104606 | J18: 653404 | K18: 660798 | L18: 699469 | M18: 1163699 | N18: 1060616 | O18: 1136826 | P18: 1121760 | Q18: 1302420 | R18: 1072090 | S18: 4265304 | T18: 346894 | U18: 3584582 | V18: 4633096 | X18: 1171877 | Y18: 1142877 | Z18: 1322909.076 | AA18: 1010155 | AB18: 1384273 | AC18: 1401267 | AD18: 1238173 | AE18: 841826.766 | AF18: 1511657 | AG18: 1339096 | AH18: 1523788 | AI18: 1126713 | AJ18: 1777697 | AK18: 1822015 | AL18: =+AL16-AL17 -> 1738655 | AM18: =+AM16-AM17 -> 1587010 | AN18: 2063184 | AO18: 1981922
B19: Dividends distribution, net of treasury shares effect (S/000) | C19: - | D19: 1595229 | E19: - | F19: 638100 | G19: - | H19: 2392844 | I19: - | J19: - | K19: - | L19: - | M19: - | N19: 398808 | O19: - | P19: =+Y19 -> 1196422 | Q19: - | R19: - | S19: =+F19+D19 -> 2233329 | T19: =+H19 -> 2392844 | U19: =+N19 -> 398808 | V19: =+P19 -> 1196422 | X19: - | Y19: 1196422 | Z19: - | AA19: - | AB19: - | AC19: 1994037 | AD19: - | AE19: - | AF19: - | AG19: 2791652 | AH19: 875992 | AI19: - | AJ19: 0 | AK19: 3181440 | AL19: 0 | AM19: 3181440 | AN19: 0 | AO19: 3978758
B20: Net income / share (S/) | C20: 13.80198951 | D20: 13.77322876 | E20: 13.74713872 | F20: 12.23531631 | G20: 2.62 | H20: -7.78 | I20: 1.311485325 | J20: 8.191975193 | K20: 8.284676592 | L20: 8.76950967 | M20: 14.58973826 | N20: 13.29734737 | O20: 14.25282121 | P20: 14.06393302 | Q20: 16.32893636 | R20: 13.44120129 | S20: 53.64487486 | T20: 4.349142403 | U20: 44.9412719 | V20: 58.08689188 | X20: 14.7 | Y20: 14.3 | Z20: 16.6 | AA20: 12.7 | AB20: 17.4 | AC20: 17.6 | AD20: 15.6 | AE20: 10.6 | AF20: 19 | AG20: 16.8 | AH20: 19.1 | AI20: 14.1 | AJ20: 22.3 | AK20: 22.94180234 | AL20: 21.8 | AM20: 19.9 | AN20: 25.97846863 | AO20: 24.95526259
B21: Dividends per share (S/) | C21: - | D21: 20 | E21: - | F21: 8 | G21: - | H21: 30 | I21: - | J21: - | K21: - | L21: - | M21: - | N21: 5 | O21: - | P21: 15 | Q21: - | R21: - | S21: - | T21: =+H21 -> 30 | U21: =+N21 -> 5 | V21: =+P21 -> 15 | X21: - | Y21: 15 | Z21: - | AA21: - | AB21: - | AC21: 25 | AD21: - | AE21: - | AF21: - | AG21: 0 | AH21: 11 | AI21: - | AJ21: 0 | AK21: 40 | AL21: 0 | AM21: 40 | AN21: 0 | AO21: 49.88320677
B22: Loans | C22: 108350384 | D22: 109381123 | E22: 112209990 | F22: 115609679 | G22: 120708515 | H22: 132741720 | I22: 136148711 | J22: 137659885 | K22: 137031239 | L22: 143091752 | M22: 146551226 | N22: 147597412 | O22: 144621513 | P22: 150370184 | Q22: 151392202 | R22: 148626374 | S22: 115609679 | T22: 137659885 | U22: 147597412 | V22: 148626374 | X22: 144621513 | Y22: 150370184 | Z22: 151392202 | AA22: 148626374 | AB22: 145165713 | AC22: 142845549 | AD22: 145129260 | AE22: 144976051 | AF22: 140798083 | AG22: 146946546 | AH22: 142568785 | AI22: 145732273 | AJ22: 141196646 | AK22: 140961978 | AL22: =+'12.5.1.Credicorp Consolidated '!BL23 -> 144752254 | AM22: =+'12.5.1.Credicorp Consolidated '!BM23 -> 149984954 | AN22: =+'12.5.1.Credicorp Consolidated '!BN23 -> 152824685 | AO22: =+'12.5.1.Credicorp Consolidated '!BO23 -> 159434397
B23: Deposits and obligations | C23: 103727257 | D23: 103157044 | E23: 107391720 | F23: 112005385 | G23: 119563545 | H23: 129664332 | I23: 137202674 | J23: 142365502 | K23: 148626339 | L23: 149161803 | M23: 152548368 | N23: 149596545.2 | O23: 147915964 | P23: 147440575 | Q23: 152792014 | R23: 147020787 | S23: 112005385 | T23: 142365502 | U23: 149596545.2 | V23: 147020787 | X23: 147915964 | Y23: 147440576 | Z23: 152792014 | AA23: 147020787 | AB23: 148623300 | AC23: 143387717 | AD23: 148466054 | AE23: 147704994 | AF23: 147857127 | AG23: 151971984 | AH23: 154435451 | AI23: 161842066 | AJ23: 157619082 | AK23: 154723334 | AL23: =+'12.5.1.Credicorp Consolidated '!BL44 -> 158430455 | AM23: =+'12.5.1.Credicorp Consolidated '!BM44 -> 170401633 | AN23: =+'12.5.1.Credicorp Consolidated '!BN44 -> 178880666 | AO23: =+'12.5.1.Credicorp Consolidated '!BO44 -> 182120766
B24: Net equity | C24: 23692091 | D24: 25221894 | E24: 26000638 | F24: 26237960 | G24: 23205639 | H24: 23396062 | I24: 23594717 | J24: 24945870 | K24: 24529958 | L24: 25073706 | M24: 25192569 | N24: 26496767 | O24: 26872626 | P24: 26175222 | Q24: 27109054 | R24: 28988140 | S24: 26237960 | T24: 24945870 | U24: 26496767 | V24: 28988140 | X24: 26818054 | Y24: 26167811 | Z24: 27292658 | AA24: 29003644 | AB24: 30359898 | AC24: 30027036 | AD24: 31267592 | AE24: 32460004 | AF24: 33853460 | AG24: 32413767 | AH24: 33462591 | AI24: 34346451 | AJ24: 35843202 | AK24: 34459012 | AL24: =+'12.5.1.Credicorp Consolidated '!BL60 -> 36560502 | AM24: =+'12.5.1.Credicorp Consolidated '!BM60 -> 38366950 | AN24: =+'12.5.1.Credicorp Consolidated '!BN60 -> 40018343 | AO24: =+'12.5.1.Credicorp Consolidated '!BO60 -> 38121924
B25: Profitability
B26: Net interest margin(1) | C26: 0.05392195573 | D26: 0.05471377131 | E26: 0.05402039324 | F26: 0.05487299001 | G26: 0.0535 | H26: 0.0403 | I26: 0.04050766846 | J26: 0.03725482196 | K26: 0.03728300097 | L26: 0.0401157668 | M26: 0.04227635187 | N26: 0.04252350301 | O26: 0.04441967258 | P26: 0.04903940969 | Q26: 0.0531 | R26: 0.05730404555 | S26: 0.05398613046 | T26: 0.04301951035 | U26: 0.04102148063 | V26: 0.05068191418 | X26: 0.04458759477 | Y26: 0.04922914268 | Z26: 0.05325234069 | AA26: 0.05750189606 | AB26: 0.05844340721 | AC26: 0.06017356445 | AD26: 0.06108213219 | AE26: 0.06204074001 | AF26: 0.06299450995 | AG26: 0.06327049408 | AH26: 0.06431582507 | AI26: 0.06335318792 | AJ26: 0.06219946213 | AK26: 0.06424357578 | AL26: =+'4.Net Interest Income'!P22 -> 0.06565819874 | AM26: =+'4.Net Interest Income'!Q22 -> 0.06620425887 | AN26: =+'4.Net Interest Income'!R22 -> 0.06576233986 | AO26: =+'4.Net Interest Income'!S22 -> 0.06625235861
B27: Risk-adjusted Net interest margin | C27: 0.04451735554 | D27: 0.04382413238 | E27: 0.04209445491 | F27: 0.04300167262 | G27: 0.0233 | H27: -0.0119 | I27: 0.01603889357 | J27: 0.02405950535 | K27: 0.02749166628 | L27: 0.03380264329 | M27: 0.03944055286 | N27: 0.04034719881 | O27: 0.03990441722 | P27: 0.04253841854 | Q27: 0.04496595182 | R27: 0.04439293087 | S27: 0.04302510197 | T27: 0.01330451879 | U27: 0.03570852269 | V27: 0.04271078585 | X27: 0.04005415202 | Y27: 0.04270448969 | Z27: 0.04508847183 | AA27: 0.04454682307 | AB27: 0.04536140402 | AC27: 0.04559388541 | AD27: 0.04445213756 | AE27: 0.04104951938 | AF27: 0.04853009978 | AG27: 0.04401771494 | AH27: 0.04930468711 | AI27: 0.05083547174 | AJ27: 0.05243759469 | AK27: 0.05440178617 | AL27: =+'4.Net Interest Income'!P23 -> 0.05532033308 | AM27: =+'4.Net Interest Income'!Q23 -> 0.05546788804 | AN27: =+'4.Net Interest Income'!R23 -> 0.05807790686 | AO27: =+'4.Net Interest Income'!S23 -> 0.05489653128
B28: Funding cost(2) | C28: 0.02383280786 | D28: 0.02463551377 | E28: 0.0245701081 | F28: 0.02294431917 | G28: 0.0213 | H28: 0.0186 | I28: 0.01741828374 | J28: 0.01340656565 | K28: 0.01425547297 | L28: 0.01182164063 | M28: 0.01206444928 | N28: 0.01243682056 | O28: 0.01327296384 | P28: 0.01586891527 | Q28: 0.008698268501 | R28: 0.009672092782 | S28: 0.02364149868 | T28: 0.01784933981 | U28: 0.01286928786 | V28: 0.02445821065 | X28: 0.01322874936 | Y28: 0.01579680739 | Z28: 0.0205891804 | AA28: 0.02347885816 | AB28: 0.0261 | AC28: 0.02909202264 | AD28: 0.03152501578 | AE28: 0.03030362693 | AF28: 0.02976441925 | AG28: 0.02856952153 | AH28: 0.02675628946 | AI28: 0.02561960464 | AJ28: 0.02422800654 | AK28: 0.0244372879 | AL28: =+'3.2. Funding'!AL16 -> 0.02430359836 | AM28: =+'3.2. Funding'!AM16 -> 0.02306810587 | AN28: =+'3.2. Funding'!AN16 -> 0.02104797426 | AO28: =+'3.2. Funding'!AO16 -> 0.02151772243
B29: ROE | C29: 0.185 | D29: 0.18 | E29: 0.1707115923 | F29: 0.149 | G29: 0.034 | H29: -0.107 | I29: 0.01780878341 | J29: 0.1076878657 | K29: 0.1068478148 | L29: 0.1128 | M29: 0.1852055243 | N29: 0.1641523828 | O29: 0.1704086803 | P29: 0.1691695392 | Q29: 0.1955428652 | R29: 0.1528903567 | S29: 0.1703 | T29: 0.01355482829 | U29: 0.1393622986 | V29: 0.1670038274 | X29: 0.1704086803 | Y29: 0.1725557594 | Z29: 0.1979644473 | AA29: 0.1436 | AB29: 0.1865671555 | AC29: 0.1856384363 | AD29: 0.1616028054 | AE29: 0.1057 | AF29: 0.1823650144 | AG29: 0.161660122 | AH29: 0.1850482384 | AI29: 0.1329277611 | AJ29: 0.2026164228 | AK29: 0.2073351547 | AL29: =+'0.2.ROAE'!AL19 -> 0.1958509628 | AM29: =+'0.2.ROAE'!AM19 -> 0.1694449697 | AN29: =+'0.2.ROAE'!AN19 -> 0.2105779631 | AO29: =+'0.2.ROAE'!AO19 -> 0.2029091374
B30: ROA | C30: 0.0248220163 | D30: 0.02454745392 | E30: 0.02379594548 | F30: 0.02083862446 | G30: 0.004 | H30: -0.012 | I30: 0.00184661476 | J30: 0.0111435142 | K30: 0.01097650178 | L30: 0.01143784674 | M30: 0.01874777042 | N30: 0.01709329933 | O30: 0.01884024539 | P30: 0.0189121058 | Q30: 0.02168456285 | R30: 0.01784246556 | S30: 0.02336368491 | T30: 0.001584667385 | U30: 0.01486598412 | V30: 0.01923955469 | X30: 0.01942131242 | Y30: 0.01927223347 | Z30: 0.02208107535 | AA30: 0.02149842753 | AB30: 0.02343413035 | AC30: 0.02370190331 | AD30: 0.02099650501 | AE30: 0.01410984792 | AF30: 0.02519365722 | AG30: 0.02189114359 | AH30: 0.02448703113 | AI30: 0.01781514856 | AJ30: 0.02787661483 | AK30: 0.02895018013 | AL30: 0.02759619283 | AM30: 0.02429671086 | AN30: 0.03023660261 | AO30: 0.03023660261
B31: Loan portfolio quality
B32: Internal overdue ratio (3) | C32: 0.02910176119 | D32: 0.03003515515 | E32: 0.02982255858 | F32: 0.0285 | G32: 0.0297 | H32: 0.0289 | I32: 0.03042881544 | J32: 0.03396582091 | K32: 0.03552827104 | L32: 0.03532246219 | M32: 0.03734997754 | N32: 0.03761080851 | O32: 0.04060944239 | P32: 0.04060150648 | Q32: 0.04128436549 | R32: 0.03996426637 | S32: 0.0285 | T32: 0.03396582091 | U32: 0.03761080851 | V32: 0.03996426637 | X32: 0.04060944239 | Y32: 0.04060150648 | Z32: 0.04128436549 | AA32: 0.03996426637 | AB32: 0.03988198646 | AC32: 0.04185916216 | AD32: 0.04414233904 | AE32: 0.04225861415 | AF32: 0.04407037275 | AG32: 0.04240154784 | AH32: 0.04226970862 | AI32: 0.03721352785 | AJ32: 0.03687336171 | AK32: 0.03578420274 | AL32: =+'1.2.Portfolio Quality '!AC11 -> 0.03421917699 | AM32: =+'1.2.Portfolio Quality '!AD11 -> 0.03209345919 | AN32: =+'1.2.Portfolio Quality '!AE11 -> 0.0292827039 | AO32: =+'1.2.Portfolio Quality '!AF11 -> 0.02825102415
B33: Internal overdue ratio over 90 days | C33: 0.02089311847 | D33: 0.0222 | E33: 0.02263390736 | F33: 0.02145729945 | G33: 0.0213 | H33: 0.0235 | I33: 0.02528784953 | J33: 0.02694949647 | K33: 0.02765271647 | L33: 0.02667843039 | M33: 0.02764710409 | N33: 0.02848065764 | O33: 0.03059285036 | P33: 0.03056629232 | Q33: 0.03083122841 | R33: 0.03108776087 | S33: 0.02145729945 | T33: 0.02694949647 | U33: 0.02848065764 | V33: 0.03108776087 | X33: 0.03059285036 | Y33: 0.03056629232 | Z33: 0.03083122841 | AA33: 0.03108776087 | AB33: 0.02941556179 | AC33: 0.03193897907 | AD33: 0.03359046963 | AE33: 0.03229045741 | AF33: 0.03340054708 | AG33: 0.03239842738 | AH33: 0.03402982637 | AI33: 0.03008115436 | AJ33: 0.02997835374 | AK33: 0.02959222805 | AL33: 0.02861496029 | AM33: 0.02715727739 | AN33: 0.024 | AO33: =+'1.2.Portfolio Quality '!AF12 -> 0.02294244573
B34: NPL ratio (4) | C34: 0.04090106409 | D34: 0.04112179393 | E34: 0.04074574822 | F34: 0.0388 | G34: 0.039 | H34: 0.0378 | I34: 0.04173618654 | J34: 0.04605813088 | K34: 0.04977213991 | L34: 0.04790233472 | M34: 0.04962530986 | N34: 0.04980303449 | O34: 0.05246157949 | P34: 0.05181507259 | Q34: 0.05323334289 | R34: 0.05408523254 | S34: 0.0388 | T34: 0.04605813088 | U34: 0.04980303449 | V34: 0.05408523254 | X34: 0.05246157949 | Y34: 0.05181507259 | Z34: 0.05323334289 | AA34: 0.05408523254 | AB34: 0.05449334307 | AC34: 0.05644921425 | AD34: 0.05966710641 | AE34: 0.05885485872 | AF34: 0.06223645105 | AG34: 0.0597897415 | AH34: 0.05863944902 | AI34: 0.05258037113 | AJ34: 0.05104708365 | AK34: 0.04960146771 | AL34: =+'1.2.Portfolio Quality '!AC13 -> 0.04814947476 | AM34: =+'1.2.Portfolio Quality '!AD13 -> 0.04547722834 | AN34: =+'1.2.Portfolio Quality '!AE13 -> 0.04268941892 | AO34: =+'1.2.Portfolio Quality '!AF13 -> 0.0405043524
B35: Cost of risk (5) | C35: 0.01414710261 | D35: 0.01639383425 | E35: 0.0179225397 | F35: 0.0177 | G35: 0.0445 | H35: 0.0766 | I35: 0.03836701766 | J35: 0.0212891359 | K35: 0.0162779525 | L35: 0.01015795795 | M35: 0.004487550312 | N35: 0.003435886803 | O35: 0.00712452787 | P35: 0.00966390896 | Q35: 0.01215322108 | R35: 0.01966490819 | S35: 0.01596696761 | T35: 0.04300823003 | U35: 0.00821303696 | V35: 0.01218853661 | X35: 0.007051973105 | Y35: 0.009753839139 | Z35: 0.01219438926 | AA35: 0.01948362024 | AB35: 0.01979625816 | AC35: 0.02233943199 | AD35: 0.02549228533 | AE35: 0.03235939379 | AF35: 0.02280679468 | AG35: 0.03039837105 | AH35: 0.02398715113 | AI35: 0.02062555039 | AJ35: 0.01622403213 | AK35: 0.01630739452 | AL35: =+'5.Provisions'!AC17 -> 0.016 | AM35: =+'5.Provisions'!AD17 -> 0.0162740333 | AN35: =+'5.Provisions'!AE17 -> 0.01273622205 | AO35: =+'5.Provisions'!AF17 -> 0.01568481087
B36: Coverage ratio of IOLs | C36: 1.542186049 | D36: 1.484851058 | E36: 1.487516544 | F36: 1.554 | G36: 1.657 | H36: 2.189 | I36: 2.330858463 | J36: 2.117050788 | K36: 2.001506013 | L36: 1.858032274 | M36: 1.658379867 | N36: 1.527096741 | O36: 1.406842228 | P36: 1.360549009 | Q36: 1.284789711 | R36: 1.325377323 | S36: 1.554 | T36: 2.117050788 | U36: 1.527096741 | V36: 1.325377323 | X36: 1.406842228 | Y36: 1.360549033 | Z36: 1.284789711 | AA36: 1.325377323 | AB36: 1.367191312 | AC36: 1.330600169 | AD36: 1.25753702 | AE36: 1.351168459 | AF36: 1.319953476 | AG36: 1.340129002 | AH36: 1.368993723 | AI36: 1.474214359 | AJ36: 1.487169529 | AK36: 1.51829364 | AL36: 1.549277321 | AM36: 1.593412826 | AN36: 1.659268355 | AO36: 1.681838779
B37: Coverage ratio of NPLs | C37: 1.097290036 | D37: 1.084527878 | E37: 1.088740573 | F37: 1.144 | G37: 1.261 | H37: 1.675 | I37: 1.699370927 | J37: 1.5612307 | K37: 1.428711891 | L37: 1.370085094 | M37: 1.248162499 | N37: 1.153249871 | O37: 1.089007974 | P37: 1.066105607 | Q37: 0.9964004724 | R37: 0.9793381644 | S37: 1.144 | T37: 1.5612307 | U37: 1.153249871 | V37: 0.9793381644 | X37: 1.089007974 | Y37: 1.066105607 | Z37: 0.9964004724 | AA37: 0.9793381644 | AB37: 1.000604887 | AC37: 0.9866888142 | AD37: 0.930338822 | AE37: 0.9701579072 | AF37: 0.9346747884 | AG37: 0.9503895789 | AH37: 0.98682656 | AI37: 1.043368769 | AJ37: 1.074242367 | AK37: 1.095349189 | AL37: 1.101050325 | AM37: 1.124477708 | AN37: 1.138171124 | AO37: 1.173050923
B38: Operating efficiency
B39: Operating income(6) | C39: 3768564 | D39: 3832407 | E39: 3896978 | F39: 4073888 | G39: 3968580 | H39: 3213316 | I39: 3684610 | J39: 3793722 | K39: 3871563 | L39: 4147704 | M39: 4307356 | N39: 4414186 | O39: 4376339 | P39: 4649583 | Q39: 5024516 | R39: 5219379 | S39: 6785063 | T39: 6782810 | U39: 7685957 | V39: 8564147 | X39: 3799381 | Y39: 4044394 | Z39: 4456209 | AA39: 4530125 | AB39: 4602331 | AC39: 4715570 | AD39: 4844683 | AE39: 4893605 | AF39: 4933778 | AG39: 5143084 | AH39: 5211162 | AI39: 5396202 | AJ39: 5340199 | AK39: 5529301 | AL39: =+'9.Operating Efficiency'!AM8 -> 5670690 | AM39: =+'9.Operating Efficiency'!AN8 -> 5857472 | AN39: =+'9.Operating Efficiency'!AO8 -> 6029112 | AO39: =+'9.Operating Efficiency'!AP8 -> 6231110
B40: Operating expenses(7) | C40: 1597816 | D40: 1653563 | E40: 1680417 | F40: 1852620 | G40: 1722183 | H40: 1611543 | I40: 1657965 | J40: 1814552.297 | K40: 1704315.302 | L40: 1812099.698 | M40: 1986910.621 | N40: 2182631.795 | O40: 1945556 | P40: 2071401 | Q40: 2146516 | R40: 2400674 | S40: 15571825 | T40: 14660228 | U40: 16739655 | V40: 19269608 | X40: 1795168 | Y40: 1928480 | Z40: 2026217 | AA40: 2243805 | AB40: 2038309 | AC40: 2103072 | AD40: 2243691 | AE40: 2395688 | AF40: 2112810 | AG40: 2270785 | AH40: 2313324 | AI40: 2612878 | AJ40: 2442089 | AK40: 2483493 | AL40: =+'9.Operating Efficiency'!AM7 -> 2629461 | AM40: =+'9.Operating Efficiency'!AN7 -> 2871709 | AN40: =+'9.Operating Efficiency'!AO7 -> 2762628 | AO40: =+'9.Operating Efficiency'!AP7 -> 2825995
B41: Efficiency ratio (8) | C41: 0.4239853695 | D41: 0.4314685262 | E41: 0.4312102865 | F41: 0.455 | G41: 0.434 | H41: 0.502 | I41: 0.4499700104 | J41: 0.4721273725 | K41: 0.4403632331 | L41: 0.4370307042 | M41: 0.4612836738 | N41: 0.4944580949 | O41: 0.4447052662 | P41: 0.4455025322 | Q41: 0.428170992 | R41: 0.4599539524 | S41: 0.4357062202 | T41: 0.4626674292 | U41: 0.4591466789 | V41: 0.4444440004 | X41: 0.4724895976 | Y41: 0.4768279253 | Z41: 0.4546952353 | AA41: 0.4953075246 | AB41: 0.4428862244 | AC41: 0.4459846848 | AD41: 0.4565802188 | AE41: 0.4895548374 | AF41: 0.4282336984 | AG41: 0.4415220517 | AH41: 0.4439171148 | AI41: 0.4842068551 | AJ41: 0.4573029956 | AK41: 0.4491513484 | AL41: 0.4636933072 | AM41: 0.49026423 | AN41: =+AN40/AN39 -> 0.4582147421 | AO41: =+AO40/AO39 -> 0.4535299489
B42: Operating expenses / Total average assets | C42: 0.03602707211 | D42: 0.03694862476 | E42: 0.03672077499 | F42: 0.0402 | G42: 0.0357 | H42: 0.0307 | I42: 0.02926811841 | J42: 0.03054675384 | K42: 0.02831995864 | L42: 0.02964118124 | M42: 0.03201015793 | N42: 0.03564387052 | O42: 0.03225342103 | P42: 0.03492492449 | Q42: 0.03581880473 | R42: 0.03995368222 | S42: 0.04955459963 | T42: 0.03189787661 | U42: 0.03187521299 | V42: 0.03556377303 | X42: 0.02975100507 | Y42: 0.0325197703 | Z42: 0.03382020054 | AA42: 0.0380340677 | AB42: 0.03450619842 | AC42: 0.03557267045 | AD42: 0.03805261165 | AE42: 0.04015409666 | AF42: 0.03521260815 | AG42: 0.03713174877 | AH42: 0.03717476525 | AI42: 0.04132266182 | AJ42: 0.03828337219 | AK42: 0.03949748513 | AL42: 0.04173519914 | AM42: 0.04396511859 | AN42: 0.04047044756 | AO42: 0.04025226994
B43: Capital adequacy - BCP Stand-alone
B44: Global Capital ratio (9) | C44: 0.1549 | D44: 0.1495 | E44: 0.1545005775 | F44: 0.1447 | G44: 0.1352 | H44: 0.148 | I44: 0.1538686463 | J44: 0.1493231323 | K44: 0.1645570306 | L44: 0.1533956341 | M44: 0.1516107106 | N44: 0.1494468677 | O44: 0.1579193537 | P44: 0.1523347214 | Q44: 0.1492827128 | R44: 0.1442789247 | S44: 0.1447 | T44: 0.1493231323 | U44: 0.1516107106 | V44: 0.1492827128 | X44: 0.1579193537 | Y44: n.a | Z44: n.a | AA44: n.a | AB44: 0.1645438135 | AC44: 0.1720185456 | AD44: 0.1751223387 | AE44: 0.1745766377 | AF44: 0.1612144941 | AG44: 0.1624 | AH44: 0.1896 | AI44: 0.1871 | AJ44: 0.1686544651 | AK44: 0.1733458124 | AL44: 0.1771535744 | AM44: 0.1944134872 | AN44: 0.1669992259 | AO44: 0.1727069145
B45: Tier 1 ratio (10) | C45: 0.1173 | D45: 0.1133 | E45: 0.117862909 | F45: 0.1107 | G45: 0.1033 | H45: 0.1054 | I45: 0.1070066603 | J45: 0.104080398 | K45: 0.1059375024 | L45: 0.1030581993 | M45: 0.1000096351 | N45: 0.09937893727 | O45: 0.1073897796 | P45: 0.1025382466 | Q45: 0.09941834152 | R45: 0.1001559188 | S45: 0.1107 | T45: 0.104080398 | U45: 0.09937893727 | V45: 0.1001559188 | X45: 0.1073897796 | Y45: n.a | Z45: n.a | AA45: n.a | AB45: 0.1186298575 | AC45: 0.1275280343 | AD45: 0.1300883555 | AE45: 0.1309030166 | AF45: 0.1171582256 | AG45: 0.119 | AH45: 0.1325 | AI45: 0.1308 | AJ45: 0.1133606499 | AK45: 0.122417409 | AL45: 0.1282156851 | AM45: 0.1366408584 | AN45: 0.1095976364 | AO45: 0.1140136549
B46: Common equity tier 1 ratio (11) (13) | C46: 0.1139 | D46: 0.1182 | E46: 0.119467404 | F46: 0.1235 | G46: 0.1189 | H46: 11,22% | I46: 0.1144678253 | J46: 0.1139603188 | K46: 0.1101342185 | L46: 0.1120660802 | M46: 0.1120477381 | N46: 0.1191233592 | O46: 0.1162852112 | P46: 0.1156845009 | Q46: 0.1183134483 | R46: 0.125881714 | S46: 0.1235 | T46: 0.1139603188 | U46: 0.1191233592 | V46: 0.125881714 | X46: 0.1162852112 | Y46: 0.1156382711 | Z46: 0.1183134483 | AA46: 0.125881714 | AB46: 0.1192638153 | AC46: 0.1279382711 | AD46: 0.1304382251 | AE46: 0.1320195154 | AF46: 0.1185622141 | AG46: 0.1205 | AH46: 0.1342 | AI46: 0.1332 | AJ46: 0.1133606499 | AK46: 0.122417409 | AL46: 0.1282156851 | AM46: 0.1398940324 | AN46: 0.1129282411 | AO46: 0.1169683855
B47: Capital adequacy - Mibanco
B48: Global Capital ratio (9) | D48: 0.1485940364 | E48: 0.1533597625 | F48: 0.1445414525 | G48: 0.1593689855 | H48: 0.1594 | I48: 0.1768724484 | J48: 0.1982498546 | K48: 0.1783029677 | L48: 0.1725362573 | M48: 0.1673644072 | N48: 0.1639891794 | O48: 0.1561084278 | P48: 0.1482653849 | Q48: 0.1461429288 | R48: 0.1468613828 | S48: 0.1445414525 | T48: 0.1768724484 | U48: 0.1639891794 | V48: 0.1468613828 | X48: 0.1561 | Y48: n.a | Z48: n.a | AA48: n.a | AB48: 0.1876183064 | AC48: 0.1877818703 | AD48: 0.1877818703 | AE48: 0.2056 | AF48: 0.1803336716 | AG48: 0.1895 | AH48: 0.2022 | AI48: 0.1942 | AJ48: 0.185288816 | AK48: 0.1960770982 | AL48: 0.2112871751 | AM48: 0.2125192859 | AN48: 0.2031166052 | AO48: 0.2061266412
B49: Tier 1 ratio (10) | D49: 0.1140828178 | E49: 0.1271445478 | F49: 0.1210728726 | G49: 0.1382574503 | H49: 0.1383 | I49: 0.1547152204 | J49: 0.1767256933 | K49: 0.144804671 | L49: 0.1468510956 | M49: 0.1425002898 | N49: 0.1396051714 | O49: 0.132402305 | P49: 0.1255205163 | Q49: 0.1235865147 | R49: 0.1238401071 | S49: 0.1210728726 | T49: 0.1547152204 | U49: 0.1396051714 | V49: 0.1238401071 | X49: 0.1324 | Y49: n.a | Z49: n.a | AA49: n.a | AB49: 0.1639941656 | AC49: 0.1648922268 | AD49: 0.1648922268 | AE49: 0.1822064019 | AF49: 0.1568832572 | AG49: 0.1662 | AH49: 0.1785 | AI49: 0.1707 | AJ49: 0.1547642403 | AK49: 0.1647841169 | AL49: 0.1712915542 | AM49: 0.1740758815 | AN49: 0.1586899566 | AO49: 0.1631883234
B50: Common equity tier 1 ratio (11)(13) | D50: 0.1603661786 | E50: 0.1587522199 | F50: 0.1570054235 | G50: 0.1530070649 | H50: 0.1454 | I50: 0.1621693172 | J50: 0.1769689664 | K50: 0.1472625457 | L50: 0.1515817945 | M50: 0.1509869961 | N50: 0.1523504722 | O50: 0.1521228025 | P50: 0.1524783795 | Q50: 0.1599761997 | R50: 0.1645898445 | S50: 0.1570054235 | T50: 0.1621693172 | U50: 0.1523504722 | V50: 0.1645898445 | X50: 0.1491 | Y50: 0.1501531503 | Z50: 0.1501531503 | AA50: 0.1645898445 | AB50: 0.1638280194 | AC50: 0.1659 | AD50: 0.1659 | AE50: 0.1837119962 | AF50: 0.1606449458 | AG50: 0.1673 | AH50: 0.1794 | AI50: 0.1753 | AJ50: 0.1547642403 | AK50: 0.1647841169 | AL50: 0.1712915542 | AM50: 0.1730255896 | AN50: 0.1569619437 | AO50: 0.159018154
B51: Employees | C51: 34266 | D51: 34963 | E51: 35174 | F51: 35846 | G51: 34963 | H51: 38219 | I51: 37572 | J51: 36806 | K51: 36233 | L51: 35776 | M51: 35733 | N51: 36358 | O51: 36198 | P51: 34398 | Q51: 35692 | R51: 36968 | S51: 35846 | T51: 36806 | U51: 36358 | V51: 36968 | X51: 36202 | Y51: 36087 | Z51: 35679 | AA51: 36968 | AB51: 37184 | AC51: 37380 | AD51: 37161 | AE51: 36947 | AF51: 35508 | AG51: 33461 | AH51: 38758 | AI51: 47283 | AJ51: 48853 | AK51: 49485 | AL51: 50169 | AM51: 51005 | AN51: 51509 | AO51: 52770
B52: Share Information
B53: Issued Shares | C53: 94382 | D53: 94382 | E53: 94382 | F53: 94382 | G53: 94382 | H53: 94382 | I53: 94382 | J53: 94382 | K53: 94382 | L53: 94382 | M53: 94382 | N53: 94382 | O53: 94382 | P53: 94382 | Q53: 94382 | R53: 94382 | S53: 94382 | T53: 94382 | U53: 94382 | V53: 94382 | X53: 94382 | Y53: 94382 | Z53: 94382 | AA53: 94382 | AB53: 94382 | AC53: 94382 | AD53: 94382 | AE53: 94382 | AF53: 94382 | AG53: 94382 | AH53: 94382 | AI53: 94382 | AJ53: 94382 | AK53: 94382 | AL53: 94382 | AM53: 94382 | AN53: 94382 | AO53: 94382
B54: Treasury Shares (12) | C54: 14621 | D54: 14872 | E54: 14872 | F54: 14872 | G54: 14872 | H54: 14977 | I54: 14977 | J54: 14915 | K54: 14872 | L54: 14866 | M54: 14866.23 | N54: 14850.369 | O54: 14862 | P54: 14849 | Q54: 14849 | R54: 14849.223 | S54: 14872 | T54: 14915 | U54: 14850.369 | V54: 14849.223 | X54: 14862 | Y54: 14849 | Z54: 14849 | AA54: 14849 | AB54: 14887 | AC54: 14829 | AD54: 14847 | AE54: 14886 | AF54: 14908 | AG54: 14949 | AH54: 14949 | AI54: 14948 | AJ54: 15016 | AK54: 15016 | AL54: 15016 | AM54: 15016 | AN54: =14933948/1000 -> 14933.948 | AO54: 14963
B55: Outstanding Shares | C55: 79761 | D55: 79510 | E55: 79510 | F55: 79510 | G55: 79510 | H55: 79405 | I55: 79405 | J55: 79467 | K55: 79510 | L55: 79516 | M55: 79515.77 | N55: 79531.631 | O55: 79520 | P55: 79533 | Q55: 79533 | R55: 79532.777 | S55: 79510 | T55: 79467 | U55: 79531.631 | V55: 79532.777 | X55: 79520 | Y55: 79533 | Z55: 79533 | AA55: 79533 | AB55: 79495 | AC55: 79553 | AD55: 79535 | AE55: 79496 | AF55: 79474 | AG55: 79433 | AH55: 79433 | AI55: 79434 | AJ55: 79366 | AK55: 79366 | AL55: 79366 | AM55: 79366 | AN55: =+AN53-AN54 -> 79448.052 | AO55: 79419
B58: (1) Internal overdue loans: includes overdue loans and loans under legal collection, according to our internal policy for overdue loans. Internal Overdue ratio: Internal overdue loans / Total loans. | X58: (1) Net Interest Margin = Net Interest Income (Excluding Net Insurance Financial Expenses) / Average Interest Earning Assets
B59: (2) Non-performing loans (NPL): Internal overdue loans + Refinanced loans. NPL ratio: NPL / Total loans. | X59: (2) Funding Cost = Interest Expense (Does not include Net Insurance Financial Expenses) / Average Funding
B60: (3) Cost of risk: Annualized provision for loan losses, net of recoveries / Total loans. | X60: (3) Internal Overdue Loans: includes overdue loans and loans under legal collection, according to our internal policy for overdue loans. Internal Overdue Ratio: Internal overdue loans / Total loans
B61: (4) Efficiency ratio = (Salaries and employee benefits + Administrative expenses + Depreciation and amortization + Association in participation + Acquisition cost) / (Net interest, similar income and expenses + Fee Income + Net gain on foreign exchange transactions + Net Gain From associates + Net gain on derivatives held for trading + Result on exchange differences + Net Premiums Earned). | X61: (4) Non-performing loans (NPL): Internal overdue loans + Refinanced loans. NPL ratio: NPL / Total loans.
B62: (5) Combined ratio = (Net claims / Net earned premiums) + [(Acquisition cost + Operating expenses) / Net earned premiums]. Does not include Life insurance business. | X62: (5) Cost of risk = Annualized provision for loan losses, net of recoveries / Total loans.
B63: (6) Considers Grupo Pacifico's figures before eliminations for consolidation to Credicorp. | X63: (6) Efficiency Ratio = (Salaries and employee benefits + Administrative expenses + Depreciation and amortization + Association in participation) / (Net interest, similar income and expenses + Fee Income + Net gain on foreign exchange transactions + Net Gain From associates + Net gain on derivatives held for trading + Result on exchange differences + Insurance Underwriting Result)
B64: (7) All Capital ratios for BCP Stand-alone and Mibanco are based on Peru GAAP. | X64: (7) Regulatory Capital / Risk-weighted assets (legal minimum = 10% since July 2011).
B65: (8) Regulatory Capital / Risk-weighted assets (legal minimum = 10% since July 2011). | X65: (8) Tier 1 = Capital + Legal and other capital reserves + Accumulated earnings with capitalization agreement + (0.5 x Unrealized profit and net income in subsidiaries) - Goodwill - (0.5 x Investment in subsidiaries) + Perpetual subordinated debt (maximum amount that can be included is 17.65% of Capital + Reserves + Accumulated earnings with capitalization agreement + Unrealized profit and net income in subsidiaries - Goodwill).
B66: (9) Tier 1 = Capital + Legal and other capital reserves + Accumulated earnings with capitalization agreement + (0.5 x Unrealized profit and net income in subsidiaries) - Goodwill - (0.5 x Investment in subsidiaries) + Perpetual subordinated debt (maximum amount that can be included is 17.65% of Capital + Reserves + Accumulated earnings with capitalization agreement + Unrealized profit and net income in subsidiaries - Goodwill). | X66: (9) Common Equity Tier I = Capital + Reserves – 100% of applicable deductions (investment in subsidiaries, goodwill, intangibles and net deferred taxes that rely on future profitability) + retained earnings + unrealized gains. Adjusted Risk-Weighted Assets = Risk-weighted assets - (RWA Intangible assets, excluding goodwill, + RWA Deferred tax assets generated as a result of temporary differences in income tax, in excess of 10% of CET1, + RWA Deferred tax assets generated as a result of past losses)."
B67: (10) Common Equity Tier I = Capital + Reserves – 100% of applicable deductions (investment in subsidiaries, goodwill, intangibles and net deferred taxes that rely on future profitability) + retained earnings + unrealized gains. | X67: (10) Consider shares held by Atlantic Security Holding Corporation (ASHC) and stock awards.
B68: (11) Adjusted Risk-Weighted Assets = Risk-weighted assets - (RWA Intangible assets, excluding goodwill, + RWA Deferred tax assets generated as a result of temporary differences in income tax, in excess of 10% of CET1, + RWA Deferred tax assets generated as a result of past losses). | X68: (11) These shares are held by Atlantic Security Holding Corporation (ASHC).
B69: (12) These shares are held by Atlantic Security Holding Corporation (ASHC). | X69: (12) Common Equity Tier I calculated based on IFRS Accounting.
B70: (13) Common Equity Tier I calculated based on IFRS Accounting.
B71: *These figures are corrected according to the Press Release issued on August 13, 2024.
B74: Credicorp Ltd. | C74: As of | X74: As of
B75: S/000
C76: 1Q19 | D76: 2Q19 | E76: 3Q19 | F76: 4Q19 | G76: 1Q20 | H76: 2Q20 | I76: 3Q20 | J76: 4Q20 | K76: 1Q21 | L76: 2Q21 | M76: 3Q21 | N76: 4Q21 | O76: 1Q22 | P76: 2Q22 | Q76: 3Q22 | R76: 4Q22 | X76: Mar 22 | Y76: Jun 22 | Z76: Sep 22 | AA76: Dec 22 | AB76: Mar 23 | AC76: Jun 23 | AD76: Sep 23 | AE76: Dec 23 | AF76: Mar 24 | AG76: Jun 24 | AH76: Sep 24 | AI76: Dic 24 | AJ76: Mar 25 | AK76: Jun 25 | AL76: Set 25 | AM76: Dic 25 | AN76: Mar 26 | AO76: Jun 26
B77: Net interest, similar income and expenses | C77: 2197168 | D77: 2252403 | E77: 2276400 | F77: 2365050 | G77: 2379527 | H77: 1961350 | I77: 2161905 | J77: 2068560 | K77: 2123383 | L77: 2309042 | M77: 2451099 | N77: 2477234 | O77: 2534090 | P77: 2740440 | Q77: 3001426 | R77: 3243018 | X77: =+X7 -> 2431707 | Y77: =+Y7+X7 -> 5068813 | Z77: =+Z7+Y7+X7 -> 7951213.773 | AA77: =+AA7+Z7+Y7+X7 -> 11091617.77 | AB77: =+AB7 -> 3132089 | AC77: =+AC7+AB7 -> 6336245 | AD77: =+AD7+AC7+AB7 -> 9590288 | AE77: =+AE7+AD7+AC7+AB7 -> 12937972 | AF77: =+AF7 -> 3426123 | AG77: =+AG7+AF7 -> 6894587 | AH77: =+AH7+AG7+AF7 -> 10485337 | AI77: =+AI7+AH7+AG7+AF7 -> 14115131 | AJ77: =+AJ7 -> 3572012 | AK77: =+AK7+AJ7 -> 7187383 | AL77: =+AL7+AK7+AJ7 -> 10875212 | AM77: =+AM7+AL7+AK7+AJ7 -> 14716479 | AN77: =+AN7 -> 3962727 | AO77: =+'12.5.1.Credicorp Consolidated '!BO145 -> 8059678
B78: Provision for credit losses on loan portfolio, net of recoveries | C78: -383211 | D78: -448294 | E78: -502772 | F78: -511659 | G78: -1341481 | H78: -2540457 | I78: -1305905 | J78: -732665 | K78: -557647 | L78: -363380 | M78: -164414 | N78: -126782 | O78: -257590 | P78: -363291 | Q78: -459976 | R78: -730681 | X78: =+X8 -> -257590 | Y78: =+Y8+X8 -> -620881 | Z78: =+Z8+Y8+X8 -> -1080857 | AA78: =+AA8+Z8+Y8+X8 -> -1811538 | AB78: =+AB8 -> -726998 | AC78: =+AC8+AB8 -> -1531249 | AD78: =+AD8+AC8+AB8 -> -2448891 | AE78: =+AE8+AD8+AC8+AB8 -> -3622345 | AF78: =+AF8 -> -814699 | AG78: =+AG8+AF8 -> -1908070 | AH78: =+AH8+AG8+AF8 -> -2776151 | AI78: =+AI8+AH8+AG8+AF8 -> -3519447 | AJ78: =+AJ8 -> -581893 | AK78: =+AK8+AJ8 -> -1157052 | AL78: =+AL8+AK8+AJ8 -> -1759970 | AM78: =+AM8+AL8+AK8+AJ8 -> -2406256 | AN78: =+AN8 -> -482088 | AO78: =+'12.5.1.Credicorp Consolidated '!BO149 -> -1213296
B79: Net interest, similar income and expenses, after provision for credit losses on loan portfolio | C79: 1813957 | D79: 1804109 | E79: 1773628 | F79: 1853391 | G79: 1038046 | H79: -579107 | I79: 856000 | J79: 1335895 | K79: 1565736 | L79: 1945662 | M79: 2286685 | N79: 2350452 | O79: 2276500 | P79: 2377149 | Q79: 2541450 | R79: 2512337 | X79: 2174117 | Y79: 4447932 | Z79: 6870356.773 | AA79: 9280079.773 | AB79: 2405091 | AC79: 4804996 | AD79: 7141397 | AE79: 9315627 | AF79: 2611424 | AG79: 4986517 | AH79: 7709186 | AI79: 10595684 | AJ79: 2990119 | AK79: 6030331 | AL79: 9115242 | AM79: 12310223 | AN79: =+AN9 -> 3480639 | AO79: =+AO77+AO78 -> 6846382
B80: Other income | C80: 1176337 | D80: 1195115 | E80: 1299256 | F80: 1265545 | G80: 958255 | H80: 1015663 | I80: 1102766 | J80: 1329533 | K80: 1194530 | L80: 1191694 | M80: 1238683 | N80: 1304163 | O80: 1242749 | P80: 1203980 | Q80: 1310585 | R80: 1350661 | X80: 1239398 | Y80: 2436990 | Z80: 3738242.303 | AA80: 5066104.303 | AB80: 1333275 | AC80: 2767061 | AD80: 4174423 | AE80: 5661246 | AF80: 1392559 | AG80: 2983889 | AH80: 4529233 | AI80: 6111966 | AJ80: 1690216 | AK80: 3367589 | AL80: 5021780 | AM80: 6821279 | AN80: 1856324 | AO80: =+'12.5.1.Credicorp Consolidated '!BO161 -> 3898526
B81: Insurance underwriting result | C81: 109111 | D81: 118225 | E81: 125151 | F81: 142443 | G81: 141926 | H81: 135680 | I81: -4340 | J81: 84867 | K81: -65247 | L81: -136335 | M81: 70204 | N81: 127657 | O81: 141546 | P81: 137042 | Q81: 198842 | R81: 184168 | X81: 206667 | Y81: 400864 | Z81: 704624 | AA81: 841448 | AB81: 296341 | AC81: 592905 | AD81: 945456 | AE81: 1232751 | AF81: 279062 | AG81: 594562 | AH81: 886337 | AI81: 1199020 | AJ81: 329134 | AK81: 680007 | AL81: 1068357 | AM81: 1389200 | AN81: 299063 | AO81: =+'12.5.1.Credicorp Consolidated '!BO166 -> 587077
B82: Medical services result | X82: 0 | Y82: 0 | Z82: 0 | AA82: 0 | AB82: 0 | AC82: 0 | AD82: 0 | AE82: 0 | AF82: 0 | AG82: 0 | AH82: 0 | AI82: 0 | AJ82: 42689 | AK82: 166008 | AL82: 289961 | AM82: 414634 | AN82: 123838 | AO82: =+'12.5.1.Credicorp Consolidated '!BO171 -> 257277
B83: Total expenses | C83: -1553976 | D83: -1582452 | E83: -1679234 | F83: -1885172 | G83: -1779306 | H83: -1628398 | I83: -1802009 | J83: -1981310 | K83: -1680271 | L83: -1860447 | M83: -1977185 | N83: -2223165 | O83: -1950182 | P83: -2054810 | Q83: -2141519 | R83: -2474609 | X83: -1874519 | Y83: -3855644 | Z83: -5953234 | AA83: -8317021 | AB83: -2126908 | AC83: -4322874 | AD83: -6700041 | AE83: -9361583 | AF83: -2212482 | AG83: -4607687 | AH83: -7055916 | AI83: -10082143 | AJ83: -2532874 | AK83: -5163184 | AL83: -7907826 | AM83: -10987783 | AN83: -2840831 | AO83: =+'12.5.1.Credicorp Consolidated '!BO180 -> -5830293
B84: Profit before income tax | C84: 1545429 | D84: 1534997 | E84: 1518801 | F84: 1376207 | G84: 358921 | H84: -1056162 | I84: 152417 | J84: 768985 | K84: 1014748 | L84: 1140574 | M84: 1618387 | N84: 1559107 | O84: 1710613 | P84: 1663361 | Q84: 1909358 | R84: 1572557 | X84: 1745663 | Y84: 3430142 | Z84: 5359989.076 | AA84: 6870611.076 | AB84: 1907799 | AC84: 3842088 | AD84: 5561235 | AE84: 6848041 | AF84: 2070563 | AG84: 3957281 | AH84: 6068841 | AI84: 7824527 | AJ84: 2519284 | AK84: 5080751 | AL84: 7587514 | AM84: 9947553 | AN84: 2919033 | AO84: =+'12.5.1.Credicorp Consolidated '!BO182 -> 5758969
B85: Income tax | C85: -422165 | D85: -414466 | E85: -403221 | F85: -383250 | G85: -145746 | H85: 414726 | I85: -55829 | J85: -103174 | K85: -337599 | L85: -423491 | M85: -428037 | N85: -471860 | O85: -546001 | P85: -513181 | Q85: -575083 | R85: -476236 | X85: -546000 | Y85: -1059182 | Z85: -1634265 | AA85: -2110501 | AB85: -493466 | AC85: -997938 | AD85: -1453515 | AE85: -1888163.234 | AF85: -528466 | AG85: -1047810 | AH85: -1602927 | AI85: -2201275 | AJ85: -704469 | AK85: -1401438 | AL85: -2129746 | AM85: -2864899 | AN85: -808891 | AO85: =+'12.5.1.Credicorp Consolidated '!BO184 -> -1623248
B86: Net profit | C86: 1123264 | D86: 1120531 | E86: 1115580 | F86: 992957 | G86: 213175 | H86: -641436 | I86: 96588 | J86: 665811 | K86: 677149 | L86: 717083 | M86: 1190350 | N86: 1087247 | O86: 1164612 | P86: 1150180 | Q86: 1334275 | R86: 1096321 | X86: 1199663 | Y86: 2370960 | Z86: 3725724.076 | AA86: 4760110.076 | AB86: 1414333 | AC86: 2844150 | AD86: 4107720 | AE86: 4959877.766 | AF86: 1542097 | AG86: 2909471 | AH86: 4465914 | AI86: 5623252 | AJ86: 1814815 | AK86: 3679313 | AL86: 5457768 | AM86: 7082654 | AN86: 2110142 | AO86: =+'12.5.1.Credicorp Consolidated '!BO186 -> 4135721
B87: Non-controlling interest | C87: 22397 | D87: 21958 | E87: 22545 | F87: 20127 | G87: 3901 | H87: -21046 | I87: -8018 | J87: 12407 | K87: 16351 | L87: 17614 | M87: 26651 | N87: 26631 | O87: 27786 | P87: 28420 | Q87: 31855 | R87: 24231 | X87: 27786 | Y87: 56206 | Z87: 88061 | AA87: 112292 | AB87: 30060 | AC87: 58610 | AD87: 84007 | AE87: 94338 | AF87: 30440 | AG87: 58718 | AH87: 91373 | AI87: 121998 | AJ87: 37118 | AK87: 79601 | AL87: 119401 | AM87: 157277 | AN87: 46958 | AO87: =+'12.5.1.Credicorp Consolidated '!BO187 -> 90615
B88: Net profit attributable to Credicorp | C88: 1100867 | D88: 1098573 | E88: 1093035 | F88: 972830 | G88: 209274 | H88: -620390 | I88: 104606 | J88: 653404 | K88: 660798 | L88: 699469 | M88: 1163699 | N88: 1060616 | O88: 1136826 | P88: 1121760 | Q88: 1302420 | R88: 1072090 | X88: 1171877 | Y88: 2314754 | Z88: 3637663.076 | AA88: 4647818.076 | AB88: 1384273 | AC88: 2785540 | AD88: 4023713 | AE88: 4865539.766 | AF88: 1511657 | AG88: 2850753 | AH88: 4374541 | AI88: 5501254 | AJ88: 1777697 | AK88: 3599712 | AL88: 5338367 | AM88: 6925377 | AN88: 2063184 | AO88: =+'12.5.1.Credicorp Consolidated '!BO188 -> 4045106
B89: Dividends distribution, net of treasury shares effect (S/000) | C89: - | D89: 1595229 | E89: - | F89: 638100 | G89: - | H89: 2392844 | I89: - | J89: - | K89: - | L89: - | M89: - | N89: 398808 | O89: - | P89: =+Y89 -> 0 | Q89: - | R89: - | X89: =+X19 -> - | AA89: 1196422 | AB89: - | AC89: 1994037 | AD89: 1994037 | AE89: 1994037 | AF89: - | AG89: 2791652 | AH89: 3667644 | AI89: 3667644 | AJ89: 0 | AK89: 3181440 | AL89: 3181440 | AM89: 3181440 | AN89: 0 | AO89: 3978758
B90: Net income / share (S/) | C90: 13.80198951 | D90: 13.77322876 | E90: 13.74713872 | F90: 12.23531631 | G90: 2.62 | H90: -7.78 | I90: 1.311485325 | J90: 8.191975193 | K90: 8.284676592 | L90: 8.76950967 | M90: 14.58973826 | N90: 13.29734737 | O90: 14.25282121 | P90: 14.06393302 | Q90: 16.32893636 | R90: 13.44120129 | X90: =+X20 -> 14.7 | AA90: 58.3 | AB90: 17.4 | AC90: 34.9 | AD90: 50.4 | AE90: 61 | AF90: 19 | AG90: 35.7 | AH90: 54.8 | AI90: 68.97131989 | AJ90: 22.3 | AK90: 45.1 | AL90: 66.9 | AM90: 86.82609318 | AN90: 25.86692482 | AO90: 50.71503695
B91: Dividends per share (S/) | C91: - | D91: 20 | E91: - | F91: 8 | G91: - | H91: 30 | I91: - | J91: - | K91: - | L91: - | M91: - | N91: 5 | O91: - | P91: 15 | Q91: - | R91: - | X91: - | AA91: 15 | AB91: - | AC91: 25 | AD91: 25 | AE91: 25 | AF91: - | AG91: 35 | AH91: 46 | AI91: 45.98265187 | AJ91: 0 | AK91: 40 | AL91: 40 | AM91: 39.88692686 | AN91: 0 | AO91: 49.88320677
B92: Loans | C92: 108350384 | D92: 109381123 | E92: 112209990 | F92: 115609679 | G92: 120708515 | H92: 132741720 | I92: 136148711 | J92: 137659885 | K92: 137031239 | L92: 143091752 | M92: 146551226 | N92: 147597412 | O92: 144621513 | P92: 150370184 | Q92: 151392202 | R92: 148626374 | X92: =+X22 -> 144621513 | Y92: =+Y22 -> 150370184 | Z92: 151392202 | AA92: 148626374 | AB92: 145165713 | AC92: 142845549 | AD92: 145129260 | AE92: 144976051 | AF92: 140798083 | AG92: 146946546 | AH92: 142568785 | AI92: 145732273 | AJ92: 141196646 | AK92: 140961978 | AL92: 144752254 | AM92: 149984954 | AN92: 152824685 | AO92: =+AO22 -> 159434397
B93: Deposits and obligations | C93: 103727257 | D93: 103157044 | E93: 107391720 | F93: 112005385 | G93: 119563545 | H93: 129664332 | I93: 137202674 | J93: 142365502 | K93: 148626339 | L93: 149161803 | M93: 152548368 | N93: 149596545.2 | O93: 147915964 | P93: 147440575 | Q93: 152792014 | R93: 147020787 | X93: =+X23 -> 147915964 | Y93: 147440576 | Z93: 152792014 | AA93: 147020787 | AB93: 148623300 | AC93: 143387717 | AD93: 148466054 | AE93: 147704994 | AF93: 147857127 | AG93: 151971984 | AH93: 154435451 | AI93: 161842066 | AJ93: 157619082 | AK93: 154723334 | AL93: 158430455 | AM93: 170401633 | AN93: 178880666 | AO93: =+AO23 -> 182120766
B94: Net equity | C94: 23692091 | D94: 25221894 | E94: 26000638 | F94: 26237960 | G94: 23205639 | H94: 23396062 | I94: 23594717 | J94: 24945870 | K94: 24529958 | L94: 25073706 | M94: 25192569 | N94: 26496767 | O94: 26872626 | P94: 26175222 | Q94: 27109054 | R94: 28988140 | X94: 26818054 | Y94: 26167811 | Z94: 27292658 | AA94: 29003644 | AB94: 30359898 | AC94: 30027036 | AD94: 31267592 | AE94: 32460004 | AF94: 33853460 | AG94: 32413767 | AH94: 33462591 | AI94: 34346451 | AJ94: 35843202 | AK94: 34459012 | AL94: 36560502 | AM94: 38366950 | AN94: 40018343 | AO94: =+AO24 -> 38121924
B95: Profitability
B96: Net interest margin(1) | C96: 0.05392195573 | D96: 0.05471377131 | E96: 0.05402039324 | F96: 0.05487299001 | G96: 0.0535 | H96: 0.0403 | I96: 0.04050766846 | J96: 0.03725482196 | K96: 0.03728300097 | L96: 0.0401157668 | M96: 0.04227635187 | N96: 0.04252350301 | O96: 0.04441967258 | P96: 0.04903940969 | Q96: 0.0531 | R96: 0.05730404555 | X96: =+X26 -> 0.04458759477 | Y96: 0.0466 | Z96: =+Z26 -> 0.05325234069 | AA96: 0.0509 | AB96: =+AB26 -> 0.05844340721 | AC96: 0.0596 | AD96: 0.0596 | AE96: 0.06 | AF96: =+AF26 -> 0.06299450995 | AG96: 0.0631 | AH96: 0.063 | AI96: 0.063 | AJ96: =+AJ26 -> 0.06219946213 | AK96: 0.0632 | AL96: 0.063 | AM96: 0.063 | AN96: =+AN26 -> 0.06576233986 | AO96: =+AO26 -> 0.06625235861
B97: Risk-adjusted Net interest margin | C97: 0.04451735554 | D97: 0.04382413238 | E97: 0.04209445491 | F97: 0.04300167262 | G97: 0.0233 | H97: -0.0119 | I97: 0.01603889357 | J97: 0.02405950535 | K97: 0.02749166628 | L97: 0.03380264329 | M97: 0.03944055286 | N97: 0.04034719881 | O97: 0.03990441722 | P97: 0.04253841854 | Q97: 0.04496595182 | R97: 0.04439293087 | X97: =+X27 -> 0.04005415202 | Y97: 0.0412 | Z97: =+Z27 -> 0.04508847183 | AA97: 0.0429 | AB97: =+AB27 -> 0.04536140402 | AC97: 0.0457 | AD97: 0.0449 | AE97: 0.0438 | AF97: =+AF27 -> 0.04853009978 | AG97: 0.0462 | AH97: 0.047 | AI97: 0.048 | AJ97: =+AJ27 -> 0.05243759469 | AK97: 0.0534 | AL97: 0.053 | AM97: 0.053 | AN97: =+AN27 -> 0.05807790686 | AO97: =+AO27 -> 0.05489653128
B98: Funding cost(2) | C98: 0.02383280786 | D98: 0.02463551377 | E98: 0.0245701081 | F98: 0.02294431917 | G98: 0.0213 | H98: 0.0186 | I98: 0.01741828374 | J98: 0.01340656565 | K98: 0.01425547297 | L98: 0.01182164063 | M98: 0.01206444928 | N98: 0.01243682056 | O98: 0.01327296384 | P98: 0.01586891527 | Q98: 0.008698268501 | R98: 0.009672092782 | X98: =+'3.2. Funding'!X22 -> 0.01533576315 | Y98: =+'3.2. Funding'!Y22 -> 0.0144 | Z98: =+'3.2. Funding'!Z22 -> 0.016 | AA98: =+'3.2. Funding'!AA22 -> 0.0183 | AB98: =+'3.2. Funding'!AB22 -> 0.02607152065 | AC98: =+'3.2. Funding'!AC22 -> 0.0276 | AD98: =+'3.2. Funding'!AD22 -> 0.0286 | AE98: =+'3.2. Funding'!AE22 -> 0.029 | AF98: =+'3.2. Funding'!AF22 -> 0.02976441925 | AG98: =+'3.2. Funding'!AG22 -> 0.029 | AH98: =+'3.2. Funding'!AH22 -> 0.028 | AI98: =+'3.2. Funding'!AI22 -> 0.02735024857 | AJ98: =+'3.2. Funding'!AJ22 -> 0.02422800654 | AK98: =+'3.2. Funding'!AK22 -> 0.0242673476 | AL98: =+'3.2. Funding'!AL22 -> 0.024 | AM98: 0.023 | AN98: =+'3.2. Funding'!AN22 -> 0.02104797426 | AO98: =+'3.2. Funding'!AO22 -> 0.02126253375
B99: ROE | C99: 0.185 | D99: 0.18 | E99: 0.1707115923 | F99: 0.149 | G99: 0.034 | H99: -0.107 | I99: 0.01780878341 | J99: 0.1076878657 | K99: 0.1068478148 | L99: 0.1128 | M99: 0.1852055243 | N99: 0.1641523828 | O99: 0.1704086803 | P99: 0.1691695392 | Q99: 0.1955428652 | R99: 0.1528903567 | X99: =+'0.2.ROAE'!X39 -> 0.1765406982 | Y99: =+'0.2.ROAE'!Y39 -> 0.1765177166 | Z99: =+'0.2.ROAE'!Z39 -> 0.1810505539 | AA99: =+'0.2.ROAE'!AA39 -> 0.1681443363 | AB99: =+'0.2.ROAE'!AB39 -> 0.1865671555 | AC99: =+'0.2.ROAE'!AC39 -> 0.1887709273 | AD99: =+'0.2.ROAE'!AD39 -> 0.1780443648 | AE99: =+'0.2.ROAE'!AE39 -> 0.1583377585 | AF99: =+'0.2.ROAE'!AF39 -> 0.1823650144 | AG99: =+'0.2.ROAE'!AG39 -> 0.1757723037 | AH99: =+'0.2.ROAE'!AH39 -> 0.1769566666 | AI99: =+'0.2.ROAE'!AI39 -> 0.1646922916 | AJ99: =+'0.2.ROAE'!AJ39 -> 0.2026164228 | AK99: =+'0.2.ROAE'!AK39 -> 0.2092689707 | AL99: =+'0.2.ROAE'!AL39 -> 0.2007651568 | AM99: 0.19 | AN99: =+'0.2.ROAE'!AN39 -> 0.2105779631 | AO99: =+'0.2.ROAE'!AO39 -> 0.2115395487
B100: ROA | C100: 0.0248220163 | D100: 0.02454745392 | E100: 0.02379594548 | F100: 0.02083862446 | G100: 0.004 | H100: -0.012 | I100: 0.00184661476 | J100: 0.0111435142 | K100: 0.01097650178 | L100: 0.01143784674 | M100: 0.01874777042 | N100: 0.01709329933 | O100: 0.01884024539 | P100: 0.0189121058 | Q100: 0.02168456285 | R100: 0.01784246556 | X100: =+X30 -> 0.01942131242 | Y100: 0.0195 | Z100: =+Z30 -> 0.02208107535 | AA100: 0.02 | AB100: =+AB30 -> 0.02343413035 | AC100: 0.024 | AD100: 0.023 | AE100: 0.021 | AF100: =+AF30 -> 0.02519365722 | AG100: 0.023 | AH100: 0.024 | AI100: 0.022 | AJ100: =+AJ30 -> 0.02787661483 | AK100: 0.029 | AL100: 0.028 | AM100: 0.026 | AN100: =+AN30 -> 0.03023660261 | AO100: 0.02938997197
B101: Loan portfolio quality
B102: Internal overdue ratio (3) | C102: 0.02910176119 | D102: 0.03003515515 | E102: 0.02982255858 | F102: 0.0285 | G102: 0.0297 | H102: 0.0289 | I102: 0.03042881544 | J102: 0.03396582091 | K102: 0.03552827104 | L102: 0.03532246219 | M102: 0.03734997754 | N102: 0.03761080851 | O102: 0.04060944239 | P102: 0.04060150648 | Q102: 0.04128436549 | R102: 0.03996426637
B103: Internal overdue ratio over 90 days | C103: 0.02089311847 | D103: 0.0222 | E103: 0.02263390736 | F103: 0.02145729945 | G103: 0.0213 | H103: 0.0235 | I103: 0.02528784953 | J103: 0.02694949647 | K103: 0.02765271647 | L103: 0.02667843039 | M103: 0.02764710409 | N103: 0.02848065764 | O103: 0.03059285036 | P103: 0.03056629232 | Q103: 0.03083122841 | R103: 0.03108776087
B104: NPL ratio (4) | C104: 0.04090106409 | D104: 0.04112179393 | E104: 0.04074574822 | F104: 0.0388 | G104: 0.039 | H104: 0.0378 | I104: 0.04173618654 | J104: 0.04605813088 | K104: 0.04977213991 | L104: 0.04790233472 | M104: 0.04962530986 | N104: 0.04980303449 | O104: 0.05246157949 | P104: 0.05181507259 | Q104: 0.05323334289 | R104: 0.05408523254 | X104: =+X34 -> 0.05246157949 | Y104: =+Y34 -> 0.05181507259 | Z104: 0.05323334289 | AA104: 0.05408523254 | AB104: 0.05449334307 | AC104: 0.05644921425 | AD104: 0.05966710641 | AE104: 0.05885485872 | AF104: 0.06223645105 | AG104: 0.0597897415 | AH104: 0.05863944902 | AI104: 0.05258037113 | AJ104: 0.05104708365 | AK104: 0.04960146771 | AL104: 0.04814947476 | AM104: 0.04547722834 | AN104: 0.04268941892 | AO104: =+AO34 -> 0.0405043524
B105: Cost of risk (5) | C105: 0.01414710261 | D105: 0.01639383425 | E105: 0.0179225397 | F105: 0.0177 | G105: 0.0445 | H105: 0.0766 | I105: 0.03836701766 | J105: 0.0212891359 | K105: 0.0162779525 | L105: 0.01015795795 | M105: 0.004487550312 | N105: 0.003435886803 | O105: 0.00712452787 | P105: 0.00966390896 | Q105: 0.01215322108 | R105: 0.01966490819 | X105: =+'5.Provisions'!O17 -> 0.007051973105 | Y105: =+'5.Provisions'!P17 -> 0.0083 | Z105: =+'5.Provisions'!Q17 -> 0.01 | AA105: =+'5.Provisions'!R17 -> 0.012 | AB105: =+'5.Provisions'!S17 -> 0.01979625816 | AC105: =+'5.Provisions'!T17 -> 0.021 | AD105: =+'5.Provisions'!U17 -> 0.022 | AE105: =+'5.Provisions'!V17 -> 0.025 | AF105: =+'5.Provisions'!W17 -> 0.02280679468 | AG105: =+'5.Provisions'!X17 -> 0.026 | AH105: =+'5.Provisions'!Y17 -> 0.026 | AI105: =+'5.Provisions'!Z17 -> 0.02421290833 | AJ105: =+'5.Provisions'!AA17 -> 0.01622403213 | AK105: =+'5.Provisions'!AB17 -> 0.01614335824 | AL105: =+'5.Provisions'!AC17 -> 0.016 | AM105: =+'5.Provisions'!AD17 -> 0.0162740333 | AN105: =+'5.Provisions'!AE17 -> 0.01273622205 | AO105: =+'5.Provisions'!AF17 -> 0.01568481087
B106: Coverage ratio of IOLs | C106: 1.542186049 | D106: 1.484851058 | E106: 1.487516544 | F106: 1.554 | G106: 1.657 | H106: 2.189 | I106: 2.330858463 | J106: 2.117050788 | K106: 2.001506013 | L106: 1.858032274 | M106: 1.658379867 | N106: 1.527096741 | O106: 1.406842228 | P106: 1.360549009 | Q106: 1.284789711 | R106: 1.325377323 | X106: =+X36 -> 1.406842228 | Y106: =+Y36 -> 1.360549033 | Z106: 1.284789711 | AA106: 1.325377323 | AB106: 1.367191312 | AC106: 1.330600169 | AD106: 1.25753702 | AE106: 1.351168459 | AF106: 1.319953476 | AG106: 1.340129002 | AH106: 1.368993723 | AI106: 1.474214359 | AJ106: 1.487169529 | AK106: 1.51829364 | AL106: 1.549277321 | AM106: 1.593412826 | AN106: 1.659268355 | AO106: =+AO36 -> 1.681838779
B107: Coverage ratio of NPLs | C107: 1.097290036 | D107: 1.084527878 | E107: 1.088740573 | F107: 1.144 | G107: 1.261 | H107: 1.675 | I107: 1.699370927 | J107: 1.5612307 | K107: 1.428711891 | L107: 1.370085094 | M107: 1.248162499 | N107: 1.153249871 | O107: 1.089007974 | P107: 1.066105607 | Q107: 0.9964004724 | R107: 0.9793381644 | X107: =+X37 -> 1.089007974 | Y107: =+Y37 -> 1.066105607 | Z107: 0.9964004724 | AA107: 0.9793381644 | AB107: 1.000604887 | AC107: 0.9866888142 | AD107: 0.930338822 | AE107: 0.9701579072 | AF107: 0.9346747884 | AG107: 0.9503895789 | AH107: 0.98682656 | AI107: 1.043368769 | AJ107: 1.074242367 | AK107: 1.095349189 | AL107: 1.101050325 | AM107: 1.124477708 | AN107: 1.138171124 | AO107: =+AO37 -> 1.173050923
B108: Operating efficiency
B109: Operating income(6) | C109: 3768564 | D109: 3832407 | E109: 3896978 | F109: 4073888 | G109: 3968580 | H109: 3213316 | I109: 3684610 | J109: 3793722 | K109: 3871563 | L109: 4147704 | M109: 4307356 | N109: 4414186 | O109: 4376339 | P109: 4649583 | Q109: 5024516 | R109: 5219379 | X109: =+'9.Operating Efficiency'!Y16 -> 3799381 | Y109: =+'9.Operating Efficiency'!Z16 -> 7843775 | Z109: =+'9.Operating Efficiency'!AA16 -> 12299984 | AA109: =+'9.Operating Efficiency'!AB16 -> 16830109 | AB109: =+'9.Operating Efficiency'!AC16 -> 4602331 | AC109: =+'9.Operating Efficiency'!AD16 -> 9317901 | AD109: =+'9.Operating Efficiency'!AE16 -> 14162584 | AE109: =+'9.Operating Efficiency'!AF16 -> 19056189 | AF109: =+'9.Operating Efficiency'!AG16 -> 4933778 | AG109: =+'9.Operating Efficiency'!AH16 -> 10076862 | AH109: =+'9.Operating Efficiency'!AI16 -> 15288024 | AI109: =+'9.Operating Efficiency'!AJ16 -> 20684226 | AJ109: =+'9.Operating Efficiency'!AK16 -> 5340199 | AK109: =+'9.Operating Efficiency'!AL16 -> 10869500 | AL109: =+'9.Operating Efficiency'!AM16 -> 16540190 | AM109: =+'9.Operating Efficiency'!AN16 -> 22397662 | AN109: =+'9.Operating Efficiency'!AO16 -> 6029112 | AO109: =+'9.Operating Efficiency'!AP16 -> 12260222
B110: Operating expenses(7) | C110: 1597816 | D110: 1653563 | E110: 1680417 | F110: 1852620 | G110: 1722183 | H110: 1611543 | I110: 1657965 | J110: 1814552.297 | K110: 1704315.302 | L110: 1812099.698 | M110: 1986910.621 | N110: 2182631.795 | O110: 1945556 | P110: 2071401 | Q110: 2146516 | R110: 2400674 | X110: =+'9.Operating Efficiency'!Y15 -> 1795168 | Y110: =+'9.Operating Efficiency'!Z15 -> 3723647 | Z110: =+'9.Operating Efficiency'!AA15 -> 5749864 | AA110: =+'9.Operating Efficiency'!AB15 -> 7993669 | AB110: =+'9.Operating Efficiency'!AC15 -> 2038309 | AC110: =+'9.Operating Efficiency'!AD15 -> 4141381 | AD110: =+'9.Operating Efficiency'!AE15 -> 6385072 | AE110: =+'9.Operating Efficiency'!AF15 -> 8780760 | AF110: =+'9.Operating Efficiency'!AG15 -> 2112810 | AG110: =+'9.Operating Efficiency'!AH15 -> 4383595 | AH110: =+'9.Operating Efficiency'!AI15 -> 6696919 | AI110: =+'9.Operating Efficiency'!AJ15 -> 9309797 | AJ110: =+'9.Operating Efficiency'!AK15 -> 2442089 | AK110: =+'9.Operating Efficiency'!AL15 -> 4925582 | AL110: =+'9.Operating Efficiency'!AM15 -> 7555043 | AM110: =+'9.Operating Efficiency'!AN15 -> 10426752 | AN110: =+'9.Operating Efficiency'!AO15 -> 2762628 | AO110: =+'9.Operating Efficiency'!AP15 -> 5588623
B111: Efficiency ratio (8) | C111: 0.4239853695 | D111: 0.4314685262 | E111: 0.4312102865 | F111: 0.455 | G111: 0.434 | H111: 0.502 | I111: 0.4499700104 | J111: 0.4721273725 | K111: 0.4403632331 | L111: 0.4370307042 | M111: 0.4612836738 | N111: 0.4944580949 | O111: 0.4447052662 | P111: 0.4455025322 | Q111: 0.428170992 | R111: 0.4599539524 | X111: =+'9.Operating Efficiency'!Y17 -> 0.4724895976 | Y111: =+'9.Operating Efficiency'!Z17 -> 0.4747263913 | Z111: =+'9.Operating Efficiency'!AA17 -> 0.467469226 | AA111: =+'9.Operating Efficiency'!AB17 -> 0.4749624022 | AB111: =+'9.Operating Efficiency'!AC17 -> 0.4428862244 | AC111: =+'9.Operating Efficiency'!AD17 -> 0.4444542821 | AD111: =+'9.Operating Efficiency'!AE17 -> 0.4508408917 | AE111: =+'9.Operating Efficiency'!AF17 -> 0.4607825835 | AF111: =+'9.Operating Efficiency'!AG17 -> 0.4282336984 | AG111: =+'9.Operating Efficiency'!AH17 -> 0.4350158809 | AH111: =+'9.Operating Efficiency'!AI17 -> 0.4380500057 | AI111: =+'9.Operating Efficiency'!AJ17 -> 0.4500916302 | AJ111: =+'9.Operating Efficiency'!AK17 -> 0.4573029956 | AK111: =+'9.Operating Efficiency'!AL17 -> 0.4531562629 | AL111: =+'9.Operating Efficiency'!AM17 -> 0.4567688158 | AM111: =+'9.Operating Efficiency'!AN17 -> 0.4655285895 | AN111: =+'9.Operating Efficiency'!AO17 -> 0.4582147421 | AO111: =+'9.Operating Efficiency'!AP17 -> 0.4558337524
B112: Operating expenses / Total average assets | C112: 0.03602707211 | D112: 0.03694862476 | E112: 0.03672077499 | F112: 0.0402 | G112: 0.0357 | H112: 0.0307 | I112: 0.02926811841 | J112: 0.03054675384 | K112: 0.02831995864 | L112: 0.02964118124 | M112: 0.03201015793 | N112: 0.03564387052 | O112: 0.03225342103 | P112: 0.03492492449 | Q112: 0.03581880473 | R112: 0.03995368222 | X112: =+X42 -> 0.02975100507 | Z112: 0.044 | AA112: =+AA110/AVERAGE('12.5.1.Credicorp Consolidated '!BA38,'12.5.1.Credicorp Consolidated '!P38) -> 0.03328886049 | AB112: =+AB42 -> 0.03450619842 | AC112: =+AC110*2/AVERAGE('12.5.1.Credicorp Consolidated '!BC38,'12.5.1.Credicorp Consolidated '!BA38) -> 0.03534171112 | AD112: 0.036 | AE112: 0.037 | AF112: =+AF42 -> 0.03521260815 | AG112: 0.036 | AH112: 0.037 | AI112: 0.038 | AJ112: =+AJ42 -> 0.03828337219 | AK112: 0.039 | AL112: 0.039 | AM112: 0.04 | AN112: =+AN42 -> 0.04047044756 | AO112: 0.04060449178
B113: Capital adequacy - BCP Stand-alone
B114: Global Capital ratio (9) | C114: 0.1549 | D114: 0.1495 | E114: 0.1545005775 | F114: 0.1447 | G114: 0.1352 | H114: 0.148 | I114: 0.1538686463 | J114: 0.1493231323 | K114: 0.1645570306 | L114: 0.1533956341 | M114: 0.1516107106 | N114: 0.1494468677 | O114: 0.1579193537 | P114: 0.1523347214 | Q114: 0.1492827128 | R114: 0.1442789247 | X114: 0.1579193537 | Y114: n.a | Z114: n.a | AA114: n.a | AB114: 0.1645438135 | AC114: 0.1720185456 | AD114: 0.1751223387 | AE114: 0.1745766377 | AF114: 0.1612144941 | AG114: 0.1624 | AH114: 0.1896 | AI114: 0.1871 | AJ114: 0.1686544651 | AK114: 0.1733458124 | AL114: 0.1771535744 | AM114: 0.1944134872 | AN114: 0.1669992259 | AO114: 0.1727069145
B115: Tier 1 ratio (10) | C115: 0.1173 | D115: 0.1133 | E115: 0.117862909 | F115: 0.1107 | G115: 0.1033 | H115: 0.1054 | I115: 0.1070066603 | J115: 0.104080398 | K115: 0.1059375024 | L115: 0.1030581993 | M115: 0.1000096351 | N115: 0.09937893727 | O115: 0.1073897796 | P115: 0.1025382466 | Q115: 0.09941834152 | R115: 0.1001559188 | X115: 0.1073897796 | Y115: n.a | Z115: n.a | AA115: n.a | AB115: 0.1186298575 | AC115: 0.1275280343 | AD115: 0.1300883555 | AE115: 0.1309030166 | AF115: 0.1171582256 | AG115: 0.119 | AH115: 0.1325 | AI115: 0.1308 | AJ115: 0.1133606499 | AK115: 0.122417409 | AL115: 0.1282156851 | AM115: 0.1366408584 | AN115: 0.1095976364 | AO115: 0.1140136549
B116: Common equity tier 1 ratio (11) (13) | C116: 0.1139 | D116: 0.1182 | E116: 0.119467404 | F116: 0.1235 | G116: 0.1189 | H116: 11,22% | I116: 0.1144678253 | J116: 0.1139603188 | K116: 0.1101342185 | L116: 0.1120660802 | M116: 0.1120477381 | N116: 0.1191233592 | O116: 0.1162852112 | P116: 0.1156845009 | Q116: 0.1183134483 | R116: 0.125881714 | X116: 0.1162852112 | Y116: 0.1156382711 | Z116: 0.1183134483 | AA116: 0.125881714 | AB116: 0.1192638153 | AC116: 0.1279382711 | AD116: 0.1304382251 | AE116: 0.1320195154 | AF116: 0.1185622141 | AG116: 0.1205 | AH116: 0.1342 | AI116: 0.1332 | AJ116: 0.1133606499 | AK116: 0.122417409 | AL116: 0.1282156851 | AM116: 0.1398940324 | AN116: 0.1129282411 | AO116: 0.1169683855
B117: Capital adequacy - Mibanco
B118: Global Capital ratio (9) | D118: 0.1485940364 | E118: 0.1533597625 | F118: 0.1445414525 | G118: 0.1593689855 | H118: 0.1594 | I118: 0.1768724484 | J118: 0.1982498546 | K118: 0.1783029677 | L118: 0.1725362573 | M118: 0.1673644072 | N118: 0.1639891794 | O118: 0.1561084278 | P118: 0.1482653849 | Q118: 0.1461429288 | R118: 0.1468613828 | X118: 0.1561 | Y118: n.a | Z118: n.a | AA118: n.a | AB118: 0.1876183064 | AC118: 0.1877818703 | AD118: 0.1877818703 | AE118: 0.2056 | AF118: 0.1803336716 | AG118: 0.1895 | AH118: 0.2022 | AI118: 0.1942 | AJ118: 0.185288816 | AK118: 0.1960770982 | AL118: 0.2112871751 | AM118: 0.2125192859 | AN118: 0.2031166052 | AO118: 0.2061266412
B119: Tier 1 ratio (10) | D119: 0.1140828178 | E119: 0.1271445478 | F119: 0.1210728726 | G119: 0.1382574503 | H119: 0.1383 | I119: 0.1547152204 | J119: 0.1767256933 | K119: 0.144804671 | L119: 0.1468510956 | M119: 0.1425002898 | N119: 0.1396051714 | O119: 0.132402305 | P119: 0.1255205163 | Q119: 0.1235865147 | R119: 0.1238401071 | X119: 0.1324 | Y119: n.a | Z119: n.a | AA119: n.a | AB119: 0.1639941656 | AC119: 0.1648922268 | AD119: 0.1648922268 | AE119: 0.1822064019 | AF119: 0.1568832572 | AG119: 0.1662 | AH119: 0.1785 | AI119: 0.1707 | AJ119: 0.1547642403 | AK119: 0.1647841169 | AL119: 0.1712915542 | AM119: 0.1740758815 | AN119: 0.1586899566 | AO119: 0.1631883234
B120: Common equity tier 1 ratio (11)(13) | D120: 0.1603661786 | E120: 0.1587522199 | F120: 0.1570054235 | G120: 0.1530070649 | H120: 0.1454 | I120: 0.1621693172 | J120: 0.1769689664 | K120: 0.1472625457 | L120: 0.1515817945 | M120: 0.1509869961 | N120: 0.1523504722 | O120: 0.1521228025 | P120: 0.1524783795 | Q120: 0.1599761997 | R120: 0.1645898445 | X120: 0.1491 | Y120: 0.1501531503 | Z120: 0.1501531503 | AA120: 0.1645898445 | AB120: 0.1638280194 | AC120: 0.1659 | AD120: 0.1659 | AE120: 0.1837119962 | AF120: 0.1606449458 | AG120: 0.1673 | AH120: 0.1794 | AI120: 0.1753 | AJ120: 0.1547642403 | AK120: 0.1647841169 | AL120: 0.1712915542 | AM120: 0.1730255896 | AN120: 0.1569619437 | AO120: 0.159018154
B121: Employees | C121: 34266 | D121: 34963 | E121: 35174 | F121: 35846 | G121: 34963 | H121: 38219 | I121: 37572 | J121: 36806 | K121: 36233 | L121: 35776 | M121: 35733 | N121: 36358 | O121: 36198 | P121: 34398 | Q121: 35692 | R121: 36968 | X121: 36202 | Y121: 36087 | Z121: 35679 | AA121: 36968 | AB121: 37184 | AC121: 37380 | AD121: 37161 | AE121: 36947 | AF121: 35508 | AG121: 33461 | AH121: 38758 | AI121: 47283 | AJ121: 48853 | AK121: 49485 | AL121: 50169 | AM121: 51005 | AN121: 51725 | AO121: 52770
B122: Share Information
B123: Issued Shares | C123: 94382 | D123: 94382 | E123: 94382 | F123: 94382 | G123: 94382 | H123: 94382 | I123: 94382 | J123: 94382 | K123: 94382 | L123: 94382 | M123: 94382 | N123: 94382 | O123: 94382 | P123: 94382 | Q123: 94382 | R123: 94382 | X123: =+X53 -> 94382 | Y123: =+Y53 -> 94382 | Z123: 94382 | AA123: 94382 | AB123: 94382 | AC123: 94382 | AD123: 94382 | AE123: 94382 | AF123: 94382 | AG123: 94382 | AH123: 94382 | AI123: 94382 | AJ123: 94382 | AK123: 94382 | AL123: 94382 | AM123: 94382 | AN123: 94382 | AO123: =+AO53 -> 94382
B124: Treasury Shares (12) | C124: 14621 | D124: 14872 | E124: 14872 | F124: 14872 | G124: 14872 | H124: 14977 | I124: 14977 | J124: 14915 | K124: 14872 | L124: 14866 | M124: 14866.23 | N124: 14850.369 | O124: 14862 | P124: 14849 | Q124: 14849 | R124: 14849.223 | X124: =+X54 -> 14862 | Y124: 14849 | Z124: 14849 | AA124: 14849 | AB124: 14887 | AC124: 14829 | AD124: 14847 | AE124: 14886 | AF124: 14908 | AG124: 14949 | AH124: 14949 | AI124: 14948 | AJ124: 15016 | AK124: 15016 | AL124: 15016 | AM124: 15016 | AN124: 14933.948 | AO124: =+AO54 -> 14963
B125: Outstanding Shares | C125: 79761 | D125: 79510 | E125: 79510 | F125: 79510 | G125: 79510 | H125: 79405 | I125: 79405 | J125: 79467 | K125: 79510 | L125: 79516 | M125: 79515.77 | N125: 79531.631 | O125: 79520 | P125: 79533 | Q125: 79533 | R125: 79532.777 | X125: 79520 | Y125: 79533 | Z125: 79533 | AA125: 79533 | AB125: 79495 | AC125: 79553 | AD125: 79535 | AE125: 79496 | AF125: 79474 | AG125: 79433 | AH125: 79433 | AI125: 79434 | AJ125: 79366 | AK125: 79366 | AL125: 79366 | AM125: 79366 | AN125: 79448.052 | AO125: =+AO55 -> 79419

Sheet 0.1.Contribution BAP
B1: Back to index
X2: (under IFRS17)
B3: Earnings contribution * | C3: Quarter | S3: As of | X3: Earnings contribution *
B4: S/000 | X4: S/000
C5: 1Q19 | D5: 2Q19 | E5: 3Q19 | F5: 4Q19 | G5: 1Q20 | H5: 2Q20 | I5: 3Q20 | J5: 4Q20 | K5: 1Q21 | L5: 2Q21 | M5: 3Q21 | N5: 4Q21 | O5: 1Q22 | P5: 2Q22 | Q5: 3Q22 | R5: 4Q22 | S5: 2019 | T5: 2020 | U5: 2021 | V5: 2022 | Y5: 1Q22 | Z5: 2Q22 | AA5: 3Q22 | AB5: 4Q22 | AC5: 1Q23 | AD5: 2Q23 | AE5: 3Q23 | AF5: 4Q23 | AG5: 1Q24 | AH5: 2Q24 | AI5: 3Q24 | AJ5: 4Q24 | AK5: 1Q25 | AL5: 2Q25 | AM5: 3Q25 | AN5: 4Q25 | AO5: 1Q26 | AP5: 2Q26
B6: Universal Banking | X6: Universal Banking
B7: BCP Stand-alone | C7: 815966 | D7: 790383 | E7: 831423 | F7: 725464 | G7: 142204 | H7: -528404 | I7: 421769.7822 | J7: 570181 | K7: 724546.8387 | L7: 727577.1613 | M7: 960660.7524 | N7: 899413.8133 | O7: 1034578.589 | P7: 1009693.343 | Q7: 1123104.421 | R7: 993377.8254 | S7: 3163236 | T7: 605751 | U7: 3312198 | V7: 4160754.178 | X7: BCP Stand-alone | Y7: 1034579 | Z7: 1009693.343 | AA7: 1123104.421 | AB7: 993377.8254 | AC7: 1212853 | AD7: 1163318.023 | AE7: 1022936.934 | AF7: 881642.9665 | AG7: 1263971.271 | AH7: 1183086.649 | AI7: 1310903.43 | AJ7: 1131115.083 | AK7: 1453721.144 | AL7: 1614655.7 | AM7: 1447672.097 | AN7: 1391505.587 | AO7: 1767814.166 | AP7: 1626931.678
B8: BCP Bolivia | C8: 12640 | D8: 26806 | E8: 25575 | F8: 13487 | G8: 6829 | H8: -39583 | I8: -20753 | J8: -20750 | K8: 11453 | L8: 15162 | M8: 23121 | N8: 22531 | O8: 20474 | P8: 16859 | Q8: 13921 | R8: 16759 | S8: 78508 | T8: -74257 | U8: 72267 | V8: 68013 | X8: BCP Bolivia | Y8: 20474 | Z8: 16859 | AA8: 13921 | AB8: 16759 | AC8: 20738 | AD8: 21602 | AE8: 21059 | AF8: 19652 | AG8: 20356 | AH8: 33038 | AI8: 16615 | AJ8: 23502 | AK8: 24227 | AL8: 14230 | AM8: 22660 | AN8: 24734 | AO8: 44568 | AP8: 52587
B9: Microfinance | X9: Microfinance
B10: Mibanco (1) | C10: 99611 | D10: 96906 | E10: 95137 | F10: 100034 | G10: 33326 | H10: -271439 | I10: -154812.3663 | J10: 22461 | K10: 13738.27797 | L10: 54057.72932 | M10: 75223.47684 | N10: 117195.2093 | O10: 100644.3092 | P10: 125133.47 | Q10: 143769.6743 | R10: 45909.07127 | S10: 391688 | T10: -370465 | U10: 260215 | V10: 415456.5249 | X10: Mibanco (1) | Y10: 100644 | Z10: 125133.47 | AA10: 143769.6743 | AB10: 45909.07127 | AC10: 22627 | AD10: 64882.74639 | AE10: 59035.98505 | AF10: 52693.62762 | AG10: 90510.93024 | AH10: 34919.36691 | AI10: 62404.35447 | AJ10: 114385.2095 | AK10: 92285.89536 | AL10: 100259.7651 | AM10: 119165.2628 | AN10: 133473.5553 | AO10: 145003.499 | AP10: 151336.752
B11: Mibanco Colombia | C11: 1825 | D11: 1263 | E11: 852 | F11: -307 | G11: -2365 | H11: -14096 | I11: -68382.69076 | J11: -12537 | K11: 1358.168883 | L11: 5202.462911 | M11: 13161.48661 | N11: 17113.61257 | O11: 4312.421551 | P11: 9034.775613 | Q11: 5227.281372 | R11: -7077.478536 | S11: 3633 | T11: -97380 | U11: 36836 | V11: 11497 | X11: Mibanco Colombia | Y11: 4312 | Z11: 9034.775613 | AA11: 5227.281372 | AB11: -7077.478536 | AC11: -3674 | AD11: -8551.893525 | AE11: -12272.73877 | AF11: -104052 | AG11: -15900 | AH11: -8152 | AI11: 3359 | AJ11: 13651 | AK11: 4871 | AL11: 12249 | AM11: 14067 | AN11: 15835 | AO11: 23495 | AP11: 26186
B12: Insurance and Pensions | X12: Insurance and Pensions
B13: Grupo Pacifico (2) | C13: 77157 | D13: 97133 | E13: 88949 | F13: 113760 | G13: 98661 | H13: 99686 | I13: -14545 | J13: 8528 | K13: -95573 | L13: -158052 | M13: 63058 | N13: 61617 | O13: 71483 | P13: 99928 | Q13: 157597 | R13: 117580 | S13: 376999 | T13: 192330 | U13: -128950 | V13: 446588 | X13: Grupo Pacifico (2) | Y13: 106134 | Z13: 120803 | AA13: 177852 | AB13: 56353 | AC13: 218904 | AD13: 204340 | AE13: 243531 | AF13: 134469 | AG13: 214294 | AH13: 191918 | AI13: 187149 | AJ13: 167661 | AK13: 179835 | AL13: 220239 | AM13: 229237 | AN13: 208743 | AO13: 208308 | AP13: 209370
B14: Prima AFP | C14: 57000 | D14: 50367 | E14: 42394 | F14: 46829 | G14: -4079 | H14: 51232 | I14: 38037 | J14: 62951 | K14: 34596 | L14: 44301 | M14: 31697 | N14: 35463 | O14: 24434 | P14: 14093 | Q14: 30730 | R14: 40254 | S14: 196590 | T14: 148141 | U14: 146057 | V14: 109511 | X14: Prima AFP | Y14: 24434 | Z14: 14093 | AA14: 30730 | AB14: 40254 | AC14: 39758 | AD14: 37413 | AE14: 31998 | AF14: 40380 | AG14: 37013 | AH14: 36904 | AI14: 34687 | AJ14: 24322 | AK14: 24472 | AL14: 41158 | AM14: 46589 | AN14: 34324 | AO14: 37285 | AP14: 55444
B15: Investment Banking and Wealth Management | X15: Investment Banking and Wealth Management
B16: Credicorp Capital | C16: 15419 | D16: 10823 | E16: 13010 | F16: 4631 | G16: 359 | H16: 15616 | I16: 26782 | J16: 13140 | K16: 11377 | L16: 19071 | M16: 11222 | N16: 14581 | O16: 11620 | P16: 5187 | Q16: 18755 | R16: 18786 | S16: 43883 | T16: 55897 | U16: 56251 | V16: 54348 | X16: Credicorp Capital | Y16: 11620 | Z16: 5187 | AA16: 18755 | AB16: 18786 | AC16: 11433 | AD16: 8463 | AE16: -952 | AF16: 21578 | AG16: 16796 | AH16: 39246 | AI16: 22564 | AJ16: 32369 | AK16: 32285 | AL16: 20995 | AM16: 31844 | AN16: 15079 | AO16: 20876 | AP16: 38611
B17: Atlantic Security Bank | C17: 49748 | D17: 50592 | E17: 43376 | F17: 42824 | G17: -512 | H17: 127105 | I17: -60949 | J17: 70233 | K17: 25324 | L17: 45372 | M17: 42889 | N17: -5946 | O17: 23154 | P17: -674 | Q17: 9475 | R17: 20235 | S17: 186540 | T17: 135877 | U17: 107639 | V17: 52190 | X17: Atlantic Security Bank | Y17: 23154 | Z17: -674 | AA17: 9475 | AB17: 20235 | AC17: 32849 | AD17: 45137 | AE17: 26871 | AF17: 27972 | AG17: 29444 | AH17: 27636 | AI17: 29944 | AJ17: -2742 | AK17: 29758 | AL17: 29544 | AM17: 29498 | AN17: 35962 | AO17: 21900 | AP17: 37018
B18: Others (3) | C18: -28499 | D18: -25700 | E18: -47682 | F18: -73892 | G18: -65150 | H18: -60507 | I18: -62540.72514 | J18: -60803 | K18: -66022.28554 | L18: -53222.21703 | M18: -57333.71585 | N18: -101352.6352 | O18: -153874.3194 | P18: -157494.5889 | Q18: -200159.3763 | R18: -173733.4182 | S18: -175773 | T18: -248999 | U18: -277931 | V18: -685261.7028 | X18: Others (3) | Y18: -153474 | Z18: -157252.5889 | AA18: -199925.3763 | AB18: -174441 | AC18: -171215 | AD18: -135336.876 | AE18: -154034.1807 | AF18: -232508.5941 | AG18: -144828.2008 | AH18: -199500.0154 | AI18: -143837.7844 | AJ18: -377550.2924 | AK18: -63758.03927 | AL18: -231315.4647 | AM18: -202077.3598 | AN18: -272646.1425 | AO18: -206065.6649 | AP18: -215562.4298
B19: Goodwill Impairment (Mibanco Colombia) | X19: Goodwill Impairment (Mibanco Colombia)
B20: Net profit attributable to Credicorp | C20: 1100867 | D20: 1098573 | E20: 1093034 | F20: 972830 | G20: 209273 | H20: -620390 | I20: 104606 | J20: 653404 | K20: 660798 | L20: 699469.1365 | M20: 1163699 | N20: 1060616 | O20: 1136826 | P20: 1121760 | Q20: 1302420 | R20: 1072090 | S20: 4265304 | T20: 346895 | U20: 3584582 | V20: 4633096 | X20: Net profit attributable to Credicorp | Y20: 1171877 | Z20: 1142877 | AA20: 1322909 | AB20: 1010155.418 | AC20: 1384273 | AD20: 1401267 | AE20: 1238173 | AF20: 841827 | AG20: 1511657 | AH20: 1339096 | AI20: 1523788 | AJ20: 1126713 | AK20: 1777697 | AL20: 1822015 | AM20: 1738655 | AN20: =+SUM(AN7:AN19) -> 1587010 | AO20: =+SUM(AO7:AO19) -> 2063184 | AP20: =+SUM(AP7:AP19) -> 1981922
B23: *Contributions to Credicorp reflect the eliminations for consolidation purposes (e.g. eliminations for transactions among Credicorp’s
B24: subsidiaries or between Credicorp and its subsidiaries).
B25: (1) The figure is lower than the net income of Mibanco as Credicorp owns 99.924% of Mibanco (directly and indirectly).
B26: (2) The contribution of Grupo Pacífico presented here is greater than the profit of Pacífico Seguros since it is including 100% of Crediseguros (including 48% under Grupo Crédito).
B27: (3) Includes Grupo Credito excluding Prima, Servicorp and Emisiones BCP Latam, others of Atlantic Security Holding Corporation and others of Credicorp Ltd.
B29: Earnings contribution * | C29: Quarter | S29: As of | X29: Earnings contribution *
B30: S/000 | X30: S/000
C31: 1Q19 | D31: 2Q19 | E31: 3Q19 | F31: 4Q19 | G31: 1Q20 | H31: 2Q20 | I31: 3Q20 | J31: 4Q20 | K31: 1Q21 | L31: 2Q21 | M31: 3Q21 | N31: 4Q21 | O31: 1Q22 | P31: 2Q22 | Q31: 3Q22 | R31: 4Q22 | S31: 2019 | T31: 2020 | U31: 2021 | V31: 2022 | Y31: Mar 22 | Z31: Jun 22 | AA31: Sep 22 | AB31: Dec 22 | AC31: Mar 23 | AD31: Jun 23 | AE31: Sep 23 | AF31: Dec 23 | AG31: Mar 24 | AH31: Jun 24 | AI31: Sep 24 | AJ31: Dic 24 | AK31: Mar 25 | AL31: Jun 25 | AM31: Set 25 | AN31: Dic 25 | AO31: Mar 26 | AP31: Jun 26
B32: Universal Banking | X32: Universal Banking
B33: BCP Stand-alone | C33: 815966 | D33: 790383 | E33: 831423 | F33: 725464 | G33: 142204 | H33: -528404 | I33: 421769.7822 | J33: 570181 | K33: 724546.8387 | L33: 727577.1613 | M33: 960660.7524 | N33: 899413.8133 | O33: 1034578.589 | P33: 1009693.343 | Q33: 1123104.421 | R33: 993377.8254 | S33: 3163236 | T33: 605751 | U33: 3312198 | V33: 4160754.178 | X33: BCP Stand-alone | Y33: 1034578.589 | Z33: 2044271.932 | AA33: 3167376.353 | AB33: 4160754.178 | AC33: 1212852.964 | AD33: 2376170.987 | AE33: 3399107.921 | AF33: 4280750.888 | AG33: 1263971.271 | AH33: 2447057.919 | AI33: 3757961.349 | AJ33: 4889076.432 | AK33: 1453721.144 | AL33: 3068376.844 | AM33: 4516048.941 | AN33: 5907554.528 | AO33: =+AO7 -> 1767814.166 | AP33: 3394745.844
B34: BCP Bolivia | C34: 12640 | D34: 26806 | E34: 25575 | F34: 13487 | G34: 6829 | H34: -39583 | I34: -20753 | J34: -20750 | K34: 11453 | L34: 15162 | M34: 23121 | N34: 22531 | O34: 20474 | P34: 16859 | Q34: 13921 | R34: 16759 | S34: 78508 | T34: -74257 | U34: 72267 | V34: 68013 | X34: BCP Bolivia | Y34: 20474 | Z34: 37333 | AA34: 51254 | AB34: 68013 | AC34: 20738 | AD34: 42340 | AE34: 63399 | AF34: 83051 | AG34: 20356 | AH34: 53394 | AI34: 70009 | AJ34: 93511 | AK34: 24227 | AL34: 38457 | AM34: 61117 | AN34: 85851 | AO34: =+AO8 -> 44568 | AP34: 97155
B35: Microfinance | X35: Microfinance
B36: Mibanco (1) | C36: 99611 | D36: 96906 | E36: 95137 | F36: 100034 | G36: 33326 | H36: -271439 | I36: -154812.3663 | J36: 22461 | K36: 13738.27797 | L36: 54057.72932 | M36: 75223.47684 | N36: 117195.2093 | O36: 100644.3092 | P36: 125133.47 | Q36: 143769.6743 | R36: 45909.07127 | S36: 391688 | T36: -370465 | U36: 260215 | V36: 415456.5249 | X36: Mibanco (1) | Y36: 100644.3092 | Z36: 225777.7793 | AA36: 369547.4536 | AB36: 415456.5249 | AC36: 22627.41185 | AD36: 87510.15823 | AE36: 146546.1433 | AF36: 199239.7709 | AG36: 90510.93024 | AH36: 125430.2971 | AI36: 187834.6516 | AJ36: 302219.8611 | AK36: 92285.89536 | AL36: 192545.6604 | AM36: 311710.9232 | AN36: 445184.4785 | AO36: =+AO10 -> 145003.499 | AP36: 296340.2509
B37: Mibanco Colombia | C37: 1825 | D37: 1263 | E37: 852 | F37: -307 | G37: -2365 | H37: -14096 | I37: -68382.69076 | J37: -12537 | K37: 1358.168883 | L37: 5202.462911 | M37: 13161.48661 | N37: 17113.61257 | O37: 4312.421551 | P37: 9034.775613 | Q37: 5227.281372 | R37: -7077.478536 | S37: 3633 | T37: -97380 | U37: 36836 | V37: 11497 | X37: Mibanco Colombia | Y37: 4312.421551 | Z37: 13347.19716 | AA37: 18574.47854 | AB37: 11497 | AC37: -3674.367706 | AD37: -12226.26123 | AE37: -24499 | AF37: -128551 | AG37: -15900 | AH37: -24052 | AI37: -20693 | AJ37: -7042 | AK37: 4871 | AL37: 17120 | AM37: 31187 | AN37: 47022 | AO37: 23495 | AP37: 49681
B38: Insurance and Pensions | X38: Insurance and Pensions
B39: Grupo Pacifico (2) | C39: 77157 | D39: 97133 | E39: 88949 | F39: 113760 | G39: 98661 | H39: 99686 | I39: -14545 | J39: 8528 | K39: -95573 | L39: -158052 | M39: 63058 | N39: 61617 | O39: 71483 | P39: 99928 | Q39: 157597 | R39: 117580 | S39: 376999 | T39: 192330 | U39: -128950 | V39: 446588 | X39: Grupo Pacifico (2) | Y39: 106134 | Z39: 226937 | AA39: 404789 | AB39: 461142 | AC39: 218904 | AD39: 423244 | AE39: 666775 | AF39: 801244 | AG39: 214294 | AH39: 406212 | AI39: 593361 | AJ39: 761022 | AK39: 179835 | AL39: 400074 | AM39: 629311 | AN39: 838054 | AO39: 208308 | AP39: 417678
B40: Prima AFP | C40: 57000 | D40: 50367 | E40: 42394 | F40: 46829 | G40: -4079 | H40: 51232 | I40: 38037 | J40: 62951 | K40: 34596 | L40: 44301 | M40: 31697 | N40: 35463 | O40: 24434 | P40: 14093 | Q40: 30730 | R40: 40254 | S40: 196590 | T40: 148141 | U40: 146057 | V40: 109511 | X40: Prima AFP | Y40: 24434 | Z40: 38527 | AA40: 69257 | AB40: 109511 | AC40: 39758 | AD40: 77171 | AE40: 109169 | AF40: 149549 | AG40: 37013 | AH40: 73917 | AI40: 108604 | AJ40: 132926 | AK40: 24472 | AL40: 65630 | AM40: 112219 | AN40: 146543 | AO40: 37285 | AP40: 92729
B41: Investment Banking and Wealth Management | X41: Investment Banking and Wealth Management
B42: Credicorp Capital | C42: 15419 | D42: 10823 | E42: 13010 | F42: 4631 | G42: 359 | H42: 15616 | I42: 26782 | J42: 13140 | K42: 11377 | L42: 19071 | M42: 11222 | N42: 14581 | O42: 11620 | P42: 5187 | Q42: 18755 | R42: 18786 | S42: 43883 | T42: 55897 | U42: 56251 | V42: 54348 | X42: Credicorp Capital | Y42: 11620 | Z42: 16807 | AA42: 35562 | AB42: 54348 | AC42: 11433 | AD42: 19896 | AE42: 18944 | AF42: 40522 | AG42: 16796 | AH42: 56042 | AI42: 78606 | AJ42: 110975 | AK42: 32285 | AL42: 53280 | AM42: 85124 | AN42: 100203 | AO42: 20876 | AP42: 59487
B43: Atlantic Security Bank | C43: 49748 | D43: 50592 | E43: 43376 | F43: 42824 | G43: -512 | H43: 127105 | I43: -60949 | J43: 70233 | K43: 25324 | L43: 45372 | M43: 42889 | N43: -5946 | O43: 23154 | P43: -674 | Q43: 9475 | R43: 20235 | S43: 186540 | T43: 135877 | U43: 107639 | V43: 52190 | X43: Atlantic Security Bank | Y43: 23154 | Z43: 22480 | AA43: 31955 | AB43: 52190 | AC43: 32849 | AD43: 77986 | AE43: 104857 | AF43: 132829 | AG43: 29444 | AH43: 57080 | AI43: 87024 | AJ43: 84282 | AK43: 29758 | AL43: 59302 | AM43: 88800 | AN43: 124762 | AO43: 21900 | AP43: 58918
B44: Others (3) | C44: -28499 | D44: -25700 | E44: -47682 | F44: -73892 | G44: -65150 | H44: -60507 | I44: -62540.72514 | J44: -60803 | K44: -66022.28554 | L44: -53222.21703 | M44: -57333.71585 | N44: -101352.6352 | O44: -153874.3194 | P44: -157494.5889 | Q44: -200159.3763 | R44: -173733.4182 | S44: -175773 | T44: -248999 | U44: -277931 | V44: -685261.7028 | X44: Others (3)
B45: Goodwill Impairment (Mibanco Colombia) | X45: Goodwill Impairment (Mibanco Colombia) | Y45: -153474.3194 | Z45: -310726.9083 | AA45: -510652.2846 | AB45: -685093.7028 | AC45: -171215.0077 | AD45: -306551.8837 | AE45: -460586.0644 | AF45: -693094.6585 | AG45: -144828.2008 | AH45: -344328.2162 | AI45: -488166.0006 | AJ45: -865716.293 | AK45: -63758.03927 | AL45: -295073.504 | AM45: -497150.8638 | AN45: -769797.0063 | AO45: =+AO18 -> -206065.6649 | AP45: -421628.0947
B46: Net profit attributable to Credicorp | C46: 1100867 | D46: 1098573 | E46: 1093034 | F46: 972830 | G46: 209273 | H46: -620390 | I46: 104606 | J46: 653404 | K46: 660798 | L46: 699469.1365 | M46: 1163699 | N46: 1060616 | O46: 1136826 | P46: 1121760 | Q46: 1302420 | R46: 1072090 | S46: 4265304 | T46: 346895 | U46: 3584582 | V46: 4633096 | X46: Net profit attributable to Credicorp | Y46: 1171877 | Z46: 2314754 | AA46: 3637663 | AB46: 4647818 | AC46: 1384273 | AD46: 2785540 | AE46: 4023713 | AF46: 4865540 | AG46: 1511657 | AH46: 2850753 | AI46: 4374541 | AJ46: 5501254 | AK46: 1777697 | AL46: 3599712 | AM46: 5338367 | AN46: =+SUM(AN32:AN45) -> 6925377 | AO46: =+SUM(AO32:AO45) -> 2063184 | AP46: 4045106

Sheet 0.2.ROAE
B1: Back to index
B3: (IFRS, under regulation as of December 2022) | S3: *(IFRS, under regulation as of June 2023) | X3: (IFRS, under current regulation as of June 2023)
B4: ROAE | C4: Quarter | S4: As of
C6: 1Q19 | D6: 2Q19 | E6: 3Q19 | F6: 4Q19 | G6: 1Q20 | H6: 2Q20 | I6: 3Q20 | J6: 4Q20 | K6: 1Q21 | L6: 2Q21 | M6: 3Q21 | N6: 4Q21 | O6: 1Q22 | P6: 2Q22 | Q6: 3Q22 | R6: 4Q22 | S6: 2019 | T6: 2020 | U6: 2021 | V6: 2022* | X6: 1Q22 | Y6: 2Q22 | Z6: 3Q22 | AA6: 4Q22 | AB6: 1Q23 | AC6: 2Q23 | AD6: 3Q23 | AE6: 4Q23 | AF6: 1Q24 | AG6: 2Q24 | AH6: 3Q24 | AI6: 4Q24 | AJ6: 1Q25 | AK6: 2Q25 | AL6: 3Q25 | AM6: 4Q25 | AN6: 1Q26 | AO6: 2Q26
B7: Universal Banking
B8: BCP Stand-alone | C8: 0.225 | D8: 0.2152 | E8: 0.217 | F8: 0.147 | G8: 0.03489140921 | H8: -0.1363727831 | I8: 0.1126102796 | J8: 0.1474 | K8: 0.1843133425 | L8: 0.1814066525 | M8: 0.2309835894 | N8: 0.2070569684 | O8: 0.2349566151 | P8: 0.2283793675 | Q8: 0.2426651097 | R8: 0.2041372623 | S8: 0.2035 | T8: 0.0377 | U8: 0.196862339 | V8: 0.2198979992 | X8: 0.235 | Y8: 0.2283793675 | Z8: 0.2426651097 | AA8: 0.2041 | AB8: 0.2516 | AC8: 0.2418263704 | AD8: 0.2002457334 | AE8: 0.166 | AF8: 0.2472198839 | AG8: 0.2374378461 | AH8: 0.2454842003 | AI8: 0.2008513645 | AJ8: 0.2710574108 | AK8: 0.3086617475 | AL8: 0.2555798014 | AM8: 0.2295973932 | AN8: 0.3052873222 | AO8: 0.2923949019
B9: BCP Bolivia | C9: 0.074 | D9: 0.158 | E9: 0.144 | F9: -0.121 | G9: 0.03776754488 | H9: -0.2249610873 | I9: -0.1202149074 | J9: -0.1208 | K9: 0.06491825348 | L9: 0.08176808243 | M9: 0.115256565 | N9: 0.1075253038 | O9: 0.1008588197 | P9: 0.08376747433 | Q9: 0.06580621297 | R9: 0.07743050302 | S9: 0.11 | T9: -0.104 | U9: 0.09473824965 | V9: 0.08027965028 | X9: 0.1009 | Y9: 0.08376747433 | Z9: 0.06580621297 | AA9: 0.0774 | AB9: 0.097 | AC9: 0.1013421906 | AD9: 0.0965544672 | AE9: 0.0884 | AF9: 0.0910887434 | AG9: 0.1404412648 | AH9: 0.06810842829 | AI9: 0.09519739627 | AJ9: 0.1129738404 | AK9: 0.09015401575 | AL9: 0.1484256791 | AM9: 0.1286211924 | AN9: 0.2065462146 | AO9: 0.2580273204
B10: Microfinance
B11: Mibanco | C11: 0.213 | D11: 0.2 | E11: 0.187 | F11: 0.048 | G11: 0.06483254215 | H11: -0.5596499141 | I11: -0.3583237822 | J11: 0.0484 | K11: 0.02658702712 | L11: 0.1030718797 | M11: 0.1393983855 | N11: 0.2082082976 | O11: 0.1706038293 | P11: 0.2026918764 | Q11: 0.2211815624 | R11: 0.06813848281 | S11: 0.2011 | T11: -0.1806 | U11: 0.1190223026 | V11: 0.1651961761 | X11: 0.1706 | Y11: 0.2026918764 | Z11: 0.2211815624 | AA11: 0.0681 | AB11: 0.0332 | AC11: 0.09509097201 | AD11: 0.08315039346 | AE11: 0.0727 | AF11: 0.1315771948 | AG11: 0.05386327037 | AH11: 0.09427574205 | AI11: 0.1729410582 | AJ11: 0.1465856032 | AK11: 0.1634922891 | AL11: 0.1876578223 | AM11: 0.199909085 | AN11: 0.2171779775 | AO11: 0.2293849633
B12: Mibanco Colombia | F12: -0.188 | G12: -0.03167422959 | H12: -0.2013825779 | I12: -1.074592492 | J12: -0.188 | K12: 0.01774345424 | L12: 0.06883053973 | M12: 0.164302327 | N12: 0.2093965511 | O12: 0.05375465596 | P12: 0.1138904374 | Q12: 0.06877814369 | R12: -0.09409024325 | S12: -0.0745 | T12: -0.3047 | U12: 0.1166425588 | V12: 0.03688038652 | X12: 0.0538 | Y12: 0.1138904374 | Z12: 0.06877814369 | AA12: -0.1136025286 | AB12: -0.0478 | AC12: -0.1077558713 | AD12: -0.1504933384 | AE12: -0.4384899969 | AF12: -0.2040005278 | AG12: -0.08721816921 | AH12: 0.032 | AI12: 0.1290580272 | AJ12: 0.04520628144 | AK12: 0.110601473 | AL12: 0.1227722131 | AM12: 0.1321518017 | AN12: 0.1832457104 | AO12: 0.1854434394
B13: Insurance and Pensions
B14: Grupo Pacifico | C14: 0.118 | D14: 0.136 | E14: 0.11 | F14: 0.012 | G14: 0.1437828775 | H14: 0.1448593577 | I14: -0.02074570774 | J14: 0.0119 | K14: -0.1439942724 | L14: -0.282428856 | M14: 0.1258695605 | N14: 0.1184116383 | O14: 0.1279944886 | P14: 0.1864017595 | Q14: 0.3010919236 | R14: 0.2106992211 | S14: 0.1399 | T14: 0.0671 | U14: -0.0494041856 | V14: 0.1924585672 | X14: 0.1359796049 | Y14: 0.2286074234 | Z14: 0.3262199052 | AA14: 0.0968 | AB14: 0.3652 | AC14: 0.3208384839 | AD14: 0.3467545673 | AE14: 0.179 | AF14: 0.2891547483 | AG14: 0.2643815051 | AH14: 0.2433036045 | AI14: 0.2047209708 | AJ14: 0.1931070039 | AK14: 0.2109254661 | AL14: 0.208906779 | AM14: 0.1858447843 | AN14: 0.1892206755 | AO14: 0.1905150257
B15: Prima | C15: 0.376 | D15: 0.3331 | E15: 0.26 | F15: 0.377 | G15: -0.02620412752 | H15: 0.357673884 | I15: 0.2463985101 | J15: 0.3768 | K15: 0.2129169689 | L15: 0.2848851884 | M15: 0.214291992 | N15: 0.2547661339 | O15: 0.1981508007 | P15: 0.1346248454 | Q15: 0.2787317388 | R15: 0.3378395107 | S15: 0.2953 | T15: 0.2119 | U15: 0.2291526934 | V15: 0.2044305641 | X15: 0.1982 | Y15: 0.1346248454 | Z15: 0.2787317388 | AA15: 0.3378 | AB15: 0.3586 | AC15: 0.3659890315 | AD15: 0.2885074442 | AE15: 0.3366 | AF15: 0.3141227067 | AG15: 0.3201835867 | AH15: 0.2792294565 | AI15: 0.1965733821 | AJ15: 0.2261928282 | AK15: 0.4008853803 | AL15: 0.4097753619 | AM15: 0.2947977313 | AN15: 0.367991137 | AO15: 0.5759704971
B16: Investment Banking and Wealth Management
B17: Credicorp Capital | C17: 0.098 | D17: 0.0767 | E17: 0.093 | F17: 0.078 | G17: 0.002315021929 | H17: 0.1018010427 | I17: 0.1627031739 | J17: 0.0781 | K17: 0.0678910771 | L17: 0.09654222805 | M17: 0.07143630125 | N17: 0.09525613847 | O17: 0.07826589187 | P17: 0.036487506 | Q17: 0.1370873059 | R17: 0.1346258929 | S17: 0.0649 | T17: 0.0838 | U17: 0.08822129428 | V17: 0.09325478023 | X17: 0.0783 | Y17: 0.036487506 | Z17: 0.1370873059 | AA17: 0.1346 | AB17: 0.0752 | AC17: 0.05095430188 | AD17: -0.005407270564 | AE17: 0.1194 | AF17: 0.09633309364 | AG17: 0.2255941851 | AH17: 0.1263422535 | AI17: 0.1803352211 | AJ17: 0.175403449 | AK17: 0.111853352 | AL17: 0.1668202252 | AM17: 0.07684829736 | AN17: 0.1059655089 | AO17: 0.1893161249
B18: Atlantic Security Bank | C18: 0.259 | D18: 0.2573 | E18: 0.203 | F18: 0.328 | G18: -0.003397298086 | H18: 0.7350115727 | I18: -0.2993988591 | J18: 0.3277 | K18: 0.1103670694 | L18: 0.1887645919 | M18: 0.1736029524 | N18: -0.02520554217 | O18: 0.1094493674 | P18: -0.003618498095 | Q18: 0.05373055191 | R18: 0.1115907402 | S18: 0.2606 | T18: 0.174 | U18: 0.1180238605 | V18: 0.0628898608 | X18: 0.1094 | Y18: -0.003618498095 | Z18: 0.05373055191 | AA18: 0.1116 | AB18: 0.1715 | AC18: 0.2281541988 | AD18: 0.1378495728 | AE18: 0.14 | AF18: 0.1376134622 | AG18: 0.1356059449 | AH18: 0.1514760811 | AI18: -0.01436411486 | AJ18: 0.1651301438 | AK18: 0.1672885819 | AL18: 0.1699882657 | AM18: 0.2176510907 | AN18: 0.1414295851 | AO18: 0.2354890781
B19: Credicorp | C19: 0.185 | D19: 0.18 | E19: 0.171 | F19: 0.108 | G19: 0.03386047941 | H19: -0.1065007373 | I19: 0.01780878341 | J19: 0.1077 | K19: 0.1068478148 | L19: 0.112809245 | M19: 0.1851997361 | N19: 0.1641523828 | O19: 0.1704086803 | P19: 0.1691695392 | Q19: 0.1955428652 | R19: 0.1528903567 | S19: 0.1703 | T19: 0.0136 | U19: 0.1393622986 | V19: 0.1670038274 | X19: 0.1704086803 | Y19: 0.1725557594 | Z19: 0.1979644473 | AA19: 0.1436 | AB19: 0.1866 | AC19: 0.1856384363 | AD19: 0.1616028054 | AE19: 0.1057 | AF19: 0.1823650144 | AG19: 0.161660122 | AH19: 0.1850482384 | AI19: 0.1329277611 | AJ19: 0.2026164228 | AK19: 0.2073351547 | AL19: 0.1958509628 | AM19: 0.1694449697 | AN19: 0.2105779631 | AO19: 0.2029091374
B20: *These figures are corrected according to the Press Release issued on August 13, 2024.
B24: ROAE | C24: Quarter | S24: As of
AD25: As of
C26: 1Q19 | D26: 2Q19 | E26: 3Q19 | F26: 4Q19 | G26: 1Q20 | H26: 2Q20 | I26: 3Q20 | J26: 4Q20 | K26: 1Q21 | L26: 2Q21 | M26: 3Q21 | N26: 4Q21 | O26: 1Q22 | P26: 2Q22 | Q26: 3Q22 | R26: 4Q22 | S26: 2019 | T26: 2020 | U26: 2021 | V26: 2022* | X26: Mar 22 | Y26: Jun 22 | Z26: Sep 22 | AA26: Dec 22 | AB26: Mar 23 | AC26: Jun 23 | AD26: Sep 23 | AE26: Dec 23 | AF26: Mar 24 | AG26: Jun 24 | AH26: Sep 24 | AI26: Dic 24 | AJ26: Mar 25 | AK26: Jun 25 | AL26: Set 25 | AM26: Dic 25 | AN26: Mar 26 | AO26: Jun 26
B27: Universal Banking
B28: BCP Stand-alone | C28: 0.225 | D28: 0.2152 | E28: 0.217 | F28: 0.147 | G28: 0.03489140921 | H28: -0.1363727831 | I28: 0.1126102796 | J28: 0.1474 | K28: 0.1843133425 | L28: 0.1814066525 | M28: 0.2309835894 | N28: 0.2070569684 | O28: 0.2349566151 | P28: 0.2283793675 | Q28: 0.2426651097 | R28: 0.2041372623 | S28: 0.2035 | T28: 0.0377 | U28: 0.196862339 | V28: 0.2198979992 | X28: 0.2349566151 | Y28: 0.2275303884 | Z28: 0.2290043204 | AA28: 0.2198979992 | AB28: 0.2516171349 | AC28: 0.2381370288 | AD28: 0.2219239945 | AE28: 0.2061214434 | AF28: 0.2472198839 | AG28: 0.2322638012 | AH28: 0.2290004879 | AI28: 0.2198574076 | AJ28: 0.2710574108 | AK28: 0.274507149 | AL28: 0.2597102601 | AM28: 0.2467547082 | AN28: =+AN8 -> 0.3052873222 | AO28: 0.2818096031
B29: BCP Bolivia | C29: 0.074 | D29: 0.158 | E29: 0.144 | F29: -0.121 | G29: 0.03776754488 | H29: -0.2249610873 | I29: -0.1202149074 | J29: -0.1208 | K29: 0.06491825348 | L29: 0.08176808243 | M29: 0.115256565 | N29: 0.1075253038 | O29: 0.1008588197 | P29: 0.08376747433 | Q29: 0.06580621297 | R29: 0.07743050302 | S29: 0.11 | T29: -0.104 | U29: 0.09473824965 | V29: 0.08027965028 | X29: 0.1008588197 | Y29: 0.09021713323 | Z29: 0.08010346215 | AA29: 0.08027965028 | AB29: 0.09702311714 | AC29: 0.09875305032 | AD29: 0.09663505782 | AE29: 0.09500223347 | AF29: 0.0910887434 | AG29: 0.1141321164 | AH29: 0.1005099326 | AI29: 0.09870677666 | AJ29: 0.1129738404 | AK29: 0.09864278638 | AL29: 0.09734678368 | AM29: 0.09150110152 | AN29: =+AN9 -> 0.2065462146 | AO29: 0.2362550816
B30: Microfinance
B31: Mibanco | C31: 0.213 | D31: 0.2 | E31: 0.187 | F31: 0.048 | G31: 0.06483254215 | H31: -0.5596499141 | I31: -0.3583237822 | J31: 0.0484 | K31: 0.02658702712 | L31: 0.1030718797 | M31: 0.1393983855 | N31: 0.2082082976 | O31: 0.1706038293 | P31: 0.2026918764 | Q31: 0.2211815624 | R31: 0.06813848281 | S31: 0.2011 | T31: -0.1806 | U31: 0.1190223026 | V31: 0.1651961761 | X31: 0.1706038293 | Y31: 0.1865999064 | Z31: 0.1978582845 | AA31: 0.1651961761 | AB31: 0.0331623229 | AC31: 0.06325334558 | AD31: 0.06996768278 | AE31: 0.07053255529 | AF31: 0.1315771948 | AG31: 0.09051293232 | AH31: 0.08924997699 | AI31: 0.1091261993 | AJ31: 0.1465856032 | AK31: 0.1513930629 | AL31: 0.1595216556 | AM31: 0.1664687098 | AN31: =+AN11 -> 0.2171779775 | AO31: 0.217247975
B32: Mibanco Colombia | F32: -0.188 | G32: -0.03167422959 | H32: -0.2013825779 | I32: -1.074592492 | J32: -0.188 | K32: 0.01774345424 | L32: 0.06883053973 | M32: 0.164302327 | N32: 0.2093965511 | O32: 0.05375465596 | P32: 0.1138904374 | Q32: 0.06877814369 | R32: -0.09409024325 | S32: -0.0745 | T32: -0.3047 | U32: 0.1166425588 | V32: 0.03688038652 | X32: 0.08501000626 | Y32: 0.1330154926 | Z32: 0.1257470285 | AA32: 0.04548277483 | AB32: -0.04778819431 | AC32: -0.0776448849 | AD32: -0.09551653264 | AE32: -0.4354399532 | AF32: -0.2040005278 | AG32: -0.1384218614 | AH32: -0.07786112654 | AI32: -0.01988404427 | AJ32: 0.04520628144 | AK32: 0.07873322976 | AL32: 0.09316818305 | AM32: 0.1031475164 | AN32: 0.1832457104 | AO32: 0.183725752
B33: Insurance and Pensions
B34: Grupo Pacifico | C34: 0.118 | D34: 0.136 | E34: 0.11 | F34: 0.012 | G34: 0.1437828775 | H34: 0.1448593577 | I34: -0.02074570774 | J34: 0.0119 | K34: -0.1439942724 | L34: -0.282428856 | M34: 0.1258695605 | N34: 0.1184116383 | O34: 0.1279944886 | P34: 0.1864017595 | Q34: 0.3010919236 | R34: 0.2106992211 | S34: 0.1399 | T34: 0.0671 | U34: -0.0494041856 | V34: 0.1924585672 | X34: 0.2018949874 | Y34: 0.2188346067 | Z34: 0.2487413242 | AA34: 0.2076310374 | AB34: 0.3651694194 | AC34: 0.3347668694 | AD34: 0.3342832494 | AE34: 0.2940853471 | AF34: 0.2891547483 | AG34: 0.2699584716 | AH34: 0.2521535029 | AI34: 0.2371866899 | AJ34: 0.1932168657 | AK34: 0.2105364941 | AL34: 0.213444199 | AM34: 0.2144150753 | AN34: 0.1892206755 | AO34: 0.1881410822
B35: Prima | C35: 0.376 | D35: 0.3331 | E35: 0.26 | F35: 0.377 | G35: -0.02620412752 | H35: 0.357673884 | I35: 0.2463985101 | J35: 0.3768 | K35: 0.2129169689 | L35: 0.2848851884 | M35: 0.214291992 | N35: 0.2547661339 | O35: 0.1981508007 | P35: 0.1346248454 | Q35: 0.2787317388 | R35: 0.3378395107 | S35: 0.2953 | T35: 0.2119 | U35: 0.2291526934 | V35: 0.2044305641 | X35: 0.1981508007 | Y35: 0.1540831926 | Z35: 0.1791308441 | AA35: 0.2044305641 | AB35: 0.358627657 | AC35: 0.3338997773 | AD35: 0.3043991829 | AE35: 0.300039825 | AF35: 0.3141227067 | AG35: 0.3018323215 | AH35: 0.285511014 | AI35: 0.2724943216 | AJ35: 0.2261928282 | AK35: 0.2894635574 | AL35: 0.3137664436 | AM35: 0.3155445692 | AN35: 0.367991137 | AO35: 0.4282699058
B36: Investment Banking and Wealth Management
B37: Credicorp Capital | C37: 0.098 | D37: 0.0767 | E37: 0.093 | F37: 0.078 | G37: 0.002315021929 | H37: 0.1018010427 | I37: 0.1627031739 | J37: 0.0781 | K37: 0.0678910771 | L37: 0.09654222805 | M37: 0.07143630125 | N37: 0.09525613847 | O37: 0.07826589187 | P37: 0.036487506 | Q37: 0.1370873059 | R37: 0.1346258929 | S37: 0.0649 | T37: 0.0838 | U37: 0.08822129428 | V37: 0.09325478023 | X37: 0.07826589187 | Y37: 0.05877970986 | Z37: 0.0828252392 | AA37: 0.09325478023 | AB37: 0.07520380854 | AC37: 0.0636947671 | AD37: 0.03898035627 | AE37: 0.06298510084 | AF37: 0.09633309364 | AG37: 0.1563899871 | AH37: 0.1463959387 | AI37: 0.1540693538 | AJ37: 0.175403449 | AK37: 0.144604996 | AL37: 0.1515349154 | AM37: 0.1321551392 | AN37: 0.1059655089 | AO37: 0.1447602083
B38: Atlantic Security Bank | C38: 0.259 | D38: 0.2573 | E38: 0.203 | F38: 0.328 | G38: -0.003397298086 | H38: 0.7350115727 | I38: -0.2993988591 | J38: 0.3277 | K38: 0.1103670694 | L38: 0.1887645919 | M38: 0.1736029524 | N38: -0.02520554217 | O38: 0.1094493674 | P38: -0.003618498095 | Q38: 0.05373055191 | R38: 0.1115907402 | S38: 0.2606 | T38: 0.174 | U38: 0.1180238605 | V38: 0.0628898608 | X38: 0.1094493674 | Y38: 0.05551261504 | Z38: 0.05282840914 | AA38: 0.0628898608 | AB38: 0.1715191261 | AC38: 0.2015267097 | AD38: 0.1853130439 | AE38: 0.1673513176 | AF38: 0.1376134622 | AG38: 0.143042587 | AH38: 0.1395644505 | AI38: 0.1093253845 | AJ38: 0.1651301438 | AK38: 0.1722159422 | AL38: 0.1671051295 | AM38: 0.1903351101 | AN38: 0.1414295851 | AO38: 0.1909028094
B39: Credicorp | C39: 0.185 | D39: 0.18 | E39: 0.171 | F39: 0.108 | G39: 0.03386047941 | H39: -0.1065007373 | I39: 0.01780878341 | J39: 0.1077 | K39: 0.1068478148 | L39: 0.112809245 | M39: 0.1851997361 | N39: 0.1641523828 | O39: 0.1704086803 | P39: 0.1691695392 | Q39: 0.1955428652 | R39: 0.1528903567 | S39: 0.1703 | T39: 0.0136 | U39: 0.1393622986 | V39: 0.1670038274 | X39: 0.1765406982 | Y39: 0.1765177166 | Z39: 0.1810505539 | AA39: 0.1681443363 | AB39: 0.1865671555 | AC39: 0.1887709273 | AD39: 0.1780443648 | AE39: 0.1583377585 | AF39: 0.1823650144 | AG39: 0.1757723037 | AH39: 0.1769566666 | AI39: 0.1646922916 | AJ39: 0.2026164228 | AK39: 0.2092689707 | AL39: 0.2007651568 | AM39: 0.1904841997 | AN39: 0.2105779631 | AO39: 0.2115395487

Sheet 0.3 Yape
A1: Back to index
C3: (Under Previous Accounting Classifications) | G3: (Under New Accounting Classifications and Allocations)
B4: Management KPI's (1) | C4: Quarter | G4: Quarter | R4: Year
C5: 1Q23 | D5: 2Q23 | E5: 3Q23 | F5: 4Q23 | G5: 1Q24 | H5: 2Q24 | I5: 3Q24 | J5: 4Q24 | K5: 1Q25 | L5: 2Q25 | M5: 3Q25 | N5: 4Q25 | O5: 1Q26 | P5: 2Q26 | R5: 2023 | S5: 2024 | T5: 2025
B6: Users
B7: Users (millions) | C7: 12.281379 | D7: 12.629314 | E7: 13.429695 | F7: 14.240485 | G7: 15.129688 | H7: 15.873941 | I7: 16.613156 | J7: 17.310786 | K7: 17.983221 | L7: 18.615642 | M7: 18.728996 | N7: 19.084337 | O7: 19.421837 | P7: 19.811055 | R7: 14.240484 | S7: 17.310786 | T7: =N7 -> 19.084337
B8: Monthly Active Users (MAU) (millions) (2) | C8: 8.400454 | D8: 8.959656 | E8: 9.83712 | F8: 10.695008 | G8: 11.542527 | H8: 12.265779 | I8: 13.031743 | J8: 13.745141 | K8: 14.347254 | L8: 14.946176 | M8: 15.477717 | N8: 15.932942 | O8: 16.364446 | P8: 16.652987 | R8: 10.717435 | S8: 13.745141 | T8: =N8 -> 15.932942
B9: Revenue Generating MAU (millions) | C9: 4.03775 | D9: 5.187553 | E9: 6.487129 | F9: 7.856388 | G9: 8.633897 | H9: 9.482003 | I9: 10.366845 | J9: 11.380425 | K9: 11.975773 | L9: 12.56156 | M9: 13.201356 | N9: 13.955964 | O9: 14.323972 | P9: 14.609545 | R9: 7.856388 | S9: 11.380425 | T9: =N9 -> 13.955964
B10: Engagement
B11: # Transactions (millions) | C11: 480.333427 | D11: 615.080576 | E11: 794.636908 | F11: 1027.90519 | G11: 1127.690731 | H11: 1400.610112 | I11: 1664.162521 | J11: 1953.14862 | K11: 2025.371398 | L11: 2384.912347 | M11: 2640.127268 | N11: 2988.697769 | O11: 3005.404819 | P11: 3381.354035 | R11: =SUM(C11:F11) -> 2917.956101 | S11: =SUM(G11:J11) -> 6145.611984 | T11: =SUM(K11:N11) -> 10039.10878
B12: # Revenue Generating Transactions (millions) | C12: - | D12: - | E12: - | F12: - | G12: 121.738214 | H12: 155.420343 | I12: 185.075784 | J12: 212.003669 | K12: 229.171903 | L12: 256.638518 | M12: 283.481783 | N12: 318.347467 | O12: 337.317194 | P12: 364.372102 | R12: - | S12: =SUM(G12:J12) -> 674.23801 | T12: =SUM(K12:N12) -> 1087.639671
B13: # Transactions / MAU | C13: 21.18626131 | D13: 24.63044597 | E13: 29.05137439 | F13: 35.30177034 | G13: 36.03835226 | H13: 40.16192783 | I13: 44.11564448 | J13: 50.98472507 | K13: 52.0575025 | L13: 54.47396645 | M13: 58.48604526 | N13: 66.48720048 | O13: 66.50555405 | P13: 68.5 | R13: 35.30177034 | S13: 50.98472507 | T13: =N13 -> 66.48720048
B14: # Average Functionalities / MAU | C14: 1.6 | D14: 1.76 | E14: 1.96 | F14: 2.16 | G14: 2.22 | H14: 2.33 | I14: 2.4 | J14: 2.55 | K14: 2.62 | L14: 2.66 | M14: 2.7 | N14: 2.84 | O14: 2.86 | P14: 2.9 | R14: 2.2 | S14: 2.55 | T14: =N14 -> 2.84
B15: Experience
B16: NPS (3) | C16: 73 | D16: 78 | E16: 76 | F16: 80 | G16: 78.4 | H16: 76.4 | I16: 73.5 | J16: 79 | K16: 77 | L16: 77 | M16: 76 | N16: 80.9 | O16: 77 | P16: 78 | R16: 80 | S16: 79 | T16: =N16 -> 80.9
B17: Unit Economics
B18: Monthly Indicators (4)
B19: Revenues / MAU (S/) | C19: 1.890933155 | D19: 2.331898748 | E19: 2.858886286 | F19: 3.773862234 | G19: 3.445626436 | H19: 3.927353758 | I19: 4.621360967 | J19: 6.144347852 | K19: 6.214381262 | L19: 6.453249022 | M19: 7.411831985 | N19: 9.597782316 | O19: 10.25365585 | P19: 11.12535524 | R19: 3.773862234 | S19: 6.144347852 | T19: =N19 -> 9.597782316
B20: Expenses / MAU (S/) | C20: -4.1 | D20: -3.6 | E20: -3.8 | F20: -4.711225263 | G20: -3.885023027 | H20: -3.92967506 | I20: -4.182941746 | J20: -5.014290777 | K20: -4.708062695 | L20: -4.370755256 | M20: -5.04358382 | N20: -6.101503959 | O20: -5.935408292 | P20: -6.00727933 | R20: -4.711225263 | S20: -5.014290777 | T20: =N20 -> -6.101503959
B21: Quarterly Indicators (5)
B22: Revenues / MAU (S/) | C22: 1.686427607 | D22: 2.200669961 | E22: 2.910817254 | F22: 3.532066117 | G22: 3.30914932 | H22: 3.813402107 | I22: 4.701180497 | J22: 5.378933959 | K22: 5.56732161 | L22: 6.427151575 | M22: 7.429976072 | N22: 8.46948908 | O22: 9.702037684 | P22: 10.73674 | R22: =AVERAGE(C22:F22) -> 2.582495235 | S22: =AVERAGE(G22:J22) -> 4.300666471 | T22: =AVERAGE(K22:N22) -> 6.973484584
B23: Expenses / MAU (S/) | C23: -3.963802046 | D23: -3.776886886 | E23: -3.784373116 | F23: -4.425332153 | G23: -3.862100555 | H23: -3.907016263 | I23: -4.173595197 | J23: -4.689546354 | K23: -4.278967275 | L23: -4.495831667 | M23: -4.788972159 | N23: -5.485249215 | O23: -5.458383356 | P23: -5.86111 | R23: =AVERAGE(C23:F23) -> -3.98759855 | S23: =AVERAGE(G23:J23) -> -4.158064592 | T23: =AVERAGE(K23:N23) -> -4.762255079
B24: Drivers Monetization
B25: Total TPV (S/, billions) (6) | C25: 24.04637097 | D25: 29.42213663 | E25: 37.28302478 | F25: 47.11516132 | G25: 50.47358106 | H25: 62.14146146 | I25: 76.90148049 | J25: 90.29074481 | K25: 91.56491197 | L25: 103.3680753 | M25: 113.8971944 | N25: 128.8904407 | O25: 129.796453 | P25: 139.6894613 | R25: =SUM(C25:F25) -> 137.8666937 | S25: =SUM(G25:J25) -> 279.8072678 | T25: =SUM(K25:N25) -> 437.7206224
B26: Total Revenue Generating TPV (S/, billions) (6) | C26: 0.5373731653 | D26: 1.018445206 | E26: 1.801236183 | F26: 2.909793877 | G26: 3.764284445 | H26: 4.887791482 | I26: 6.299438904 | J26: 7.57452867 | K26: 8.701148797 | L26: 10.14761508 | M26: 12.03742298 | N26: 14.04178706 | O26: 15.62177957 | P26: 18.0768415 | R26: =SUM(C26:F26) -> 6.266848432 | S26: =SUM(G26:J26) -> 22.5260435 | T26: =SUM(K26:N26) -> 44.92797392
B27: Payments
B28: # Bill Payments transactions (millions) | C28: 0.646839 | D28: 5.099396 | E28: 10.58772 | F28: 18.050272 | G28: 23.408602 | H28: 28.624289 | I28: 34.589572 | J28: 40.459486 | K28: 45.008913 | L28: 50.14287 | M28: 56.153524 | N28: 61.299243 | O28: 67.122347 | P28: 72.170651 | R28: =SUM(C28:F28) -> 34.384227 | S28: =SUM(G28:J28) -> 127.081949 | T28: =SUM(K28:N28) -> 212.60455
B29: Financials
B30: # Loans Disbursements (millions) | C30: 0.166689 | D30: 0.165972 | E30: 0.228413 | F30: 0.290365 | G30: 0.51242 | H30: 0.751916 | I30: 1.295521 | J30: 2.144958 | K30: 3.10044 | L30: 3.855148 | M30: 4.195522 | N30: 5118.061 | O30: 5733.884 | P30: 6376.193 | R30: =SUM(C30:F30) -> 0.851439 | S30: =SUM(G30:J30) -> 4.704815 | T30: =SUM(K30:N30) -> 5129.21211
B31: E-Commerce
B32: GMV (S/, millions) (7) | C32: 10.75549437 | D32: 25.47062121 | E32: 39.54001184 | F32: 47.28992442 | G32: 59.07136039 | H32: 74.95429747 | I32: 110.1460412 | J32: 120.3236302 | K32: 124.0796843 | L32: 127.8978194 | M32: 174.1204492 | N32: 181.5820016 | O32: 175.328721 | P32: 167.2369 | R32: =SUM(C32:F32) -> 123.0560518 | S32: =SUM(G32:J32) -> 364.4953292 | T32: =SUM(K32:N32) -> 607.6799545
B33: (1) Management Figures. Figures may differ from previously reported.
B34: (2) Yape users that have made at least one outgoing transaction in the measurement month.
B35: (3) Net Promoter Score.
B36: (4) Monthly indicators consider the results of the last month of the quarter for the numerator and denominator.
B37: (5) Quarterly indicators are calculated using the sum of the three months in the period for numerator accounts, and the average of the denominator—based on the last month’s data from both the current and previous quarters.
B38: (6) Total Payment Volume.
B39: (7) Gross Merchant Volume includes the following functionalities: Yape Promos, Yape Store, Ticketing, Gaming, Delivery, Buses, Gas, Brand Solutions and Insurance.
C42: (Under Previous Accounting Classifications) | G42: (Under New Accounting Classifications and Allocations)
B43: Financial Results (1) S/ millions | G43: Quarter | R43: Year
C44: 1Q23 | D44: 2Q23 | E44: 3Q23 | F44: 4Q23 | G44: 1Q24 | H44: 2Q24 | I44: 3Q24 | J44: 4Q24 | K44: 1Q25 | L44: 2Q25 | M44: 3Q25 | N44: 4Q25 | O44: 1Q26 | P44: 2Q26 | R44: 2023 | S44: 2024 | T44: 2025
B45: Net Interest Income after Provisions (2) | C45: 26.79864596 | D45: 33.61955232 | E45: 44.65593354 | F45: 52.26246709 | G45: 50.65263611 | H45: 56.23318844 | I45: 70.15006559 | J45: 88.31244635 | K45: 93.00413156 | L45: 123.9247862 | M45: 146.3871994 | N45: 179.5366949 | O45: 235.7363471 | P45: 276.08302 | R45: =SUM(C45:F45) -> 157.3365989 | S45: =SUM(G45:J45) -> 265.3483365 | T45: =SUM(K45:N45) -> 542.8528121
B46: Other Income (3) | C46: 14.53799438 | D46: 21.81978685 | E46: 34.49210623 | F46: 51.87838184 | G46: 59.72834964 | H46: 79.95277795 | I46: 108.24226 | J46: 131.2848319 | K46: 141.5949651 | L46: 158.9721194 | M46: 195.183052 | N46: 221.670181 | O46: 235.5532805 | P46: 256.90735 | R46: =SUM(C46:F46) -> 122.7282693 | S46: =SUM(G46:J46) -> 379.2082195 | T46: =SUM(K46:N46) -> 717.4203176
B47: Total Income | C47: 41.33664034 | D47: 55.43933917 | E47: 79.14803977 | F47: 104.1408489 | G47: 110.3809857 | H47: 136.1859664 | I47: 178.3923256 | J47: 219.5972782 | K47: 234.5990966 | L47: 282.8969056 | M47: 341.5702514 | N47: 401.2068759 | O47: 471.2896277 | P47: 532.99037 | R47: =SUM(C47:F47) -> 280.0648682 | S47: =SUM(G47:J47) -> 644.5565559 | T47: =SUM(K47:N47) -> 1260.27313
B48: Total Operating Expenses | C48: -99.89321025 | D48: -98.35075769 | E48: -106.7010206 | F48: -136.2922293 | G48: -128.8253944 | H48: -139.5291581 | I48: -158.3724245 | J48: -184.8065168 | K48: -179.7248417 | L48: -197.0600644 | M48: -220.1352787 | N48: -259.809608 | O48: -266.0939367 | P48: -290.88939 | R48: =SUM(C48:F48) -> -441.2372179 | S48: =SUM(G48:J48) -> -611.5334938 | T48: =SUM(K48:N48) -> -856.7297929
B49: (1) Management figures. Beginning in 1Q25, reclassifications between Operating Expenses and Fee Income have been incorporated, along with new accounting allocations —primarily related to interest expenses associated with the Deposit Insurance Fund. Figures for prior periods have been restated for comparability and may differ from those previously reported.
B50: (2) Includes interest income, interest expense and net provisions.
B51: (3) Includes Other income recorded in BCP and in Yape Market.

Sheet 1.1.Loans
B1: Back to index
G2: Mes
B3: Total Loans (S/ millions)
C5: Mar 22 | D5: Jun 22 | E5: Sep 22 | F5: Dec 22 | G5: Mar 23 | H5: Jun 23 | I5: Sep 23 | J5: Dec 23 | K5: Mar 24 | L5: Jun 24 | M5: Sep 24 | N5: Dec 24 | O5: Mar 25 | P5: Jun 25 | Q5: Set 25 | R5: Dic 25 | S5: Mar 26 | T5: 2026-06-01
B6: BCP Stand-alone | C6: =+C20+C34 -> 120541003 | D6: =+D20+D34 -> 125535209 | E6: 126176601 | F6: 123707600 | G6: 119751399 | H6: 117611695 | I6: 119635051 | J6: 119425133 | K6: 115355734 | L6: 121055851 | M6: 117687023 | N6: 120571108 | O6: 119378598 | P6: =120998974+1 -> 120998975 | Q6: =+Q20+Q34 -> 123089317 | R6: 125200572 | S6: 128142162 | T6: =+T20+T34 -> 134206649
B7: Mibanco | C7: =+C21+C35 -> 13983905 | D7: 14434898 | E7: 14228231 | F7: 14089071 | G7: 14006154 | H7: 14198690 | I7: 13562314 | J7: 13269018 | K7: 13080143 | L7: 12705605 | M7: 12118953 | N7: 12239171 | O7: 12525099 | P7: 12785249 | Q7: =+Q21+Q35 -> 13095856 | R7: 13607074 | S7: 14079941 | T7: =+T21+T35 -> 14698112
B8: Mibanco Colombia | C8: 1167998 | D8: 1194203 | E8: 1247814 | F8: 1227903 | G8: 1313421 | H8: 1475285 | I8: 1661788 | J8: 1737094 | K8: 1780987 | L8: 1757188 | M8: 1773682 | N8: 1794549 | O8: 1903973 | P8: 1976163 | Q8: =+Q22+Q36 -> 2158454 | R8: 2314992 | S8: 2617982 | T8: =+T22+T36 -> 2951366
B9: Bolivia | C9: 8890948 | D9: 9208057 | E9: 9642982 | F9: 9253908 | G9: 9362120 | H9: 9087400 | I9: 9598393 | J9: 9401800 | K9: 9739036 | L9: 10228586 | M9: 9829566 | N9: 9938971 | O9: 6293810 | P9: 4189040 | Q9: =+Q23+Q37 -> 5505442 | R9: 7553093 | S9: 7319044 | T9: =+T23+T37 -> 6583725
B10: ASB | C10: 2315220 | D10: 2359763 | E10: 2484813 | F10: 2446066 | G10: 2410179 | H10: 2220582 | I10: 2175830 | J10: 2150005 | K10: 2002853 | L10: 1953028 | M10: 1927802 | N10: 1801615 | O10: 1776970 | P10: 1558925 | Q10: =+Q24+Q38 -> 1421687 | R10: 1462296 | S10: 1459174 | T10: =+T24+T38 -> 1428180
B11: Others 1/ | C11: -2277561 | D11: -2361946 | E11: -2388239 | F11: -2098174 | G11: =+G12-SUM(G6:G10) -> -1677560 | H11: =+H12-SUM(H6:H10) -> -1748103 | I11: =+I12-SUM(I6:I10) -> -1504116 | J11: =+J12-SUM(J6:J10) -> -1006999 | K11: =+K12-SUM(K6:K10) -> -1160670 | L11: -753712 | M11: -768241 | N11: -613141 | O11: -681804 | P11: -546374 | Q11: =+Q25+Q39 -> -518502 | R11: -153073 | S11: -793618 | T11: =+T25+T39 -> -433635
B12: BAP's total loans | C12: 144621513 | D12: 150370184 | E12: 151392202 | F12: 148626374 | G12: 145165713 | H12: 142845549 | I12: 145129260 | J12: 144976051 | K12: 140798083 | L12: 146946546 | M12: 142568785 | N12: 145732273 | O12: 141196646 | P12: 140961978 | Q12: =+Q26+Q40 -> 144752254 | R12: 149984954 | S12: =+SUM(S6:S11) -> 152824685 | T12: =+T26+T40 -> 159434397
G13: =+G12-'12.5.1.Credicorp Consolidated '!BB23 -> 0 | H13: =+H12-'12.5.1.Credicorp Consolidated '!BC23 -> 0 | I13: =+I12-'12.5.1.Credicorp Consolidated '!BD23 -> 0 | J13: =+J12-'12.5.1.Credicorp Consolidated '!BE23 -> 0 | K13: =+K12-'12.5.1.Credicorp Consolidated '!BF23 -> 0 | L13: =+L12-'12.5.1.Credicorp Consolidated '!BG23 -> 0 | M13: =+M12-'12.5.1.Credicorp Consolidated '!BH23 -> 0 | N13: =+N12-'12.5.1.Credicorp Consolidated '!BI23 -> 0 | O13: =+O12-'12.5.1.Credicorp Consolidated '!BJ23 -> 0 | P13: =+P12-'12.5.1.Credicorp Consolidated '!BK23 -> 0 | Q13: =+Q12-'12.5.1.Credicorp Consolidated '!BL23 -> 0 | R13: =+R12-'12.5.1.Credicorp Consolidated '!BM23 -> 0 | S13: =+S12-'12.5.1.Credicorp Consolidated '!BN23 -> 0 | T13: =+T12-'12.5.1.Credicorp Consolidated '!BO23 -> 0
B14: (*) For consolidation purposes. Loans generated in Foreign Currency (FC) are converted into Local Currency (LC). | G14: =+G26+G40-G12 -> 0 | H14: =+H26+H40-H12 -> 0 | I14: 0 | J14: 0 | K14: 0 | L14: 0 | M14: 0 | N14: 0 | O14: 0
B15: 1/ Includes eliminations for related-party transactions.
B17: Total Loans - Local Currency (LC) (S/ millions)
C19: Mar 22 | D19: Jun 22 | E19: Sep 22 | F19: Dec 22 | G19: Mar 23 | H19: Jun 23 | I19: Sep 23 | J19: Dec 23 | K19: Mar 24 | L19: Jun 24 | M19: Sep 24 | N19: Dec 24 | O19: Mar 25 | P19: Jun 25 | Q19: Set 25 | R19: Dic 25 | S19: Mar 26 | T19: 2026-06-01
B20: BCP Stand-alone | C20: 86873045 | D20: 86420556 | E20: 86580953 | F20: 84601735 | G20: 81726201 | H20: 80470327 | I20: 80402083 | J20: 80376260 | K20: 78691382 | L20: 80749285 | M20: 79916041 | N20: 81743682 | O20: 79701968 | P20: 81216846 | Q20: 82676283 | R20: 85270328 | S20: 86315815 | T20: 90203257
B21: Mibanco | C21: 13955856 | D21: 14408526 | E21: 14202897 | F21: 14068689 | G21: 13985027 | H21: 14179291 | I21: 13543475 | J21: 13251936 | K21: 13065072 | L21: 12691425 | M21: 12106493 | N21: 12227419 | O21: 12514701 | P21: 12776028 | Q21: 13087675 | R21: 13598085 | S21: 14071472 | T21: 14690456
B22: Mibanco Colombia | C22: 0 | D22: 0 | E22: 0 | F22: 0 | G22: 0 | H22: 0 | I22: 0 | J22: 0 | K22: 0 | L22: 0 | M22: 0 | N22: 0 | O22: 0 | P22: 0 | Q22: 0 | R22: 0 | S22: 0 | T22: 0
B23: Bolivia | C23: 0 | D23: 0 | E23: 0 | F23: 0 | G23: 0 | H23: 0 | I23: 0 | J23: 0 | K23: 0 | L23: 0 | M23: 0 | N23: 0 | O23: 0 | P23: 0 | Q23: 0 | R23: 0 | S23: 0 | T23: 0
B24: ASB | C24: 29511 | D24: 3923 | E24: 5939 | F24: 0 | G24: 0 | H24: 0 | I24: 0 | J24: 0 | K24: 0 | L24: 0 | M24: 0 | N24: 0 | O24: 0 | P24: 0 | Q24: 0 | R24: 0 | S24: 0 | T24: 0
B25: Others 1/ | C25: -2225591 | D25: -2240265 | E25: -2292479 | F25: -1801347 | G25: -1475749 | H25: -1269077 | I25: -997799 | J25: -582770 | K25: -766147 | L25: -755615 | M25: -924824 | N25: -816053 | O25: -572596 | P25: =-882853+1 -> -882852 | Q25: -532585 | R25: -635983 | S25: =-1039521+1 -> -1039520 | T25: -960696
B26: BAP's total loans | C26: 98632821 | D26: 98592740 | E26: 98497310 | F26: 96869077 | G26: 94235479 | H26: 93380541 | I26: 92947759 | J26: 93045426 | K26: 90990307 | L26: 92685095 | M26: 91097710 | N26: 93155048 | O26: 91644073 | P26: =+SUM(P20:P25) -> 93110022 | Q26: =+SUM(Q20:Q25) -> 95231373 | R26: =+SUM(R20:R25) -> 98232430 | S26: =+SUM(S20:S25) -> 99347767 | T26: =+SUM(T20:T25) -> 103933017
B28: (*) For consolidation purposes. Loans generated in Foreign Currency (FC) are converted into Local Currency (LC).
B29: 1/ Includes eliminations for related-party transactions.
B31: Total Loans - Foreign Currency (FC) (millions)*
C33: Mar 22 | D33: Jun 22 | E33: Sep 22 | F33: Dec 22 | G33: Mar 23 | H33: Jun 23 | I33: Sep 23 | J33: Dec 23 | K33: Mar 24 | L33: Jun 24 | M33: Sep 24 | N33: Dec 24 | O33: Mar 25 | P33: Jun 25 | Q33: Set 25 | R33: Dic 25 | S33: Mar 26 | T33: 2026-06-01
B34: BCP Stand-alone | C34: 33667958 | D34: 39114653 | E34: 39595648 | F34: 39105865 | G34: 38025198 | H34: 37141368 | I34: 39232968 | J34: 39048873 | K34: 36664352 | L34: 40306566 | M34: 37770982 | N34: 38827426 | O34: 39676630 | P34: 39782128 | Q34: 40413034 | R34: 39930244 | S34: 41826347 | T34: 44003392
B35: Mibanco | C35: 28049 | D35: 26372 | E35: 25334 | F35: 20382 | G35: 21127 | H35: 19399 | I35: 18839 | J35: 17082 | K35: 15071 | L35: 14180 | M35: 12460 | N35: 11752 | O35: 10398 | P35: 9221 | Q35: 8181 | R35: 8989 | S35: 8469 | T35: 7656
B36: Mibanco Colombia | C36: 1167998 | D36: 1194203 | E36: 1247814 | F36: 1227903 | G36: 1313421 | H36: 1475285 | I36: 1661788 | J36: 1737094 | K36: 1780987 | L36: 1757188 | M36: 1773682 | N36: 1794549 | O36: 1903973 | P36: 1976163 | Q36: 2158454 | R36: 2314992 | S36: 2617982 | T36: 2951366
B37: Bolivia | C37: 8890948 | D37: 9208057 | E37: 9642982 | F37: 9253908 | G37: 9362120 | H37: 9087400 | I37: 9598393 | J37: 9401800 | K37: 9739036 | L37: 10228586 | M37: 9829567 | N37: 9938971 | O37: 6293810 | P37: 4189040 | Q37: 5505442 | R37: 7553093 | S37: =7319043+1 -> 7319044 | T37: 6583725
B38: ASB | C38: 2285709 | D38: 2355840 | E38: 2478874 | F38: 2446066 | G38: 2410179 | H38: 2220582 | I38: 2175830 | J38: 2150005 | K38: 2002853 | L38: 1953028 | M38: 1927802 | N38: 1801615 | O38: 1776970 | P38: 1558925 | Q38: 1421687 | R38: 1462296 | S38: 1459174 | T38: 1428180
B39: Others 1/ | C39: -51970 | D39: -121681 | E39: -95760 | F39: -296827 | G39: -201811 | H39: -479026 | I39: -506317 | J39: -424229 | K39: -394523 | L39: 1903 | M39: 156582 | N39: 202912 | O39: -109208 | P39: 336480 | Q39: 14083 | R39: 482910 | S39: 245902 | T39: 527061
B40: BAP's total loans | C40: 45988692 | D40: 51777444 | E40: 52894892 | F40: 51757297 | G40: 50930234 | H40: 49465008 | I40: 52181501 | J40: 51930625 | K40: 49807776 | L40: 54261451 | M40: 51471075 | N40: 52577225 | O40: 49552573 | P40: 47851957 | Q40: 49520881 | R40: 51752524 | S40: =+SUM(S34:S39) -> 53476918 | T40: =+SUM(T34:T39) -> 55501380
B42: (*) For consolidation purposes. Loans generated in Foreign Currency (FC) are converted into Local Currency (LC).
B43: 1/ Includes eliminations for related-party transactions.

Sheet 1.2.Portfolio Quality
B1: Back to index
B3: Loan Portfolio Quality and Delinquency Ratios | N3: As of
B4: S/ 000 | C4: Mar 19 | D4: Jun 19 | E4: Sep 19 | F4: Dec 19 | G4: Mar 20 | H4: Jun 20 | I4: Sep 20 | J4: Dec 20 | K4: Mar 21 | L4: Jun 21 | M4: Sep 21 | N4: Dec 21 | O4: Mar 22 | P4: Jun 22 | Q4: Sep 22 | R4: Dec 22 | S4: Mar 23 | T4: Jun 23 | U4: Sep 23 | V4: Dec 23 | W4: Mar 24 | X4: Jun 24 | Y4: Sep 24 | Z4: Dic 24 | AA4: Mar 25 | AB4: Jun 25 | AC4: Set 25 | AD4: Dic 25 | AE4: Mar 26 | AF4: Jun 26
B5: Total loans (Quarter-end balance) | C5: 108350384 | D5: 109381123 | E5: 112209990 | F5: 115609679 | G5: 120708515 | H5: 132741720 | I5: 136148711 | J5: 137659885 | K5: 137031239 | L5: 143091752 | M5: 146551226 | N5: 147597412 | O5: 144621513 | P5: 150370184 | Q5: 151392202 | R5: 148626374 | S5: 145165713 | T5: 142845549 | U5: 145129260 | V5: 144976051 | W5: 140798083 | X5: 146946546 | Y5: 142568785 | Z5: 145732273 | AA5: 141196646 | AB5: 140961978 | AC5: 144752254 | AD5: 149984954 | AE5: 152824685 | AF5: 159434397
B6: Write-offs | C6: 433231.3131 | D6: 407347.6624 | E6: 456932.2004 | F6: 509571.0037 | G6: 519866.1316 | H6: 42103.61353 | I6: 20248.95308 | J6: 509000.6067 | K6: 767136 | L6: 742211.326 | M6: 670273 | N6: 683180.5619 | O6: 378093.0446 | P6: 413501 | Q6: 837923.6355 | R6: 754326.007 | S6: 677147.5961 | T6: 682153.994 | U6: 1018084 | V6: 879400.5914 | W6: 950433.4759 | X6: 994556.0417 | Y6: 923946.1365 | Z6: 896713.663 | AA6: 716584.9066 | AB6: 581373.24 | AC6: 713933.3121 | AD6: 656330.5013 | AE6: 852041.2534 | AF6: 535949.0396
B7: Internal overdue loans (IOLs) | C7: 3153187 | D7: 3285279 | E7: 3346389 | F7: 3297791 | G7: 3579504 | H7: 3842830 | I7: 4142844 | J7: 4675731 | K7: 4868483 | L7: 5054353 | M7: 5473685 | N7: 5551258 | O7: 5872999 | P7: 6105256 | Q7: 6250131 | R7: 5939744 | S7: 5789497 | T7: 5979395 | U7: 6406345 | V7: 6126487 | W7: 6205024 | X7: 6230761 | Y7: 6026341 | Z7: 5423212 | AA7: 5206395 | AB7: 5044212 | AC7: 4953303 | AD7: 4813536 | AE7: 4475120 | AF7: 4504185
B8: Internal overdue loans over 90-days | C8: 2263777.409 | D8: 2431144.369 | E8: 2539750.518 | F8: 2480671.502 | G8: 2572477.642 | H8: 3112919.914 | I8: 3442908.117 | J8: 3709864.585 | K8: 3789286 | L8: 3817463.345 | M8: 4051717 | N8: 4203671.36 | O8: 4424384.306 | P8: 4596259 | Q8: 4667607.56 | R8: 4620461.174 | S8: 4270131 | T8: 4562341 | U8: 4874960 | V8: 4681343 | W8: 4702733 | X8: 4760837 | Y8: 4851591 | Z8: 4383795 | AA8: 4232843 | AB8: 4171379 | AC8: 4142080 | AD8: 4073183 | AE8: 3690265 | AF8: 3657815
B9: Refinanced loans | C9: 1278459 | D9: 1212669 | E9: 1225691 | F9: 1182797 | G9: 1125394 | H9: 1179031 | I9: 1539484 | J9: 1664626 | K9: 1951855 | L9: 1800076 | M9: 1798965 | N9: 1799541 | O9: 1714074 | P9: 1686186 | Q9: 1808982 | R9: 2098748 | S9: 2121068 | T9: 2084124 | U9: 2253098 | V9: 2406058 | W9: 2557749 | X9: 2555135 | Y9: 2333814 | Z9: 2239445 | AA9: 2001282 | AB9: 1947709 | AC9: 2016442 | AD9: 2007364 | AE9: 2048877 | AF9: 1953602
B10: Non-performing loans (NPLs) | C10: 4431646 | D10: 4497948 | E10: 4572080 | F10: 4480588 | G10: 4704898 | H10: 5021861 | I10: 5682328 | J10: 6340357 | K10: 6820338 | L10: 6854429 | M10: 7272650 | N10: 7350799 | O10: 7587073 | P10: 7791442 | Q10: 8059113 | R10: 8038492 | S10: 7910565 | T10: 8063519 | U10: 8659443 | V10: 8532545 | W10: 8762773 | X10: 8785896 | Y10: 8360155 | Z10: 7662657 | AA10: 7207677 | AB10: 6991921 | AC10: 6969745 | AD10: 6820900 | AE10: 6523997 | AF10: 6457787
B11: IOL ratio | C11: 0.02910176119 | D11: 0.03003515515 | E11: 0.02982255858 | F11: 0.0285 | G11: 0.02965411346 | H11: 0.02894967761 | I11: 0.03042881544 | J11: 0.03396582091 | K11: 0.03552827104 | L11: 0.03532246219 | M11: 0.03734997754 | N11: 0.03761080851 | O11: 0.04060944239 | P11: 0.04060150648 | Q11: 0.04128436549 | R11: 0.03996426637 | S11: 0.03988198646 | T11: 0.04185916216 | U11: 0.04414233904 | V11: 0.04225861415 | W11: 0.04407037275 | X11: 0.04240154784 | Y11: 0.04226970862 | Z11: 0.03721352785 | AA11: 0.03687336171 | AB11: 0.03578420274 | AC11: 0.03421917699 | AD11: 0.03209345919 | AE11: 0.0292827039 | AF11: 0.02825102415
B12: IOL over 90-days ratio | C12: 0.02089311847 | D12: 0.02222636139 | E12: 0.02263390736 | F12: 0.02145729945 | G12: 0.02131148446 | H12: 0.02345095358 | I12: 0.02528784953 | J12: 0.02694949647 | K12: 0.02765271647 | L12: 0.02667843039 | M12: 0.02764710409 | N12: 0.02848065764 | O12: 0.03059285036 | P12: 0.03056629232 | Q12: 0.03083122841 | R12: 0.03108776087 | S12: 0.02941556179 | T12: 0.03193897907 | U12: 0.03359046963 | V12: 0.03229045741 | W12: 0.03340054708 | X12: 0.03239842738 | Y12: 0.03402982637 | Z12: 0.03008115436 | AA12: 0.02997835374 | AB12: 0.02959222805 | AC12: 0.02861496029 | AD12: 0.02715727739 | AE12: 0.02414704797 | AF12: 0.02294244573
B13: NPL ratio | C13: 0.04090106409 | D13: 0.04112179393 | E13: 0.04074574822 | F13: 0.0388 | G13: 0.03897734969 | H13: 0.03783182107 | I13: 0.04173618654 | J13: 0.04605813088 | K13: 0.04977213991 | L13: 0.04790233472 | M13: 0.04962530986 | N13: 0.04980303449 | O13: 0.05246157949 | P13: 0.05181507259 | Q13: 0.05323334289 | R13: 0.05408523254 | S13: 0.05449334307 | T13: 0.05644921425 | U13: 0.05966710641 | V13: 0.05885485872 | W13: 0.06223645105 | X13: 0.0597897415 | Y13: 0.05863944902 | Z13: 0.05258037113 | AA13: 0.05104708365 | AB13: 0.04960146771 | AC13: 0.04814947476 | AD13: 0.04547722834 | AE13: 0.04268941892 | AF13: 0.0405043524
B15: Loan Portfolio Quality and Delinquency Ratios | N15: As of
B16: S/ 000 | C16: Mar 19 | D16: Jun 19 | E16: Sep 19 | F16: Dec 19 | G16: Mar 20 | H16: Jun 20 | I16: Sep 20 | J16: Dec 20 | K16: Mar 21 | L16: Jun 21 | M16: Sep 21 | N16: Dec 21 | O16: Mar 22 | P16: Jun 22 | Q16: Sep 22 | R16: Dec 22 | S16: Mar 23 | T16: Jun 23 | U16: Sep 23 | V16: Dec 23 | W16: Mar 24 | X16: Jun 24 | Y16: Sep 24 | Z16: Dic 24 | AA16: Mar 25 | AB16: Jun 25 | AC16: Set 25 | AD16: Dic 25 | AE16: Mar 26 | AF16: Jun 26
B17: Total loans (Quarter-end balance) | C17: 108350384 | D17: 109381123 | E17: 112209990 | F17: 115609679 | G17: 120708515 | H17: 132741720 | I17: 136148711 | J17: 137659885 | K17: 137031239 | L17: 143091752 | M17: 146551226 | N17: 147597412 | O17: 144621513 | P17: 150370184 | Q17: 151392202 | R17: 148626374 | S17: 145165713 | T17: 142845549 | U17: 145129260 | V17: 144976051 | W17: 140798083 | X17: 146946546 | Y17: 142568785 | Z17: 145732273 | AA17: 141196646 | AB17: 140961978 | AC17: 144752254 | AD17: 149984954 | AE17: 152824685 | AF17: 159434397
B18: Allowance for loan losses | C18: 4862801 | D18: 4878150 | E18: 4977809 | F18: 5123962 | G18: 5931772 | H18: 8412544 | I18: 9656383 | J18: 9898760 | K18: 9744298 | L18: 9391151 | M18: 9077449 | N18: 8477308 | O18: 8262383 | P18: 8306500 | Q18: 8030104 | R18: 7872402 | S18: 7915350 | T18: 7956184 | U18: 8056216 | V18: 8277916 | W18: 8190343 | X18: 8350024 | Y18: 8250023 | Z18: 7994977 | AA18: 7742792 | AB18: 7658595 | AC18: 7674040 | AD18: 7669950 | AE18: 7425425 | AF18: 7575313
B19: Non-performing loans (NPLs) | C19: 4431646 | D19: 4497948 | E19: 4572080 | F19: 4480588 | G19: 4704898 | H19: 5021861 | I19: 5682328 | J19: 6340357 | K19: 6820338 | L19: 6854429 | M19: 7272650 | N19: 7350799 | O19: 7587073 | P19: 7791442 | Q19: 8059113 | R19: 8038492 | S19: 7910565 | T19: 8063519 | U19: 8659443 | V19: 8532545 | W19: 8762773 | X19: 8785896 | Y19: 8360155 | Z19: 7662657 | AA19: 7207677 | AB19: 6991921 | AC19: 6969745 | AD19: 6820900 | AE19: 6523997 | AF19: 6457787
B20: Allowance for loan losses over Total loans | C20: =C18/C17 -> 0.0448803301 | D20: 0.04459773191 | E20: 0.04436154927 | F20: 0.04432121985 | G20: 0.04914128883 | H20: 0.06337528247 | I20: 0.07092526201 | J20: 0.07190736793 | K20: 0.07111004813 | L20: 0.06563027476 | M20: 0.06194045077 | N20: 0.05743534311 | O20: 0.05713107842 | P20: 0.0552403394 | Q20: 0.053041728 | R20: 0.05296773236 | S20: 0.0545263054 | T20: 0.05569780827 | U20: 0.05551062549 | V20: 0.05709850657 | W20: 0.05817084172 | X20: 0.05682354725 | Y20: 0.05786696576 | Z20: 0.05486071709 | AA20: 0.05483693997 | AB20: 0.05433092745 | AC20: 0.05301499485 | AD20: 0.0511381295 | AE20: 0.04858786393 | AF20: 0.04751366796
B21: Coverage ratio of NPLs | C21: 1.097290036 | D21: 1.084527878 | E21: 1.088740573 | F21: 1.144 | G21: 1.260765271 | H21: 1.675184558 | I21: 1.699370927 | J21: 1.5612307 | K21: 1.428711891 | L21: 1.370085094 | M21: 1.248162499 | N21: 1.153249871 | O21: 1.089007974 | P21: 1.066105607 | Q21: 0.9964004724 | R21: 0.9793381644 | S21: 1.000604887 | T21: 0.9866888142 | U21: 0.930338822 | V21: 0.9701579072 | W21: 0.9346747884 | X21: 0.9503895789 | Y21: 0.98682656 | Z21: 1.043368769 | AA21: 1.074242367 | AB21: 1.095349189 | AC21: 1.101050325 | AD21: 1.124477708 | AE21: 1.138171124 | AF21: 1.173050923

Sheet 2.Deposits
B1: Back to index
B3: Deposits | N3: As of
B5: S/ 000 | C5: Mar 19 | D5: Jun 19 | E5: Sep 19 | F5: Dec 19 | G5: Mar 20 | H5: Jun 20 | I5: Sep 20 | J5: Dec 20 | K5: Mar 21 | L5: Jun 21 | M5: Sep 21 | N5: Dec 21 | O5: Mar 22 | P5: Jun 22 | Q5: Sep 22 | R5: Dec 22 | S5: Mar 23 | T5: Jun 23 | U5: Sep 23 | V5: Dec 23 | W5: Mar 24 | X5: Jun 24 | Y5: Sep 24 | Z5: Dic 24 | AA5: Mar 25 | AB5: Jun 25 | AC5: Set 25 | AD5: Dic 25 | AE5: Mar 26 | AF5: Jun 26
B6: Demand deposits | C6: 31695558 | D6: 29863335 | E6: 32626001 | F6: 34213188 | G6: 38746287 | H6: 48926791 | I6: 53574151 | J6: 54530356 | K6: 58074996 | L6: 59998764 | M6: 61112084 | N6: 58629661 | O6: 56923859 | P6: 51554195 | Q6: 53512524 | R6: 48467247 | S6: 47483662 | T6: 43930450 | U6: 45120127 | V6: 48229322 | W6: 47384819 | X6: 50657031 | Y6: 53149144 | Z6: 52590952 | AA6: =53992480-1 -> 53992479 | AB6: =+AB16+AB26 -> 49237039 | AC6: =+AC16+AC26 -> 50930173 | AD6: =+AD16+AD26 -> 57051969 | AE6: =+AE16+AE26 -> 62847705 | AF6: =+AF16+AF26 -> 64854351
B7: Saving deposits | C7: 32968147 | D7: 32604309 | E7: 33681765 | F7: 35179770 | G7: 37872908 | H7: 42562229 | I7: 45999882 | J7: 50069129 | K7: 51013689 | L7: 52687270 | M7: 54365781 | N7: 56945262 | O7: 56454479 | P7: 54936107 | Q7: 55154337 | R7: 54769045 | S7: 53418288 | T7: 49456054 | U7: 49395543 | V7: 52375813 | W7: 52238357 | X7: 53015745 | Y7: 54474960 | Z7: 59757825 | AA7: 59969559 | AB7: =+AB17+AB27 -> 59086275 | AC7: =+AC17+AC27 -> 60580840 | AD7: 67811945 | AE7: =+AE17+AE27 -> 71249909 | AF7: 70661922
B8: Time deposits | C8: 31399811 | D8: 32472216 | E8: 33194331 | F8: 34034037 | G8: 35045214 | H8: 30019871 | I8: 29785440 | J8: 29324090 | K8: 31389760 | L8: 30302103 | M8: 31601351 | N8: 29251493.19 | O8: 30029261 | P8: 35923266 | Q8: 39372047 | R8: 38897010 | S8: 43194573 | T8: 45107429 | U8: 49213763 | V8: 42484664 | W8: 43775526 | X8: 43504883 | Y8: 42514849 | Z8: 45217785 | AA8: 39779546 | AB8: =+AB18+AB28 -> 42361180 | AC8: 43115987 | AD8: 41344255 | AE8: =+AE18+AE28 -> 40877361 | AF8: 42306886
B9: Severance indemnity deposits | C9: 7074344 | D9: 7609448 | E9: 7205449 | F9: 7897199 | G9: 7204922 | H9: 7441044 | I9: 7127617 | J9: 7736747 | K9: 7457440 | L9: 5456510 | M9: 4681224 | N9: 4017065 | O9: 3750593 | P9: 4155932 | Q9: 3745597 | R9: 3824629 | S9: 3322691 | T9: 3545001 | U9: 3245358 | V9: 3185603 | W9: 3086767 | X9: 3358408 | Y9: 2989705 | Z9: 2996020 | AA9: 2921196 | AB9: =+AB19+AB29 -> 3268583 | AC9: 2956446 | AD9: 3192565 | AE9: =+AE19+AE29 -> 2987508 | AF9: 3415387
B10: Interest payable | C10: 589397 | D10: 607736 | E10: 684174 | F10: 681191 | G10: 694214 | H10: 714397 | I10: 715584 | J10: 705180 | K10: 690454 | L10: 717156 | M10: 787928 | N10: 753064 | O10: 757772 | P10: =871075+1 -> 871076 | Q10: 1007509 | R10: 1062856 | S10: 1204086 | T10: 1348783 | U10: 1496744 | V10: 1429592 | W10: 1371658 | X10: 1435917 | Y10: 1306793 | Z10: 1279484 | AA10: 956302 | AB10: =+AB20+AB30 -> 770257 | AC10: 847009 | AD10: 1000899 | AE10: =+AE20+AE30 -> 918183 | AF10: 882220
B11: Total Deposits | C11: 103727257 | D11: 103157044 | E11: 107391720 | F11: 112005385 | G11: 119563545 | H11: 129664332 | I11: 137202674 | J11: 142365502 | K11: 148626339 | L11: 149161803 | M11: 152548368 | N11: =+SUM(N6:N10) -> 149596545.2 | O11: 147915964 | P11: =+SUM(P6:P10) -> 147440576 | Q11: 152792014 | R11: 147020787 | S11: 148623300 | T11: 143387717 | U11: 148471535 | V11: 147704994 | W11: 147857127 | X11: 151971984 | Y11: 154435451 | Z11: =+SUM(Z6:Z10) -> 161842066 | AA11: 157619082 | AB11: =+SUM(AB6:AB10) -> 154723334 | AC11: =+SUM(AC6:AC10) -> 158430455 | AD11: =+SUM(AD6:AD10) -> 170401633 | AE11: =+SUM(AE6:AE10) -> 178880666 | AF11: =+SUM(AF6:AF10) -> 182120766
B13: Deposits Local currency (LC) | N13: As of
B15: S/ 000 | C15: Mar 19 | D15: Jun 19 | E15: Sep 19 | F15: Dec 19 | G15: Mar 20 | H15: Jun 20 | I15: Sep 20 | J15: Dec 20 | K15: Mar 21 | L15: Jun 21 | M15: Sep 21 | N15: Dec 21 | O15: Mar 22 | P15: Jun 22 | Q15: Sep 22 | R15: Dec 22 | S15: Mar 23 | T15: Jun 23 | U15: Sep 23 | V15: Dec 23 | W15: Mar 24 | X15: Jun 24 | Y15: Sep 24 | Z15: Dic 24 | AA15: Mar 25 | AB15: Jun 25 | AC15: =+AC5 -> Set 25 | AD15: =+AD5 -> Dic 25 | AE15: Mar 26 | AF15: =+AF5 -> Jun 26
B16: Demand deposits | C16: 13679452 | D16: 12118519 | E16: 13742673 | F16: 14882670 | G16: 16472557 | H16: 25547311 | I16: 27553511 | J16: 27879297 | K16: 30090290 | L16: 26575542 | M16: 27268130 | N16: 23765621 | O16: 23847412 | P16: 21582925 | Q16: 25382542 | R16: 21756003 | S16: 22172891 | T16: 19922644 | U16: 21078373 | V16: 22398876 | W16: 21936934 | X16: 25332498 | Y16: 26413801 | Z16: 25989592 | AA16: 27302485 | AB16: =23258803-1 -> 23258802 | AC16: 23588756 | AD16: 28563229 | AE16: 32858114 | AF16: 29691982
B17: Saving deposits | C17: 17724240 | D17: 17595806 | E17: 18343768 | F17: 19599971 | G17: 21405312 | H17: 24857660 | I17: 27316124 | J17: 29944969 | K17: 29870750 | L17: 29281115 | M17: 30933633 | N17: 32409764 | O17: 31507371 | P17: 29041495 | Q17: 29935220 | R17: 30331360 | S17: 29842595 | T17: 27482976 | U17: 27818752 | V17: 30280631 | W17: 30239771 | X17: 30927801 | Y17: 32804188 | Z17: 36617684 | AA17: 36866591 | AB17: =36205366-1 -> 36205365 | AC17: 37433870 | AD17: 43630011 | AE17: 45557046 | AF17: 44506876
B18: Time deposits | C18: 16333452 | D18: 15730358 | E18: 15806739 | F18: 16361373 | G18: 17419054 | H18: 13527106 | I18: 13497549 | J18: 12727283 | K18: 11773164 | L18: 14573547 | M18: 13822647 | N18: 13104285 | O18: 14151299 | P18: 17402055 | Q18: 18032869 | R18: 18809680 | S18: 20102514 | T18: 22412376 | U18: 24126852 | V18: 19769855 | W18: 19780646 | X18: 19909174 | Y18: 18552721 | Z18: 20995336 | AA18: 20818609 | AB18: 22584651 | AC18: 24184335 | AD18: 22963178 | AE18: 21315517 | AF18: 24313943
B19: Severance indemnity deposits | C19: 4842610 | D19: 5352412 | E19: 5005782 | F19: 5707854 | G19: 5061604 | H19: 5214721 | I19: 4958733 | J19: 5512943 | K19: 5242284 | L19: 3764070 | M19: 3133021 | N19: 2733699 | O19: 2610271 | P19: 2915255 | Q19: 2543197 | R19: 2669127 | S19: 2332696 | T19: 2558073 | U19: 2301764 | V19: 2295879 | W19: 2228488 | X19: 2452346 | Y19: 2191289 | Z19: 2229080 | AA19: 2192955 | AB19: 2517987 | AC19: 2273306 | AD19: 2497308 | AE19: 2309960 | AF19: 2695924
B20: Interest payable | C20: 194443 | D20: 198558 | E20: 230014 | F20: 217880 | G20: 207273 | H20: 178332 | I20: 158113 | J20: 114881 | K20: 90073 | L20: 72552 | M20: 64694 | N20: 73103 | O20: 98046 | P20: 146129 | Q20: 208514 | R20: 275247 | S20: 369768 | T20: 466511 | U20: 540974 | V20: 476953 | W20: 402989 | X20: 341640 | Y20: 275483 | Z20: 262525 | AA20: 280865 | AB20: 279182 | AC20: 236236 | AD20: 194672 | AE20: 186145 | AF20: 223402
B21: Total Deposits | C21: 52774197 | D21: 50995653 | E21: 53128976 | F21: 56769748 | G21: 60565800 | H21: 69325130 | I21: 73484030 | J21: 76179373 | K21: 77066561 | L21: 74266826 | M21: 75222125 | N21: =+SUM(N16:N20) -> 72086472 | O21: =+SUM(O16:O20) -> 72214399 | P21: 71087859 | Q21: 76102342 | R21: 73841417 | S21: 74820464 | T21: 72842580 | U21: 75866715 | V21: 75222194 | W21: 74588828 | X21: 78963459 | Y21: 80237482 | Z21: 86094217 | AA21: 87461505 | AB21: 84845987 | AC21: 87716503 | AD21: 97848398 | AE21: 102226782 | AF21: 101432127
B23: Deposits Foreign currency (FC) | N23: As of
B25: S/ 000 | C25: Mar 19 | D25: Jun 19 | E25: Sep 19 | F25: Dec 19 | G25: Mar 20 | H25: Jun 20 | I25: Sep 20 | J25: Dec 20 | K25: Mar 21 | L25: Jun 21 | M25: Sep 21 | N25: Dec 21 | O25: Mar 22 | P25: Jun 22 | Q25: Sep 22 | R25: Dec 22 | S25: Mar 23 | T25: Jun 23 | U25: Sep 23 | V25: Dec 23 | W25: Mar 24 | X25: Jun 24 | Y25: Sep 24 | Z25: Dic 24 | AA25: Mar 25 | AB25: Jun 25 | AC25: =+AC15 -> Set 25 | AD25: =+AD15 -> Dic 25 | AE25: Mar 26 | AF25: =+AF15 -> Jun 26
B26: Demand deposits | C26: 18016107 | D26: 17744817 | E26: 18883329 | F26: 19330518 | G26: 22273732 | H26: 23379480 | I26: 26020640 | J26: 26651060 | K26: 27984706 | L26: 33423222 | M26: 33843954 | N26: 34864040 | O26: 33076447 | P26: 29971270 | Q26: 28129982 | R26: 26711244 | S26: 25310771 | T26: 24007806 | U26: 24041754 | V26: 25830447 | W26: 25447885 | X26: 25324533 | Y26: 26735343 | Z26: 26601360 | AA26: 26689995 | AB26: =25978236+1 -> 25978237 | AC26: 27341417 | AD26: 28488740 | AE26: 29989591 | AF26: 35162369
B27: Saving deposits | C27: 15243906 | D27: 15008502 | E27: 15337997 | F27: 15579799 | G27: 16467595 | H27: 17704569 | I27: 18683758 | J27: 20124160 | K27: 21142939 | L27: 23406155 | M27: 23432148 | N27: 24535498 | O27: 24947108 | P27: 25894612 | Q27: 25219117 | R27: 24437685 | S27: 23575693 | T27: 21973078 | U27: 21576791 | V27: 22095182 | W27: 21998586 | X27: 22087944 | Y27: 21670772 | Z27: 23140141 | AA27: 23102968 | AB27: =22880909+1 -> 22880910 | AC27: 23146970 | AD27: 24181934 | AE27: 25692863 | AF27: 26155046
B28: Time deposits | C28: 15066360 | D28: 16741858 | E28: 17387592 | F28: 17672664 | G28: 17626159 | H28: 16492765 | I28: 16287891 | J28: 16596807 | K28: 19616596 | L28: 15728556 | M28: 17778704 | N28: 16147208 | O28: 15877962 | P28: 18521211 | Q28: 21339178 | R28: 20087330 | S28: 23092059 | T28: 22695053 | U28: 25086911 | V28: 22714809 | W28: 23994880 | X28: 23595709 | Y28: 23962128 | Z28: 24222449 | AA28: 18960937 | AB28: 19776529 | AC28: 18931652 | AD28: 18381077 | AE28: 19561844 | AF28: 17992943
B29: Severance indemnity deposits | C29: 2231734 | D29: 2257036 | E29: 2199667 | F29: 2189345 | G29: 2143318 | H29: 2226323 | I29: 2168884 | J29: 2223804 | K29: 2215156 | L29: 1692440 | M29: 1548203 | N29: 1283366 | O29: 1140322 | P29: 1240677 | Q29: 1202400 | R29: 1155502 | S29: 989995 | T29: 986928 | U29: 943594 | V29: 889724 | W29: 858279 | X29: 906062 | Y29: 798416 | Z29: 766940 | AA29: 728241 | AB29: 750596 | AC29: 683140 | AD29: 695257 | AE29: 677548 | AF29: 719463
B30: Interest payable | C30: 394953 | D30: 409178 | E30: 454159 | F30: 463311 | G30: 486941 | H30: 536065 | I30: 557471 | J30: 590299 | K30: 600381 | L30: 644604 | M30: 723235 | N30: 679961 | O30: 659726 | P30: 724947 | Q30: 798995 | R30: 787609 | S30: 834318 | T30: 882272 | U30: 955770 | V30: 952638 | W30: 968669 | X30: 1094277 | Y30: 1031310 | Z30: 1016959 | AA30: 675436 | AB30: 491075 | AC30: 610773 | AD30: 806227 | AE30: 732038 | AF30: 658818
B31: Total Deposits | C31: 50953060 | D31: 52161391 | E31: 54262744 | F31: 55235637 | G31: 58997745 | H31: 60339202 | I31: 63718644 | J31: 66186130 | K31: 71559778 | L31: 74894977 | M31: 77326244 | N31: 77510073 | O31: 75701565 | P31: =+SUM(P26:P30) -> 76352717 | Q31: =+SUM(Q26:Q30) -> 76689672 | R31: 73179370 | S31: 73802836 | T31: =+SUM(T26:T30) -> 70545137 | U31: =+SUM(U26:U30) -> 72604820 | V31: =+SUM(V26:V30) -> 72482800 | W31: =+SUM(W26:W30) -> 73268299 | X31: =+SUM(X26:X30) -> 73008525 | Y31: =+SUM(Y26:Y30) -> 74197969 | Z31: =+SUM(Z26:Z30) -> 75747849 | AA31: =+SUM(AA26:AA30) -> 70157577 | AB31: =+SUM(AB26:AB30) -> 69877347 | AC31: =+SUM(AC26:AC30) -> 70713952 | AD31: =+SUM(AD26:AD30) -> 72553235 | AE31: =+SUM(AE26:AE30) -> 76653884 | AF31: =+SUM(AF26:AF30) -> 80688639
O33: =+O21+O31-'12.5.1.Credicorp Consolidated '!AX44 -> 0 | P33: =+P21+P31-'12.5.1.Credicorp Consolidated '!AY44 -> 0 | Q33: =+Q21+Q31-'12.5.1.Credicorp Consolidated '!AZ44 -> 0 | R33: =+R21+R31-'12.5.1.Credicorp Consolidated '!BA44 -> 0 | S33: =+S21+S31-'12.5.1.Credicorp Consolidated '!BB44 -> 0 | T33: =+T21+T31-'12.5.1.Credicorp Consolidated '!BC44 -> 0 | U33: =+U21+U31-'12.5.1.Credicorp Consolidated '!BD44 -> 0 | V33: =+V21+V31-'12.5.1.Credicorp Consolidated '!BE44 -> 0 | W33: =+W21+W31-'12.5.1.Credicorp Consolidated '!BF44 -> 0 | X33: =+X21+X31-'12.5.1.Credicorp Consolidated '!BG44 -> 0 | Y33: =+Y21+Y31-'12.5.1.Credicorp Consolidated '!BH44 -> 0 | Z33: =+Z21+Z31-'12.5.1.Credicorp Consolidated '!BI44 -> 0 | AA33: =+AA21+AA31-'12.5.1.Credicorp Consolidated '!BJ44 -> 0 | AB33: =+AB21+AB31-'12.5.1.Credicorp Consolidated '!BK44 -> 0 | AC33: =+AC21+AC31-'12.5.1.Credicorp Consolidated '!BL44 -> 0 | AD33: =+AD21+AD31-'12.5.1.Credicorp Consolidated '!BM44 -> 0 | AE33: =+AE21+AE31-'12.5.1.Credicorp Consolidated '!BN44 -> 0 | AF33: =+AF21+AF31-'12.5.1.Credicorp Consolidated '!BO44 -> 0

Sheet 3.1.IEA
B1: Back to index
B3: (Under IFRS 4) | T3: (Under IFRS 17)
B4: Interest Earning Assets | C4: As of | T4: Interest Earning Assets | Y4: As of
B5: S/000 | T5: S/000
C6: Mar 19 | D6: Jun 19 | E6: Sep 19 | F6: Dec 19 | G6: Mar 20 | H6: Jun 20 | I6: Sep 20 | J6: Dec 20 | K6: Mar 21 | L6: Jun 21 | M6: Sep 21 | N6: Dec 21 | O6: Mar 22 | P6: Jun 22 | Q6: Sep 22 | R6: Dec 22 | U6: Mar 22 | V6: Jun 22 | W6: Sep 22 | X6: Dec 22 | Y6: Mar 23 | Z6: Jun 23 | AA6: Sep 23 | AB6: Dec 23 | AC6: Mar 24 | AD6: Jun 24 | AE6: Sep 24 | AF6: Dic 24 | AG6: Mar 25 | AH6: Jun 25 | AI6: Set 25 | AJ6: Dic 25 | AK6: Mar 26 | AL6: Jun 26
B7: Cash and due from banks | C7: 14816077 | D7: 17298234 | E7: 20004002 | F7: =19697831-26147 -> 19671684 | G7: 19162140 | H7: 29425115 | I7: 28219512 | J7: 28544161 | K7: 31831948 | L7: 29058684 | M7: =36147225-9782 -> 36137443 | N7: 32392465 | O7: 29560067 | P7: =23831465-187376 -> 23644089 | Q7: 29067922 | R7: 26627902 | T7: Cash and due from banks | U7: 29563512 | V7: 23831465 | W7: 29330082 | X7: 26897216 | Y7: 28158941 | Z7: 26036894 | AA7: 24907836 | AB7: 25978577 | AC7: 31134572 | AD7: 27157901 | AE7: 37007966 | AF7: 40119937 | AG7: 37521839 | AH7: 34206000 | AI7: 35862184 | AJ7: 41394817 | AK7: 42979690 | AL7: 40553153
B8: Interbank Funds | C8: 288093 | D8: 190415 | E8: 254175 | F8: =111575+26147 -> 137722 | G8: 376289 | H8: 5403 | I8: 2031 | J8: 32221 | K8: 63301 | L8: 16790 | M8: 9782 | N8: 2943 | O8: 3445 | P8: 187376 | Q8: 262160 | R8: 269314 | T8: Total investments | U8: 48145429 | V8: 45342775 | W8: 46843270 | X8: 45431224 | Y8: 47729504 | Z8: 48035351 | AA8: 51116913 | AB8: 52215528 | AC8: 52555386 | AD8: 52426146 | AE8: 53328873 | AF8: 53825858 | AG8: 55604610 | AH8: 51603447 | AI8: 51186579 | AJ8: 52804942 | AK8: 57505821 | AL8: 58429130
B9: Total investments | C9: 34960529 | D9: 34414427 | E9: 33956227 | F9: 33530531 | G9: 36816653 | H9: 41637044 | I9: 51648986 | J9: 55173742 | K9: 59412732 | L9: 54772644 | M9: 48110456 | N9: =48952499+40+1 -> 48952540 | O9: 48145429 | P9: 45342775 | Q9: 46843270 | R9: 45431054 | T9: Cash collateral, reverse repurchase agreements and securities borrowing | U9: 1516855 | V9: 2046209 | W9: 1586967 | X9: 1101856 | Y9: 1468180 | Z9: 1863243 | AA9: 1513622 | AB9: 1410647 | AC9: 1526232 | AD9: 1777491 | AE9: 1419305 | AF9: 1033177 | AG9: 1835893 | AH9: 4593501 | AI9: 3404639 | AJ9: 2177200 | AK9: 2211576 | AL9: 1185971
B10: Cash collateral, reverse repurchase agreements and securities borrowing | C10: 4026447 | D10: 4445749 | E10: 3903051 | F10: 4288524 | G10: 4424345 | H10: 2920789 | I10: 2821116 | J10: 2394302 | K10: 1769690 | L10: 1616654 | M10: 2555337 | N10: 1766948 | O10: 1516855 | P10: 2046209 | Q10: 1586967 | R10: 1101856 | T10: Total loans | U10: 144621513 | V10: 150370184 | W10: 151392202 | X10: 148626374 | Y10: 145165713 | Z10: 142845549 | AA10: 145129260 | AB10: 144976051 | AC10: 140798083 | AD10: 146946546 | AE10: 142568785 | AF10: 145732273 | AG10: 141196646 | AH10: 140961978 | AI10: 144752254 | AJ10: 149984954 | AK10: 152824685 | AL10: 159434397
B11: Financial assets designated at fair value through profit or loss | C11: 576618 | D11: 588074 | E11: 617387 | F11: 620544 | G11: 559321 | H11: 662634 | I11: 729059 | J11: 823270 | K11: 888420 | L11: 921851 | M11: 981508 | N11: =974664+12418 -> 987082 | O11: 856337 | P11: 765195 | Q11: 767425 | R11: 768801 | T11: Total interest earning assets | U11: 223847309 | V11: 221590633 | W11: 229152521 | X11: 222056670 | Y11: 222522338 | Z11: 218781037 | AA11: 222667631 | AB11: 224580803 | AC11: 226014273 | AD11: 228308084 | AE11: 234324929 | AF11: =+SUM(AF7:AF10) -> 240711245 | AG11: 236158988 | AH11: =+SUM(AH7:AH10) -> 231364926 | AI11: =+SUM(AI7:AI10) -> 235205656 | AJ11: 246361913 | AK11: 255521772 | AL11: =+SUM(AL7:AL10) -> 259602651
B12: Total loans | C12: 108350384 | D12: 109381123 | E12: 112209990 | F12: 115609679 | G12: 120708515 | H12: 132741720 | I12: 136148711 | J12: 137659885 | K12: 137031239 | L12: 143091752 | M12: 146551226 | N12: 147597412 | O12: 144621513 | P12: 150370184 | Q12: 151392202 | R12: 148626374
B13: Total interest earning assets | C13: 163018148 | D13: 166318022 | E13: 170944832 | F13: 173858684 | G13: 182047263 | H13: 207392705 | I13: 219569415 | J13: 224627581 | K13: 230997330 | L13: 229478375 | M13: 234345752 | N13: =+SUM(N7:N12) -> 231699390 | O13: 224703646 | P13: 222355828 | Q13: 229919946 | R13: 222825301
B16: Total Investments | C16: As of | T16: Total Investments | Y16: As of
B17: S/000 | T17: S/000
C18: Mar 19 | D18: Jun 19 | E18: Sep 19 | F18: Dec 19 | G18: Mar 20 | H18: Jun 20 | I18: Sep 20 | J18: Dec 20 | K18: Mar 21 | L18: Jun 21 | M18: Sep 21 | N18: Dec 21 | O18: Mar 22 | P18: Jun 22 | Q18: Sep 22 | R18: Dec 22 | U18: Mar 22 | V18: Jun 22 | W18: Sep 22 | X18: Dec 22 | Y18: Mar 23 | Z18: 2023-06-01 | AA18: Sep 23 | AB18: Dec 23 | AC18: Mar 24 | AD18: Jun 24 | AE18: Sep 24 | AF18: Dic 24 | AG18: Mar 25 | AH18: Jun 25 | AI18: Set 25 | AJ18: Dic 25 | AK18: Mar 26 | AL18: Jun 26
B19: Fair value through profit or loss investments | C19: 4136148 | D19: 4024490 | E19: 3808137 | F19: 3850762 | G19: 4185638 | H19: 5118994 | I19: 6658680 | J19: 6467471 | K19: 8083128 | L19: 6791288 | M19: 6661600 | N19: =5928497+40+1 -> 5928538 | O19: 4628870 | P19: 4187000 | Q19: 4550783 | R19: 4198661 | T19: Fair value through profit or loss investments | U19: 4628870 | V19: 4187000 | W19: 4550783 | X19: 4199334 | Y19: 4080266 | Z19: 4508563 | AA19: 5558973 | AB19: 4982661 | AC19: 4448122 | AD19: 4282606 | AE19: 4642905 | AF19: 4715343 | AG19: 5149628 | AH19: 4819230 | AI19: 4356311 | AJ19: 4957236 | AK19: 5194008 | AL19: 6082417
B20: Fair value through other comprehensive income investments | C20: 27184560 | D20: 26800577 | E20: 26794192 | F20: 26202723 | G20: 28388372 | H20: 32213665 | I20: 40712831 | J20: 43743889 | K20: 45681969 | L20: 40273400 | M20: 33261505 | N20: 34758443 | O20: 35452509 | P20: 32955721 | Q20: 34263930 | R20: 30786663 | T20: Fair value through other comprehensive income investments | U20: 35452509 | V20: 32955721 | W20: 34263930 | X20: 30786161 | Y20: 33395987 | Z20: 33344169 | AA20: 35475821 | AB20: 37043940 | AC20: 38047888 | AD20: 39156806 | AE20: 39832274 | AF20: 40142638 | AG20: 41705253 | AH20: 37852722 | AI20: 38005522 | AJ20: 39034049 | AK20: 43603824 | AL20: 43383090
B21: Amortized cost investments | C21: 3639821 | D21: 3589360 | E21: 3353898 | F21: 3477046 | G21: 4242643 | H21: 4304385 | I21: 4277475 | J21: 4962382 | K21: 5647635 | L21: 7707956 | M21: 8187351 | N21: 8265559 | O21: 8064050 | P21: 8200054 | Q21: 8028557 | R21: 10445730 | T21: Amortized cost investments | U21: 8064050 | V21: 8200054 | W21: 8028557 | X21: 10445729 | Y21: 10253251 | Z21: 10182619 | AA21: 10082119 | AB21: 10188927 | AC21: 10059376 | AD21: 8986734 | AE21: 8853694 | AF21: 8967877 | AG21: 8749729 | AH21: 8931495 | AI21: 8824746 | AJ21: 8813657 | AK21: 8707989 | AL21: 8964556
B22: Total investments | C22: 34960529 | D22: 34414427 | E22: 33956227 | F22: 33530531 | G22: 36816653 | H22: 41637044 | I22: 51648986 | J22: 55173742 | K22: 59412732 | L22: 54772644 | M22: 48110456 | N22: =+SUM(N19:N21) -> 48952540 | O22: 48145429 | P22: 45342775 | Q22: 46843270 | R22: 45431054 | T22: Total investments | U22: 48145429 | V22: 45342775 | W22: 46843270 | X22: 45431224 | Y22: 47729504 | Z22: 48035351 | AA22: 51116913 | AB22: 52215528 | AC22: 52555386 | AD22: 52426146 | AE22: 53328873 | AF22: =+SUM(AF19:AF21) -> 53825858 | AG22: =+SUM(AG19:AG21) -> 55604610 | AH22: =+SUM(AH19:AH21) -> 51603447 | AI22: =+SUM(AI19:AI21) -> 51186579 | AJ22: 52804942 | AK22: 57505821 | AL22: =+SUM(AL19:AL21) -> 58430063
C23: =+C22-C9 -> 0 | D23: 0 | E23: =+E22-E9 -> 0 | F23: =+F22-F9 -> 0 | G23: =+G22-G9 -> 0 | H23: 0 | I23: 0 | J23: 0 | K23: 0 | L23: 0 | M23: 0 | N23: 0 | O23: 0 | P23: 0 | Q23: 0 | R23: 0

Sheet 3.2. Funding
B1: Back to index
B3: (Under IFRS 4) | X3: (Under IFRS 17)
B4: Funding | C4: As of | AB4: As of
B5: S/000
C6: Mar 19 | D6: Jun 19 | E6: Sep 19 | F6: Dec 19 | G6: Mar 20 | H6: Jun 20 | I6: Sep 20 | J6: Dec 20 | K6: Mar 21 | L6: Jun 21 | M6: Sep 21 | N6: Dec 21 | O6: Mar 22 | P6: Jun 22 | Q6: Sep 22 | R6: Dec 22 | X6: Mar 22 | Y6: Jun 22 | Z6: Sep 22 | AA6: Dec 22 | AB6: Mar 23 | AC6: Jun 23 | AD6: Sep 23 | AE6: Dec 23 | AF6: Mar 24 | AG6: Jun 24 | AH6: Sep 24 | AI6: Dic 24 | AJ6: Mar 25 | AK6: Jun 25 | AL6: Set 25 | AM6: Dic 25 | AN6: Mar 26 | AO6: Jun 26
B7: Deposits and obligations | C7: 103727257 | D7: 103157044 | E7: 107391720 | F7: 112005385 | G7: 119563545 | H7: 129664332 | I7: 137202674 | J7: 142365502 | K7: 148626339 | L7: 149161803 | M7: 152548368 | N7: 149596545.2 | O7: 147915964 | P7: 147440576 | Q7: 152792014 | R7: 147020787 | X7: 147915964 | Y7: 147440576 | Z7: 152792014 | AA7: 147020787 | AB7: 148623300 | AC7: 143387717 | AD7: 148471535 | AE7: 147704994 | AF7: 147857127 | AG7: 151971984 | AH7: 154435451 | AI7: 161842066 | AJ7: 157619082 | AK7: 154723334 | AL7: 158430455 | AM7: 170401633 | AN7: 178880666 | AO7: 182120766
B8: Due to banks and correspondents | C8: 7219120 | D8: 9222278 | E8: 8624286 | F8: 8841732 | G8: 9854630 | H8: 8374009 | I8: 6601722 | J8: 5978257 | K8: 5305933 | L8: 6239161 | M8: 7466434 | N8: 7212946 | O8: 6362990 | P8: 6456360 | Q8: 9002035 | R8: 8937411 | X8: 6362990 | Y8: 6456360 | Z8: 9002035 | AA8: 8937411 | AB8: 10199650 | AC8: 10062290 | AD8: 10493411 | AE8: 12278681 | AF8: 10684673 | AG8: 12620346 | AH8: 12704234 | AI8: 10754385 | AJ8: 10899579 | AK8: 11152813 | AL8: 11241079 | AM8: 10675238 | AN8: 10213175 | AO8: 11755256
B9: BCRP instruments | C9: 4984192 | D9: 6304186 | E9: 4144908 | F9: 4381011 | G9: 5346373 | H9: 19441733 | I9: 25344724 | J9: 25734963 | K9: 24303193 | L9: 23329990 | M9: 20746109 | N9: 19692474 | O9: 17532350 | P9: 16031618 | Q9: 14449597 | R9: 11297659 | X9: 17532350 | Y9: 16031618 | Z9: 14449597 | AA9: 11297658.64 | AB9: 9780540 | AC9: 11772772 | AD9: 9616150 | AE9: 7461674 | AF9: 6854368 | AG9: 5542892 | AH9: 4788939 | AI9: 6646830 | AJ9: 7064476 | AK9: 5096459 | AL9: 6643892 | AM9: 4776512 | AN9: 2338426 | AO9: 4043986
B10: Repurchase agreements | C10: 2324385 | D10: 2455665 | E10: 2031025 | F10: 1820911 | G10: 1935879 | H10: 2091798 | I10: 1204487 | J10: 1072920 | K10: 1159587 | L10: 1276678.34 | M10: 1330810.794 | N10: 1296277 | O10: 1218028 | P10: 1340423 | Q10: 1182946 | R10: 976020 | X10: 1856645 | Y10: 2107245 | Z10: 2125983 | AA10: 1669066.358 | AB10: 1905955 | AC10: 2534108 | AD10: 2121870 | AE10: 2706753 | AF10: 2636908 | AG10: 2146797 | AH10: 2594165 | AI10: 2413880 | AJ10: 3094138 | AK10: 6168934 | AL10: 3537281 | AM10: 3467275 | AN10: 3534049 | AO10: 4332500
B11: Bonds and notes issued | C11: 15472882 | D11: 15058760 | E11: 17160564 | F11: 14946363 | G11: 15178148 | H11: 17250531 | I11: 16425832 | J11: 16319407 | K11: 17863198 | L11: 16951481 | M11: 17577630 | N11: 17823145.81 | O11: 16044671 | P11: 16579674 | Q11: 17019694 | R11: 17007194 | X11: 16044671 | Y11: 16579674 | Z11: 17019694 | AA11: 17007194 | AB11: 14326930 | AC11: 14235697 | AD11: 14914632 | AE11: 14594785 | AF11: 17541121 | AG11: 17953508 | AH11: 16952011 | AI11: 17268443 | AJ11: 14391733 | AK11: =12112403+1 -> 12112404 | AL11: 12209724 | AM11: 14025535 | AN11: 14750710 | AO11: 14789015
B12: Total funding | C12: 133727836 | D12: 136197933 | E12: 139352503 | F12: 141995402 | G12: 151878575 | H12: 176822403 | I12: 186779439 | J12: 191471049 | K12: 197258250 | L12: 196959113.3 | M12: 199669351.8 | N12: 195621388 | O12: 189074003 | P12: 187848651 | Q12: 194446286 | R12: =+SUM(R7:R11) -> 185239071 | X12: 189712620 | Y12: 188615473 | Z12: 195389323 | AA12: 185932117 | AB12: 184836375 | AC12: 181992584 | AD12: 185617598 | AE12: 184746887 | AF12: 185574197 | AG12: 190235527 | AH12: 191474800 | AI12: 198925604 | AJ12: 193069008 | AK12: =+SUM(AK7:AK11) -> 189253944 | AL12: =+SUM(AL7:AL11) -> 192062431 | AM12: =+SUM(AM7:AM11) -> 203346193 | AN12: =+SUM(AN7:AN11) -> 209717026 | AO12: =+SUM(AO7:AO11) -> 217041523
B14: Funding Cost | C14: Quarter | O14: As of | AB14: Quarter
C15: 1Q20 | D15: 2Q20 | E15: 3Q20 | F15: 4Q20 | G15: 1Q21 | H15: 2Q21 | I15: 3Q21 | J15: 4Q21 | K15: 1Q22 | L15: 2Q22 | M15: 3Q22 | N15: 4Q22 | O15: Mar 21 | P15: Jun 21 | Q15: Sep 21 | R15: Dec 21 | S15: Mar 22 | T15: Jun 22 | U15: Sep 22 | V15: Dec 22 | X15: 1Q22 | Y15: 2Q22 | Z15: 3Q22 | AA15: 4Q22 | AB15: 1Q23 | AC15: 2Q23 | AD15: 3Q23 | AE15: 4Q23 | AF15: 1Q24 | AG15: 2Q24 | AH15: 3Q24 | AI15: 4Q24 | AJ15: 1Q25 | AK15: 2Q25 | AL15: 3Q25 | AM15: 4Q25 | AN15: 1Q26 | AO15: 2Q26
B16: Funding Cost | C16: 0.02134471403 | D16: 0.0186 | E16: 0.01741828374 | F16: 0.01340656565 | G16: 0.01426738872 | H16: 0.01183330935 | I16: 0.01210000901 | J16: 0.01236452642 | K16: 0.0132859611 | L16: 0.01587508724 | M16: 0.02065885592 | N16: 0.02358002972 | O16: 1.43% | P16: 0.01313211095 | Q16: 0.0127798543 | R16: 0.01285701176 | S16: 1.33% | T16: 0.01445664018 | U16: 0.01622269505 | V16: 0.01833911867 | X16: 0.01533576315 | Y16: 0.01799511093 | Z16: 0.02304726732 | AA16: 0.02058917308 | AB16: 0.02607152065 | AC16: 0.02909202264 | AD16: 0.03152454575 | AE16: 0.03030366154 | AF16: 0.02976441925 | AG16: 0.02856952153 | AH16: 0.02675628946 | AI16: 0.02561960464 | AJ16: 0.02422800654 | AK16: 0.0244372879 | AL16: 0.02430359836 | AM16: 0.02306810587 | AN16: 0.02104797426 | AO16: 0.02151772243
B20: Funding Cost | C20: Quarter | O20: As of | AB20: As of
C21: 1Q20 | D21: 2Q20 | E21: 3Q20 | F21: 4Q20 | G21: 1Q21 | H21: 2Q21 | I21: 3Q21 | J21: 4Q21 | K21: 1Q22 | L21: 2Q22 | M21: 3Q22 | N21: 4Q22 | O21: Mar 21 | P21: Jun 21 | Q21: Sep 21 | R21: Dec 21 | S21: Mar 22 | T21: Jun 22 | U21: Sep 22 | V21: Dec 22 | X21: Mar 22 | Y21: Jun 22 | Z21: Sep 22 | AA21: Dec 22 | AB21: Mar 23 | AC21: Jun 23 | AD21: Sep 23 | AE21: Dec 23 | AF21: Mar 24 | AG21: Jun 24 | AH21: Sep 24 | AI21: Dic 24 | AJ21: Mar 25 | AK21: Jun 25 | AL21: Sep 25 | AM21: Dic 25 | AN21: Mar 26 | AO21: Jun 26
B22: Funding Cost | C22: 0.02134471403 | D22: 0.0186 | E22: 0.01741828374 | F22: 0.01340656565 | G22: 0.01426738872 | H22: 0.01183330935 | I22: 0.01210000901 | J22: 0.01236452642 | K22: 0.0132859611 | L22: 0.01587508724 | M22: 0.02065885592 | N22: 0.02358002972 | O22: 1.43% | P22: 0.01313211095 | Q22: 0.0127798543 | R22: 0.01285701176 | S22: 1.33% | T22: 0.01445664018 | U22: 0.01622269505 | V22: 0.01833911867 | X22: =+X16 -> 0.01533576315 | Y22: 0.0144 | Z22: 0.016 | AA22: 0.0183 | AB22: =+AB16 -> 0.02607152065 | AC22: 0.0276 | AD22: 0.0286 | AE22: 0.029 | AF22: =+AF16 -> 0.02976441925 | AG22: 0.029 | AH22: 0.028 | AI22: 0.02735024857 | AJ22: 0.02422800654 | AK22: 0.0242673476 | AL22: 0.024 | AM22: 0.02288515428 | AN22: =+AN16 -> 0.02104797426 | AO22: 0.02126253375

Sheet 4.Net Interest Income
B1: Back to index
A3: Net Interest Income | B3: Quarter
A4: S/ 000 | B4: 1Q22 | C4: 2Q22 | D4: 3Q22 | E4: 4Q22 | F4: 1Q23 | G4: 2Q23 | H4: 3Q23 | I4: 4Q23 | J4: 1Q24 | K4: 2Q24 | L4: 3Q24 | M4: 4Q24 | N4: 1Q25 | O4: 2Q25 | P4: 3Q25 | Q4: 4Q25 | R4: 1Q26 | S4: 2Q26
A5: Interest income | B5: 3172346 | C5: 3488113 | D5: 3988684 | E5: 4362139 | F5: 4456106 | G5: 4653246 | H5: 4819101 | I5: 4870042 | J5: 4925926 | K5: 4935238 | L5: 4995971 | M5: 5012121 | N5: 4894790 | O5: 4922292 | P5: 4987693 | Q5: 5125394 | R5: =+SUM(R6:R10) -> 5212412 | S5: =+SUM(S6:S10) -> 5413885
A6: Interest on loans | B6: 2685552 | C6: 2929782 | D6: 3288864 | E6: 3515083 | F6: 3570952 | G6: 3712845 | H6: 3853361 | I6: 3907705 | J6: 3868792 | K6: 3921374 | L6: 3924222 | M6: 3940002 | N6: 3847640 | O6: 3840725 | P6: 3960980 | Q6: 4094165 | R6: 4142813 | S6: 4370700
A7: Dividends on investments | B7: 4320 | C7: 13682 | D7: 7499 | E7: 3725 | F7: 6477 | G7: 17492 | H7: 10464 | I7: 11647 | J7: 10861 | K7: 10136 | L7: 13187 | M7: 15285 | N7: 25109 | O7: 22923 | P7: 19179 | Q7: 20064 | R7: 16992 | S7: 24891
A8: Interest on deposits with banks | B8: 36834 | C8: 50526 | D8: 141896 | E8: 238132 | F8: 277371 | G8: 286459 | H8: 289934 | I8: 279446 | J8: 334459 | K8: 319829 | L8: 365361 | M8: 386205 | N8: 344622 | O8: 342323 | P8: 316420 | Q8: 366208 | R8: 321572 | S8: 321152
A9: Interest ion securities | B9: 438023 | C9: 483936 | D9: 533971 | E9: 560287 | F9: 585268 | G9: 618952 | H9: 641370 | I9: 643737 | J9: 683075 | K9: 657897 | L9: 667195 | M9: 652155 | N9: 657872 | O9: 647186 | P9: 623216 | Q9: 618810 | R9: 709233 | S9: 674434
A10: Other interest income | B10: 7617 | C10: 10187 | D10: 16454 | E10: 44912 | F10: 16038 | G10: 17498 | H10: 23972 | I10: 27507 | J10: 28739 | K10: 26002 | L10: 26006 | M10: 18474 | N10: 19547 | O10: 69135 | P10: 67898 | Q10: 26147 | R10: 21802 | S10: 22708
A11: Interest expense
A12: Interest expense (excluding Net Insurance Financial Expenses) | B12: =+-SUM(B12:B16) -> -638881 | C12: -747047 | D12: -988293 | E12: -1118966 | F12: -1208267 | G12: -1333924 | H12: -1448593 | I12: -1402925 | J12: -1377799 | K12: -1342088 | L12: -1276643 | M12: -1250239 | N12: -1187156 | O12: -1167866 | P12: -1158421 | Q12: -1140166 | R12: =+-SUM(R13:R16) -> -1086767 | S12: =-SUM(S13:S16) -> -1147859
A13: Interest on deposits | B13: 258939 | C13: 336953 | D13: 510116 | E13: 582237 | F13: 677088 | G13: 777436 | H13: 859659 | I13: 827124 | J13: 779526 | K13: 738010 | L13: 677509 | M13: 655429 | N13: 619613 | O13: 541014 | P13: 565344 | Q13: 577645 | R13: 539328 | S13: 565502
A14: Interest on borrowed funds | B14: 116231 | C14: 141531 | D14: 185891 | E14: 239425 | F14: 238933 | G14: 296854 | H14: 325619 | I14: 297260 | J14: 264884 | K14: 267285 | L14: 262319 | M14: 286638 | N14: 266202 | O14: 265710 | P14: 252490 | Q14: 245191 | R14: 210799 | S14: 224381
A15: Interest on bonds and subrdinated notes | B15: 179609 | C15: 166118 | D15: 211719 | E15: 170772 | F15: 182898 | G15: 148992 | H15: 149449 | I15: 152960 | J15: 196630 | K15: 200739 | L15: 200801 | M15: 201053 | N15: 168024 | O15: 193125 | P15: 164653 | Q15: 184588 | R15: 188366 | S15: 195051
A16: Other interest expense | B16: 84102 | C16: 102445 | D16: 80567 | E16: 126532 | F16: 109348 | G16: 110642 | H16: 113866 | I16: 125581 | J16: 136759 | K16: 136054 | L16: 136014 | M16: 107119 | N16: 133317 | O16: 168017 | P16: 175934 | Q16: 132742 | R16: 148274 | S16: 162925
A17: Net Insurance Financial Expenses | B17: 101758 | C17: 103960 | D17: 117990 | E17: 102769 | F17: 115750 | G17: 115166 | H17: 116465 | I17: 119433 | J17: 122004 | K17: 124686 | L17: 128578 | M17: 132088 | N17: 135622 | O17: 139055 | P17: 141443 | Q17: 143961 | R17: 162918 | S17: 169075
A18: Net interest, similar income and expenses | B18: =+B5-SUM(B13:B17) -> 2431707 | C18: 2637106 | D18: 2882401 | E18: 3140404 | F18: 3132089 | G18: 3204156 | H18: 3254043 | I18: 3347684 | J18: 3426123 | K18: 3468464 | L18: 3590750 | M18: 3629794 | N18: 3572012 | O18: 3615371 | P18: 3687829 | Q18: 3841267 | R18: =+R5-SUM(R13:R17) -> 3962727 | S18: =+S5-SUM(S13:S17) -> 4096951
A19: Provision for credit losses on loan portfolio, net of recoveries
A20: Net interest, similar income and expenses, after provision for credit losses on loan portfolio | B20: 2174117 | C20: 2273815 | D20: 2422425 | E20: 2409723 | F20: 2405091 | G20: 2399905 | H20: 2336401 | I20: 2174230 | J20: 2611424 | K20: 2375093 | L20: 2722669 | M20: 2886498 | N20: 2990119 | O20: 3040212 | P20: 3084911 | Q20: 3194981 | R20: 3480639 | S20: 3365743
A21: Average interest earning assets | B21: 227279808.5 | C21: 222718971 | D21: 225371577 | E21: 225604595.5 | F21: 222289504 | G21: 220651687.5 | H21: 220724334 | I21: 223624217 | J21: 225297538 | K21: 227161178.5 | L21: 231316507 | M21: 237518087 | N21: 238435116.5 | O21: 233761957 | P21: 233285291 | Q21: 240783784.5 | R21: 250941842.5 | S21: 257562211.5
A22: Net interest margin (1) | B22: 0.04458759477 | C22: 0.04922914268 | D22: 0.05325234069 | E22: 0.05750189606 | F22: 0.05844340721 | G22: 0.06017306348 | H22: 0.06108085935 | I22: 0.06201684319 | J22: 0.06299450995 | K22: 0.06327049408 | L22: 0.06431582507 | M22: 0.06335318792 | N22: 0.06219946213 | O22: 0.06424357578 | P22: 0.06565819874 | Q22: 0.06620425887 | R22: 0.06576233986 | S22: 0.06625235861
A23: Risk-adjusted Net interest margin (1) | B23: 0.04005415202 | C23: 0.04270448969 | D23: 0.04508847183 | E23: 0.04454682307 | F23: 0.04536140402 | G23: 0.04559350583 | H23: 0.04445121126 | I23: 0.04102709502 | J23: 0.04853009978 | K23: 0.04401771494 | L23: 0.04930468711 | M23: 0.05083547174 | N23: 0.05243759469 | O23: 0.05440178617 | P23: 0.05532033308 | Q23: 0.05546788804 | R23: 0.05807790686 | S23: 0.05489653128
A24: Net provisions for loan losses / Net interest income (1) | B24: 0.1059297029 | C24: 0.1377612428 | D24: 0.1595808494 | E24: 0.2326710194 | F24: 0.2321128167 | G24: 0.2510024481 | H24: 0.2820005759 | I24: 0.3505271107 | J24: 0.2377903537 | K24: 0.3152320451 | L24: 0.2417547866 | M24: 0.2047763592 | N24: 0.1629034281 | O24: 0.159087131 | P24: 0.1634885999 | Q24: 0.1682481327 | R24: 0.1216556175 | S24: 0.1784761399
A28: Net Interest Income / Margin | B28: Quarter
A29: S/ 000 | B29: 1Q22 | C29: 2Q22 | D29: 3Q22 | E29: 4Q22 | F29: 1Q23 | G29: 2Q23 | H29: 3Q23 | I29: 4Q23 | J29: 1Q24 | K29: 2Q24 | L29: 3Q24 | M29: 4Q24 | N29: 1Q25 | O29: 2Q25 | P29: 3Q25 | Q29: 4Q25 | R29: 1Q26 | S29: 2Q26
A30: Interest and Similar Income | B30: 3172346 | C30: 3488113 | D30: 3988684 | E30: 4362139 | F30: 4456106 | G30: 4653246 | H30: 4819101 | I30: 4870042 | J30: 4925926 | K30: 4935238 | L30: 4995971 | M30: 5012121 | N30: 4894790 | O30: 4922292 | P30: 4987693 | Q30: 5125394 | R30: 5212412 | S30: 5413885
A31: Interest and Similar Expenses | B31: =+-SUM(B13:B17) -> -740639 | C31: -851007 | D31: -1106283 | E31: -1221735 | F31: -1324017 | G31: -1449090 | H31: -1565058 | I31: -1522358 | J31: -1499803 | K31: -1466774 | L31: -1405221 | M31: -1382327 | N31: -1322778 | O31: -1306921 | P31: -1299864 | Q31: -1284127 | R31: =+-SUM(R13:R17) -> -1249685 | S31: -1316934
A32: Interest Expense (excluding Net Insurance Financial Expenses) | B32: =+SUM(B13:B16) -> 638881 | C32: =+SUM(C13:C16) -> 747047 | D32: =+SUM(D13:D16) -> 988293 | E32: 1118966 | F32: 1208267 | G32: 1333924 | H32: 1448593 | I32: 1402925 | J32: 1377799 | K32: 1342088 | L32: 1276643 | M32: 1250239 | N32: 1187156 | O32: 1167866 | P32: 1158421 | Q32: 1140166 | R32: 1086767 | S32: 1147859
A33: Net Insurance Financial Expenses | B33: -101758 | C33: =+C17 -> 103960 | D33: =+D17 -> 117990 | E33: 102769 | F33: 115750 | G33: 115166 | H33: 116465 | I33: 119433 | J33: 122004 | K33: 124686 | L33: 128578 | M33: 132088 | N33: 135622 | O33: 139055 | P33: 141443 | Q33: 143961 | R33: 162918 | S33: -169075
A34: Net interest, similar income and expenses | B34: =+B18 -> 2431707 | C34: =+C18 -> 2637106 | D34: 2882401 | E34: 3140404 | F34: 3132089 | G34: 3204156 | H34: 3254043 | I34: 3347684 | J34: 3426123 | K34: 3468464 | L34: 3590750 | M34: 3629794 | N34: 3572012 | O34: 3615371 | P34: 3687829 | Q34: 3841267 | R34: 3962727 | S34: =+S18 -> 4096951
A36: Balances
A37: Average Interest Earning Assets (IEA) | B37: 227279808.5 | C37: 222718971 | D37: 225371577 | E37: 225604595.5 | F37: 222289504 | G37: 220651687.5 | H37: 220724334 | I37: 223624217 | J37: 225297538 | K37: 227161178.5 | L37: 231316507 | M37: 237518087 | N37: 238435116.5 | O37: 233761957 | P37: 233285291 | Q37: 240783784.5 | R37: 250941842.5 | S37: 257562678
A38: Average Funding | B38: 192347695 | C38: 189164046 | D38: 192002398 | E38: 190660720 | F38: 185377296 | G38: 183407530 | H38: 183805092 | I38: 185182243 | J38: 185160542 | K38: 187904862 | L38: 190855164 | M38: 195200202 | N38: 195997306 | O38: 191161476 | P38: 190658187 | Q38: 197704312 | R38: 206531609.5 | S38: 213379274.5
A40: Yields
A41: Yield on IEAs | B41: 0.0556 | C41: 0.0626 | D41: 0.0708 | E41: 0.0773 | F41: 0.0802 | G41: 0.0844 | H41: 0.0873 | I41: 0.0871 | J41: 0.0875 | K41: 0.0869 | L41: 0.0864 | M41: 0.0844 | N41: 0.0821 | O41: 0.0842 | P41: 0.0855 | Q41: 0.0851 | R41: 0.08308557789 | S41: 0.08407887117
A42: Cost of Funds (1) | B42: =+'3.2. Funding'!X16 -> 0.01533576315 | C42: =+'3.2. Funding'!Y16 -> 0.01799511093 | D42: =+'3.2. Funding'!Z16 -> 0.02304726732 | E42: =+'3.2. Funding'!AA16 -> 0.02058917308 | F42: =+'3.2. Funding'!AB16 -> 0.02607152065 | G42: =+'3.2. Funding'!AC16 -> 0.02909202264 | H42: =+'3.2. Funding'!AD16 -> 0.03152454575 | I42: =+'3.2. Funding'!AE16 -> 0.03030366154 | J42: =+'3.2. Funding'!AF16 -> 0.02976441925 | K42: =+'3.2. Funding'!AG16 -> 0.02856952153 | L42: =+'3.2. Funding'!AH16 -> 0.02675628946 | M42: =+'3.2. Funding'!AI16 -> 0.02561960464 | N42: =+'3.2. Funding'!AJ16 -> 0.02422800654 | O42: =+'3.2. Funding'!AK16 -> 0.0244372879 | P42: =+'3.2. Funding'!AL16 -> 0.02430359836 | Q42: =+'3.2. Funding'!AM16 -> 0.02306810587 | R42: 0.02106086179 | S42: 0.02151772248
A43: Net Interest Margin (NIM) (1) | B43: 0.04458759477 | C43: 0.04922914268 | D43: 0.05325234069 | E43: 0.05750189606 | F43: 0.05844340721 | G43: 0.06017306348 | H43: 0.06108085935 | I43: 0.06201684319 | J43: 0.06299450995 | K43: 0.06327049408 | L43: 0.06431582507 | M43: 0.06335318792 | N43: 0.06219946213 | O43: 0.06424357578 | P43: 0.0656581816 | Q43: 0.06620425887 | R43: 0.06576255213 | S43: 0.06625235861
A44: Risk-Adjusted Net Interest Margin (1) | B44: 0.04005415202 | C44: 0.04270448969 | D44: 0.04508847183 | E44: 0.04454682307 | F44: 0.04536140402 | G44: 0.04559350583 | H44: 0.04445121126 | I44: 0.04102709502 | J44: 0.04853009978 | K44: 0.04401771494 | L44: 0.04930468711 | M44: 0.05083547174 | N44: 0.05243759469 | O44: 0.05440178617 | P44: 0.05532031593 | Q44: 0.05546788804 | R44: 0.05807809433 | S44: 0.05489653128
A45: Peru's reference rate | B45: 0.04 | C45: 0.055 | D45: 0.0675 | E45: 0.075 | F45: 0.0775 | G45: 0.0775 | H45: 0.075 | I45: 0.0675 | J45: 0.0625 | K45: 0.0575 | L45: 0.0525 | M45: 0.05 | N45: 0.0475 | O45: 0.045 | P45: 0.0425 | Q45: 0.0425 | R45: 0.0425 | S45: 0.0425
A46: Fed funds rate | B46: 0.005 | C46: 0.0175 | D46: 0.0325 | E46: 0.045 | F46: 0.05 | G46: 0.0525 | H46: 0.055 | I46: 0.055 | J46: 0.055 | K46: 0.055 | L46: 0.05 | M46: 0.045 | N46: 0.045 | O46: 0.045 | P46: 0.0425 | Q46: 0.0375 | R46: 0.0375 | S46: 0.0375
A49: Average Balance
A51: Interest Income / IEA | B51: Quarter
A52: S/ millions | B52: 1Q22 | C52: 2Q22 | D52: 3Q22 | E52: 4Q22 | F52: 1Q23 | G52: 2Q23 | H52: 3Q23 | I52: 4Q23 | J52: 1Q24 | K52: 2Q24 | L52: 32Q24 | M52: 4Q24 | N52: 1Q25 | O52: 2Q25 | P52: 3Q25 | Q52: 4Q25 | R52: 1Q26 | S52: 2Q26
A53: Total (LC + FC)
A54: Cash and equivalents | B54: 30979.46 | C54: 26697.4885 | D54: 26580.7735 | E54: 28113.649 | F54: 27528.0785 | G54: 27097.9175 | H54: 25472.365 | I54: 25321.046 | J54: 28556 | K54: 29146 | L54: 32083 | M54: 38564 | N54: 38821 | O54: 35864 | P54: 35034 | Q54: 38628 | R54: 42187 | S54: 41767
A55: Other IEA | B55: 1641.9015 | C55: 1781.532 | D55: 1816.588 | E55: 1344.4115 | F55: 1285.018 | G55: 1665.7115 | H55: 1688.4325 | I55: 1462.1345 | J55: 1469 | K55: 1652 | L55: 1598 | M55: 1227 | N55: 1434 | O55: 3215 | P55: 3999 | Q55: 2791 | R55: 2194 | S55: 1698
A56: Investments | B56: 48548.9845 | C56: 46744.102 | D56: 46093.0225 | E56: 46137.247 | F56: 46580.364 | G56: 47882.4275 | H56: 49576.132 | I56: 51666.2205 | J56: 52385 | K56: 52491 | L56: 52877 | M56: 53578 | N56: 54716 | O56: 53604 | P56: 51396 | Q56: 51996 | R56: 55156 | S56: 57968
A57: Loans | B57: 146109.4625 | C57: 147495.8485 | D57: 150881.193 | E57: 150009.288 | F57: 146896.0435 | G57: 144005.631 | H57: 143987.4045 | I57: 145052.6555 | J57: 142887 | K57: 143873 | L57: 144757 | M57: 144150 | N57: 143465 | O57: 141079 | P57: 142857 | Q57: 147369 | R57: 151405 | S57: 156129
A58: Total IEA | B58: 227279.8085 | C58: 227279.8085 | D58: 225371.577 | E58: 225604.5955 | F58: 222289.504 | G58: 220651.6875 | H58: 220724.334 | I58: 223502.0565 | J58: 225297 | K58: 227162 | L58: 231315 | M58: 237519 | N58: 238436 | O58: 233762 | P58: 233286 | Q58: 240784 | R58: 250942 | S58: 257562
A59: IEA (LC) | B59: 0.5803843943 | C59: 0.5882656646 | D59: 0.5714672241 | E59: 0.5655975301 | F59: 0.5685096405 | G59: 0.5730427464 | H59: 0.5765692037 | I59: 0.5756785218 | J59: 0.5801763894 | K59: 0.574189345 | L59: 0.5568510473 | M59: 0.5473625268 | N59: 0.5558766294 | O59: 0.565374184 | P59: 0.5672607872 | Q59: 0.5664703635 | R59: 0.5640347172 | S59: 0.5646523944
A60: IEA (FC) | B60: 0.4196156057 | C60: 0.4034720379 | D60: 0.4285327759 | E60: 0.4344024699 | F60: 0.4314903595 | G60: 0.4269572536 | H60: 0.4234307963 | I60: 0.4243214782 | J60: 0.4198236106 | K60: 0.425810655 | L60: 0.4431489527 | M60: 0.4526374732 | N60: 0.4441233706 | O60: 0.434625816 | P60: 0.4327392128 | Q60: 0.4335296365 | R60: 0.4359652828 | S60: 0.4353476056
A63: Income
A65: Interest Income / IEA | B65: Quarter
A66: S/ millions | B66: 1Q22 | C66: 2Q22 | D66: 3Q22 | E66: 4Q22 | F66: 1Q23 | G66: 2Q23 | H66: 3Q23 | I66: 4Q23 | J66: 1Q24 | K66: 2Q24 | L66: 32Q24 | M66: 4Q24 | N66: 1Q25 | O66: 2Q25 | P66: 3Q25 | Q66: 4Q25 | R66: 1Q26 | S66: 2Q26
A67: Total (LC + FC)
A68: Cash and equivalents | B68: 35.351 | C68: 47.784 | D68: 141.896 | E68: 238.132 | F68: 277.371 | G68: 286.459 | H68: 289.934 | I68: 279.446 | J68: 334 | K68: 320 | L68: 365.136 | M68: 386 | N68: 345 | O68: 342 | P68: 316 | Q68: 366 | R68: 322 | S68: 321
A69: Other IEA | B69: 18.667 | C69: 13.993 | D69: 16.454 | E69: 44.912 | F69: 16.038 | G69: 17.498 | H69: 23.972 | I69: 27.507 | J69: 28 | K69: 26 | L69: 26.121 | M69: 18 | N69: 19 | O69: 69 | P69: 68 | Q69: 26 | R69: 22 | S69: 23
A70: Investments | B70: 432.776 | C70: 496.554 | D70: 541.47 | E70: 564.012 | F70: 591.745 | G70: 636.444 | H70: 651.834 | I70: 655.384 | J70: 694 | K70: 668 | L70: 680.614 | M70: 667 | N70: 683 | O70: 670 | P70: 643 | Q70: 639 | R70: 727 | S70: 699
A71: Loans | B71: 2685.552 | C71: 2929.782 | D71: 3288.864 | E71: 3515.083 | F71: 3570.952 | G71: 3712.845 | H71: 3853.361 | I71: 3907.705 | J71: 3869 | K71: 3922 | L71: 3923.97 | M71: 3940 | N71: 3848 | O71: 3841 | P71: 3961 | Q71: 4094 | R71: 4143 | S71: 4371
A72: Total IEA | B72: 3172.346 | C72: 3488.113 | D72: 3988.684 | E72: 4362.139 | F72: 4456.106 | G72: 4653.246 | H72: 4819.101 | I72: 4870.042 | J72: 4925 | K72: 4936 | L72: 4995.841 | M72: 5011 | N72: 4895 | O72: 4922 | P72: 4988 | Q72: 5125 | R72: 5214 | S72: 5414
A73: IEA (LC) | B73: 0.7879900238 | C73: 0.7824158793 | D73: 0.7504502738 | E73: 0.7309418613 | F73: 0.7123874522 | G73: 0.7139334563 | H73: 0.7127650987 | I73: 0.7051776966 | J73: 0.6992893401 | K73: 0.6938816856 | L73: 0.6883725883 | M73: 0.6880862103 | N73: 0.7050051073 | O73: 0.7106867127 | P73: 0.7135124298 | Q73: 0.7123902439 | R73: 0.72477944 | S73: 0.7233099372
A74: IEA (FC) | B74: 0.2120099762 | C74: 0.2175841207 | D74: 0.2495497262 | E74: 0.2690581387 | F74: 0.2876125478 | G74: 0.2860665437 | H74: 0.2872349013 | I74: 0.2948223034 | J74: 0.3007106599 | K74: 0.3061183144 | L74: 0.3116274117 | M74: 0.3119137897 | N74: 0.2949948927 | O74: 0.2893132873 | P74: 0.2864875702 | Q74: 0.2876097561 | R74: 0.27522056 | S74: 0.2766900628
A76: Yields
A78: Interest Income / IEA | B78: Quarter
A79: S/ millions | B79: 1Q22 | C79: 2Q22 | D79: 3Q22 | E79: 4Q22 | F79: 1Q23 | G79: 2Q23 | H79: 3Q23 | I79: 4Q23 | J79: 1Q24 | K79: 2Q24 | L79: 32Q24 | M79: 4Q24 | N79: 1Q25 | O79: 2Q25 | P79: 3Q25 | Q79: 4Q25 | R79: 1Q26 | S79: 2Q26
A80: Total (LC + FC)
A81: Cash and equivalents | B81: 0.004564443667 | C81: 0.007159325118 | D81: 0.02135317845 | E81: 0.03388133643 | F81: 0.04030372116 | G81: 0.04228502061 | H81: 0.04552918427 | I81: 0.04414446386 | J81: 0.04678526404 | K81: 0.0439168325 | L81: 0.04550696631 | M81: 0.04003734052 | N81: 0.03554777054 | O81: 0.03814409993 | P81: 0.03607923731 | Q81: 0.03789996893 | R81: 0.03053073222 | S81: 0.03074197333
A82: Other IEA | B82: 0.04547654046 | C82: 0.03141790324 | D82: 0.03623055971 | E82: 0.1336257537 | F82: 0.0499230361 | G82: 0.04201928125 | H82: 0.05679113616 | I82: 0.07525162699 | J82: 0.07624234173 | K82: 0.06295399516 | L82: 0.06508135169 | M82: 0.0586797066 | N82: 0.0529986053 | O82: 0.08584758942 | P82: 0.06801700425 | Q82: 0.03726262988 | R82: 0.04010938924 | S82: 0.05418138987
A83: Investments | B83: 0.03565685293 | C83: 0.04249126446 | D83: 0.04698932469 | E83: 0.04889862631 | F83: 0.05081497431 | G83: 0.05316722925 | H83: 0.05259256612 | I83: 0.05073984461 | J83: 0.05299226878 | K83: 0.05090396449 | L83: 0.05151578191 | M83: 0.04979655829 | N83: 0.04993055048 | O83: 0.04999626894 | P83: 0.05004280489 | Q83: 0.04915762751 | R83: 0.05272318515 | S83: 0.04823350814
A84: Loans | B84: 0.07352164477 | C84: 0.07945395155 | D84: 0.08719082702 | E84: 0.09372974292 | F84: 0.09723752703 | G84: 0.1031305505 | H84: 0.1070471688 | I84: 0.1077596266 | J84: 0.1083093633 | K84: 0.1090406122 | L84: 0.1084299896 | M84: 0.1093305584 | N84: 0.1072874917 | O84: 0.1089035221 | P84: 0.1109081109 | Q84: 0.1111224206 | R84: 0.1094547736 | S84: 0.1119843207
A85: Total IEA | B85: 0.05583155003 | C85: 0.06264599705 | D85: 0.0707930264 | E85: 0.07734131462 | F85: 0.08018563036 | G85: 0.0843545962 | H85: 0.08733248234 | I85: 0.08715878639 | J85: 0.08744013458 | K85: 0.08691594545 | L85: 0.08639301386 | M85: 0.08438903835 | N85: 0.08211847204 | O85: 0.08422241425 | P85: 0.08552592097 | Q85: 0.08513854741 | R85: 0.08311083836 | S85: 0.08408072619
A86: IEA (LC) | B86: 0.07580270054 | C86: 0.08332157699 | D86: 0.0929653422 | E86: 0.09995093941 | F86: 0.1004789239 | G86: 0.1050943735 | H86: 0.1079619671 | I86: 0.1067651995 | J86: 0.1053920069 | K86: 0.1050339635 | L86: 0.106794609 | M86: 0.1060849633 | N86: 0.1041489049 | O86: 0.1058692675 | P86: 0.1075762843 | Q86: 0.1070698036 | R86: 0.1067966653 | S86: 0.1077059539
A87: IEA (FC) | B87: 0.02820878307 | C87: 0.03310575051 | D87: 0.04122527225 | E87: 0.04790329613 | F87: 0.05344822413 | G87: 0.05651860361 | H87: 0.0592421174 | I87: 0.06055869307 | J87: 0.06263149548 | K87: 0.0624844926 | L87: 0.06075682636 | M87: 0.05815272998 | N87: 0.05454459606 | O87: 0.05606354393 | P87: 0.05662096838 | Q87: 0.056482129 | R87: 0.05246704813 | S87: 0.05343845036
A90: Average Balance
A92: Interest Expense / Funding | B92: Quarter
A93: S/ millions | B93: 1Q22 | C93: 2Q22 | D93: 3Q22 | E93: 4Q22 | F93: 1Q23 | G93: 2Q23 | H93: 3Q23 | I93: 4Q23 | J93: 1Q24 | K93: 2Q24 | L93: 32Q24 | M93: 4Q24 | N93: 1Q25 | O93: 2Q25 | P93: 3Q25 | Q93: 4Q25 | R93: 1Q26 | S93: 2Q26
A94: Total (LC + FC)
A95: Deposits | B95: 148756.2546 | C95: 147678.2695 | D95: 150116.2945 | E95: 149906.4005 | F95: 147822.0435 | G95: 146005.5085 | H95: 145929.626 | I95: 148088.2645 | J95: 147782 | K95: 149914 | L95: 153203 | M95: 158139 | N95: 159731 | O95: 156171 | P95: 156577 | Q95: 164416 | R95: 174642 | S95: 180500
A96: BCRP + Due to Banks | B96: 25400.38 | C96: 23191.659 | D96: 22969.805 | E96: 21843.35082 | F96: 20107.62982 | G96: 20907.626 | H96: 20972.3115 | I96: 19924.958 | J96: 18640 | K96: 17851 | L96: 17828 | M96: 17447 | N96: 17683 | O96: 17107 | P96: 17067 | Q96: 16669 | R96: 14001 | S96: 14175
A97: Bonds and Notes | B97: 16933.9084 | C97: 16312.1725 | D97: 16799.684 | E97: 17013.444 | F97: 15660.112 | G97: 14274.3635 | H97: 14575.1645 | I97: 14754.7085 | J97: 16068 | K97: 17747 | L97: 17453 | M97: 17110 | N97: 15830 | O97: 13252 | P97: 12161 | Q97: 13117 | R97: 14389 | S97: 14770
A98: Others | B98: 1257.1525 | C98: 1279.2255 | D98: 1261.6845 | E98: 1079.483129 | F98: 1091.297129 | G98: 1241.6415 | H98: 1271.7805 | I98: 1200.869 | J98: 2672 | K98: 2392 | L98: 2371 | M98: 2504 | N98: 2754 | O98: 4632 | P98: 4853 | Q98: 3502 | R98: 3501 | S98: 3933
A99: Total Funding | B99: 193179.5615 | C99: 189164.046 | D99: 192002.3975 | E99: 190660.72 | F99: 185377.296 | G99: 183407.5295 | H99: 183805.091 | I99: 185182.2425 | J99: 185162 | K99: 187904 | L99: 190855 | M99: 195200 | N99: 195998 | O99: 191162 | P99: 190658 | Q99: 197704 | R99: =+SUM(R95:R98) -> 206533 | S99: 213378
A100: Funding (LC) | B100: 0.5122145181 | C100: 0.5120138105 | D100: 0.509014321 | E100: 0.5078140236 | F100: 0.5049308755 | G100: 0.5083522675 | H100: 0.5090994623 | I100: 0.5021468973 | J100: 0.4949017617 | K100: 0.4947260303 | L100: 0.4925781352 | M100: 0.4964088115 | N100: 0.516862417 | O100: 0.5236710225 | P100: 0.5261725183 | Q100: 0.5406870878 | R100: 0.5427074608 | S100: 0.5343756151
A101: Funding (FC) | B101: 0.4877854819 | C101: 0.4879861895 | D101: 0.490985679 | E101: 0.4921859764 | F101: 0.4950691245 | G101: 0.4916477325 | H101: 0.4909005377 | I101: 0.4978531027 | J101: 0.5050982383 | K101: 0.5052739697 | L101: 0.5074218648 | M101: 0.5035911885 | N101: 0.483137583 | O101: 0.4763289775 | P101: 0.4738274817 | Q101: 0.4593129122 | R101: 0.4575739077 | S101: 0.4656243849
A104: Expense
A106: Interest Expense / Funding | B106: Quarter
A107: S/ millions | B107: 1Q22 | C107: 2Q22 | D107: 3Q22 | E107: 4Q22 | F107: 1Q23 | G107: 2Q23 | H107: 3Q23 | I107: 4Q23 | J107: 1Q24 | K107: 2Q24 | L107: 32Q24 | M107: 4Q24 | N107: 1Q25 | O107: 2Q25 | P107: 3Q25 | Q107: 4Q25 | R107: 1Q26 | S107: 2Q26
A108: Total (LC + FC)
A109: Deposits | B109: 258.939 | C109: 336.953 | D109: 510.116 | E109: 582.237 | F109: 677.088 | G109: 777.436 | H109: 859.659 | I109: 827.124 | J109: 780 | K109: 738 | L109: 678 | M109: 655 | N109: 620 | O109: 541 | P109: 565 | Q109: 578 | R109: 539 | S109: 566
A110: BCRP + Due to Banks | B110: 116.231 | C110: 141.531 | D110: 185.891 | E110: 239.583 | F110: 238.933 | G110: 296.854 | H110: 325.619 | I110: 297.26 | J110: 265 | K110: 268 | L110: 262 | M110: 287 | N110: 266 | O110: 265 | P110: 253 | Q110: 245 | R110: 211 | S110: 224
A111: Bonds and Notes | B111: 173.791 | C111: 166.118 | D111: 211.719 | E111: 170.68 | F111: 182.898 | G111: 148.992 | H111: 149.449 | I111: 152.96 | J111: 197 | K111: 200 | L111: 201 | M111: 201 | N111: 168 | O111: 193 | P111: 165 | Q111: 185 | R111: 188 | S111: 195
A112: Others | B112: 89.92 | C112: 206.405 | D112: 198.5566484 | E112: 229.7122752 | F112: 225.098 | G112: 225.808 | H112: 230.331 | I112: 245.014 | J112: 259 | K112: 261 | L112: 264.303 | M112: 239 | N112: 269 | O112: 307 | P112: 317 | Q112: 276 | R112: 311 | S112: 332
A113: Total Funding | B113: 638.881 | C113: 851.007 | D113: 1106.282648 | E113: 1222.212275 | F113: 1324.017 | G113: 1449.09 | H113: 1565.058 | I113: 1522.358 | J113: 1501 | K113: 1467 | L113: 1405.303 | M113: 1382 | N113: 1323 | O113: 1306 | P113: 1300 | Q113: 1284 | R113: 1249 | S113: 1317
A114: Funding (LC) | B114: 0.5358431382 | C114: 0.5862889494 | D114: 0.6034687437 | E114: 0.5859611608 | F114: 0.565813732 | G114: 0.6025415951 | H114: 0.5977529267 | I114: 0.5589125554 | J114: 0.5189873418 | K114: 0.5173824131 | L114: 0.4855202045 | M114: 0.497829233 | N114: 0.5336356765 | O114: 0.5191424196 | P114: 0.5284615385 | Q114: 0.5397196262 | R114: 0.5316253002 | S114: 0.5254365983
A115: Funding (FC) | B115: 0.4641568618 | C115: 0.4137110506 | D115: 0.3965312563 | E115: 0.4140388392 | F115: 0.434186268 | G115: 0.3974584049 | H115: 0.4022470733 | I115: 0.4410874446 | J115: 0.4810126582 | K115: 0.4826175869 | L115: 0.5144797955 | M115: 0.502170767 | N115: 0.4663643235 | O115: 0.4808575804 | P115: 0.4715384615 | Q115: 0.4602803738 | R115: 0.4683746998 | S115: 0.4745634017
A117: Yields
A119: Interest Expense / Funding | B119: Quarter
A120: S/ millions | B120: 1Q22 | C120: 2Q22 | D120: 3Q22 | E120: 4Q22 | F120: 1Q23 | G120: 2Q23 | H120: 3Q23 | I120: 4Q23 | J120: 1Q24 | K120: 2Q24 | L120: 32Q24 | M120: 4Q24 | N120: 1Q25 | O120: 2Q25 | P120: 3Q25 | Q120: 4Q25 | R120: 1Q26 | S120: 2Q26
A121: Total (LC + FC)
A122: Deposits | B122: 0.006962772778 | C122: 0.00912667791 | D122: 0.01359255507 | E122: 0.01553601442 | F122: 0.01832170586 | G122: 0.02129881285 | H122: 0.02356365938 | I122: 0.02234137871 | J122: 0.02111217875 | K122: 0.01969128967 | L122: 0.01770200322 | M122: 0.0165677031 | N122: 0.01552610326 | O122: 0.0138566059 | P122: 0.01443379296 | Q122: 0.01406189179 | R122: 0.01235423889 | S122: 0.01254293629
A123: BCRP + Due to Banks | B123: 0.01830382065 | C123: 0.02441067282 | D123: 0.03237136754 | E123: 0.04387293909 | F123: 0.04753081335 | G123: 0.05679343987 | H123: 0.06210455152 | I123: 0.05967590998 | J123: 0.05686695279 | K123: 0.06005265811 | L123: 0.05878393538 | M123: 0.06579927781 | N123: 0.0601707855 | O123: 0.06196293915 | P123: 0.05929571688 | Q123: 0.05879176915 | R123: 0.06028140847 | S123: 0.06320987654
A124: Bonds and Notes | B124: 0.04105159798 | C124: 0.04073473352 | D124: 0.05041023391 | E124: 0.04012826562 | F124: 0.04671690726 | G124: 0.04175093341 | H124: 0.04101470004 | I124: 0.04146744072 | J124: 0.04904157331 | K124: 0.04507804136 | L124: 0.04606657881 | M124: 0.04699006429 | N124: 0.04245104232 | O124: 0.05825535768 | P124: 0.05427185264 | Q124: 0.05641533887 | R124: 0.05226214469 | S124: 0.05280974949
A125: Others | B125: 0.2861068963 | C125: 0.3203344524 | D125: 0.2554256579 | E125: 0.4688627296 | F125: 0.4008001013 | G125: 0.3564378285 | H125: 0.3581309825 | I125: 0.4183004141 | J125: 0.3877245509 | K125: 0.4364548495 | L125: 0.4458928722 | M125: 0.3817891374 | N125: 0.3907044299 | O125: 0.2651122625 | P125: 0.2612816814 | Q125: 0.3152484295 | R125: 0.3553270494 | S125: 0.3376557335
A126: Total Funding | B126: 0.01322874936 | C126: 0.01579680739 | D126: 0.02058917308 | E126: 0.02347693541 | F126: 0.02607152065 | G126: 0.02909202264 | H126: 0.03152454575 | I126: 0.03030366154 | J126: 0.03242565969 | K126: 0.03122871253 | L126: 0.02945278877 | M126: 0.02831967213 | N126: 0.02700027551 | O126: 0.02732760695 | P126: 0.027273967 | Q126: 0.02597823008 | R126: 0.02420472273 | S126: 0.02468858083
A127: Funding (LC) | B127: 0.01383899581 | C127: 0.01802945785 | D127: 0.02414337908 | E127: 0.0265141813 | F127: 0.02875527539 | G127: 0.03416230341 | H127: 0.03663881726 | I127: 0.03319973698 | J127: 0.03400373212 | K127: 0.03265885694 | L127: 0.02903077299 | M127: 0.02840070589 | N127: 0.02787649056 | O127: 0.02709128324 | P127: 0.02739261755 | Q127: 0.02593174674 | R127: 0.02372275813 | S127: 0.0242755911
A128: Funding (FC) | B128: 0.01258794084 | C128: 0.01345422498 | D128: 0.01690445918 | E128: 0.02034324991 | F128: 0.02333430567 | G128: 0.02384947079 | H128: 0.02622067525 | I128: 0.02738260855 | J128: 0.030879444 | K128: 0.02982842337 | L128: 0.02986245921 | M128: 0.0282397941 | N128: 0.02606289733 | O128: 0.02758741873 | P128: 0.02714220879 | Q128: 0.02603294864 | R128: 0.02477606251 | S128: 0.02516255007
A131: Average Balance | B131: Quarter
B132: 1Q22 | C132: 2Q22 | D132: 3Q22 | E132: 4Q22 | F132: 1Q23 | G132: 2Q23 | H132: 3Q23 | I132: 4Q23 | J132: 1Q24 | K132: 2Q24 | L132: 32Q24 | M132: 4Q24 | N132: 1Q25 | O132: 2Q25 | P132: 3Q25 | Q132: 4Q25 | R132: 1Q26 | S132: 2Q26
A133: NIM | B133: 227279.8085 | C133: 222718.971 | D133: 225371.577 | E133: 225604.5955 | F133: 222289.504 | G133: 220651.6875 | H133: 220724.334 | I133: 223502.0565 | J133: 225297 | K133: 227162.2295 | L133: 231315 | M133: 237519 | N133: 238436 | O133: 233762 | P133: 233286 | Q133: 240784 | R133: 250942 | S133: 257562
A134: NIM (LC) | B134: 0.5803843943 | C134: 0.5882656646 | D134: 0.5714672241 | E134: 0.5655975301 | F134: 0.5685096405 | G134: 0.5730427464 | H134: 0.5765692037 | I134: 0.5756785218 | J134: 0.5801763894 | K134: 0.5741897752 | L134: 0.5568510473 | M134: 0.5473625268 | N134: 0.5558766294 | O134: 0.565374184 | P134: 0.5672607872 | Q134: 0.5664703635 | R134: 0.5640347172 | S134: 0.5646523944
A135: NIM (FC) | B135: 0.4196156057 | C135: 0.4117343354 | D135: 0.4285327759 | E135: 0.4344024699 | F135: 0.4314903595 | G135: 0.4269572536 | H135: 0.4234307963 | I135: 0.4243214782 | J135: 0.4198236106 | K135: 0.4258102248 | L135: 0.4431489527 | M135: 0.4526374732 | N135: 0.4441233706 | O135: 0.434625816 | P135: 0.4327392128 | Q135: 0.4335296365 | R135: 0.4359652828 | S135: 0.4353476056
A138: Income | B138: Quarter
B139: 1Q22 | C139: 2Q22 | D139: 3Q22 | E139: 4Q22 | F139: 1Q23 | G139: 2Q23 | H139: 3Q23 | I139: 4Q23 | J139: 1Q24 | K139: 2Q24 | L139: 32Q24 | M139: 4Q24 | N139: 1Q25 | O139: 2Q25 | P139: 3Q25 | Q139: 4Q25 | R139: 1Q26 | S139: 2Q26
A140: NIM | B140: 2533.465 | C140: 2637.106 | D140: 2882.401352 | E140: 3139.926725 | F140: 3132.089 | G140: 3204.156 | H140: 3254.043 | I140: 3347.684 | J140: 3424 | K140: 3469 | L140: 3590.538 | M140: 3629 | N140: 3572 | O140: 3616 | P140: 3688 | Q140: 3841 | R140: 3965 | S140: 4097
A141: NIM (LC) | B141: 0.8515756089 | C141: 0.8457069985 | D141: 0.8068626524 | E141: 0.7873754049 | F141: 0.7743480469 | G141: 0.7643107889 | H141: 0.7680811225 | I141: 0.7716917128 | J141: 0.7783294393 | K141: 0.7685211877 | L141: 0.7677671146 | M141: 0.7605400937 | N141: 0.7684770437 | O141: 0.7798672566 | P141: 0.7787418655 | Q141: 0.77011195 | R141: 0.7856242119 | S141: 0.7869172565
A142: NIM (FC) | B142: 0.1484243911 | C142: 0.1542930015 | D142: 0.1931373476 | E142: 0.2126245951 | F142: 0.2256519531 | G142: 0.2356892111 | H142: 0.2319188775 | I142: 0.2283082872 | J142: 0.2216705607 | K142: 0.2314788123 | L142: 0.2322328854 | M142: 0.2394599063 | N142: 0.2315229563 | O142: 0.2201327434 | P142: 0.2212581345 | Q142: 0.22988805 | R142: 0.2143757881 | S142: 0.2130827435
A145: Yields | B145: Quarter
B146: 1Q22 | C146: 2Q22 | D146: 3Q22 | E146: 4Q22 | F146: 1Q23 | G146: 2Q23 | H146: 3Q23 | I146: 4Q23 | J146: 1Q24 | K146: 2Q24 | L146: 32Q24 | M146: 4Q24 | N146: 1Q25 | O146: 2Q25 | P146: 3Q25 | Q146: 4Q25 | R146: 1Q26 | S146: 2Q26
A147: NIM | B147: 0.04458759477 | C147: 0.04736203635 | D147: 0.05115820531 | E147: 0.05567132563 | F147: 0.05636053783 | G147: 0.05808532056 | H147: 0.05897026288 | I147: 0.05991325632 | J147: 0.06079086717 | K147: 0.06108409849 | L147: 0.06208915116 | M147: 0.06111511079 | N147: 0.059923837 | O147: 0.0618748984 | P147: 0.06323568495 | Q147: 0.06380822646 | R147: 0.06320185541 | S147: 0.06362739845
A148: NIM (LC) | B148: 0.06542165595 | C148: 0.0680889741 | D148: 0.07223099329 | E148: 0.07750074961 | F148: 0.07676681148 | G148: 0.07747281936 | H148: 0.07855769162 | I148: 0.08031316376 | J148: 0.08155333864 | K148: 0.08175768003 | L148: 0.08560639091 | M148: 0.08491719804 | N148: 0.08284229031 | O148: 0.08534915218 | P148: 0.08681064579 | Q148: 0.08674677596 | R148: 0.08803165183 | S148: 0.08867313471
A149: NIM (FC) | B149: 0.01577130715 | C149: 0.01774841231 | D149: 0.02305671966 | E149: 0.0272491385 | F149: 0.02947427482 | G149: 0.03206429511 | H149: 0.03229882497 | I149: 0.03223662631 | J149: 0.03209811281 | K149: 0.03320651724 | L149: 0.03253791448 | M149: 0.0323318761 | N149: 0.03123849096 | O149: 0.03133889113 | P149: 0.03233219748 | Q149: 0.03383563087 | R149: 0.03107804245 | S149: 0.03114270171

Sheet 5.Provisions
B1: Back to index
B4: Loan Portfolio Provisions | C4: Quarter
B5: S/ 000 | C5: 1Q19 | D5: 2Q19 | E5: 3Q19 | F5: 4Q19 | G5: 1Q20 | H5: 2Q20 | I5: 3Q20 | J5: 4Q20 | K5: 1Q21 | L5: 2Q21 | M5: 3Q21 | N5: 4Q21 | O5: 1Q22 | P5: 2Q22 | Q5: 3Q22 | R5: 4Q22 | S5: 1Q23 | T5: 2Q23 | U5: 3Q23 | V5: 4Q23 | W5: 1Q24 | X5: 2Q24 | Y5: 3Q24 | Z5: 4Q24 | AA5: 1Q25 | AB5: 2Q25 | AC5: 3Q25 | AD5: 4Q25 | AE5: 1Q26 | AF5: 2Q26
B6: Gross provision for credit losses on loan portfolio | C6: -453285 | D6: -510045 | E6: -568034 | F6: -568727 | G6: -1388711 | H6: -2557658 | I6: -1348726 | J6: -785194 | K6: -622982 | L6: -441007 | M6: -265158 | N6: -229804 | O6: -350681 | P6: -447036 | Q6: -545249 | R6: -815589 | S6: -802107 | T6: -886123 | U6: -1008750 | V6: -1260163 | W6: -910189 | X6: -1193548 | Y6: -981870 | Z6: -857694 | AA6: -695733 | AB6: -683965 | AC6: -720445 | AD6: -773311 | AE6: -612011 | AF6: -854827
B7: Recoveries of written-off loans | C7: 70074 | D7: 61751 | E7: 65262 | F7: 57067 | G7: 47230 | H7: 17201 | I7: 42821 | J7: 52529 | K7: 65335 | L7: 77627 | M7: 100744 | N7: 103022 | O7: 93091 | P7: 83745 | Q7: 85273 | R7: 84908 | S7: 75109 | T7: 81872 | U7: 91108 | V7: 86709 | W7: 95490 | X7: 100177 | Y7: 113789 | Z7: 114398 | AA7: 113840 | AB7: 108806 | AC7: 117527 | AD7: 127025 | AE7: 129923 | AF7: 123619
B8: Provision for credit losses on loan portfolio, net of recoveries | C8: -383211 | D8: -448294 | E8: -502772 | F8: -511660 | G8: -1341481 | H8: -2540457 | I8: -1305905 | J8: -732665 | K8: -557647 | L8: -363380 | M8: -164414 | N8: -126782 | O8: -257590 | P8: -363291 | Q8: -459976 | R8: -730681 | S8: -726998 | T8: -804251 | U8: -917642 | V8: -1173454 | W8: -814699 | X8: -1093371 | Y8: -868081 | Z8: -743296 | AA8: -581893 | AB8: -575159 | AC8: -602918 | AD8: -646286 | AE8: -482088 | AF8: -731208
B9: Cost of risk (1) | C9: 0.01399156206 | D9: 0.01647144251 | E9: 0.01815134166 | F9: 0.01796719317 | G9: 0.04541270318 | H9: 0.08018795485 | I9: 0.03885314907 | J9: 0.02268590122 | K9: 0.0162406995 | L9: 0.01037772726 | M9: 0.004541149277 | N9: 0.003555583015 | O9: 0.007051973105 | P9: 0.009753839139 | Q9: 0.01219438926 | R9: 0.01948362024 | S9: 0.01979625816 | T9: 0.02233943199 | U9: 0.02549228533 | V9: 0.03235939379 | W9: 0.02280679468 | X9: 0.03039837105 | Y9: 0.02398715113 | Z9: 0.02062555039 | AA9: 0.01622403213 | AB9: 0.01630739452 | AC9: 0.01688170717 | AD9: 0.01754202679 | AE9: 0.01273622205 | AF9: 0.01873336706
B10: (1) Annualized Provision for credit losses on loan portfolio, net of recoveries / Total loans.
B12: Loan Portfolio Provisions | C12: As of
B13: S/ 000 | C13: 1Q19 | D13: 2Q19 | E13: 3Q19 | F13: 4Q19 | G13: 1Q20 | H13: 2Q20 | I13: 3Q20 | J13: 4Q20 | K13: 1Q21 | L13: 2Q21 | M13: 3Q21 | N13: 4Q21 | O13: Mar 22 | P13: Jun 22 | Q13: Sep 22 | R13: Dec 22 | S13: Mar 23 | T13: 2023-06-01 | U13: Sep 23 | V13: Dec 23 | W13: Mar 24 | X13: Jun 24 | Y13: Sep 24 | Z13: Dic 24 | AA13: Mar 25 | AB13: Jun 25 | AC13: Sep 25 | AD13: Dic 25 | AE13: Mar 26 | AF13: Jun 26
B14: Gross provision for credit losses on loan portfolio | C14: -453285 | D14: -510045 | E14: -568034 | F14: -568727 | G14: -1388711 | H14: -2557658 | I14: -1348726 | J14: -785194 | K14: -622982 | L14: -441007 | M14: -265158 | N14: -229804 | O14: =+O6 -> -350681 | P14: =+O6+P6 -> -797717 | Q14: =+Q6+P6+O6 -> -1342966 | R14: =+R6+Q6+P6+O6 -> -2158555 | S14: =+S6 -> -802107 | T14: =+S6+T6 -> -1688230 | U14: =+U6+T6+S6 -> -2696980 | V14: =+V6+U6+T6+S6 -> -3957143 | W14: =+W6 -> -910189 | X14: =+W6+X6 -> -2103737 | Y14: =+Y6+X6+W6 -> -3085607 | Z14: =+Z6+Y6+X6+W6 -> -3943301 | AA14: =+AA6 -> -695733 | AB14: =+AA6+AB6 -> -1379698 | AC14: =+AC6+AB6+AA6 -> -2100143 | AD14: =+AD6+AC6+AB6+AA6 -> -2873454 | AE14: =+AE6 -> -612011 | AF14: -1466838
B15: Recoveries of written-off loans | C15: 70074 | D15: 61751 | E15: 65262 | F15: 57067 | G15: 47230 | H15: 17201 | I15: 42821 | J15: 52529 | K15: 65335 | L15: 77627 | M15: 100744 | N15: 103022 | O15: =+O7 -> 93091 | P15: =+O7+P7 -> 176836 | Q15: =+Q7+P7+O7 -> 262109 | R15: =+R7+Q7+P7+O7 -> 347017 | S15: =+S7 -> 75109 | T15: =+S7+T7 -> 156981 | U15: =+U7+T7+S7 -> 248089 | V15: =+V7+U7+T7+S7 -> 334798 | W15: =+W7 -> 95490 | X15: =+W7+X7 -> 195667 | Y15: =+Y7+X7+W7 -> 309456 | Z15: =+Z7+Y7+X7+W7 -> 423854 | AA15: =+AA7 -> 113840 | AB15: =+AA7+AB7 -> 222646 | AC15: =+AC7+AB7+AA7 -> 340173 | AD15: =+AD7+AC7+AB7+AA7 -> 467198 | AE15: =+AE7 -> 129923 | AF15: 253542
B16: Provision for credit losses on loan portfolio, net of recoveries | C16: -383211 | D16: -448294 | E16: -502772 | F16: -511660 | G16: -1341481 | H16: -2540457 | I16: -1305905 | J16: -732665 | K16: -557647 | L16: -363380 | M16: -164414 | N16: -126782 | O16: -257590 | P16: -620881 | Q16: -1080857 | R16: -1811538 | S16: -726998 | T16: -1531249 | U16: -2448891 | V16: -3622345 | W16: -814699 | X16: -1908070 | Y16: -2776151 | Z16: -3519447 | AA16: -581893 | AB16: -1157052 | AC16: -1759970 | AD16: -2406256 | AE16: -482088 | AF16: -1213296
B17: Cost of risk (1) | C17: 0.01399156206 | D17: 0.01647144251 | E17: 0.01815134166 | F17: 0.01796719317 | G17: 0.04541270318 | H17: 0.08018795485 | I17: 0.03885314907 | J17: 0.02268590122 | K17: 0.0162406995 | L17: 0.01037772726 | M17: 0.004541149277 | N17: 0.003555583015 | O17: 0.007051973105 | P17: 0.0083 | Q17: 0.01 | R17: 0.012 | S17: 0.01979625816 | T17: 0.021 | U17: 0.022 | V17: 0.025 | W17: 0.02280679468 | X17: 0.026 | Y17: 0.026 | Z17: 0.02421290833 | AA17: 0.01622403213 | AB17: 0.01614335824 | AC17: 0.016 | AD17: 0.0162740333 | AE17: 0.01273622205 | AF17: 0.01568481087
B18: (1) Annualized Provision for credit losses on loan portfolio, net of recoveries / Total loans.

Sheet 6.1.Other Core Income
B1: Back to index
B3: Other Core Income | C3: Quarter
B4: (S/ 000) | C4: 1Q19 | D4: 2Q19 | E4: 3Q19 | F4: 4Q19 | G4: 1Q20 | H4: 2Q20 | I4: 3Q20 | J4: 4Q20 | K4: 1Q21 | L4: 2Q21 | M4: 3Q21 | N4: 4Q21 | O4: 1Q22 | P4: 2Q22 | Q4: 3Q22 | R4: 4Q22 | S4: 1Q23 | T4: 2Q23 | U4: 3Q23 | V4: 4Q23 | W4: 1Q24 | X4: 2Q24 | Y4: 3Q24 | Z4: 4Q24 | AA4: 1Q25 | AB4: 2Q25 | AC4: 3Q25 | AD4: 4Q25 | AE4: 1Q26 | AF4: 2Q26
B5: Fee income | C5: 782922 | D5: 787250 | E5: 815403 | F5: 847206 | G5: 760329 | H5: 503488 | I5: 775805 | J5: 873156 | K5: 830771 | L5: 862411 | M5: 876391 | N5: 924161 | O5: 891628 | P5: 920950 | Q5: 934984 | R5: 895295 | S5: 881781 | T5: 960550 | U5: 975955 | V5: 986173 | W5: 856565 | X5: 947228 | Y5: 982818 | Z5: 973339 | AA5: 994024 | AB5: 1024553 | AC5: 1063032 | AD5: 1118110 | AE5: 1149284 | AF5: 1187608
B6: Net gain on foreign exchange transactions | C6: 178423 | D6: 188358 | E6: 188073 | F6: 193528 | G6: 166983 | H6: 149308 | I6: 155028 | J6: 151464 | K6: 179889 | L6: 238440 | M6: 246649 | N6: 263017 | O6: 259710 | P6: 269059 | Q6: 262167 | R6: 293215 | S6: 248515 | T6: 210944 | U6: 208620 | V6: 218047 | W6: 305370 | X6: 349349 | Y6: 319856 | Z6: 385230 | AA6: 343814 | AB6: 377016 | AC6: 394572 | AD6: 426916 | AE6: 448884 | AF6: 489479
B7: Total other income Core | C7: =+C6+C5 -> 961345 | D7: =+D6+D5 -> 975608 | E7: =+E6+E5 -> 1003476 | F7: 1040734 | G7: 927312 | H7: 652796 | I7: 930833 | J7: 1024620 | K7: 1010660 | L7: 1100851 | M7: 1123040 | N7: 1187178 | O7: =+SUM(O5:O6) -> 1151338 | P7: 1190009 | Q7: 1197151 | R7: 1188510 | S7: 1130296 | T7: 1171494 | U7: 1184575 | V7: 1204220 | W7: 1161935 | X7: 1296577 | Y7: 1302674 | Z7: 1358569 | AA7: 1337838 | AB7: 1401569 | AC7: 1457604 | AD7: 1545026 | AE7: 1598168 | AF7: 1677087
B9: Other Core Income | C9: Year | O9: As of
B10: (S/ 000) | C10: 2019 | D10: 2020 | E10: 2021 | F10: 2022 | G10: 2023 | H10: 2024 | O10: Mar 22 | P10: Jun 22 | Q10: Sep 22 | R10: Dec 22 | S10: Mar 23 | T10: Jun 23 | U10: Sep 23 | V10: Dec 23 | W10: Mar 24 | X10: Jun 24 | Y10: Sep 24 | Z10: Dic 24 | AA10: Mar 25 | AB10: Jun 25 | AC10: Set 25 | AD10: Dic 25 | AE10: Mar 26 | AF10: Jun 26
B11: Fee income | C11: 3232781 | D11: 2912778 | E11: 3493734 | F11: 3642857 | G11: 3804459 | H11: =+'12.5.1.Credicorp Consolidated '!BP100 -> 0 | O11: =+O5 -> 891628 | P11: =+O5+P5 -> 1812578 | Q11: =+Q5+O5 -> 1826612 | R11: =+R5+Q5+P5+O5 -> 3642857 | S11: =+S5 -> 881781 | T11: =+S5+T5 -> 1842331 | U11: =+U5+S5 -> 1857736 | V11: =+V5+U5+T5+S5 -> 3804459 | W11: =+W5 -> 856565 | X11: =+W5+X5 -> 1803793 | Y11: =+Y5+W5 -> 1839383 | Z11: =+Z5+Y5+X5+W5 -> 3759950 | AA11: =+AA5 -> 994024 | AB11: =+AA5+AB5 -> 2018577 | AC11: =+AC5+AA5+AB5 -> 3081609 | AD11: =+AD5+AC5+AB5+AA5 -> 4199719 | AE11: =+AE5 -> 1149284 | AF11: =AE5+AF5 -> 2336892
B12: Net gain on foreign exchange transactions | C12: 748382 | D12: 622783 | E12: 922917 | F12: 1084151 | G12: 886126 | H12: =+'12.5.1.Credicorp Consolidated '!BP101 -> 0 | O12: =+O6 -> 259710 | P12: =+O6+P6 -> 528769 | Q12: =+Q6+O6 -> 521877 | R12: =+R6+Q6+P6+O6 -> 1084151 | S12: =+S6 -> 248515 | T12: =+S6+T6 -> 459459 | U12: =+U6+S6 -> 457135 | V12: =+V6+U6+T6+S6 -> 886126 | W12: =+W6 -> 305370 | X12: =+W6+X6 -> 654719 | Y12: =+Y6+W6 -> 625226 | Z12: =+Z6+Y6+X6+W6 -> 1359805 | AA12: =+AA6 -> 343814 | AB12: =+AA6+AB6 -> 720830 | AC12: =+AC6+AA6+AB6 -> 1115402 | AD12: =+AD6+AC6+AB6+AA6 -> 1542318 | AE12: =+AE6 -> 448884 | AF12: =AE6+AF6 -> 938363
B13: Total other income Core | C13: =+C12+C11 -> 3981163 | D13: =+D12+D11 -> 3535561 | E13: 4416651 | F13: 4726265 | G13: 4690585 | H13: =+SUM(H11:H12) -> 0 | O13: =+SUM(O11:O12) -> 1151338 | P13: =+SUM(P11:P12) -> 2341347 | Q13: 2348489 | R13: 4727008 | S13: 1130296 | T13: 2301790 | U13: 2314871 | V13: 4690585 | W13: 1161935 | X13: 2458512 | Y13: 2464609 | Z13: 5119755 | AA13: 1337838 | AB13: 2739407 | AC13: 4197011 | AD13: =+SUM(AD11:AD12) -> 5742037 | AE13: =SUM(AE11:AE12) -> 1598168 | AF13: =SUM(AF11:AF12) -> 3275255
B16: Fee Income by Subsidiary | C16: Quarter
B17: (S/ 000) | C17: 1Q19 | D17: 2Q19 | E17: 3Q19 | F17: 4Q19 | G17: 1Q20 | H17: 2Q20 | I17: 3Q20 | J17: 4Q20 | K17: 1Q21 | L17: 2Q21 | M17: 3Q21 | N17: 4Q21 | O17: 1Q22 | P17: 2Q22 | Q17: 3Q22 | R17: 4Q22 | S17: 1Q23 | T17: 2Q23 | U17: 3Q23 | V17: 4Q23 | W17: 1Q24 | X17: 2Q24 | Y17: 3Q24 | Z17: 4Q24 | AA17: 1Q25 | AB17: 2Q25 | AC17: 3Q25 | AD17: 4Q25 | AE17: 1Q26 | AF17: 2Q26
B18: BCP Stand-Alone | C18: 595712.4725 | D18: 600784.458 | E18: 622749.5481 | F18: 640298.3672 | G18: 578583 | H18: 379049 | I18: 568394 | J18: 636331 | K18: 614423 | L18: 637821 | M18: 669583 | N18: 719474 | O18: 706861 | P18: 727644 | Q18: 761968 | R18: 741992 | S18: 698207 | T18: 723230 | U18: 757688 | V18: 748270 | W18: =771463-66835 -> 704628 | X18: =812504-70149-1 -> 742354 | Y18: =879995-75937 -> 804058 | Z18: =888292-79232 -> 809060 | AA18: 831427 | AB18: 853720 | AC18: 873187 | AD18: 924682 | AE18: 961546 | AF18: 970331
B19: BCP Bolivia | C19: 21974.87837 | D19: 27033.62888 | E19: 31827.25807 | F19: 27268.93277 | G19: 26350 | H19: 24070 | I19: 30190 | J19: 35041 | K19: 34532 | L19: 30559 | M19: 30494 | N19: 26852 | O19: 26244 | P19: 25469 | Q19: 26296 | R19: 24479 | S19: 50134 | T19: 95027 | U19: 84941 | V19: 104959 | W19: =153969-139101 -> 14868 | X19: =152567-131452 -> 21115 | Y19: =67939-49559 -> 18380 | Z19: =65174-50977 -> 14197 | AA19: 12844 | AB19: 14552 | AC19: 10244 | AD19: 14535 | AE19: 17281 | AF19: 12443
B20: Mibanco | C20: 36605.21896 | D20: 35170.07674 | E20: 38384.49258 | F20: 39560.04316 | G20: 23533 | H20: 639 | I20: 3639 | J20: 57091 | K20: 17647 | L20: 10726 | M20: 18583 | N20: 29776 | O20: 24746 | P20: 25381 | Q20: 22028 | R20: 24799 | S20: 28691 | T20: 30984 | U20: 26550 | V20: 24402 | W20: 24173 | X20: 21773 | Y20: 18412 | Z20: 24108 | AA20: 28339 | AB20: 27633 | AC20: 28873 | AD20: 31596 | AE20: 34270 | AF20: 38447
B21: Mibanco Colombia | F21: 2471.362916 | G21: 6475 | H21: 4269 | I21: 6151 | J21: 11088 | K21: 5436 | L21: 5986 | M21: 7463 | N21: 8042 | O21: 8530 | P21: 9809 | Q21: 10230 | R21: 9365 | S21: 9074 | T21: 10724 | U21: 12670 | V21: 10082 | W21: 11250 | X21: 11042 | Y21: 12333 | Z21: 11356 | AA21: 9126 | AB21: 12395 | AC21: 14314 | AD21: 16744 | AE21: 17488 | AF21: 23128
B22: Pacífico | C22: -1833.40599 | D22: -2302.64255 | E22: -3131.33493 | F22: -3218.81449 | G22: -2495 | H22: -2377 | I22: -2636 | J22: -3280 | K22: -3150 | L22: -2892 | M22: -3567 | N22: -3056 | O22: -2784 | P22: -2375 | Q22: -2520 | R22: -2556 | S22: -3131 | T22: -3499 | U22: -2415 | V22: -2577 | W22: -3199 | X22: -2488 | Y22: -3218 | Z22: -3115 | AA22: -3757 | AB22: -6287 | AC22: -5123 | AD22: -4033 | AE22: -5204 | AF22: -4638
B23: Prima | C23: 99757.56159 | D23: 105866.5976 | E23: 97098.65087 | F23: 100566.626 | G23: 103233 | H23: 72296 | I23: 89242 | J23: 87314 | K23: 97600 | L23: 97332 | M23: 94620 | N23: 88887 | O23: 93154 | P23: 98744 | Q23: 94010 | R23: 85760 | S23: 89496 | T23: 88408 | U23: 85485 | V23: 87457 | W23: 94528 | X23: 99103 | Y23: 90748 | Z23: 88102 | AA23: 94072 | AB23: 97233 | AC23: 95006 | AD23: 97023 | AE23: 91195 | AF23: 94901
B24: ASB | C24: 10270.67354 | D24: 11915.48601 | E24: 11923.37951 | F24: 11549.54485 | G24: 8412 | H24: 6772 | I24: 10024 | J24: 6101 | K24: 11858 | L24: 21590 | M24: 24545 | N24: 27643 | O24: 18785 | P24: 18126 | Q24: 15593 | R24: 12880 | S24: 15254 | T24: 16878 | U24: 16428 | V24: 10704 | W24: 17062 | X24: 15485 | Y24: 15760 | Z24: 15170 | AA24: 13826 | AB24: 12841 | AC24: 12615 | AD24: 13992 | AE24: 13596 | AF24: 11174
B25: Credicorp Capital | C25: 94650.18082 | D25: 90644.1338 | E25: 96585.94179 | F25: 113291.9741 | G25: 104251.4628 | H25: 86829.60901 | I25: 133468.8416 | J25: 150734.1666 | K25: 135600.2088 | L25: 147357.179 | M25: 124355.9125 | N25: 128349.8266 | O25: 118928.9534 | P25: 120478.0466 | Q25: 118380 | R25: 111981 | S25: 107158 | T25: 115900 | U25: 110754 | V25: 137092 | W25: 128148 | X25: 153482 | Y25: 141657 | Z25: 131199 | AA25: 136264 | AB25: 134297 | AC25: 148115 | AD25: 153872 | AE25: 161001 | AF25: 171304
B26: Eliminations and Other | C26: -74215.57979 | D26: -81861.73853 | E26: -80034.93596 | F26: -84582.03652 | G26: -88013.46284 | H26: -68059.60901 | I26: -62666.84161 | J26: -107265.1666 | K26: -83175.20879 | L26: -86068.17895 | M26: -89685.91254 | N26: -101806.8266 | O26: -102836.9534 | P26: -102326.0466 | Q26: -111001 | R26: -113405 | S26: -113102 | T26: -117102 | U26: -116146 | V26: -134216 | W26: -134893 | X26: -114638 | Y26: -115312 | Z26: =-116738 -> -116738 | AA26: -128117 | AB26: -121831 | AC26: -114199 | AD26: -130301 | AE26: -141889 | AF26: -129482
B27: Total Fee Income | C27: 782922 | D27: 787250 | E27: 815403 | F27: 847206 | G27: 760329 | H27: 503488 | I27: 775806 | J27: 873156 | K27: 830771 | L27: 862411 | M27: 876391 | N27: 924161 | O27: 891628 | P27: 920950 | Q27: 934984 | R27: 895295 | S27: 881781 | T27: 960550 | U27: 975955 | V27: 986173 | W27: =+SUM(W18:W26) -> 856565 | X27: 947228 | Y27: 982818 | Z27: 973339 | AA27: 994024 | AB27: 1024553 | AC27: 1063032 | AD27: 1118110 | AE27: 1149284 | AF27: =+SUM(AF18:AF26) -> 1187608
O28: =+O27-'12.5.1.Credicorp Consolidated '!AX100 -> 0 | P28: =+P27-'12.5.1.Credicorp Consolidated '!AY100 -> 0 | Q28: =+Q27-'12.5.1.Credicorp Consolidated '!AZ100 -> 0 | R28: =+R27-'12.5.1.Credicorp Consolidated '!BA100 -> 0 | S28: =+S27-'12.5.1.Credicorp Consolidated '!BB100 -> 0 | T28: =+T27-'12.5.1.Credicorp Consolidated '!BC100 -> 0 | U28: =+U27-'12.5.1.Credicorp Consolidated '!BD100 -> 0 | V28: =+V27-'12.5.1.Credicorp Consolidated '!BE100 -> 0 | W28: =+W27-'12.5.1.Credicorp Consolidated '!BF100 -> 0 | X28: =+X27-'12.5.1.Credicorp Consolidated '!BG100 -> 0 | Y28: =+Y27-'12.5.1.Credicorp Consolidated '!BH100 -> 0 | Z28: =+Z27-'12.5.1.Credicorp Consolidated '!BI100 -> 0 | AA28: =+AA27-'12.5.1.Credicorp Consolidated '!BJ100 -> 0 | AB28: =+AB27-'12.5.1.Credicorp Consolidated '!BK100 -> 0 | AC28: =+AC27-'12.5.1.Credicorp Consolidated '!BL100 -> 0 | AD28: =+AD27-'12.5.1.Credicorp Consolidated '!BM100 -> 0 | AE28: =+AE27-'12.5.1.Credicorp Consolidated '!BN100 -> 0 | AF28: =+AF27-'12.5.1.Credicorp Consolidated '!BO100 -> 0
B29: Fee Income by Subsidiary | C29: =+C9 -> Year | O29: As of
B30: (S/ 000) | C30: 2019 | D30: 2020 | E30: 2021 | F30: 2022 | G30: 2023 | H30: 2024 | O30: Mar 22 | P30: Jun 22 | Q30: Sep 22 | R30: Dec 22 | S30: Mar 23 | T30: Jun 23 | U30: Sep 23 | V30: Dec 23 | W30: Mar 24 | X30: Jun 24 | Y30: Sep 24 | Z30: Dic 24 | AA30: Mar 25 | AB30: Jun 25 | AC30: Sep 25 | AD30: Dic 25 | AE30: Mar 26 | AF30: Jun 26
B31: BCP Stand-Alone | C31: 2459544.846 | D31: 2162357 | E31: 2641301 | F31: 2938465 | G31: 2927395 | H31: 3060101 | O31: =+O18 -> 706861 | P31: =+O18+P18 -> 1434505 | Q31: =+Q18+P18+O18 -> 2196473 | R31: =+R18+Q18+P18+O18 -> 2938465 | S31: =+S18 -> 698207 | T31: =+S18+T18 -> 1421437 | U31: =+U18+T18+S18 -> 2179125 | V31: =+V18+U18+T18+S18 -> 2927395 | W31: =+W18 -> 704628 | X31: =+W18+X18 -> 1446982 | Y31: =+Y18+X18+W18 -> 2251040 | Z31: =+Z18+Y18+X18+W18 -> 3060100 | AA31: =+AA18 -> 831427 | AB31: =+AA18+AB18 -> 1685147 | AC31: =+AC18+AB18+AA18 -> 2558334 | AD31: =+AD18+AC18+AB18+AA18 -> 3483016 | AE31: =+AE18 -> 961546 | AF31: =+AE18+AF18 -> 1931877
B32: BCP Bolivia | C32: 108104.6981 | D32: 115651 | E32: 122437 | F32: 102488 | G32: 335061 | H32: 68560 | O32: =+O19 -> 26244 | P32: =+O19+P19 -> 51713 | Q32: =+Q19+P19+O19 -> 78009 | R32: =+R19+Q19+P19+O19 -> 102488 | S32: =+S19 -> 50134 | T32: =+S19+T19 -> 145161 | U32: =+U19+T19+S19 -> 230102 | V32: =+V19+U19+T19+S19 -> 335061 | W32: =+W19 -> 14868 | X32: =+W19+X19 -> 35983 | Y32: =+Y19+X19+W19 -> 54363 | Z32: =+Z19+Y19+X19+W19 -> 68560 | AA32: =+AA19 -> 12844 | AB32: =+AA19+AB19 -> 27396 | AC32: =+AC19+AB19+AA19 -> 37640 | AD32: =+AD19+AC19+AB19+AA19 -> 52175 | AE32: =+AE19 -> 17281 | AF32: 29724
B33: Mibanco | C33: 149719.8314 | D33: 84902 | E33: 76732 | F33: 96954 | G33: 110627 | H33: 88466 | O33: 24746 | P33: 50127 | Q33: 72155 | R33: 96954 | S33: 28691 | T33: 59675 | U33: 86225 | V33: 110627 | W33: 24173 | X33: 45946 | Y33: 64358 | Z33: 88466 | AA33: 28339 | AB33: 55972 | AC33: 84845 | AD33: 116441 | AE33: 34270 | AF33: =+AE20+AF20 -> 72717
B34: Mibanco Colombia | C34: 2471.362916 | D34: 27983 | E34: 26927 | F34: 37934 | G34: 42550 | H34: 45982 | O34: 8530 | P34: 18339 | Q34: 28569 | R34: 37934 | S34: 9074 | T34: 19798 | U34: 32468 | V34: 42550 | W34: 11250 | X34: 22292 | Y34: 34625 | Z34: 45981 | AA34: 9126 | AB34: 21521 | AC34: 35835 | AD34: 52579 | AE34: 17488 | AF34: 40616
B35: Pacífico | C35: -10486.19796 | D35: -10788 | E35: -12665 | F35: -10235 | G35: -11622 | H35: -12020 | O35: -2784 | P35: -5159 | Q35: -7679 | R35: -10235 | S35: -3131 | T35: -6630 | U35: -9045 | V35: -11622 | W35: -3199 | X35: -5687 | Y35: -8905 | Z35: -12020 | AA35: -3757 | AB35: -10044 | AC35: -15167 | AD35: -19200 | AE35: -5204 | AF35: =+AE22+AF22 -> -9842
B36: Prima | C36: 403289.436 | D36: 352085 | E36: 378439 | F36: 371668 | G36: 350846 | H36: 372480 | O36: 93154 | P36: 191898 | Q36: 285908 | R36: 371668 | S36: 89496 | T36: 177904 | U36: 263389 | V36: 350846 | W36: 94528 | X36: 193631 | Y36: 284379 | Z36: 372481 | AA36: 94072 | AB36: 191305 | AC36: 286311 | AD36: 383334 | AE36: 91195 | AF36: 186096
B37: ASB | C37: 45659.08391 | D37: 31309 | E37: 85636 | F37: 65384 | G37: 59264 | H37: 63477 | O37: 18785 | P37: 36911 | Q37: 52504 | R37: 65384 | S37: 15254 | T37: 32132 | U37: 48560 | V37: 59264 | W37: 17062 | X37: 32547 | Y37: 48307 | Z37: 63477 | AA37: 13826 | AB37: 26667 | AC37: 39282 | AD37: 53274 | AE37: 13596 | AF37: 24770
B38: Credicorp Capital | C38: 395172.2305 | D38: 475284.08 | E38: 535663.1269 | F38: 469768 | G38: 470904 | H38: 554486 | O38: 118928.9534 | P38: 239407 | Q38: 357787 | R38: 469768 | S38: 107158 | T38: 223058 | U38: 333812 | V38: 470904 | W38: 128148 | X38: 281630 | Y38: 423287 | Z38: 554486 | AA38: 136264 | AB38: 270561 | AC38: 418676 | AD38: 572548 | AE38: 161001 | AF38: 332305
B39: Eliminations and Other | C39: -320694.2908 | D39: -326005.08 | E39: -360736.1269 | F39: -429569 | G39: -480566 | H39: -481582 | O39: -102836.9534 | P39: -205163 | Q39: -316164 | R39: -429569 | S39: -113102 | T39: -230204 | U39: -346350 | V39: -480566 | W39: -134893 | X39: -249531 | Y39: -364843 | Z39: -481581 | AA39: -128117 | AB39: -249948 | AC39: -364147 | AD39: -494448 | AE39: -141889 | AF39: -271371
B40: Total Fee Income | C40: 3232781 | D40: 2912779 | E40: 3493734 | F40: 3642857 | G40: 3804459 | H40: =+SUM(H31:H39) -> 3759950 | O40: =+SUM(O31:O39) -> 891628 | P40: =+SUM(P31:P39) -> 1812578 | Q40: 2747562 | R40: 3642857 | S40: 881781 | T40: 1842331 | U40: 2818286 | V40: 3804459 | W40: 856565 | X40: 1803793 | Y40: 2786611 | Z40: 3759950 | AA40: 994024 | AB40: 2018577 | AC40: 3081609 | AD40: 4199719 | AE40: 1149284 | AF40: =+SUM(AF31:AF39) -> 2336892
O42: =+O40-'12.5.1.Credicorp Consolidated '!AX154 -> 0 | P42: =+P40-'12.5.1.Credicorp Consolidated '!AY154 -> 0 | Q42: =+Q40-'12.5.1.Credicorp Consolidated '!AZ154 -> 0 | R42: =+R40-'12.5.1.Credicorp Consolidated '!BA154 -> 0 | S42: =+S40-'12.5.1.Credicorp Consolidated '!BB154 -> 0 | T42: =+T40-'12.5.1.Credicorp Consolidated '!BC154 -> 0 | U42: =+U40-'12.5.1.Credicorp Consolidated '!BD154 -> 0 | V42: =+V40-'12.5.1.Credicorp Consolidated '!BE154 -> 0 | W42: =+W40-'12.5.1.Credicorp Consolidated '!BF154 -> 0 | X42: =+X40-'12.5.1.Credicorp Consolidated '!BG154 -> 0 | Y42: =+Y40-'12.5.1.Credicorp Consolidated '!BH154 -> 0 | Z42: =+Z40-'12.5.1.Credicorp Consolidated '!BI154 -> 0 | AA42: =+AA40-'12.5.1.Credicorp Consolidated '!BJ154 -> 0 | AB42: =+AB40-'12.5.1.Credicorp Consolidated '!BK154 -> 0 | AC42: =+AC40-'12.5.1.Credicorp Consolidated '!BL154 -> 0 | AD42: =+AD40-'12.5.1.Credicorp Consolidated '!BM154 -> 0 | AE42: =+AE40-'12.5.1.Credicorp Consolidated '!BN154 -> 0 | AF42: =+AF40-'12.5.1.Credicorp Consolidated '!BO154 -> 0

Sheet 6.2.Other Non-Core Income
B1: Back to index
B4: Other Non-Core Income | C4: Quarter | T4: Quarter
B5: (S/ 000) | C5: 1Q19 | D5: 2Q19 | E5: 3Q19 | F5: 4Q19 | G5: 1Q20 | H5: 2Q20 | I5: 3Q20 | J5: 4Q20 | K5: 1Q21 | L5: 2Q21 | M5: 3Q21 | N5: 4Q21 | O5: 1Q22 | P5: 2Q22 | Q5: 3Q22 | R5: 4Q22 | T5: 1Q22 | U5: 2Q22 | V5: 3Q22 | W5: 4Q22 | X5: 1Q23 | Y5: 2Q23 | Z5: 3Q23 | AA5: 4Q23 | AB5: 1Q24 | AC5: 2Q24 | AD5: 3Q24 | AE5: 4Q24 | AF5: 1Q25 | AG5: 2Q25 | AH5: 3Q25 | AI5: 4Q25 | AJ5: 1Q26 | AK5: 2Q26
B6: Net gain (loss) on securities | C6: 113545 | D6: 100987 | E6: 150427 | F6: 102011 | G6: -120633 | H6: 280563 | I6: 135957 | J6: 162523 | K6: 16287 | L6: -69947 | M6: 5739 | N6: 2550 | O6: -56866 | P6: -94180 | Q6: -25459 | R6: 77512 | T6: -56866 | U6: -94180 | V6: -25460 | W6: 77512 | X6: 70036 | Y6: 68603 | Z6: 53591 | AA6: 115825 | AB6: 61745 | AC6: 92711 | AD6: 120033 | AE6: -47377 | AF6: -28149 | AG6: 179174 | AH6: 111977 | AI6: 96280 | AJ6: 135637 | AK6: 248844
B7: Net gain from associates (1) | C7: 14786 | D7: 20478 | E7: 21842 | F7: 22738 | G7: 19225 | H7: 14906 | I7: 11245 | J7: 19296 | K7: 29405 | L7: 12302 | M7: 19090 | N7: 13224 | O7: 24014 | P7: 29219 | Q7: 25806 | R7: 25422 | T7: 24014 | U7: 29219 | V7: 25806 | W7: 25422 | X7: 27212 | Y7: 23689 | Z7: 32056 | AA7: 34132 | AB7: 32295 | AC7: 28728 | AD7: 35600 | AE7: 38560 | AF7: 24068 | AG7: 6556 | AH7: 5192 | AI7: 5588 | AJ7: 9296 | AK7: 6156
B8: Net gain (loss) on derivatives held for trading | C8: -2434 | D8: -724 | E8: 2158 | F8: 7043 | G8: 35430 | H8: 8358 | I8: -21297 | J8: 18298 | K8: 69723 | L8: 52606 | M8: 43365 | N8: 46546 | O8: -5982 | P8: 12304 | Q8: 53008 | R8: 5857 | T8: -5982 | U8: 12304 | V8: 53008 | W8: 5857 | X8: -6570 | Y8: 16671 | Z8: 38545 | AA8: 5019 | AB8: 39984 | AC8: 41748 | AD8: =93801-97300 -> -3499 | AE8: =188301-110338-1 -> 77962 | AF8: 18499 | AG8: 21418 | AH8: 244 | AI8: 11756 | AJ8: 27463 | AK8: -14697
B9: Net gain (loss) from exchange differences | C9: 13490 | D9: 63 | E9: -11775 | F9: 17957 | G9: -20849 | H9: 23845 | I9: 6530 | J9: 10278 | K9: -5536 | L9: 32959 | M9: -4809 | N9: -22083 | O9: -17060 | P9: -17066 | Q9: -4071 | R9: 22039 | T9: -8363 | U9: -18441 | V9: -5917 | W9: 33108 | X9: 22963 | Y9: 2996 | Z9: 4564 | AA9: 15255 | AB9: -5621 | AC9: -7933 | AD9: -6139 | AE9: -21365 | AF9: 15959 | AG9: 10195 | AH9: 7518 | AI9: 8319 | AJ9: 8557 | AK9: 44160
B10: Other non-financial income | C10: 75605 | D10: 98703 | E10: 133128 | F10: 74713 | G10: 117770 | H10: 35195 | I10: 39498 | J10: 94518 | K10: 73991 | L10: 62923 | M10: 52258 | N10: 76748 | O10: 147902 | P10: 84152 | Q10: 64890 | R10: 32064 | T10: 135257 | U10: 78673 | V10: 56664 | W10: -2548 | X10: 89338 | Y10: 149671 | Z10: 89272 | AA10: 112372 | AB10: 102221 | AC10: 139499 | AD10: 96675 | AE10: 176384 | AF10: 322001 | AG10: 58461 | AH10: 71656 | AI10: 132530 | AJ10: 77203 | AK10: 80652
B11: Total other Non-Core Income | C11: =+SUM(C6:C10) -> 214992 | D11: =+SUM(D6:D10) -> 219507 | E11: =+SUM(E6:E10) -> 295780 | F11: 224462 | G11: 30943 | H11: 362867 | I11: 171933 | J11: 304913 | K11: 183870 | L11: 90843 | M11: 115643 | N11: 116985 | O11: =+SUM(O6:O10) -> 92008 | P11: 14429 | Q11: 114174 | R11: 162894 | T11: 88059 | U11: 7575 | V11: 104101 | W11: 139351 | X11: 202979 | Y11: 261630 | Z11: 218028 | AA11: 282603 | AB11: 230624 | AC11: 294753 | AD11: =+SUM(AD6:AD10) -> 242670 | AE11: =+SUM(AE6:AE10) -> 224164 | AF11: =+SUM(AF6:AF10) -> 352378 | AG11: =+SUM(AG6:AG10) -> 275804 | AH11: =+SUM(AH6:AH10) -> 196587 | AI11: 254473 | AJ11: 258156 | AK11: =+SUM(AK6:AK10) -> 365115
B12: (1) Includes gains on other investments, mainly made up of the profit of Banmedica. | T12: (1) Includes gains on other investments, mainly made up of the profit of Banmedica.
B13: (2) It differs from what was previously reported by reclassification of IFRS16. | T13: (2) It differs from what was previously reported by reclassification of IFRS16.
B15: Other Non-Core Income | C15: As of | T15: As of
B16: (S/ 000) | C16: 1Q19 | D16: 2Q19 | E16: 3Q19 | F16: 4Q19 | G16: 1Q20 | H16: 2Q20 | I16: 3Q20 | J16: 4Q20 | K16: 1Q21 | L16: 2Q21 | M16: 3Q21 | N16: 4Q21 | O16: 1Q22 | P16: 2Q22 | Q16: 3Q22 | R16: 4Q22 | T16: Mar 22 | U16: Jun 22 | V16: Sep 22 | W16: Dec 22 | X16: Mar 23 | Y16: Jun 23 | Z16: Sep 23 | AA16: Dec 23 | AB16: Mar 24 | AC16: Jun 24 | AD16: Sep 24 | AE16: Dic 24 | AF16: Mar 25 | AG16: Jun 25 | AH16: Set 25 | AI16: Dic 25 | AJ16: Mar 26 | AK16: Jun 26
B17: Net gain (loss) on securities | C17: 113545 | D17: 100987 | E17: 150427 | F17: 102011 | G17: -120633 | H17: 280563 | I17: 135957 | J17: 162523 | K17: 16287 | L17: -69947 | M17: 5739 | N17: 2550 | O17: -56866 | P17: -94180 | Q17: -25459 | R17: 77512 | T17: =+T6 -> -56866 | U17: =+U6+T6 -> -151046 | V17: =+V6+U6+T6 -> -176506 | W17: =+W6+V6+U6+T6 -> -98994 | X17: =+X6 -> 70036 | Y17: =+Y6+X6 -> 138639 | Z17: =+Z6+Y6+X6 -> 192230 | AA17: =+AA6+Z6+Y6+X6 -> 308055 | AB17: =+AB6 -> 61745 | AC17: =+AC6+AB6 -> 154456 | AD17: =+AD6+AC6+AB6 -> 274489 | AE17: =+AE6+AD6+AC6+AB6 -> 227112 | AF17: =+AF6 -> -28149 | AG17: =+AG6+AF6 -> 151025 | AH17: =+AH6+AG6+AF6 -> 263002 | AI17: =+AI6+AH6+AG6+AF6 -> 359282 | AJ17: =+AJ6 -> 135637 | AK17: =AJ6+AK6 -> 384481
B18: Net gain from associates (1) | C18: 14786 | D18: 20478 | E18: 21842 | F18: 22738 | G18: 19225 | H18: 14906 | I18: 11245 | J18: 19296 | K18: 29405 | L18: 12302 | M18: 19090 | N18: 13224 | O18: 24014 | P18: 29219 | Q18: 25806 | R18: 25422 | T18: =+T7 -> 24014 | U18: =+U7+T7 -> 53233 | V18: =+V7+U7+T7 -> 79039 | W18: =+W7+V7+U7+T7 -> 104461 | X18: =+X7 -> 27212 | Y18: =+Y7+X7 -> 50901 | Z18: =+Z7+Y7+X7 -> 82957 | AA18: =+AA7+Z7+Y7+X7 -> 117089 | AB18: =+AB7 -> 32295 | AC18: =+AC7+AB7 -> 61023 | AD18: =+AD7+AC7+AB7 -> 96623 | AE18: =+AE7+AD7+AC7+AB7 -> 135183 | AF18: =+AF7 -> 24068 | AG18: =+AG7+AF7 -> 30624 | AH18: =+AH7+AG7+AF7 -> 35816 | AI18: =+AI7+AH7+AG7+AF7 -> 41404 | AJ18: =+AJ7 -> 9296 | AK18: =AJ7+AK7 -> 15452
B19: Net gain (loss) on derivatives held for trading | C19: -2434 | D19: -724 | E19: 2158 | F19: 7043 | G19: 35430 | H19: 8358 | I19: -21297 | J19: 18298 | K19: 69723 | L19: 52606 | M19: 43365 | N19: 46546 | O19: -5982 | P19: 12304 | Q19: 53008 | R19: 5857 | T19: -5982 | U19: 6322 | V19: 59330 | W19: 65187 | X19: -6570 | Y19: 10101 | Z19: 48646 | AA19: 53665 | AB19: 39984 | AC19: 81732 | AD19: 78233 | AE19: 156195 | AF19: 18499 | AG19: =+AG8+AF8 -> 39917 | AH19: 40161 | AI19: 51917 | AJ19: =+AJ8 -> 27463 | AK19: 12766
B20: Net gain (loss) from exchange differences | C20: 13490 | D20: 63 | E20: -11775 | F20: 17957 | G20: -20849 | H20: 23845 | I20: 6530 | J20: 10278 | K20: -5536 | L20: 32959 | M20: -4809 | N20: -22083 | O20: -17060 | P20: -17066 | Q20: -4071 | R20: 22039 | T20: -8363 | U20: -26804 | V20: -32721 | W20: 387 | X20: 22963 | Y20: 25959 | Z20: 30523 | AA20: 45778 | AB20: -5621 | AC20: -13554 | AD20: -19693 | AE20: -41058 | AF20: 15959 | AG20: 26154 | AH20: 33672 | AI20: 41991 | AJ20: 8557 | AK20: 52717
B21: Other non-financial income | C21: 75605 | D21: 98703 | E21: 133128 | F21: 74713 | G21: 117770 | H21: 35195 | I21: 39498 | J21: 94518 | K21: 73991 | L21: 62923 | M21: 52258 | N21: 76748 | O21: 147902 | P21: 84152 | Q21: 64890 | R21: 32064 | T21: 135257 | U21: 213930 | V21: 270594 | W21: 268046 | X21: 89338 | Y21: 239009 | Z21: 328281 | AA21: 440653 | AB21: 102221 | AC21: 241720 | AD21: 338395 | AE21: 514779 | AF21: 322001 | AG21: 380462 | AH21: 452118 | AI21: 584648 | AJ21: 77203 | AK21: 157855
B22: Total other Non-Core Income | C22: =+SUM(C17:C21) -> 214992 | D22: 219507 | E22: 295780 | F22: 224462 | G22: 30943 | H22: 362867 | I22: 171933 | J22: 304913 | K22: 183870 | L22: 90843 | M22: 115643 | N22: 116985 | O22: =+SUM(O17:O21) -> 92008 | P22: 14429 | Q22: 114174 | R22: 162894 | T22: =+SUM(T17:T21) -> 88060 | U22: =+SUM(U17:U21) -> 95635 | V22: 199736 | W22: 339087 | X22: 202979 | Y22: 464609 | Z22: 682637 | AA22: 965240 | AB22: 230624 | AC22: 525377 | AD22: 768047 | AE22: 992211 | AF22: 352378 | AG22: 628182 | AH22: 824769 | AI22: 1079242 | AJ22: 258156 | AK22: =+SUM(AK17:AK21) -> 623271
B23: (1) Includes gains on other investments, mainly made up of the profit of Banmedica.
B24: (2) It differs from what was previously reported by reclassification of IFRS16.

Sheet 7.Underwriting Results
C1: Back to index
C3: (Under IFRS 4) | Y3: (Under IFRS 17)
B4: Insurance underwriting result (1) | D4: Quarter | T4: As of | Y4: Insurance Underwriting Result | AA4: Quarter | AT4: As of
B5: S/ 000 | Y5: S/ 000 | AA5: 1Q22 | AB5: 2Q22 | AC5: 3Q22 | AD5: 4Q22 | AE5: 1Q23 | AF5: 2Q23 | AG5: 3Q23 | AH5: 4Q23 | AI5: 1Q24 | AJ5: 2Q24 | AK5: 3Q24 | AL5: 4Q24 | AM5: 1Q25 | AN5: 2Q25 | AO5: 3Q24 | AP5: 4Q25 | AQ5: 1Q26 | AR5: 2Q26 | AT5: 2022 | AU5: 2023 | AV5: 2024 | AW5: 2025
D6: 1Q19 | E6: 2Q19 | F6: 3Q19 | G6: 4Q19 | H6: 1Q20 | I6: 2Q20 | J6: 3Q20 | K6: 4Q20 | L6: 1Q21 | M6: 2Q21 | N6: 3Q21 | O6: 4Q21 | P6: 1Q22 | Q6: 2Q22 | R6: 3Q22 | S6: 4Q22 | T6: 2019 | U6: 2020 | V6: 2021 | W6: 2022 | Y6: Total | Z6: Income from Insurance Services | AA6: 829023.208 | AB6: 844183.0862 | AC6: 885485.2441 | AD6: 929737.5425 | AE6: 956616.9551 | AF6: 945887.5489 | AG6: 923673.8261 | AH6: 1019609.809 | AI6: 937922.7094 | AJ6: 909138.4404 | AK6: 940939.1348 | AL6: 982532.0851 | AM6: 987907.716 | AN6: 1185642.266 | AO6: 1212422.625 | AP6: 1262727.28 | AQ6: 1236814.173 | AR6: 1253201.994 | AT6: 3488429.081 | AU6: 3843116.342 | AV6: 3770532.37 | AW6: 4648699.887
B7: Total | C7: Net earned premiums | D7: 584209 | E7: 584579 | F7: 604877 | G7: 620578 | H7: 627935 | I7: 552061 | J7: 595394 | K7: 652670 | L7: 643928 | M7: 639944 | N7: 675571 | O7: 712087 | P7: 690536 | Q7: 695547 | R7: 751936 | S7: 735276 | T7: 2394243 | U7: 2428060 | V7: 2671530 | W7: 2873295 | Z7: Expenses for Insurance Services | AA7: -530886.4069 | AB7: -513555.4237 | AC7: -496407.1211 | AD7: -675901.6813 | AE7: -545165.768 | AF7: -550427.3331 | AG7: -505411.8093 | AH7: -633956.5093 | AI7: -476213.8977 | AJ7: -496110.2964 | AK7: -514732.8599 | AL7: -569955.0165 | AM7: -571801.4104 | AN7: -738807.6209 | AO7: -746638.6265 | AP7: -743427.4156 | AQ7: -890968.0902 | AR7: -823736.3484 | AT7: -2216750.633 | AU7: -2234961.42 | AV7: -2057012.07 | AW7: -2800675.073
C8: Net claims | D8: -383817 | E8: -374688 | F8: -385487 | G8: -387426 | H8: -373502 | I8: -328783 | J8: -513091 | K8: -492737 | L8: -623353 | M8: -691335 | N8: -517951 | O8: -509279 | P8: -478506 | Q8: -492258 | R8: -478039 | S8: -481087 | T8: -1531418 | U8: -1708113 | V8: -2341917 | W8: -1929890 | Z8: Reinsurance Results | AA8: -91469.80114 | AB8: -136430.6624 | AC8: -85318.123 | AD8: -117011.8612 | AE8: -115110.1871 | AF8: -98896.21577 | AG8: -87362.01684 | AH8: -98358.29937 | AI8: -182646.8117 | AJ8: -97528.1216 | AK8: -134431.297 | AL8: -99894.06852 | AM8: -86972 | AN8: -95962.08325 | AO8: -77434.41308 | AP8: -198456.8351 | AQ8: -46782.78848 | AR8: -141451.6456 | AT8: -430230.4478 | AU8: -397054.9228 | AV8: -514500.2988 | AW8: -458825.3314
C9: Acquisition cost (2) | D9: -91281 | E9: -91666 | F9: -94239 | G9: -88662 | H9: -112507 | I9: -87598 | J9: -86644 | K9: -75066 | L9: -85822 | M9: -84944 | N9: -87416 | O9: -75152 | P9: -70484 | Q9: -66247 | R9: -75055 | S9: -70021 | T9: -365848 | U9: -361814 | V9: -333334 | W9: -281807 | Z9: Insurance Underwriting Result | AA9: 206667 | AB9: 194197 | AC9: 303760 | AD9: 136824 | AE9: 296341 | AF9: 296564 | AG9: 330900 | AH9: 287295 | AI9: 279062 | AJ9: 315500.0224 | AK9: 291774.9779 | AL9: 312683 | AM9: 329134.3056 | AN9: 350872.5617 | AO9: 388349.5856 | AP9: 320843.0289 | AQ9: 299063.2941 | AR9: 288014 | AT9: 841448 | AU9: 1211100 | AV9: 1199020 | AW9: 1389199.482
C10: Total insurance underwriting result | D10: 109111 | E10: 118225 | F10: 125151 | G10: 144490 | H10: 141926 | I10: 135680 | J10: -4340 | K10: 84867 | L10: -65247 | M10: -136335 | N10: 70204 | O10: 127657 | P10: 141546 | Q10: 137042 | R10: 198842 | S10: 184168 | T10: 496977 | U10: 358133 | V10: -3721 | W10: 661598 | Y10: P&C | Z10: Income from Insurance Services | AA10: 414407.6593 | AB10: 420248.2465 | AC10: 397394.5296 | AD10: 437744.1755 | AE10: 413898.4095 | AF10: 426952.8475 | AG10: 404637.834 | AH10: 449798.694 | AI10: 468361.1847 | AJ10: 443326.661 | AK10: 471143.8588 | AL10: 491960.6077 | AM10: 490041.0178 | AN10: 479994.267 | AO10: 490082.3163 | AP10: 510315.094 | AQ10: 463180.517 | AR10: 488907.0428 | AT10: 1669794.611 | AU10: 1694725.213 | AV10: 1874792.312 | AW10: 1960432.695
C11: Loss Ratio | D11: 0.6569857705 | E11: 0.6409535751 | F11: 0.6372981614 | G11: 0.6242986377 | H11: 0.5948099724 | I11: 0.5955555636 | J11: 0.8617671659 | K11: 0.754955797 | L11: 0.9680476699 | M11: 1.080305464 | N11: 0.766686255 | O11: 0.7151921043 | P11: 0.692948666 | Q11: 0.7077278746 | R11: 0.6357442655 | S11: 0.6542944418 | T11: 0.6396251341 | U11: 0.7034887935 | V11: 0.876620139 | W11: 0.6716644132 | Z11: Expenses for Insurance Services | AA11: -244717.2637 | AB11: -212621.8361 | AC11: -241181.5984 | AD11: -282670.2233 | AE11: -286056.2842 | AF11: -274128.8407 | AG11: -256171.5953 | AH11: -323691.0606 | AI11: -237874.9931 | AJ11: -301960.6766 | AK11: -278114.9924 | AL11: -331518.0011 | AM11: -325314.3302 | AN11: -298680.3065 | AO11: -319741.9328 | AP11: -248538.6284 | AQ11: -358217.9247 | AR11: -274642.6525 | AT11: -981190.9215 | AU11: -1138549.921 | AV11: -1149468.663 | AW11: -1212275.198
B12: Life | C12: Net earned premiums | L12: 343158.0785 | M12: 331824.9632 | N12: 346985.6723 | O12: 375453.8305 | P12: 365491.8397 | Q12: 365452.1092 | R12: 411041.5975 | S12: 385804.7871 | V12: 1397422.545 | W12: 1527790.333 | Z12: Reinsurance Results | AA12: -95787.98523 | AB12: -133489.9737 | AC12: -76890.1603 | AD12: -92723.0018 | AE12: -83926.02762 | AF12: -69240.87205 | AG12: -64312.85689 | AH12: -76769.11404 | AI12: -152688.8692 | AJ12: -75561.53172 | AK12: -120392.0601 | AL12: -78366.28791 | AM12: -72392.67458 | AN12: -88692.53598 | AO12: -72874.27666 | AP12: -159679.3387 | AQ12: -25292.43449 | AR12: -130859.525 | AT12: -398891.121 | AU12: -293072.9657 | AV12: -427008.749 | AW12: -393638.8259
C13: Net claims | L13: -501713.0965 | M13: -546439.3765 | N13: -343268.7612 | O13: -350671.8599 | P13: -315718.3061 | Q13: -335203.548 | R13: -315333.7606 | S13: -309769.0179 | V13: -1742093.094 | W13: -1276024.633 | Z13: Insurance Underwriting Result | AA13: 73902.41044 | AB13: 74136.4368 | AC13: 79322.77084 | AD13: 62350.95038 | AE13: 43916.09765 | AF13: 83583.13473 | AG13: 84153.38182 | AH13: 49338.51929 | AI13: 77797.32238 | AJ13: 65804.45267 | AK13: 72636.80632 | AL13: 82076.31869 | AM13: 92334.01296 | AN13: 92621.42458 | AO13: 97466.10685 | AP13: 102097.1269 | AQ13: 79670.15787 | AR13: 83404.8653 | AT13: 289712.5685 | AU13: 263102.3264 | AV13: 298314.9001 | AW13: 384518.6713
C14: Loss Ratio | L14: 1.462046584 | M14: 1.646769945 | N14: 0.9892879984 | O14: 0.9339946257 | P14: 0.863817661 | Q14: 0.9172297536 | R14: 0.7671577829 | S14: 0.8029164705 | V14: 1.246647337 | W14: 0.8352092592 | Y14: Life | Z14: Income from Insurance Services | AA14: 393365.2016 | AB14: 411461.6789 | AC14: 480137.1535 | AD14: 453396.4965 | AE14: 521859.6308 | AF14: 491425.694 | AG14: 487115.7839 | AH14: 534817.6685 | AI14: 438124.329 | AJ14: 456103.5989 | AK14: 453008.762 | AL14: 471464.5255 | AM14: 332869.418 | AN14: 330900.6954 | AO14: 326744.2376 | AP14: 334492.0559 | AQ14: 332013.0114 | AR14: 340896.7182 | AT14: 1738360.53 | AU14: 2033104.163 | AV14: 1818701.216 | AW14: 1320006.407
B15: P&C | C15: Net earned premiums | L15: 284423.0193 | M15: 291171.5351 | N15: 310653.0355 | O15: 318949.2126 | P15: 308890.5738 | Q15: 313517.8963 | R15: 324127.479 | S15: 329815.1074 | V15: 1205196.802 | W15: 1276351.056 | Z15: Expenses for Insurance Services | AA15: -279549.7805 | AB15: -305953.1492 | AC15: -254322.4249 | AD15: -372135.4048 | AE15: -257253.1492 | AF15: -270662.718 | AG15: -243253.2559 | AH15: -305082.5914 | AI15: -232008.3385 | AJ15: -205295.3455 | AK15: -234502.8375 | AL15: -238148.8092 | AM15: -112309.88 | AN15: -79032.06086 | AO15: -37971.72857 | AP15: -131154.3985 | AQ15: -112499.5454 | AR15: -148739.8973 | AT15: -1211960.759 | AU15: -1076250.216 | AV15: -909955.3305 | AW15: -355468.0679
C16: Net claims | L16: -114131.5374 | M16: -135982.1892 | N16: -164368.7796 | O16: -149749.3718 | P16: -156850.925 | Q16: -153046.2656 | R16: -158037.4906 | S16: -165962.5747 | V16: -564231.8779 | W16: -633897.256 | Z16: Reinsurance Results | AA16: 6966.50623 | AB16: 152.8615289 | AC16: -14023.74395 | AD16: -20161.99833 | AE16: -27177.74797 | AF16: -23967.71685 | AG16: -17270.16121 | AH16: -14497.67859 | AI16: -24308.10053 | AJ16: -18000.8388 | AK16: -9363.832633 | AL16: -15603.89492 | AM16: -13318.35063 | AN16: -7588.343957 | AO16: -28916.72003 | AP16: -10629.93748 | AQ16: -17440.01125 | AR16: -6537.288785 | AT16: -27066.37452 | AU16: -82997.66872 | AV16: -67276.66688 | AW16: -60453.3521
C17: Loss Ratio | L17: 0.4012739112 | M17: 0.4670174546 | N17: 0.5291072701 | O17: 0.4695085169 | P17: 0.5077879947 | Q17: 0.4881579884 | R17: 0.4875781934 | S17: 0.5031988257 | V17: 0.4681657608 | W17: 0.4966480443 | Z17: Insurance Underwriting Result | AA17: 120781.9273 | AB17: 105661.3912 | AC17: 211790.9847 | AD17: 61099.09329 | AE17: 237428.7336 | AF17: 196795.2592 | AG17: 226592.3668 | AH17: 215237.3986 | AI17: 181807.89 | AJ17: 232807.4147 | AK17: 209142.092 | AL17: 217711.8215 | AM17: 207241.1874 | AN17: 244280.2906 | AO17: 259855.789 | AP17: 192707.72 | AQ17: 202073.4547 | AR17: 185619.5321 | AT17: 499333.3965 | AU17: 873856.2775 | AV17: 841469.2181 | AW17: 904099.5504
C18: (1) Includes the results of the Life, Property & Casualty and Crediseguros business | Y18: Crediseguros | Z18: Income from Insurance Services | AA18: 18911.04052 | AB18: 16866.66103 | AC18: 18886.32143 | AD18: 23454.00844 | AE18: 20858.91484 | AF18: 29578.41935 | AG18: 33904.3557 | AH18: 37123.52739 | AI18: 34386.59093 | AJ18: 15982.95216 | AK18: 23489.21345 | AL18: 25302.89633 | AM18: 22862.37834 | AN18: 13261.12373 | AO18: 14807.41159 | AP18: 18225.16067 | AQ18: 18697.777 | AR18: 19070.567 | AT18: 78118.03142 | AU18: 123614.826 | AV18: 99161.65286 | AW18: 69718.90043
C19: (2) Includes net fees and underwriting expenses. | Z19: Expenses for Insurance Services | AA19: -10544.06199 | AB19: 626.0612867 | AC19: -4644.32835 | AD19: -5345.273575 | AE19: -1856.334461 | AF19: -10230.79773 | AG19: -11261.18526 | AH19: -11484.58283 | AI19: -11549.78993 | AJ19: 5934.750455 | AK19: -7096.766376 | AL19: -5622.516155 | AM19: -5835.073843 | AN19: -4171.481584 | AO19: -2158.60674 | AP19: -3649.244031 | AQ19: -3938.751997 | AR19: -3860.439395 | AT19: -19907.60263 | AU19: -39207.06767 | AV19: -18334.322 | AW19: -15814.4062
Z20: Reinsurance Results | AA20: -5163.744479 | AB20: -3093.550348 | AC20: -4996.69804 | AD20: -6688.783892 | AE20: -4006.41154 | AF20: -7588.574091 | AG20: -7633.507124 | AH20: -9093.613068 | AI20: -8469.260993 | AJ20: -10116.67924 | AK20: -11240.22534 | AL20: -12331.50918 | AM20: -8326.785264 | AN20: -3807.46553 | AO20: -2890.914771 | AP20: -4027.51286 | AQ20: -3865.484849 | AR20: -4377.667933 | AT20: -19942.77676 | AU20: -29975.90073 | AV20: -42157.67476 | AW20: -19615.50452
C21: Acquisition cost | D21: Quarter | T21: As of | Z21: Insurance Underwriting Result | AA21: 3203.234047 | AB21: 14399.17197 | AC21: 9245.29504 | AD21: 11419.95097 | AE21: 14996.16883 | AF21: 11759.04753 | AG21: 15009.66332 | AH21: 16545.33148 | AI21: 14367.54001 | AJ21: 11801.02337 | AK21: 5152.221732 | AL21: 7348.870989 | AM21: 8700.519237 | AN21: 5282.176616 | AO21: 9757.890084 | AP21: 10548.40378 | AQ21: 10893.54015 | AR21: 10832.45967 | AT21: 38267.65203 | AU21: 54431.85765 | AV21: 38669.6561 | AW21: 34288.98972
C22: S/ 000 | D22: 1Q19 | E22: 2Q19 | F22: 3Q19 | G22: 4Q19 | H22: 1Q20 | I22: 2Q20 | J22: 3Q20 | K22: 4Q20 | L22: 1Q21 | M22: 2Q21 | N22: 3Q21 | O22: 4Q21 | P22: 1Q22 | Q22: 2Q22 | R22: 3Q22 | S22: 4Q22 | T22: 2019 | U22: 2020 | V22: 2021 | W22: 2022 | Y22: Corporate Health | Z22: Insurance Service Income | AM22: 130126.666 | AN22: 383265.0757 | AO22: 401080.8125 | AP22: 406571.0137 | AQ22: 415201.5123 | AR22: 419511.1755 | AW22: 1321043.568
C23: Net fees | D23: -60013 | E23: -58717 | F23: -65714.6186 | G23: -65316 | H23: -66650.493 | I23: -49083.93354 | J23: -59653.08911 | K23: -63831.18614 | L23: -55604.84456 | M23: -53808.32168 | N23: -51617 | O23: -53808.32168 | P23: -39875.21433 | Q23: -39352 | R23: -39875.21433 | S23: -39351.81948 | T23: -249761 | U23: -239218.7018 | V23: -109413 | W23: -79227 | Z23: Insurance Service Expenses | AM23: -122892.7887 | AN23: -357290.279 | AO23: -369484.835 | AP23: -374145.3798 | AQ23: -409490.7774 | AR23: -399322.2964 | AW23: -1223813.282
C24: Underwriting expenses | D24: -34576 | E24: -49237 | F24: -30038.58218 | G24: -35206 | H24: -46460.88694 | I24: -39189.25056 | J24: -27715.6761 | K24: -19628.11642 | L24: -31557.48087 | M24: -31841.57982 | N24: -33542 | O24: -31841.57982 | P24: -31286.20661 | Q24: -27942 | R24: -31286.20661 | S24: -27943.3555 | T24: -149058 | U24: -132993.93 | V24: -63399 | W24: -59230 | Z24: Reinsurance Results | AM24: -426.28727 | AN24: -1256.42827 | AO24: 1682.71554 | AP24: 0 | AQ24: 0 | AR24: 0 | AW24: 0
C25: Underwriting income | D25: 3308 | E25: 16288 | F25: 1513.96796 | G25: 11859.65044 | H25: 604 | I25: 674.97225 | J25: 724.99979 | K25: 8393 | L25: 1339.93563 | M25: 705.52213 | N25: -2257 | O25: 705.52213 | P25: 677.79091 | Q25: 1047 | R25: 677.79091 | S25: 1047.37483 | T25: 32971 | U25: 10398.71717 | V25: 2045 | W25: 1725 | Z25: Insurance Underwriting Result | AM25: 6807.59001 | AN25: 24718.36845 | AO25: 33278.69308 | AP25: 32425.63398 | AQ25: 5710.7349 | AR25: 20188.8791 | AW25: 97230.28552
C26: Acquisition cost | D26: -91281 | E26: -91666 | F26: -94239.23282 | G26: -88662.34956 | H26: -112507.3799 | I26: -87598.21185 | J26: -86643.76542 | K26: -75066.30255 | L26: -85822.3898 | M26: -84944.37937 | N26: -87416 | O26: -84944.37937 | P26: -70483.63003 | Q26: -66247 | R26: -70483.63003 | S26: -66247.80015 | T26: -365848 | U26: -361813.9146 | V26: -170767 | W26: -136732

Sheet 8.Operating Expenses
B1: Back to index
B3: (Under IFRS 4) | T3: (Under IFRS 17)
B4: Operating expenses | C4: Quarter | T4: Operating expenses | U4: Quarter
B5: S/ 000 | C5: 1Q19 | D5: 2Q19 | E5: 3Q19 | F5: 4Q19 | G5: 1Q20 | H5: 2Q20 | I5: 3Q20 | J5: 4Q20 | K5: 1Q21 | L5: 2Q21 | M5: 3Q21 | N5: 4Q21 | O5: 1Q22 | P5: 2Q22 | Q5: 3Q22 | R5: 4Q22 | T5: S/ 000 | U5: 1Q22 | V5: 2Q22 | W5: 3Q22 | X5: 4Q22 | Y5: 1Q23 | Z5: 2Q23 | AA5: 3Q23 | AB5: 4Q23 | AC5: 1Q24 | AD5: 2Q24 | AE5: 3Q24 | AF5: 4Q24 | AG5: 1Q25 | AH5: 2Q25 | AI5: 3Q25 | AJ5: 4Q25 | AK5: 1Q26 | AL5: 2Q26
B6: Salaries and employees benefits | C6: 834317 | D6: 845835 | E6: 845345 | F6: 885526 | G6: 891183 | H6: 825997 | I6: 803438 | J6: 792336.2969 | K6: 857559 | L6: 882177 | M6: 915563.641 | N6: 1013176.459 | O6: 977953 | P6: 975420 | Q6: 1021946 | R6: 1077461 | T6: Salaries and employees benefits | U6: 939518 | V6: 942159 | W6: 984336 | X6: 1036148 | Y6: 1029558 | Z6: 1054735 | AA6: 1061402 | AB6: 1119758 | AC6: 1107069 | AD6: 1141823 | AE6: 1155966 | AF6: 1271578 | AG6: 1361690 | AH6: 1304466 | AI6: 1341137 | AJ6: 1428178 | AK6: =+-'12.5.1.Credicorp Consolidated '!BN174 -> 1459421 | AL6: 1475704
B7: Administrative, general and tax expenses | C7: 538157 | D7: 552653 | E7: 570290 | F7: 693458 | G7: 539169 | H7: 512595 | I7: 585362 | J7: 746592 | K7: 580263.3023 | L7: 672230.6977 | M7: 802544.9804 | N7: 898678.3356 | O7: 724914 | P7: 850560 | Q7: 866016 | R7: 1063611 | T7: Administrative, general and tax expenses | U7: 696065 | V7: 819100 | W7: 869873 | X7: 1029027 | Y7: 835060 | Z7: 871046 | AA7: 1007894 | AB7: 1089203 | AC7: 821748 | AD7: 947558 | AE7: 971449 | AF7: 1150867 | AG7: 869834 | AH7: 965994 | AI7: 1068459 | AJ7: 1186497 | AK7: =-'12.5.1.Credicorp Consolidated '!BN175 -> 1061666 | AL7: 1114932
B8: Depreciation and amortization | C8: 131325 | D8: 158663 | E8: 165195 | F8: 175168 | G8: 169959 | H8: 169310 | I8: 166105 | J8: 177156 | K8: 166765 | L8: 163869 | M8: 170960 | N8: 181660 | O8: 164514 | P8: 168845 | Q8: 173500 | R8: 176645 | T8: Depreciation and amortization | U8: 151894 | V8: 156892 | W8: 162009 | X8: 165694 | Y8: 161079 | Z8: 160549 | AA8: 159761 | AB8: 177618 | AC8: 175146 | AD8: 172204 | AE8: 179495 | AF8: 186625 | AG8: 203766 | AH8: 212662 | AI8: 219800 | AJ8: 256914 | AK8: =-'12.5.1.Credicorp Consolidated '!BN176 -> 241368 | AL8: 235204
B9: Association in participation | C9: 2736 | D9: 4746 | E9: 5348 | F9: 9806 | G9: 6430 | H9: 17944 | I9: 10566 | J9: 9806 | K9: 13906 | L9: 8879 | M9: 10426 | N9: 13965 | O9: 7691 | P9: 10329 | Q9: 9999 | R9: 12936 | T9: Association in participation | U9: 7691 | V9: 10329 | W9: 9999 | X9: 12936 | Y9: 12612 | Z9: 16742 | AA9: 14634 | AB9: 9109 | AC9: 8847 | AD9: 9200 | AE9: 6414 | AF9: 3808 | AG9: 6799 | AH9: 371 | AI9: 65 | AJ9: 120 | AK9: =-'12.5.1.Credicorp Consolidated '!BN178 -> 173 | AL9: 155
B10: Acquisition cost (1) | C10: 91281 | D10: 91666 | E10: 94239 | F10: 88662 | G10: 112507 | H10: 87598 | I10: 86643 | J10: 88662 | K10: 85822 | L10: 84944 | M10: 87416 | N10: 75152 | O10: 70484 | P10: 66247 | Q10: 75055 | R10: 70021 | T10: Operating expenses | U10: 1795168 | V10: 1928480 | W10: 2026217 | X10: 2243805 | Y10: 2038309 | Z10: 2103072 | AA10: 2243691 | AB10: 2395688 | AC10: =+SUM(AC6:AC9) -> 2112810 | AD10: 2270785 | AE10: 2313324 | AF10: 2612878 | AG10: 2442089 | AH10: 2483493 | AI10: 2629461 | AJ10: 2871709 | AK10: 2762628 | AL10: 2825995
B11: Operating expenses | C11: 1597816 | D11: 1653563 | E11: 1680417 | F11: 1852620 | G11: 1722183 | H11: 1611543 | I11: 1657965 | J11: =+SUM(J6:J10) -> 1814552.297 | K11: =SUM(K6:K10) -> 1704315.302 | L11: 1812099.698 | M11: 1986910.621 | N11: 2182631.795 | O11: 1945556 | P11: 2071401 | Q11: 2146516 | R11: 2400674 | T11: (1) The acquisition cost of Pacifico iIncludes net fees and underwriting expenses.
B12: (1) The acquisition cost of Pacifico iIncludes net fees and underwriting expenses.
B14: (Under IFRS 4) | T14: (Under IFRS 17)
B15: Operating expenses | C15: As of | T15: Operating expenses | U15: As of
B16: S/ 000 | C16: 2019 | D16: 2020 | E16: 2021 | F16: 2022 | T16: S/ 000 | U16: Mar 22 | V16: Jun 22 | W16: Sep 22 | X16: Dec 22 | Y16: Mar 23 | Z16: Jun 23 | AA16: Sep 23 | AB16: Dec 23 | AC16: Mar 24 | AD16: Jun 24 | AE16: Sep 24 | AF16: Dic 24 | AG16: Mar 25 | AH16: Jun 25 | AI16: Set 25 | AJ16: Dic 25 | AK16: Mar 26 | AL16: Jun 26
B17: Salaries and employees benefits | C17: 3411023 | D17: 3312954 | E17: 3668476 | F17: 4052780 | T17: Salaries and employees benefits | U17: =+U6 -> 939518 | V17: =+V6+U6 -> 1881677 | W17: =+W6+V6+U6 -> 2866013 | X17: =+X6+W6+V6+U6 -> 3902161 | Y17: =+Y6 -> 1029558 | Z17: =+Z6+Y6 -> 2084293 | AA17: =+AA6+Z6+Y6 -> 3145695 | AB17: =+AB6+AA6+Z6+Y6 -> 4265453 | AC17: =+AC6 -> 1107069 | AD17: =+AD6+AC6 -> 2248892 | AE17: =+AE6+AD6+AC6 -> 3404858 | AF17: =+AF6+AE6+AD6+AC6 -> 4676436 | AG17: =+AG6 -> 1361690 | AH17: =+AH6+AG6 -> 2666156 | AI17: =+AI6+AH6+AG6 -> 4007293 | AJ17: =+AJ6+AI6+AH6+AG6 -> 5435471 | AK17: =+AK6 -> 1459421 | AL17: =+AK17+AL6 -> 2935125
B18: Administrative, general and tax expenses | C18: 2354630 | D18: 2383718 | E18: 2953717 | F18: 3505101 | T18: Administrative, general and tax expenses | U18: =+U7 -> 696065 | V18: =+V7+U7 -> 1515165 | W18: =+W7+V7+U7 -> 2385038 | X18: =+X7+W7+V7+U7 -> 3414065 | Y18: =+Y7 -> 835060 | Z18: =+Z7+Y7 -> 1706106 | AA18: =+AA7+Z7+Y7 -> 2714000 | AB18: =+AB7+AA7+Z7+Y7 -> 3803203 | AC18: =+AC7 -> 821748 | AD18: =+AD7+AC7 -> 1769306 | AE18: =+AE7+AD7+AC7 -> 2740755 | AF18: =+AF7+AE7+AD7+AC7 -> 3891622 | AG18: =+AG7 -> 869834 | AH18: =+AH7+AG7 -> 1835828 | AI18: =+AI7+AH7+AG7 -> 2904287 | AJ18: =+AJ7+AI7+AH7+AG7 -> 4090784 | AK18: =+AK7 -> 1061666 | AL18: =+AK18+AL7 -> 2176598
B19: Depreciation and amortization | C19: 632339 | D19: 669914 | E19: 683254 | F19: 683504 | T19: Depreciation and amortization | U19: 151894 | V19: 308786 | W19: 470795 | X19: 636489 | Y19: 161079 | Z19: 321628 | AA19: 481389 | AB19: 659007 | AC19: 175146 | AD19: 347350 | AE19: 526845 | AF19: 713470 | AG19: 203766 | AH19: 416428 | AI19: 636228 | AJ19: 893142 | AK19: 241368 | AL19: =+AK19+AL8 -> 476572
B20: Association in participation | C20: 22636 | D20: 52019 | E20: 47176 | F20: 40955 | T20: Association in participation | U20: 7691 | V20: 18020 | W20: 28019 | X20: 40955 | Y20: 12612 | Z20: 29354 | AA20: 43988 | AB20: 53097 | AC20: 8847 | AD20: 18047 | AE20: 24461 | AF20: 28269 | AG20: 6799 | AH20: 7170 | AI20: 7235 | AJ20: 7355 | AK20: 173 | AL20: 328
B21: Acquisition cost (1) | C21: 365848 | D21: 361814 | E21: 333334 | F21: 281807 | T21: Operating expenses | U21: =+SUM(U17:U20) -> 1795168 | V21: =+SUM(V17:V20) -> 3723648 | W21: 5749865 | X21: 7993670 | Y21: 2038309 | Z21: 4141381 | AA21: 6385072 | AB21: 8780760 | AC21: 2112810 | AD21: 4383595 | AE21: 6696919 | AF21: 9309797 | AG21: 2442089 | AH21: 4925582 | AI21: =+SUM(AI17:AI20) -> 7555043 | AJ21: =+SUM(AJ17:AJ20) -> 10426752 | AK21: =+SUM(AK17:AK20) -> 2762628 | AL21: 5588623
B22: Operating expenses | C22: =+SUM(C17:C21) -> 6786476 | D22: =+SUM(D17:D21) -> 6780419 | E22: 7685957 | F22: 8564147
B23: (1) The acquisition cost of Pacifico iIncludes net fees and underwriting expenses.
B25: Administrative general, and tax expenses | C25: Quarter | T25: Administrative general, and tax expenses | U25: Quarter
B26: S/000 | C26: 1Q19 | D26: 2Q19 | E26: 3Q19 | F26: 4Q19 | G26: 1Q20 | H26: 2Q20 | I26: 3Q20 | J26: 4Q20 | K26: 1Q21 | L26: 2Q21 | M26: 3Q21 | N26: 4Q21 | O26: 1Q22 | P26: 2Q22 | Q26: 3Q22 | R26: 4Q22 | T26: S/000 | U26: 1Q22 | V26: 2Q22 | W26: =+W5 -> 3Q22 | X26: 4Q22 | Y26: 1Q23 | Z26: 2Q23 | AA26: 3Q23 | AB26: 4Q23 | AC26: 1Q24 | AD26: 2Q24 | AE26: 3Q24 | AF26: 4Q24 | AG26: 1Q25 | AH26: 2Q25 | AI26: 3Q25 | AJ26: 4Q25 | AK26: 1Q26 | AL26: 2Q26
B27: IT expenses and IT third-party services | C27: 93904.88119 | D27: 110388.622 | E27: 92009.35133 | F27: 123422.1454 | G27: 97440.51566 | H27: 122458.2637 | I27: 136335.781 | J27: 183675.4397 | K27: 137033 | L27: 163797 | M27: 199660 | N27: 240939 | O27: 200757 | P27: 236252 | Q27: 238753 | R27: 262252 | T27: IT expenses and IT third-party services | U27: 196985 | V27: 207929 | W27: 240603 | X27: 262822 | Y27: 240932 | Z27: 256348 | AA27: 271304 | AB27: 311417 | AC27: 282905 | AD27: 294997 | AE27: 287372 | AF27: 386150 | AG27: 302029 | AH27: 324083 | AI27: 336894 | AJ27: 422856 | AK27: 392131 | AL27: 433286
B28: Advertising and customer loyalty programs | C28: 76389.0117 | D28: 86545.50208 | E28: 88042.01454 | F28: 129946.4717 | G28: 75607.5895 | H28: 53729.51138 | I28: 90918.41234 | J28: 129489.4868 | K28: 72326 | L28: 105060 | M28: 123603 | N28: 185896 | O28: 110497 | P28: 156285 | Q28: 173728 | R28: 212920 | T28: Advertising and customer loyalty programs | U28: 110314.3279 | V28: 156049 | W28: 173517 | X28: 212707 | Y28: 135767 | Z28: 174021 | AA28: 171902 | AB28: 239028 | AC28: 57734 | AD28: 134007 | AE28: 123174 | AF28: 163897 | AG28: 85390 | AH28: 112027 | AI28: 133510 | AJ28: 183504 | AK28: 122989 | AL28: 130559
B29: Taxes and contributions | C29: 66709 | D29: 72172 | E29: 70224 | F29: 82516 | G29: 68017 | H29: 63344 | I29: 59866 | J29: 75477 | K29: 68808 | L29: 77406 | M29: 80626 | N29: 62644 | O29: 74063 | P29: 78510 | Q29: 51963 | R29: 100950 | T29: Taxes and contributions | U29: 67657.31968 | V29: 72982 | W29: 45461 | X29: 94071 | Y29: 85073 | Z29: 20557 | AA29: 65606.15 | AB29: 93089.85 | AC29: 92887 | AD29: 94448 | AE29: 90080 | AF29: 105296 | AG29: 83347 | AH29: 86321 | AI29: 90710 | AJ29: 93975 | AK29: 87825 | AL29: 103586
B30: Audit Services, Consulting and professional fees | C30: 42653.52429 | D30: 45907.47571 | E30: 71552 | F30: 92916 | G30: 40735 | H30: 47632 | I30: 49655 | J30: 81649 | K30: 41725 | L30: 60470 | M30: 114099 | N30: 96684 | O30: 52518 | P30: 70654 | Q30: 74804 | R30: 140293 | T30: Audit Services, Consulting and professional fees | U30: 51692.36662 | V30: 69239 | W30: 73297 | X30: 139097 | Y30: 51878 | Z30: 67017 | AA30: 112480 | AB30: 105340 | AC30: 58992 | AD30: 75845 | AE30: 101570 | AF30: 171101 | AG30: 71072 | AH30: 92086 | AI30: 120177 | AJ30: 165592 | AK30: 110168 | AL30: 89752
B31: Transport and communications | C31: 43708.55323 | D31: 45194.0911 | E31: 44911.95608 | F31: 56231.39959 | G31: 38343.35438 | H31: 36489.59967 | I31: 46075.42041 | J31: 48707.62554 | K31: 40382 | L31: 47341 | M31: 54312 | N31: 66209 | O31: 40164 | P31: 49771 | Q31: 75269 | R31: 63906 | T31: Transport and communications | U31: 39117 | V31: 48899 | W31: 73494 | X31: 63981 | Y31: 51036 | Z31: 57437 | AA31: 57518 | AB31: 60869 | AC31: 54064 | AD31: 60225 | AE31: 62568 | AF31: 67398 | AG31: 52810 | AH31: 58391 | AI31: 64565 | AJ31: 74704 | AK31: 48515 | AL31: 66737
B32: Repair and maintenance | C32: 24586.65507 | D32: 10959.75812 | E32: 28142.10681 | F32: 23155.48 | G32: 24677.68959 | H32: 33994.06651 | I32: 32459.03701 | J32: 27238.2069 | K32: 27443 | L32: 30602 | M32: 32077 | N32: 33109.919 | O32: 29939 | P32: 40832 | Q32: 21955 | R32: 45220 | T32: Repair and maintenance | U32: 29913.01328 | V32: 39173 | W32: 30940 | X32: 36079 | Y32: 25790 | Z32: 37555 | AA32: 44084 | AB32: 49698 | AC32: 32638 | AD32: 34598 | AE32: 36316 | AF32: 50981 | AG32: 31635 | AH32: 37886 | AI32: 43719 | AJ32: 57177 | AK32: 28381 | AL32: 36933
B33: Agents' Fees | C33: 18288 | D33: 20655 | E33: 22435 | F33: 24992 | G33: 21429 | H33: 19076 | I33: 22270 | J33: 25124 | K33: 25036 | L33: 25218 | M33: 26486 | N33: 27960 | O33: 27018 | P33: 26091 | Q33: 25574 | R33: 27673 | T33: Agents' Fees | U33: 27018.3822 | V33: 26091 | W33: 25574 | X33: 27673 | Y33: 26152 | Z33: 27747 | AA33: 29310 | AB33: 31911 | AC33: 27388 | AD33: 29375 | AE33: 29957 | AF33: 31436 | AG33: 26102 | AH33: 28067 | AI33: 27807 | AJ33: 26734 | AK33: 24074 | AL33: 24545
B34: Services by third-party | C34: 9464.37726 | D34: 14545.57368 | E34: 14261.98178 | F34: 21946.06728 | G34: 10084.87094 | H34: 14026.74709 | I34: 17859.6088 | J34: 27407.77317 | K34: 19045.30228 | L34: 24657.9768 | M34: 26819.7013 | N34: 28917.01962 | O34: 18411 | P34: 33791 | Q34: 29929 | R34: 36647 | T34: Services by third-party | U34: 22925.21201 | V34: 18621 | W34: 36327 | X34: 35338 | Y34: 27511 | Z34: 27661 | AA34: 45426 | AB34: 43936 | AC34: 28415 | AD34: 35950 | AE34: 36689 | AF34: 6220 | AG34: 21436 | AH34: 26634 | AI34: 27766 | AJ34: 37126 | AK34: 23428 | AL34: 29484
B35: Leases of low value and short-term | C35: 22418 | D35: 8162 | E35: 10030 | F35: 30971 | G35: 21303 | H35: 13601.25647 | I35: 13266.27446 | J35: 22233.46907 | K35: 20902 | L35: 20145 | M35: 21565 | N35: 23805 | O35: 20931 | P35: 22610 | Q35: 22142 | R35: 25997 | T35: Leases of low value and short-term | U35: 20930.54971 | V35: 22610 | W35: 24171 | X35: 23968 | Y35: 25116 | Z35: 25282 | AA35: 27754 | AB35: 30205 | AC35: 30465 | AD35: 31002 | AE35: 26378 | AF35: 36936 | AG35: 33177 | AH35: 34937 | AI35: 34858 | AJ35: 40883 | AK35: 41329 | AL35: 46250
B36: Miscellaneous supplies | C36: 17655.24515 | D36: 18698.75485 | E36: 19403 | F36: 18793 | G36: 23639 | H36: 9908 | I36: 12679 | J36: 21311 | K36: 14819 | L36: 14171 | M36: 13068 | N36: 15035 | O36: 19077 | P36: 20657 | Q36: 25266 | R36: 22848 | T36: Miscellaneous supplies | U36: 19077.37734 | V36: 20656 | W36: 25266 | X36: 22845 | Y36: 32993 | Z36: 27837 | AA36: 27091 | AB36: 30589 | AC36: 18653 | AD36: 24700 | AE36: 23552 | AF36: 24864 | AG36: 19383 | AH36: 18192 | AI36: 16993 | AJ36: 15014 | AK36: 16772 | AL36: 18984
B37: Security and protection | C37: 17036.51625 | D37: 17233.48375 | E37: 15838 | F37: 16316 | G37: 15978.82902 | H37: 15823.17098 | I37: 16101 | J37: 16536 | K37: 15959 | L37: 15692 | M37: 15468 | N37: 16381 | O37: 15476 | P37: 15798 | Q37: 16841 | R37: 16365 | T37: Security and protection | U37: 15475.83247 | V37: 15798 | W37: 16841 | X37: 16365 | Y37: 15789 | Z37: 16004 | AA37: 16064 | AB37: 16575 | AC37: 15903 | AD37: 16544 | AE37: 16909 | AF37: 16614 | AG37: 16946 | AH37: 16940 | AI37: 16888 | AJ37: 18905 | AK37: 18007 | AL37: 17586
B38: Subscriptions and quotes | C38: 9570 | D38: 9781 | E38: 11920 | F38: 13252 | G38: 10752 | H38: 12219 | I38: 12263 | J38: 14230 | K38: 13183 | L38: 13902 | M38: 13363 | N38: 14883 | O38: 13437 | P38: 15968 | Q38: 14013 | R38: 14833 | T38: Subscriptions and quotes | U38: 13011.91958 | V38: 14877 | W38: 13703 | X38: 14322 | Y38: 13086 | Z38: 16024 | AA38: 14391 | AB38: 18444 | AC38: 17172 | AD38: 24220 | AE38: 18349 | AF38: 14261 | AG38: 18330 | AH38: 19773 | AI38: 20774 | AJ38: 19525 | AK38: 20849 | AL38: 21542
B39: Electricity and water | C39: 12176.76327 | D39: 14177.23673 | E39: 13571 | F39: 15027 | G39: 11812.95733 | H39: 13133.04267 | I39: 12171 | J39: 14532 | K39: 10691 | L39: 12709 | M39: 11102 | N39: 14384 | O39: 10677 | P39: 13567 | Q39: 11867 | R39: 15006 | T39: Electricity and water | U39: 10549.51163 | V39: 13426 | W39: 11742 | X39: 14848 | Y39: 11497 | Z39: 14954 | AA39: 13592 | AB39: 16316 | AC39: 11736 | AD39: 13614 | AE39: 11857 | AF39: 15053 | AG39: 10275 | AH39: 12513 | AI39: 11390 | AJ39: 13972 | AK39: 10177 | AL39: 13471
B40: Electronic processing | C40: 5610.399419 | D40: 6851.600581 | E40: 6520 | F40: 9235 | G40: 8637 | H40: 6840 | I40: 8824 | J40: 12619 | K40: 9968 | L40: 11123 | M40: 10863 | N40: 7574 | O40: 7693 | P40: 8208 | Q40: 7770 | R40: 12225 | T40: Electronic processing | U40: 7692.507735 | V40: 8208 | W40: 7770 | X40: 12225 | Y40: 8730 | Z40: 9791 | AA40: 9959 | AB40: 11284 | AC40: 7748 | AD40: 6016 | AE40: 7578 | AF40: 8124 | AG40: 7635 | AH40: 7762 | AI40: 8935 | AJ40: 9247 | AK40: 10067 | AL40: 10903
B41: Insurance | C41: 2186.094193 | D41: 2198.905807 | E41: 19114 | F41: 7374 | G41: 4909.606781 | H41: 3195.393219 | I41: 20392 | J41: 15160 | K41: 8274 | L41: 4166 | M41: 36358 | N41: 13344 | O41: 8916 | P41: 4888 | Q41: 40561 | R41: 8629 | T41: Insurance | U41: 8290.844159 | V41: 6550 | W41: 39524 | X41: 8629 | Y41: 8750 | Z41: 5022 | AA41: 38034 | AB41: 4518 | AC41: 5172 | AD41: 7370 | AE41: 28296 | AF41: 14312 | AG41: 11719 | AH41: 16441 | AI41: 34401 | AJ41: -18515 | AK41: 23102 | AL41: -3152
B42: Cleaning | C42: 5477.832798 | D42: 5297.167202 | E42: 4880 | F42: 5790 | G42: 5518.497798 | H42: 5521.502202 | I42: 6705 | J42: 5155 | K42: 5282 | L42: 5206 | M42: 4630 | N42: 4987 | O42: 4506 | P42: 5203 | Q42: 5358 | R42: 5368 | T42: Cleaning | U42: 4506.144596 | V42: 5203 | W42: 5358 | X42: 5368 | Y42: 5162 | Z42: 5463 | AA42: 5930 | AB42: 6122 | AC42: 5744 | AD42: 5629 | AE42: 5761 | AF42: 8415 | AG42: 6558 | AH42: 7014 | AI42: 6474 | AJ42: 7208 | AK42: 7163 | AL42: 7604
B43: Others (1) | C43: 70322.37925 | D43: 64584.59528 | E43: 38059.58946 | F43: 26809.43601 | G43: 63217.97994 | H43: 39701.86921 | I43: 33372.26363 | J43: 19162.88723 | K43: 49966 | L43: 39985 | M43: 18446 | N43: 45926.397 | O43: 71459 | P43: 50850 | Q43: 30223 | R43: 52479 | T43: Others (1) | U43: 50908 | V43: 72789 | W43: 26285 | X43: 38689 | Y43: 69798 | Z43: 82326 | AA43: 57449 | AB43: 19861 | AC43: 74132 | AD43: 59018 | AE43: 65043 | AF43: 29809 | AG43: 71990 | AH43: 66927 | AI43: 72598 | AJ43: 18590 | AK43: 76689 | AL43: 66862
B44: Total | C44: 538157.2331 | D44: 553352.7669 | E44: 570914 | F44: 698693 | G44: 542103.8909 | H44: 510693.4231 | I44: 591212.7976 | J44: 739707.8884 | K44: 580842.3023 | L44: 671650.9768 | M44: 802545.7013 | N44: 898678.3356 | O44: 725539 | P44: 849935 | Q44: 866016 | R44: 1063611 | T44: Total | U44: =+SUM(U27:U43) -> 696065.3089 | V44: =+SUM(V27:V43) -> 819100 | W44: 869873 | X44: 1029027 | Y44: 835060 | Z44: 871046 | AA44: 1007894.15 | AB44: 1089202.85 | AC44: 821748 | AD44: 947558 | AE44: 971449 | AF44: 1150867 | AG44: 869834 | AH44: 965994 | AI44: 1068459 | AJ44: 1186497 | AK44: 1061666 | AL44: 1114932
B45: (1) Others consists mainly of security and protection services, cleaning service, representation expenses, electricity and water utilities, insurance policiy expenses, subscription expenses and commission expenses.
T46: (1) Others consists mainly of security and protection services, cleaning service, representation expenses, electricity and water utilities, insurance policiy expenses, subscription expenses and commission expenses.
B48: Administrative general, and tax expenses | C48: As of | T48: Administrative general, and tax expenses | U48: As of
B49: S/000 | C49: 2019 | D49: 2020 | E49: 2021 | F49: 2022 | T49: S/000 | U49: Mar 22 | V49: Jun 22 | W49: Sep 22 | X49: Dec 22 | Y49: Mar 23 | Z49: Jun 23 | AA49: Sep 23 | AB49: Dec 23 | AC49: Mar 24 | AD49: Jun 24 | AE49: Sep 24 | AF49: Dic 24 | AG49: Mar 25 | AH49: Jun 25 | AI49: Set 25 | AJ49: Dic 25 | AK49: Mar 26 | AL49: Jun 26
B50: IT expenses and IT third-party services | C50: 419725 | D50: 539910 | E50: 741429 | F50: 938014 | T50: IT expenses and IT third-party services | U50: =+U27 -> 196985 | V50: =+U27+V27 -> 404914 | W50: =+W27+V27+U27 -> 645517 | X50: =+X27+W27+V27+U27 -> 908339 | Y50: =+Y27 -> 240932 | Z50: =+Y27+Z27 -> 497280 | AA50: =+AA27+Z27+Y27 -> 768584 | AB50: =+AB27+AA27+Z27+Y27 -> 1080001 | AC50: =+AC27 -> 282905 | AD50: =+AC27+AD27 -> 577902 | AE50: =+AE27+AD27+AC27 -> 865274 | AF50: =+AF27+AE27+AD27+AC27 -> 1251424 | AG50: =+AG27 -> 302029 | AH50: =+AG27+AH27 -> 626112 | AI50: =+AI27+AH27+AG27 -> 963006 | AJ50: =+AJ27+AI27+AH27+AG27 -> 1385862 | AK50: =+AK27 -> 392131 | AL50: =AK27+AL27 -> 825417
B51: Advertising and customer loyalty programs | C51: 380923 | D51: 349745 | E51: 486885 | F51: 653430 | T51: Advertising and customer loyalty programs | U51: =+U28 -> 110314.3279 | V51: =+U28+V28 -> 266363.3279 | W51: =+W28+V28+U28 -> 439880.3279 | X51: =+X28+W28+V28+U28 -> 652587.3279 | Y51: =+Y28 -> 135767 | Z51: =+Y28+Z28 -> 309788 | AA51: =+AA28+Z28+Y28 -> 481690 | AB51: =+AB28+AA28+Z28+Y28 -> 720718 | AC51: =+AC28 -> 57734 | AD51: =+AC28+AD28 -> 191741 | AE51: =+AE28+AD28+AC28 -> 314915 | AF51: =+AF28+AE28+AD28+AC28 -> 478812 | AG51: =+AG28 -> 85390 | AH51: =+AG28+AH28 -> 197417 | AI51: =+AI28+AH28+AG28 -> 330927 | AJ51: =+AJ28+AI28+AH28+AG28 -> 514431 | AK51: =+AK28 -> 122989 | AL51: =AK28+AL28 -> 253548
B52: Taxes and contributions | C52: 291621 | D52: 266704 | E52: 289484 | F52: 305486 | T52: Taxes and contributions | U52: 67657.31968 | V52: 140639.3197 | W52: 186100.3197 | X52: 280171.3197 | Y52: 85073 | Z52: 105630 | AA52: 171236.15 | AB52: 264326 | AC52: 92887 | AD52: 187335 | AE52: 277415 | AF52: 382711 | AG52: 83347 | AH52: 169668 | AI52: 260378 | AJ52: 354353 | AK52: 87825 | AL52: =AK29+AL29 -> 191411
B53: Audit Services, Consulting and professional fees | C53: 253029 | D53: 219671 | E53: 312978 | F53: 338269 | T53: Audit Services, Consulting and professional fees | U53: 51692.36662 | V53: 120931.3666 | W53: 194228.3666 | X53: 333325.3666 | Y53: 51878 | Z53: 118895 | AA53: 231375 | AB53: 336715 | AC53: 58992 | AD53: 134837 | AE53: 236407 | AF53: 407508 | AG53: 71072 | AH53: 163158 | AI53: 283335 | AJ53: 448927 | AK53: 110168 | AL53: 199920
B54: Transport and communications | C54: 190046 | D54: 169616 | E54: 208244 | F54: 229110 | T54: Transport and communications | U54: 39117 | V54: 88016 | W54: 161510 | X54: 225491 | Y54: 51036 | Z54: 108473 | AA54: 165991 | AB54: 226860 | AC54: 54064 | AD54: 114289 | AE54: 176857 | AF54: 244255 | AG54: 52810 | AH54: 111201 | AI54: 175766 | AJ54: 250470 | AK54: 48515 | AL54: 115252
B55: Repair and maintenance | C55: 86844 | D55: 118369 | E55: 123232 | F55: 137946 | T55: Repair and maintenance | U55: 29913.01328 | V55: 69086.01328 | W55: 100026.0133 | X55: 136105.0133 | Y55: 25790 | Z55: 63345 | AA55: 107429 | AB55: 157127 | AC55: 32638 | AD55: 67236 | AE55: 103552 | AF55: 154533 | AG55: 31635 | AH55: 69521 | AI55: 113240 | AJ55: 170417 | AK55: 28381 | AL55: 65314
B56: Agents' Fees | C56: 86370 | D56: 87899 | E56: 104700 | F56: 106356 | T56: Agents' Fees | U56: 27018.3822 | V56: 53109.3822 | W56: 78683.3822 | X56: 106356.3822 | Y56: 26152 | Z56: 53899 | AA56: 83209 | AB56: 115120 | AC56: 27388 | AD56: 56763 | AE56: 86720 | AF56: 118156 | AG56: 26102 | AH56: 54169 | AI56: 81976 | AJ56: 108710 | AK56: 24074 | AL56: 48619
B57: Services by third-party | C57: 60218 | D57: 69379 | E57: 99440 | F57: 118778 | T57: Services by third-party | U57: 22925.21201 | V57: 41546.21201 | W57: 77873.21201 | X57: 113211.212 | Y57: 27511 | Z57: 55172 | AA57: 100598 | AB57: 144534 | AC57: 28415 | AD57: 64365 | AE57: 101054 | AF57: 107274 | AG57: 21436 | AH57: 48070 | AI57: 75836 | AJ57: 112962 | AK57: 23428 | AL57: 52912
B58: Leases of low value and short-term | C58: 71581 | D58: 70404 | E58: 86417 | F58: 91680 | T58: Leases of low value and short-term | U58: 20930.54971 | V58: 43540.54971 | W58: 67711.54971 | X58: 91679.54971 | Y58: 25116 | Z58: 50398 | AA58: 78152 | AB58: 108357 | AC58: 30465 | AD58: 61467 | AE58: 87845 | AF58: 124781 | AG58: 33177 | AH58: 68114 | AI58: 102972 | AJ58: 143855 | AK58: 41329 | AL58: 87579
B59: Miscellaneous supplies | C59: 74550 | D59: 67537 | E59: 57093 | F59: 87848 | T59: Miscellaneous supplies | U59: 19077.37734 | V59: 39733.37734 | W59: 64999.37734 | X59: 87844.37734 | Y59: 32993 | Z59: 60830 | AA59: 87921 | AB59: 118510 | AC59: 18653 | AD59: 43353 | AE59: 66905 | AF59: 91769 | AG59: 19383 | AH59: 37575 | AI59: 54568 | AJ59: 69582 | AK59: 16772 | AL59: 35756
B60: Security and protection | C60: 66424 | D60: 64439 | E60: 63500 | F60: 64480 | T60: Security and protection | U60: 15475.83247 | V60: 31273.83247 | W60: 48114.83247 | X60: 64479.83247 | Y60: 15789 | Z60: 31793 | AA60: 47857 | AB60: 64432 | AC60: 15903 | AD60: 32447 | AE60: 49356 | AF60: 65970 | AG60: 16946 | AH60: 33886 | AI60: 50774 | AJ60: 69679 | AK60: 18007 | AL60: 35593
B61: Subscriptions and quotes | C61: 44523 | D61: 49464 | E61: 55331 | F61: 58251 | T61: Subscriptions and quotes | U61: 13011.91958 | V61: 27888.91958 | W61: 41591.91958 | X61: 55913.91958 | Y61: 13086 | Z61: 29110 | AA61: 43501 | AB61: 61945 | AC61: 17172 | AD61: 41392 | AE61: 59741 | AF61: 74002 | AG61: 18330 | AH61: 38103 | AI61: 58877 | AJ61: 78402 | AK61: 20849 | AL61: 42391
B62: Electricity and water | C62: 54952 | D62: 51649 | E62: 48886 | F62: 51117 | T62: Electricity and water | U62: 10549.51163 | V62: 23975.51163 | W62: 35717.51163 | X62: 50565.51163 | Y62: 11497 | Z62: 26451 | AA62: 40043 | AB62: 56359 | AC62: 11736 | AD62: 25350 | AE62: 37207 | AF62: 52260 | AG62: 10275 | AH62: 22788 | AI62: 34178 | AJ62: 48150 | AK62: 10177 | AL62: 23648
B63: Electronic processing | C63: 28217 | D63: 36920 | E63: 39528 | F63: 35896 | T63: Electronic processing | U63: 7692.507735 | V63: 15900.50774 | W63: 23670.50774 | X63: 35895.50774 | Y63: 8730 | Z63: 18521 | AA63: 28480 | AB63: 39764 | AC63: 7748 | AD63: 13764 | AE63: 21342 | AF63: 29466 | AG63: 7635 | AH63: 15397 | AI63: 24332 | AJ63: 33579 | AK63: 10067 | AL63: 20970
B64: Insurance | C64: 30873 | D64: 43657 | E64: 62142 | F64: 62994 | T64: Insurance | U64: 8290.844159 | V64: 14840.84416 | W64: 54364.84416 | X64: 62993.84416 | Y64: 8750 | Z64: 13772 | AA64: 51806 | AB64: 56324 | AC64: 5172 | AD64: 12542 | AE64: 40838 | AF64: 55150 | AG64: 11719 | AH64: 28160 | AI64: 62561 | AJ64: 44046 | AK64: 23102 | AL64: 19950
B65: Cleaning | C65: 21445 | D65: 22900 | E65: 20105 | F65: 20435 | T65: Cleaning | U65: 4506.144596 | V65: 9709.144596 | W65: 15067.1446 | X65: 20435.1446 | Y65: 5162 | Z65: 10625 | AA65: 16555 | AB65: 22677 | AC65: 5744 | AD65: 11373 | AE65: 17134 | AF65: 25549 | AG65: 6558 | AH65: 13572 | AI65: 20046 | AJ65: 27254 | AK65: 7163 | AL65: 14767
B66: Others (1) | C66: 199776 | D66: 155455 | E66: 154323 | F66: 205011 | T66: Others (1) | U66: 50908 | V66: 123697 | W66: 149982 | X66: 188671 | Y66: 69798 | Z66: 152124 | AA66: 209573 | AB66: 229434 | AC66: 74132 | AD66: 133150 | AE66: 198193 | AF66: 228002 | AG66: 71990 | AH66: 138917 | AI66: 211515 | AJ66: 230105 | AK66: 76689 | AL66: 143551
B67: Total | C67: 2361117 | D67: 2383718 | E67: 2953717 | F67: 3505101 | T67: Total | U67: =+SUM(U50:U66) -> 696065.3089 | V67: =+SUM(V50:V66) -> 1515165.309 | W67: 2385038.309 | X67: 3414065.309 | Y67: =+SUM(Y50:Y66) -> 835060 | Z67: =+SUM(Z50:Z66) -> 1706106 | AA67: =+SUM(AA50:AA66) -> 2714000.15 | AB67: =+SUM(AB50:AB66) -> 3803203 | AC67: =+SUM(AC50:AC66) -> 821748 | AD67: =+SUM(AD50:AD66) -> 1769306 | AE67: =+SUM(AE50:AE66) -> 2740755 | AF67: =+SUM(AF50:AF66) -> 3891622 | AG67: =+SUM(AG50:AG66) -> 869834 | AH67: =+SUM(AH50:AH66) -> 1835828 | AI67: =+SUM(AI50:AI66) -> 2904287 | AJ67: =+SUM(AJ50:AJ66) -> 4090784 | AK67: 1061666 | AL67: =+SUM(AL50:AL66) -> 2176598
B68: (1) Others consists mainly of security and protection services, cleaning service, representation expenses, electricity and water utilities, insurance policiy expenses, subscription expenses and commission expenses.

Sheet 9.Operating Efficiency
B1: Back to index | X1: Back to index
B3: (Under IFRS 4) | X3: (Under IFRS 17)
B4: Operating efficiency | C4: Quarter | S4: As of | X4: Operating efficiency | Y4: Quarter
B5: S/000 | X5: S/000
C6: 1Q19 | D6: 2Q19 | E6: 3Q19 | F6: 4Q19 | G6: 1Q20 | H6: 2Q20 | I6: 3Q20 | J6: 4Q20 | K6: 1Q21 | L6: 2Q21 | M6: 3Q21 | N6: 4Q21 | O6: 1Q22 | P6: 2Q22 | Q6: 3Q22 | R6: 4Q22 | S6: 2019 | T6: 2020 | U6: 2021 | V6: 2022 | Y6: 1Q22 | Z6: 2Q22 | AA6: 3Q22 | AB6: 4Q22 | AC6: 1Q23 | AD6: 2Q23 | AE6: 3Q23 | AF6: 4Q23 | AG6: 1Q24 | AH6: 2Q24 | AI6: 3Q24 | AJ6: 4Q24 | AK6: 1Q25 | AL6: 2Q25 | AM6: 3Q25 | AN6: 4Q25 | AO6: 1Q26 | AP6: 2Q26
B7: Operating expenses (1) | C7: 1597816 | D7: 1653563 | E7: 1680417 | F7: 1852620 | G7: 1722183 | H7: 1611543 | I7: 1657964 | J7: 1791120 | K7: 1704894 | L7: 1812674 | M7: 1986913 | N7: 2182630 | O7: 1946181 | P7: 2071401 | Q7: 2151352 | R7: 2400674 | S7: 6785063 | T7: 6782810 | U7: 7685957 | V7: 8564147 | X7: Operating expenses (1) | Y7: 1795168 | Z7: 1928479 | AA7: 2026217 | AB7: 2243805 | AC7: 2038309 | AD7: 2103072 | AE7: 2243691 | AF7: 2395688 | AG7: 2112810 | AH7: 2270785 | AI7: 2313324 | AJ7: 2612878 | AK7: 2442089 | AL7: 2483493 | AM7: 2629461 | AN7: 2871709 | AO7: 2762628 | AP7: 2825995
B8: Operating income (2) | C8: 3768564 | D8: 3832407 | E8: 3896978 | F8: 4073888 | G8: 3968580 | H8: 3213316 | I8: 3684610 | J8: 3793722 | K8: 3871563 | L8: 4147704 | M8: 4307356 | N8: 4414186 | O8: 4376339 | P8: 4649583 | Q8: 5024516 | R8: 5219379 | S8: 15571825 | T8: 14660228 | U8: 16739655 | V8: 19269608 | X8: Operating income (2) | Y8: 3799381 | Z8: 4044394 | AA8: 4456209 | AB8: 4530125 | AC8: 4602331 | AD8: 4715570 | AE8: 4844683 | AF8: 4893605 | AG8: 4933778 | AH8: 5143084 | AI8: 5211162 | AJ8: 5396202 | AK8: 5340199 | AL8: 5529301 | AM8: 5670690 | AN8: 5857472 | AO8: 6029112 | AP8: 6231110
B9: Efficiency ratio (3) | C9: 0.424 | D9: 0.431 | E9: 0.4312102865 | F9: 0.4547547699 | G9: 0.4339544623 | H9: 0.5015202364 | I9: 0.4499700104 | J9: 0.4721273725 | K9: 0.4403632331 | L9: 0.4370307042 | M9: 0.4612836738 | N9: 0.4944580949 | O9: 0.4447052662 | P9: 0.4455025322 | Q9: 0.428170992 | R9: 0.4599539524 | S9: 0.436 | T9: 0.4626674292 | U9: 0.4591466789 | V9: 0.4444380498 | X9: Efficiency ratio (3) | Y9: =+Y7/Y8 -> 0.4724895976 | Z9: 0.476827678 | AA9: 0.4546952353 | AB9: 0.4953075246 | AC9: =+AC7/AC8 -> 0.4428862244 | AD9: =+AD7/AD8 -> 0.4459846848 | AE9: 0.4631244191 | AF9: 0.4895548374 | AG9: 0.4282336984 | AH9: 0.4415220517 | AI9: 0.4439171148 | AJ9: 0.4842068551 | AK9: 0.4573029956 | AL9: 0.4491513484 | AM9: 0.4636933072 | AN9: 0.49026423 | AO9: 0.4582147421 | AP9: 0.4535299489
B10: (1) Operating expenses = Salaries and employees benefits + Administrative expenses + Depreciation and amortization + Association in participation + Acquisition cost.
B11: (2) Operating income = Net interest, similar income and expenses + Fee income + Net gain on foreign exchange transactions + Net gain from associates + Net gain on derivatives held for trading + Net gain from exchange differences + Net premiums earned | X11: (Under IFRS 17)
X12: Operating efficiency | Y12: As of
X13: S/000
Y14: Mar 22 | Z14: Jun 22 | AA14: Sep 22 | AB14: Dec 22 | AC14: Mar 23 | AD14: Jun 23 | AE14: Sep 23 | AF14: Dec 23 | AG14: Mar 24 | AH14: Jun 24 | AI14: Sep 24 | AJ14: Dec 24 | AK14: Mar 25 | AL14: Jun 25 | AM14: Set 25 | AN14: Dec 25 | AO14: Mar 26 | AP14: Jun 26
X15: Operating expenses (1) | Y15: =+Y7 -> 1795168 | Z15: =+Y15+Z7 -> 3723647 | AA15: =+AA7+Z7+Y7 -> 5749864 | AB15: =+AB7+AA7+Z7+Y7 -> 7993669 | AC15: =+AC7 -> 2038309 | AD15: =+AC15+AD7 -> 4141381 | AE15: =+AE7+AD7+AC7 -> 6385072 | AF15: =+AF7+AE7+AD7+AC7 -> 8780760 | AG15: =+AG7 -> 2112810 | AH15: =+AG15+AH7 -> 4383595 | AI15: =+AI7+AH7+AG7 -> 6696919 | AJ15: =+AJ7+AI7+AH7+AG7 -> 9309797 | AK15: =+AK7 -> 2442089 | AL15: =+AK15+AL7 -> 4925582 | AM15: =+AM7+AL7+AK7 -> 7555043 | AN15: =+AN7+AM7+AL7+AK7 -> 10426752 | AO15: =+AO7 -> 2762628 | AP15: =AO7+AP7 -> 5588623
B16: (3) Operating expenses / Operating income. | X16: Operating income (2) | Y16: =+Y8 -> 3799381 | Z16: =+Y16+Z8 -> 7843775 | AA16: =+AA8+Z8+Y8 -> 12299984 | AB16: =+AB8+AA8+Z8+Y8 -> 16830109 | AC16: =+AC8 -> 4602331 | AD16: =+AC16+AD8 -> 9317901 | AE16: =+AE8+AD8+AC8 -> 14162584 | AF16: =+AF8+AE8+AD8+AC8 -> 19056189 | AG16: =+AG8 -> 4933778 | AH16: =+AG16+AH8 -> 10076862 | AI16: =+AI8+AH8+AG8 -> 15288024 | AJ16: =+AJ8+AI8+AH8+AG8 -> 20684226 | AK16: =+AK8 -> 5340199 | AL16: =+AK16+AL8 -> 10869500 | AM16: =+AM8+AL8+AK8 -> 16540190 | AN16: =+AN8+AM8+AL8+AK8 -> 22397662 | AO16: =+AO8 -> 6029112 | AP16: =AO8+AP8 -> 12260222
X17: Efficiency ratio (3) | Y17: 0.4724895976 | Z17: =+Z15/Z16 -> 0.4747263913 | AA17: 0.467469226 | AB17: 0.4749624022 | AC17: 0.4428862244 | AD17: 0.4444542821 | AE17: 0.4508408917 | AF17: 0.4607825835 | AG17: 0.4282336984 | AH17: 0.4350158809 | AI17: 0.4380500057 | AJ17: 0.4500916302 | AK17: 0.4573029956 | AL17: 0.4531562629 | AM17: 0.4567688158 | AN17: =+AN15/AN16 -> 0.4655285895 | AO17: =+AO15/AO16 -> 0.4582147421 | AP17: 0.4558337524
B20: 2Q22 | C20: 0.414960098 | D20: 0.5799058963 | E20: 0.5036145985 | F20: 0.7540997393 | G20: 0.3460443144 | H20: 0.5257988237 | I20: 0.4455025322
B21: 3Q22 | C21: 0.3884993286 | D21: 0.6131028854 | E21: 0.4961366585 | F21: 0.8056282723 | G21: 0.3384191274 | H21: 0.5020987984 | I21: 0.428170992
B22: 4Q22 | C22: 0.418842279 | D22: 0.6450104747 | E22: 0.5229791631 | F22: 0.9326550462 | G22: 0.3670686788 | H22: 0.4613150343 | I22: 0.4599539524
B23: 2019 | C23: 0.4089594657 | D23: 0.6002392083 | E23: 0.5297688409 | G23: 0.3542800371 | H23: 0.4747894633 | I23: 0.4459198497 | X23: Reported efficiency ratio per subsidiary | Y23: 1Q22 | Z23: 2Q22 | AA23: 3Q22 | AB23: 4Q22 | AC23: 1Q23 | AD23: 2Q23 | AE23: 3Q23 | AF23: 4Q23 | AG23: 1Q24 | AH23: 2Q24 | AI23: 3Q24 | AJ23: 4Q24 | AK23: 1Q25 | AL23: 2Q25 | AM23: 3Q25 | AN23: 4Q25 | AO23: 1Q26 | AP23: 2Q26
B24: 2020 | C24: 0.4094593989 | D24: 0.8780978985 | E24: 0.62635544 | F24: 0.9745259717 | G24: 0.389555362 | H24: 0.4732074393 | I24: 0.4360731985 | X24: BCP Individual | Y24: 0.406195338 | Z24: 0.414960098 | AA24: 0.3884993286 | AB24: 0.418842279 | AC24: 0.3680122673 | AD24: 0.3729626059 | AE24: 0.3729626059 | AF24: 0.4180385683 | AG24: 0.3506390422 | AH24: 0.3706548032 | AI24: 0.3640742745 | AJ24: 0.4369329531 | AK24: 0.3769036211 | AL24: 0.383485126 | AM24: 0.3994944247 | AN24: 0.4273151047 | AO24: 0.3862255022 | AP24: 0.3854766861
B25: 2021 | C25: 0.4343555962 | D25: 0.6031937549 | E25: 0.5541541293 | F25: 0.7633937533 | G25: 0.3537477636 | H25: 0.5065257542 | I25: 0.4587049839 | X25: BCP Bolivia | Y25: 0.5988039169 | Z25: 0.5799058963 | AA25: 0.6131028854 | AB25: 0.6450104747 | AC25: 0.6023252467 | AD25: 0.6066747024 | AE25: 0.6532836991 | AF25: 0.5900015291 | AG25: 0.5805586413 | AH25: 0.5819826882 | AI25: 0.803 | AJ25: 0.6297222476 | AK25: 0.6962360841 | AL25: 0.6729597961 | AM25: 0.5901772152 | AN25: 0.7421297038 | AO25: 0.6522271476 | AP25: 0.5708508782
B26: 2022 | C26: 0.4071977025 | D26: 0.6089911711 | E26: 0.512840905 | F26: 0.8187138346 | G26: 0.3530804853 | H26: 0.5095176707 | I26: 0.444716626 | X26: Mibanco Peru | Y26: 0.5298605388 | Z26: 0.5036145985 | AA26: 0.4961366585 | AB26: 0.5229791631 | AC26: 0.5412470146 | AD26: 0.5237025493 | AE26: 0.5137883171 | AF26: 0.5290545133 | AG26: 0.5326055611 | AH26: 0.5100976076 | AI26: 0.542 | AJ26: 0.522308145 | AK26: 0.5287659834 | AL26: 0.5199286935 | AM26: 0.4944439353 | AN26: 0.495877334 | AO26: 0.4921781725 | AP26: 0.4678496866
B27: (1) (Salaries and employees benefits + Administrative, general and tax expenses + Depreciation and amortization + Acquisition cost + Association in participation) / (Net interest income + Fee income + Net gain on foreign exchange transactions + Net gain from associates + Net gain on derivatives held for trading + Result on exchange differences + Net premiums earned). | X27: Mibanco Colombia | Y27: 0.7897183284 | Z27: 0.7576226462 | AA27: 0.8026519794 | AB27: 0.9326550462 | AC27: 0.9322701861 | AD27: 0.8882957465 | AE27: 0.859535172 | AF27: 0.9819986294 | AG27: 0.8553625939 | AH27: 0.7890124264 | AI27: 0.72 | AJ27: 0.6945700193 | AK27: 0.7064658124 | AL27: 0.6548705172 | AM27: 0.6371187157 | AN27: 0.6615964731 | AO27: 0.6452740971 | AP27: 0.5797633408
X28: Pacífico | Y28: 0.06815780592 | Z28: 0.3385638705 | AA28: 0.2419986844 | AB28: 0.5367805197 | AC28: 0.2174007171 | AD28: 0.2835172548 | AE28: 0.2474484944 | AF28: 0.3489625218 | AG28: 0.2768051165 | AH28: 0.2752770222 | AI28: 0.255 | AJ28: 0.2961450045 | AK28: 0.3152098508 | AL28: 0.3750696728 | AM28: 0.3820471525 | AN28: 0.4500404185 | AO28: 0.3935341219 | AP28: 0.4019726773
X29: Prima AFP | Y29: 0.5449147464 | Z29: 0.5257988237 | AA29: 0.5020987984 | AB29: 0.4613150343 | AC29: 0.4958568842 | AD29: 0.4976981183 | AE29: 0.5158544843 | AF29: 0.5422601221 | AG29: 0.5039548259 | AH29: 0.5214953082 | AI29: 0.507 | AJ29: 0.6418239208 | AK29: 0.5440797063 | AL29: 0.5135112953 | AM29: 0.5246322055 | AN29: 0.5766015573 | AO29: 0.5720668923 | AP29: 0.5116237501
X30: CreDecorp | Y30: 0.4102571603 | Z30: 0.476827678 | AA30: 0.4546952353 | AB30: 0.4953075246 | AC30: 0.4428861282 | AD30: 0.4459846848 | AE30: 0.4565802188 | AF30: 0.4895548374 | AG30: 0.4282336693 | AH30: 0.4415224406 | AI30: 0.4439173067 | AJ30: 0.4842067595 | AK30: 0.45730291 | AL30: 0.4491513484 | AM30: 0.4636933072 | AN30: 0.49026423 | AO30: 0.4582147421 | AP30: 0.4535299489
X33: Reported efficiency ratio per subsidiary | Y33: Mar 22 | Z33: Jun 22 | AA33: Sep 22 | AB33: Dec 22 | AC33: Mar 23 | AD33: Jun 23 | AE33: Sep 23 | AF33: Dec 23 | AG33: Mar 24 | AH33: Jun 24 | AI33: Sep 24 | AJ33: Dec 24 | AK33: Mar 25 | AL33: Jun 25 | AM33: Set 25 | AN33: Dec 25 | AO33: Mar 26 | AP33: Jun 26
X34: BCP Individual | Y34: =+Y24 -> 0.406195338 | AC34: =+AC24 -> 0.3680122673 | AG34: =+AG24 -> 0.3506390422 | AH34: 0.3608076435 | AI34: 0.3619371554 | AJ34: 0.3814102042 | AK34: =+AK24 -> 0.3769036211 | AL34: 0.380251219 | AM34: 0.3867990481 | AN34: 0.3973720763 | AO34: =+AO24 -> 0.3862255022 | AP34: 0.3858416197
X35: BCP Bolivia | Y35: =+Y25 -> 0.5988039169 | AC35: =+AC25 -> 0.6023252467 | AG35: =+AG25 -> 0.5805586413 | AH35: 0.5813085531 | AI35: 0.6433373984 | AJ35: 0.6393912189 | AK35: =+AK25 -> 0.6962360841 | AL35: 0.6875380545 | AM35: 0.6554387709 | AN35: 0.6777923698 | AO35: =+AO25 -> 0.6522271476 | AP35: 0.6082142989
X36: Mibanco Peru | Y36: 0.5298605388 | AC36: 0.5412470146 | AG36: 0.5326055611 | AH36: 0.5212712422 | AI36: 0.5282324288 | AJ36: 0.526706984 | AK36: 0.5287659834 | AL36: 0.5242579522 | AM36: 0.5138770903 | AN36: 0.5090664618 | AO36: 0.4921781725 | AP36: 0.4797212829
X37: Mibanco Colombia | Y37: 0.7897183284 | AC37: 0.9322701861 | AG37: 0.8553625939 | AH37: 0.8213964856 | AI37: 0.7863568298 | AJ37: 0.7623668849 | AK37: 0.7064658124 | AL37: 0.6792616882 | AM37: 0.6637993881 | AN37: 0.6631533583 | AO37: 0.6452740971 | AP37: 0.6102830634
X38: Pacífico | Y38: 0.06815780592 | AC38: 0.2174007171 | AG38: 0.2768051165 | AH38: 0.2760433741 | AI38: 0.2694592392 | AJ38: 0.2764922777 | AK38: 0.3152098508 | AL38: 0.3489017166 | AM38: 0.3608889423 | AN38: 0.3828682045 | AO38: 0.3935341219 | AP38: 0.3976371603
X39: Prima AFP | Y39: 0.5449147464 | AC39: 0.4958568842 | AG39: 0.5039548259 | AH39: 0.5128784642 | AI39: 0.5110151294 | AJ39: 0.5418570721 | AK39: 0.5440797063 | AL39: 0.5286271418 | AM39: 0.527312685 | AN39: 0.5398132937 | AO39: 0.5720668923 | AP39: 0.5412299241
X40: CreDecorp | Y40: 0.4102571603 | AC40: 0.4428861282 | AG40: 0.4282336693 | AH40: 0.4350157817 | AI40: 0.4380499851 | AJ40: 0.4500916302 | AK40: 0.45730291 | AL40: 0.4531562629 | AM40: 0.4567687606 | AN40: 0.4655285895 | AO40: 0.4582147421 | AP40: 0.4558337524

Sheet 10.1.Regulatory Capital BAP
B1: Back to index
B4: Regulatory Capital and Capital Adequacy Ratios | C4: As of | Y4: Capital Regulatorio y Capitalización | Z4: Saldo a
B5: S/000 | Y5: PEN (000) | Z5: Mar 24 | AA5: Jun 24 | AB5: Sep 24 | AC5: Dec 24 | AD5: Mar 25 | AE5: Jun 25 | AF5: Sep 25 | AG5: Dec 25 | AH5: Mar 26 | AI5: Jun 26
C6: Mar 19 | D6: Jun 19 | E6: Sep 19 | F6: Dec 19 | G6: Mar 20 | H6: Jun 20 | I6: Sep 20 | J6: Dec 20 | K6: Mar 21 | L6: Jun 21 | M6: Sep 21 | N6: Dec 21 | O6: Mar 22 | P6: Jun 22 | Q6: Sep 22 | R6: Dec 22 | S6: Mar 23 | T6: Jun 23 | U6: Sep 23 | V6: Dec 23 | Y6: Capital social | Z6: 1318992.88 | AA6: 1318992.88 | AB6: 1318992.88 | AC6: 1318992.88 | AD6: 1318992.88 | AE6: 1318992.88 | AF6: 1318992.88 | AG6: 1318992.88 | AH6: 1318992.88 | AI6: 1318992.88
B7: Capital Stock | C7: 1318992.88 | D7: 1318992.88 | E7: 1318992.88 | F7: 1318992.88 | G7: 1318993 | H7: 1318993 | I7: 1318992.88 | J7: 1318992.88 | K7: 1318992.88 | L7: 1318992.88 | M7: 1318992.88 | N7: 1318993 | O7: 1318992.88 | P7: 1318992.88 | Q7: 1318992.88 | R7: 1318993 | S7: 1318992.88 | T7: 1318992.88 | U7: 1318992.88 | V7: 1318992.88 | Y7: Acciones de tesorería | Z7: -208343.3532 | AA7: -208917.8652 | AB7: -208901 | AC7: -208879 | AD7: -209845 | AE7: -209845 | AF7: -209845 | AG7: -209845 | AH7: -208702 | AI7: -209106
B8: Treasury Stocks | C8: -207896.9167 | D8: -207838.5012 | E8: -207838.5012 | F8: -207838.5012 | G8: -209309 | H8: -209309 | I8: -209305.3917 | J8: -208433.4076 | K8: -207839.5029 | L8: -207755.5689 | M8: -207745.4231 | N8: -207538 | O8: -207700.0764 | P8: -207517.8844 | Q8: -207517.8844 | R8: -207518 | S8: -208040.8923 | T8: -208035.0363 | U8: -208033.1913 | V8: -208033.1913 | Y8: Capital adicional | Z8: 201965.2988 | AA8: 172302.1748 | AB8: 179027 | AC8: 176307 | AD8: 124148 | AE8: 133387 | AF8: 139527 | AG8: 148729 | AH8: 112195 | AI8: 86146
B9: Capital Surplus | C9: 222348.8644 | D9: 227379.8578 | E9: 222604.6711 | F9: 226036.8366 | G9: 165188 | H9: 160430 | I9: 157766.7294 | J9: 192624.5618 | K9: 224591.3444 | L9: 224103.1544 | M9: 215071.4543 | N9: 228857 | O9: 227361.0709 | P9: 231179.0786 | Q9: 225832.4054 | R9: 231556 | S9: 226188.954 | T9: 231018.6404 | U9: 225338.4445 | V9: 228239.3455 | Y9: Reservas Legales y Facultativas | Z9: 26213431.78 | AA9: 28008037.04 | AB9: 27187346 | AC9: 27202665 | AD9: 32792830 | AE9: 29602851 | AF9: 29628427 | AG9: 29648582 | AH9: 36483716 | AI9: 32540118
B10: Legal and Other capital reserves (1) | C10: 19408876.25 | D10: 19423324 | E10: 19416912 | F10: 19437645 | G10: 21360272 | H10: 21381402 | I10: 21405740 | J10: 21429635 | K10: 21707166 | L10: 21725663 | M10: 21350150 | N10: 21364272 | O10: 21292614 | P10: 23666823 | Q10: 23687946 | R10: 23702590 | S10: 23603001 | T10: 26221577 | U10: 26239162 | V10: 26252578 | Y10: Interés Minoritario | Z10: 522308.9858 | AA10: 518837.834 | AB10: 479027 | AC10: 467916 | AD10: 476695 | AE10: 474990 | AF10: 475729 | AG10: 475351 | AH10: 475465 | AI10: 476717
B11: Minority interest (2) | C11: 357832.6902 | D11: 357067.0181 | E11: 357157.2688 | F11: 393018.7238 | G11: 386326 | H11: 418868 | I11: 421250 | J11: 443402 | K11: 456849 | L11: 429448 | M11: 423896.5616 | N11: 420062 | O11: 493113 | P11: 490576 | Q11: 488486 | R11: 430709 | S11: 514951 | T11: 207919.4625 | U11: 210282.6603 | V11: 205547.9125 | Y11: Utilidades y Resultados Acumulados (1) | Z11: 2639191.369 | AA11: 3914338.679 | AB11: 5432237.374 | AC11: 6592461.871 | AD11: 3410504.71 | AE11: 5123469.5 | AF11: 6737239.175 | AG11: 8330245.602 | AH11: 2206248.505 | AI11: 4229425.138
B12: Loan loss reserves (3) | C12: 1575956.311 | D12: 1608214.728 | E12: 1633134.622 | F12: 1690509.662 | G12: 1728836 | H12: 1876506 | I12: 1818719.541 | J12: 1838144.874 | K12: 1809048.123 | L12: 1913044.904 | M12: 1993306.124 | N12: 2001065 | O12: 1971343.486 | P12: 2074630.182 | Q12: 2139970.64 | R12: 2128732 | S12: 1908631.808 | T12: 1903624.783 | U12: 1946059.085 | V12: 1969000.978 | Y12: Ganancia / Pérdida No Realizada (2) | Z12: -991282.7008 | AA12: -936472.0999 | AB12: -227246.9996 | AC12: -504015.9361 | AD12: -462799.8968 | AE12: -246715.5692 | AF12: 392256.2021 | AG12: 159324.4954 | AH12: -66934.44172 | AI12: 179201.7602
B13: Perpetual subordinated debt | C13: 580650 | D13: 575225 | E13: 592025 | F13: 0 | G13: - | H13: - | I13: - | J13: - | K13: 0 | L13: 0 | M13: 0 | N13: 0 | O13: 0 | P13: 0 | Q13: 0 | R13: - | S13: 0 | T13: 0 | U13: - | V13: 0 | Y13: Goodwill | Z13: -768869.0826 | AA13: -763671.2398 | AB13: -734431 | AC13: -722361 | AD13: -1698492 | AE13: -1692823 | AF13: -1290496 | AG13: -1252858 | AH13: -1263931 | AI13: -1271630
B14: Subordinated Debt | C14: 4777810.815 | D14: 4735573.064 | E14: 4778364.84 | F14: 4409839.895 | G14: 4568131 | H14: 4698109 | I14: 5241952.891 | J14: 5491480.155 | K14: 7118127.758 | L14: 5979618.586 | M14: 6393705.62 | N14: 6125315 | O14: 5695192.131 | P14: 5863208.18 | Q14: 6015765.373 | R14: 5770557 | S14: 5649060.313 | T14: 5595445.673 | U14: 5844106.13 | V14: 5720210.01 | Y14: Intangibles (3) | Z14: -1935419.22 | AA14: -2151836.459 | AB14: -2050645.933 | AC14: -2396686.933 | AD14: -2590376.593 | AE14: -2655439.867 | AF14: -3345228.114 | AG14: -3586459.822 | AH14: -3660944.865 | AI14: -3813804.595
B15: Investments in equity and subordinated debt of financial and insurance companies | C15: -615275.3665 | D15: -777011.3042 | E15: -775047.7885 | F15: -700858.8135 | G15: -630805 | H15: -674492 | I15: -699066.134 | J15: -715613.9407 | K15: -735021.4323 | L15: -717710.9716 | M15: -727585.3124 | N15: -712518 | O15: -727620.1229 | P15: -829315.2364 | Q15: -868747.3339 | R15: -889246 | S15: -1002770.142 | T15: -1265051.83 | U15: -1259626.391 | V15: -1235433.999 | Y15: Deducciones en Capital Ordinario Nivel 1 (4) | Z15: -699843.0979 | AA15: -685465.6926 | AB15: -678924.1276 | AC15: -673951.664 | AD15: -38573.27866 | AE15: -73487.60673 | AF15: -81608.96152 | AG15: -99318.83409 | AH15: -45923.79363 | AI15: -59128.44547
B16: Goodwill | C16: -602485.2418 | D16: -601332.8165 | E16: -621686.1635 | F16: -834881.3932 | G16: -819338 | H16: -851731 | I16: -790335 | J16: -820899 | K16: -812242 | L16: -813492 | M16: -826196 | N16: -796859 | O16: -809980 | P16: -802622 | Q16: -788179 | R16: -772213 | S16: -802366 | T16: -830725 | U16: -842678 | V16: -798482 | Y16: Deuda Subordinada Perpetua | Z16: 0 | AA16: 0 | AB16: 0 | AC16: 0 | AD16: 0 | AE16: 0 | AF16: 0 | AG16: 0 | AH16: 0 | AI16: 0
B17: Current year Net Loss | C17: 0 | D17: 0 | E17: 0 | F17: 0 | G17: - | H17: -411117 | I17: -306510 | J17: - | K17: 0 | L17: 0 | M17: 0 | N17: - | O17: 0 | P17: 0 | Q17: 0 | S17: 0 | T17: 0 | U17: - | V17: 0 | Y17: Deuda Subordinada | Z17: 5733691.345 | AA17: 5896956.997 | AB17: 7939610.01 | AC17: 8047314.314 | AD17: 7892454.395 | AE17: 7240644.65 | AF17: 7246406.096 | AG17: 8854661.631 | AH17: 9270139.488 | AI17: 9911661.876
B18: Deduction for subordinated debt limit (50% of Tier I excluding deductions) (4) | C18: 0 | D18: 0 | E18: 0 | F18: 0 | G18: - | H18: - | I18: - | J18: - | K18: 0 | L18: 0 | M18: 0 | N18: - | O18: 0 | P18: 0 | Q18: 0 | S18: 0 | T18: 0 | U18: - | V18: 0 | Y18: Provisiones Genéricas (5) | Z18: 1946564.144 | AA18: 2041564.127 | AB18: 1967573.654 | AC18: 2033378.897 | AD18: 1972284.741 | AE18: 1972667.41 | AF18: 2036080.379 | AG18: 2062637.358 | AH18: 2128082.864 | AI18: 2243247.265
B19: Deduction for Tier I Limit (50% of Regulatory capital) (4) | C19: 0 | D19: 0 | E19: 0 | F19: 0 | G19: - | H19: - | I19: - | J19: - | K19: 0 | L19: 0 | M19: 0 | N19: - | O19: 0 | P19: 0 | Q19: 0 | S19: 0 | T19: 0 | U19: - | V19: 0 | Y19: Deducciones en Patrimonio Efectivo Nivel 2 (6) | Z19: -945602.8564 | AA19: -973281.2163 | AB19: -1525607.556 | AC19: -1322351.886 | AD19: -751235.6465 | AE19: -1289380.27 | AF19: -1438738.583 | AG19: -2036820.787 | AH19: -1062616.123 | AI19: -1323616.71
B20: Total Regulatory Capital (A) | C20: 26816810.29 | D20: 26659593.93 | E20: 26714618.83 | F20: 25732464.29 | G20: 27868294 | H20: 27707660 | I20: 28359205.52 | J20: 28969333.12 | K20: 30879672.17 | L20: 29851911.98 | M20: 29933595.9 | N20: 29741649 | O20: 29253316.37 | P20: 31805954.2 | Q20: 32012549.08 | R20: 31714160 | S20: 31207648.92 | T20: 33174766.57 | U20: 33473603.62 | V20: 33452619.94 | Y20: Total Patrimonio Efectivo (A) | Z20: 33026784.75 | AA20: 36151385.16 | AB20: 39078056.3 | AC20: 40010789.54 | AD20: 42236587.31 | AE20: 39699311.13 | AF20: 41608741.07 | AG20: 43813221.52 | AH20: 45685786.51 | AI20: 44308224.17
Y21: Total Capital Ordinario Nivel 1 (B) | Z21: 26292132.12 | AA21: 29186401.04 | AB21: 30696480.19 | AC21: 31252448.22 | AD21: 33123083.82 | AE21: 31775379.34 | AF21: 33764993.18 | AG21: 34932743.32 | AH21: 35350180.28 | AI21: 33476931.74
B22: Tier 1 (5) | C22: 14827120.59 | D22: 14746303.79 | E22: 14739047.26 | F22: 14010215.14 | G22: 15271365 | H22: 14833795 | I22: 14987233.15 | J22: 15312787.06 | K22: 15357748.01 | L22: 15337347.98 | M22: 15305133.82 | N22: 15352163 | O22: 15402883.81 | P22: 16973919.46 | Q22: 16961209.73 | R22: 16914873 | S22: 16906309.87 | T22: 17834543.03 | U22: 17821986.6 | V22: 17876444.95 | Y22: Total Patrimonio Efectivo Nivel 1 (C) | Z22: 26292132.12 | AA22: 29186145.26 | AB22: 30696480.19 | AC22: 31252448.22 | AD22: 33123083.82 | AE22: 31775379.34 | AF22: 33764993.18 | AG22: 34932743.32 | AH22: 35350180.28 | AI22: 33476931.74
B23: Tier 2 (6) + Tier 3 (7) | C23: 11989689.44 | D23: 11913290.14 | E23: 11975571.57 | F23: 11722249.15 | G23: 12596929 | H23: 12873865 | I23: 13371972.36 | J23: 13656546.06 | K23: 15357748.01 | L23: 14514564 | M23: 14628462.09 | N23: 14389486 | O23: 13850432.56 | P23: 14832034.74 | Q23: 15051339.35 | R23: 14799287 | S23: 14301339.05 | T23: 15340223.54 | U23: 15651617.02 | V23: 15576174.99 | Y23: Requerimiento Patrimonio Efectivo (D) | Z23: 25901090.46 | AA23: 27146595.12 | AB23: 27276453.64 | AC23: 29124775.22 | AD23: 30571363.28 | AE23: 29484939.75 | AF23: 30993861.87 | AG23: 32346541.27 | AH23: 33801575.57 | AI23: 35232602
Y24: Requerimiento Capital Ordinario Nivel 1 (E) | Z24: 13351145.03 | AA24: 13975807.5 | AB24: 13968157.7 | AC24: 15445078.61 | AD24: 15997613.73 | AE24: 15535243.76 | AF24: 16281633.83 | AG24: 17499583.46 | AH24: 18287421.43 | AI24: 19163320.67
B25: Financial Consolidated Group (FCG) Regulatory Capital Requirements (8) | C25: 19595888.52 | D25: 19877961.3 | E25: 20170802.24 | F25: 20750934.8 | G25: 19925877 | H25: 19619598 | I25: 18607278.66 | J25: 20136257.62 | K25: 20121083.29 | L25: 17894229.95 | M25: 18710798.5 | N25: 18530113 | O25: 18372066.98 | P25: 19270915.61 | Q25: 20973716.26 | R25: 22506113 | S25: 20915784.75 | T25: 21863219.23 | U25: 22387961.44 | V25: 24780032.35 | Y25: Requerimiento Patrimonio Efectivo Nivel 1 (F) | Z25: 16336792.59 | AA25: 17108445.44 | AB25: 17131012.85 | AC25: 18681850.15 | AD25: 19424644.57 | AE25: 18788044.39 | AF25: 19727354.53 | AG25: 20978425.89 | AH25: 21925952.51 | AI25: 22964371.81
B26: Insurance Consolidated Group (ICG) Capital Requirements (9) | C26: 1019983.872 | D26: 1090628.079 | E26: 1139616.671 | F26: 1199849.681 | G26: 1243035 | H26: 1232497 | I26: 1241464.868 | J26: 1304266.337 | K26: 1362246 | L26: 1325595.466 | M26: 1418922 | N26: 1430567 | O26: 1450871.344 | P26: 1512297.023 | Q26: 1558334 | R26: 1562893 | S26: 1406416.716 | T26: 1532424.93 | U26: 1550764.843 | V26: 1593589.763 | Y26: Ratio Patrimonio Efectivo (A) / (D) | Z26: 1.275111749 | AA26: 1.331709741 | AB26: 1.432666314 | AC26: 1.373771617 | AD26: 1.381573564 | AE26: 1.346426734 | AF26: 1.342483271 | AG26: 1.354494787 | AH26: 1.351587485 | AI26: 1.257591596
B27: FCG Capital Requirements related to operations with ICG | C27: -216359.6897 | D27: -235271.5242 | E27: -236035.9575 | F27: -329262.2652 | G27: -503013 | H27: -500356 | I27: -477399.8031 | J27: -467302.7592 | K27: -467302.7592 | L27: -471393.8848 | M27: -503808.6738 | N27: -513262 | O27: -446149.1377 | P27: -449113.4606 | Q27: -465142.8149 | R27: -471371 | S27: -518975.3 | T27: -625441.0617 | U27: -680628.2752 | V27: -652893.1384 | Y27: Ratio Capital Ordinario Nivel 1 (B) / (E) | Z27: 1.969279194 | AA27: 2.088333375 | AB27: 2.197604069 | AC27: 2.023456728 | AD27: 2.070501538 | AE27: 2.045373721 | AF27: 2.073808657 | AG27: 1.996204275 | AH27: 1.933032518 | AI27: 1.746927493
B28: ICG Capital Requirements related to operations with FCG | C28: 0 | D28: 0 | E28: 0 | F28: 0 | G28: - | H28: - | I28: - | J28: - | K28: 0 | L28: 0 | M28: 0 | N28: - | O28: 0 | P28: 0 | Q28: 0 | S28: 0 | T28: 0 | U28: - | V28: 0 | Y28: Ratio Patrimonio Efectivo Nivel 1 (C) / (F) | Z28: 1.609381522 | AA28: 1.705949577 | AB28: 1.791866042 | AC28: 1.672877577 | AD28: 1.705209262 | AE28: 1.691255283 | AF28: 1.711582419 | AG28: 1.665174666 | AH28: 1.612252889 | AI28: 1.457776943
B29: Total Regulatory Capital Requirements (B) | C29: 20399512.7 | D29: 20733317.85 | E29: 21074382.95 | F29: 21621522.22 | G29: 20665899 | H29: 20351739 | I29: 19371343.73 | J29: 20973221.2 | K29: 21016026.53 | L29: 18748431.54 | M29: 19625911.83 | N29: 19447418 | O29: 19376789.18 | P29: 20334099.17 | Q29: 22066907.45 | R29: 23597635 | S29: 21803226.16 | T29: 22770203.1 | U29: 23258098.01 | V29: 25720728.98
B30: Regulatory Capital Ratio (A) / (B) | C30: 1.314580926 | D30: 1.285833464 | E30: 1.267634687 | F30: 1.190131945 | G30: 1.35 | H30: 1.36 | I30: 1.463977198 | J30: 1.381253402 | K30: 1.469339227 | L30: 1.592235165 | M30: 1.525207907 | N30: 1.529336645 | O30: 1.509709173 | P30: 1.564168343 | Q30: 1.450703918 | R30: 1.343955019 | S30: 1.431331707 | T30: 1.456937667 | U30: 1.439223603 | V30: 1.300609324
B31: Required Regulatory Capital Ratio (10) | C31: 1 | D31: 1 | E31: 1 | F31: 1 | G31: 1 | H31: 1 | I31: 1 | J31: 1 | K31: 1 | L31: 1 | M31: 1 | N31: 1 | O31: 1 | P31: 1 | Q31: 1 | R31: 1 | S31: 1 | T31: 1 | U31: 1 | V31: 1
B33: (1) Legal and other capital reserves include restricted capital reserves (PEN 14,745 million) and optional capital reserves (PEN 6,661 million).
B34: (2) Minority interest includes Tier I (PEN 421 million)
B35: (3) Up to 1.25% of total risk-weighted asSeps of Banco de Crédito del Perú, Solución Empresa Administradora Hipotecaria, Mibanco and ASB Bank Corp.
B36: (4) Tier II + Tier III can not be more than 50% of total regulatory capital.
B38: (5) Tier I = capital + restricted capital reserves + Tier I minority interest - goodwill - (0.5 x investment in equity and subordinated debt of financial and insurance companies)+ perpetual subordinated debt.
B39: (6) Tier II = subordinated debt + TierII minority interest tier + loan loss reserves - (0.5 x investment in equity and subordinated debt of financial and insurance companies).
B40: (7) Tier III = Subordinated debt covering market risk only.
B41: (8) Includes regulatory capital requirements of the financial consolidated group.
B42: (9) Includes regulatory capital requirements of the insurance consolidated group.
B43: (10) Regulatory Capital / Total Regulatory Capital Requirements (legal minimum = 1.00).

Sheet 10.2.Regulatory Capital BCP
B1: Back to index
B3: (Under regulation as of December 2022) | U3: ( Under current peruvian regulation as of January 2023)
B4: Capital Stock | C4: As of | U4: Regulatory Capital | X4: As of
B5: S/000 | U5: (S/ thousand)
C6: Mar 19 | D6: Jun 19 | E6: Sep 19 | F6: Dec 19 | G6: Mar 20 | H6: Jun 20 | I6: Sep 20 | J6: Dec 20 | K6: Mar 21 | L6: Jun 21 | M6: Sep 21 | N6: Dec 21 | O6: Mar 22 | P6: Jun 22 | Q6: Sep 22 | R6: Dec 22 | S6: Mar 23 | V6: Mar 23 | W6: Jun 23 | X6: Sep 23 | Y6: Dec 23 | Z6: Mar 24 | AA6: Jun 24 | AB6: Sep 24 | AC6: Dec 24 | AD6: Mar 25 | AE6: Jun 25 | AF6: Sep 25 | AG6: Dec 25 | AH6: Mar 26 | AI6: Jun 26
B7: Capital Stock | C7: 10217386.72 | D7: 10217386.72 | E7: 10217386.72 | F7: 10217386.72 | G7: 10217387 | H7: 11067387 | I7: 11067386.72 | J7: 11067386.72 | K7: 11317386.72 | L7: 11317386.72 | M7: 11317386.72 | N7: 11317386.72 | O7: 12176364.76 | P7: 12176364.76 | Q7: 12176364.76 | R7: 12176364.76 | S7: 12973174.63 | U7: Capital Stock | V7: 12973174.63 | W7: 12973174.63 | X7: 12973174.63 | Y7: 12973174.63 | Z7: 12973175 | AA7: 12973174.63 | AB7: 12973174.63 | AC7: 12973174.63 | AD7: 12973174.63 | AE7: 12973174.63 | AF7: 12973174.63 | AG7: 12973174.63 | AH7: 12973174.63 | AI7: 12973174.63
B8: Legal and Other capital reserves | C8: 4695118.422 | D8: 4695118.422 | E8: 4695118.422 | F8: 4695118.422 | G8: 4695118 | H8: 6164175 | I8: 6164175.076 | J8: 6166670.152 | K8: 6707503.318 | L8: 6707830.732 | M8: 6707830.732 | N8: 6707830.732 | O8: 7516510.334 | P8: 7516896.765 | Q8: 7516896.765 | R8: 6759526.876 | S8: 7038881.154 | U8: Reserves | V8: 7038881.154 | W8: 7039359.354 | X8: 7039792.541 | Y8: 6590920.699 | Z8: 6590921 | AA8: 6591330.181 | AB8: 6591330.181 | AC8: 6124301.707 | AD8: 6124301.707 | AE8: 6125451.89 | AF8: 6125451.89 | AG8: 6125451.89 | AH8: 6125451.89 | AI8: 6126836.089
B9: Accumulated earnings with capitalization agreement | C9: - | D9: - | E9: 850000 | F9: 850000 | G9: 850000 | H9: - | I9: - | J9: - | K9: - | L9: - | M9: - | N9: - | O9: - | P9: - | Q9: - | R9: - | S9: - | U9: Accumulated earnings | V9: 2050746.159 | W9: 3346790.41 | X9: 4474350.707 | Y9: 5383865.068 | Z9: 2644894 | AA9: 3920794.882 | AB9: 5426132.353 | AC9: 6589251.668 | AD9: 3418149.445 | AE9: 5129249.585 | AF9: 6730630.535 | AG9: 8320658.39 | AH9: 4827901.066 | AI9: 6695102.43
B10: Loan loss reserves (1) | C10: 1284021.087 | D10: 1298103.752 | E10: 1320345.094 | F10: 1367259.217 | G10: 1383834 | H10: 1603535 | I10: 1565703.6 | J10: 1595915.744 | K10: 1609750.047 | L10: 1676768.182 | M10: 1720950.889 | N10: 1735371.624 | O10: 1707458.318 | P10: 1797357.801 | Q10: 1845015.519 | R10: 1838177.698 | S10: 1634875.696 | U10: Loan loss reserves (1) | V10: 1634875.696 | W10: 1625734.913 | X10: 1667750.407 | Y10: 1695577.33 | Z10: 1662636 | AA10: 1749877.634 | AB10: 1689306.921 | AC10: 1757255.855 | AD10: 1740157.782 | AE10: 1757305.033 | AF10: 1800867.731 | AG10: 1799772.846 | AH10: 1867163.749 | AI10: 1978395.209
B11: Perpetual subordinated debt | C11: 580650 | D11: 575225 | E11: 592025 | F11: - | G11: - | H11: - | I11: - | J11: - | K11: - | L11: - | M11: - | N11: - | O11: - | P11: - | Q11: - | R11: - | S11: - | U11: Perpetual subordinated debt | V11: - | W11: 0 | X11: - | Y11: 0 | Z11: 0 | AA11: 0 | AB11: 0 | AC11: 0 | AD11: 0 | AE11: 0 | AF11: - | AG11: - | AH11: 0 | AI11: 0
B12: Subordinated Debt | C12: 4236504.672 | D12: 4197063.248 | E12: 4319204.432 | F12: 3980903.568 | G12: 4128099 | H12: 4248967 | I12: 4787488.809 | J12: 4817188.305 | K12: 6276991.021 | L12: 5223300 | M12: 5595900 | N12: 5397450 | O12: 5007300 | P12: 5163750 | Q12: 5374350 | R12: 5148900 | S12: 5078700 | U12: Subordinated Debt | V12: 5078700 | W12: 4897800 | X12: 5120550 | Y12: 5007150 | Z12: 5019300 | AA12: 5171850 | AB12: 7232550 | AC12: 7339800 | AD12: 7152600 | AE12: 6552700 | AF12: 6419500 | AG12: 7903050 | AH12: 8203850 | AI12: 8866000
B13: Investment in subsidiaries and others, net of unrealized profit and net income | C13: -1722979.245 | D13: -1722979.244 | E13: -1722979.244 | F13: -1580582.764 | G13: -1937102 | H13: -1934790 | I13: -1934790.355 | J13: -2314790.354 | K13: -2281859.341 | L13: -2263859.341 | M13: -2263804.771 | N13: -2263804.771 | O13: -2432571.049 | P13: -2436524.713 | Q13: -2436524.715 | R13: -2436524.715 | S13: -2838433.735 | U13: Unrealized Profit or Losses | V13: -1046284.35 | W13: -834410.5099 | X13: -916336.703 | Y13: -668716.7603 | Z13: -691921 | AA13: -621417.3929 | AB13: -322210.369 | AC13: -413657.7393 | AD13: -341946.9808 | AE13: -200968.6951 | AF13: -10363.4774 | AG13: 138930.3665 | AH13: -241504.8963 | AI13: 6474.84426
B14: Investment in subsidiaries and others | C14: -1812954.802 | D14: -1903858.29 | E14: -2006573.744 | F14: -1965036.921 | G14: -2008782 | H14: -2020533 | I14: -2018037.208 | J14: -2297879.198 | K14: -2295242.76 | L14: -2326240.826 | M14: -2377058.172 | N14: -2435661.312 | O14: -2535289.425 | P14: -2674646.011 | Q14: -2774129.361 | R14: -2844247.83 | S14: -2895934.059 | U14: Investment in subsidiaries and others, net of unrealized profit and net income in subsidiaries | V14: -2613562.887 | W14: -2667540.032 | X14: -2714749.297 | Y14: -2772785.84 | Z14: -2416070 | AA14: -2465969.47 | AB14: -2537005.426 | AC14: -2477731.857 | AD14: -2310402.096 | AE14: -2380842.3 | AF14: -2535671.506 | AG14: -2691973.361 | AH14: -2549701.52 | AI14: -2731362.441
B15: Unrealized profit and net income in subsidiaries | C15: 89975.55763 | D15: 180879.0468 | E15: 283594.5001 | F15: 384454.1576 | G15: 71680 | H15: 85742 | I15: 83246.85277 | J15: -16911.15595 | K15: 13383.41892 | L15: 62381.48494 | M15: 113253.4007 | N15: 171856.5412 | O15: 102718.3766 | P15: 238121.2984 | Q15: 337604.646 | R15: 407723.1152 | S15: 57500.32429 | U15: Intangibles | V15: -934718.0427 | W15: -1036166.747 | X15: -1124983.012 | Y15: -1294278.889 | Z15: -1209735 | AA15: -1303791.729 | AB15: -1330134.964 | AC15: -1515213.693 | AD15: -1509700.573 | AE15: -1549091.34 | AF15: -1624041.677 | AG15: -1795539.807 | AH15: -1784514.293 | AI15: -1882535.494
B16: Goodwill | C16: -122083.1885 | D16: -122083.1885 | E16: -122083.1885 | F16: -122083.1885 | G16: -122083 | H16: -122083 | I16: -122083.1885 | J16: -122083.1885 | K16: -122083.1885 | L16: -122083.1885 | M16: -122083.1885 | N16: -122083.1885 | O16: -122083.1885 | P16: -122083.1885 | Q16: -122083.1885 | R16: -122083.1885 | S16: -122083.1885 | U16: Goodwill | V16: -122083.1885 | W16: -122083.1885 | X16: -122083.1885 | Y16: -122083.1885 | Z16: -122083 | AA16: -122083.1885 | AB16: -122083.1885 | AC16: -122083.1885 | AD16: -122083.1885 | AE16: -122083.1885 | AF16: -122083.1885 | AG16: -122083.1885 | AH16: -122083.1885 | AI16: -122083.1885
B17: Total Regulatory Capital - SBS | C17: 19168618.46 | D17: 19137834.71 | E17: 20149017.23 | F17: 19408001.97 | G17: 19215253 | H17: 21027190 | I17: 21527880.66 | J17: 21210287.38 | K17: 23507688.57 | L17: 22539343.1 | M17: 22956180.38 | N17: 22772151.11 | O17: 23852979.17 | P17: 24095761.42 | Q17: 24354019.14 | R17: 23364361.43 | S17: 23765114.56 | U17: Total Regulatory Capital | V17: 24059729.17 | W17: 25222658.83 | X17: 26397466.09 | Y17: 26792823.05 | Z17: 25893765.55 | AA17: 25893765.55 | AB17: 29601060.14 | AC17: 30255097.39 | AD17: 27124250.73 | AE17: 28284895.62 | AF17: 29757464.94 | AG17: 32651441.77 | AH17: 29299737.44 | AI17: 31910002.08
U18: Tier 1 Common Equity (2) | V18: 17346153.48 | W18: 18699123.92 | X18: 19609165.68 | Y18: 20090095.72 | Z18: 18972037.92 | AA18: 18972037.92 | AB18: 20679203.22 | AC18: 21158041.53 | AD18: 18231492.95 | AE18: 19974890.59 | AF18: 21537097.21 | AG18: 22948618.92 | AH18: 19228723.69 | AI18: 21065606.87
B19: Off-balance sheet | C19: 84074345 | D19: 84178682 | E19: 88421907 | F19: 86273789 | G19: 88189663 | H19: 87017934 | I19: 85546759 | J19: 90253383 | K19: 94853451 | L19: 96842778 | M19: 100119715 | N19: 94628498 | O19: 87775815 | P19: 91019217 | Q19: 94156153 | R19: 93211649 | S19: 91770539 | U19: Regulatory Tier 1 Capital (3) | V19: 17346153.48 | W19: 18699123.92 | X19: 19609165.68 | Y19: 20090095.72 | Z19: 18972037.92 | AA19: 18972037.92 | AB19: 20679203.22 | AC19: 21158041.53 | AD19: 18231492.95 | AE19: 19974890.59 | AF19: 21537097.21 | AG19: 22948618.92 | AH19: 19228723.69 | AI19: 21065606.87
U20: Regulatory Tier 2 Capital (4) | V20: 6713575.696 | W20: 6523534.913 | X20: 6788300.407 | Y20: 6702727.33 | Z20: 6921727.634 | AA20: 6921727.634 | AB20: 8921856.921 | AC20: 9097055.855 | AD20: 8892757.782 | AE20: 8310005.033 | AF20: 8220367.731 | AG20: 9702822.846 | AH20: 10071013.75 | AI20: 10844395.21
B21: Regulatory Tier 1 Capital (2) | C21: 14509582.33 | D21: 14504157.33 | E21: 15370957.33 | F21: 14850130.57 | G21: 14671871 | H21: 14971384 | I21: 14971384.14 | J21: 14783879.22 | K21: 15133633.65 | L21: 15142961.06 | M21: 15142988.35 | N21: 15142988.35 | O21: 16220723.53 | P21: 16219133.13 | Q21: 16219133.12 | R21: 16219133.12 | S21: 17094342.77
B22: Regulatory Tier 2 Capital (3) | C22: 4659036.136 | D22: 4633677.378 | E22: 4778059.904 | F22: 4557871.403 | G22: 4543382 | H22: 6055806 | I22: 6556496.516 | J22: 6426408.157 | K22: 8374054.923 | L22: 7396382.038 | M22: 7813192.03 | N22: 7629162.765 | O22: 7632255.648 | P22: 7876628.299 | Q22: 8134886.016 | R22: 7145228.306 | S22: 6670771.795 | U22: Total risk-weighted assets | X22: As of
U23: (S/ thousand) | V23: Mar 23 | W23: Jun 23 | X23: Sep 23 | Y23: Dec 23 | Z23: Mar 24 | AA23: Jun 24 | AB23: Sep 24 | AC23: Dec 24 | AD23: Mar 25 | AE23: Jun 25 | AF23: Sep 25 | AG23: Dec 25 | AH23: Mar 26 | AI23: Jun 26
B24: Total risk-weighted assets - SBS (4) | C24: 123718427.2 | D24: 128023739.5 | E24: 130413863.5 | F24: 134128850.2 | G24: 142084684 | H24: 142071064 | I24: 139910769.2 | J24: 142042877.4 | K24: 142854355.7 | L24: 146936014.4 | M24: 151415294.4 | N24: 152376235.5 | O24: 151045319.2 | P24: 158176423.6 | Q24: 163140250.4 | R24: 161938838.1 | S24: 159163097.9 | U24: Market risk-weighted assets (5) | V24: 1715933.683 | W24: 2307252.275 | X24: 2576734.284 | Y24: 2680009.898 | Z24: 3032546 | AA24: 3300703.373 | AB24: 4301156.371 | AC24: 3922295.201 | AD24: 3903493.463 | AE24: 4400225.693 | AF24: 5329044.591 | AG24: 5019033.384 | AH24: 6640052.778 | AI24: 6454270.062
B25: Credit risk-weighted assets | C25: 112023537 | D25: 115994875.7 | E25: 118791052.7 | F25: 122233928.6 | G25: 129331389 | H25: 128282795 | I25: 125256288 | J25: 125874293.6 | K25: 126638686.7 | L25: 132013902.5 | M25: 135576214 | N25: 137707534.6 | O25: 135397191.7 | P25: 142632376.2 | Q25: 146511610.1 | R25: 145968020 | S25: 142566175.8 | U25: Credit risk-weighted assets | V25: 129623884.8 | W25: 128912503.9 | X25: 132297591.5 | Y25: 134427146.4 | Z25: 131793619 | AA25: 138806587.4 | AB25: 133937441.6 | AC25: 139402972.3 | AD25: 138028766.1 | AE25: 139386096.3 | AF25: 142895449.5 | AG25: 142806023.1 | AH25: 148234222.6 | AI25: 157205076
B26: Market risk-weighted assets (5) | C26: 2528029.077 | D26: 2701436.372 | E26: 2143263.025 | F26: 2263835.25 | G26: 3074766 | H26: 4010627 | I26: 4701577.493 | J26: 4859240.848 | K26: 4708618.644 | L26: 3127460.268 | M26: 3792119.048 | N26: 2408770.418 | O26: 2231891.069 | P26: 1868920.657 | Q26: 2618693.028 | R26: 1560281.013 | S26: 1715933.683 | U26: Operational risk-weighted assets | V26: 14880988.41 | W26: 15407799.25 | X26: 15862960.43 | Y26: 16365973.98 | Z26: 16842059 | AA26: 17335422.96 | AB26: 17871736.55 | AC26: 18409113.42 | AD26: 18895090.7 | AE26: 19384020.73 | AF26: 19751032.43 | AG26: 20123382.85 | AH26: 20574067.45 | AI26: 21104548.17
B27: Operational risk-weighted assets | C27: 9166861.156 | D27: 9327427.409 | E27: 9479547.785 | F27: 9631086.252 | G27: 9678529 | H27: 9777642 | I27: 9952903.655 | J27: 11309342.96 | K27: 11507050.37 | L27: 11794651.6 | M27: 12046961.42 | N27: 12259930.47 | O27: 13416236.39 | P27: 13675126.77 | Q27: 14009947.21 | R27: 14410537.14 | S27: 14880988.41 | U27: Total | V27: 146220806.9 | W27: 146627555.5 | X27: 150737286.2 | Y27: 153473130.2 | Z27: 151668224 | AA27: 159442713.7 | AB27: 156110334.6 | AC27: 161734380.9 | AD27: 160827350.2 | AE27: 163170342.7 | AF27: 167975526.6 | AG27: 167948439.4 | AH27: 175448342.9 | AI27: 184763894.2
B29: Total capital requirement - SBS | C29: 120622866.7 | D29: 16265477.17 | E29: 16547821.67 | F29: 16982136.39 | G29: 16411339 | H29: 16077302 | I29: 15355746.75 | J29: 16359369.94 | K29: 16509727.27 | L29: 13925638.27 | M29: 14356116.72 | N29: 14433033.05 | O29: 14355690.51 | P29: 15023680.48 | Q29: 16360962.22 | R29: 17730538.76 | S29: 17312243.9 | U29: Capital requirement | X29: As of
B30: Credit risk capital requirement | C30: 123718427.2 | D30: 11599487.57 | E30: 11879105.27 | F30: 12223392.86 | G30: 12933139 | H30: 12828280 | I30: 12525628.8 | J30: 12587429.36 | K30: 12663868.67 | L30: 10561112.2 | M30: 10846097.12 | N30: 11016602.77 | O30: 10831775.34 | P30: 11410590.1 | Q30: 12453486.86 | R30: 12407281.7 | S30: 12118124.95 | U30: (S/ thousand) | V30: Mar 23 | W30: Jun 23 | X30: Sep 23 | Y30: Dec 23 | Z30: Mar 24 | AA30: Jun 24 | AB30: Sep 24 | AC30: Dec 24 | AD30: Mar 25 | AE30: Jun 25 | AF30: Sep 25 | AG30: Dec 25 | AH30: Mar 26 | AI30: Jun 26
B31: Market risk capital requirement | C31: 3491859.056 | D31: 270143.6372 | E31: 214326.3025 | F31: 226383.525 | G31: 307477 | H31: 401063 | I31: 470157.7493 | J31: 485924.0848 | K31: 470861.8644 | L31: 312746.0268 | M31: 379211.9048 | N31: 240877.0418 | O31: 223189.1069 | P31: 186892.0657 | Q31: 261869.3028 | R31: 156028.1013 | S31: 171593.3683 | U31: Market risk capital requirement (5) | V31: 171589.0786 | W31: 230725.2275 | X31: 257673.4284 | Y31: 268000.9898 | Z31: 303255 | AA31: 330070.3373 | AB31: 430115.6371 | AC31: 392229.5201 | AD31: 390349.3463 | AE31: 440022.5693 | AF31: 532904.4591 | AG31: 501903.3384 | AH31: 664005.2778 | AI31: 645427.0062
B32: Operational risk capital requirement | C32: 396298.5659 | D32: 932742.7409 | E32: 947954.7785 | F32: 963108.6252 | G32: 967853 | H32: 977764 | I32: 995290.3655 | J32: 1130934.296 | K32: 1150705.037 | L32: 1179465.16 | M32: 1204696.142 | N32: 1225993.047 | O32: 1341623.639 | P32: 1367512.677 | Q32: 1400994.721 | R32: 1441053.714 | S32: 1488098.841 | U32: Credit risk capital requirement | V32: 11018030.21 | W32: 11602125.35 | X32: 11906783.24 | Y32: 12098443.17 | Z32: 11861426 | AA32: 12492592.87 | AB32: 12724056.96 | AC32: 13243282.37 | AD32: 13802876.61 | AE32: 13938609.63 | AF32: 14289544.95 | AG32: 14280602.31 | AH32: 14823422.26 | AI32: 15720507.6
B33: Additional capital requirements | C33: - | D33: 3463103.222 | E33: 3506435.32 | F33: 3569251.379 | G33: 2202871 | H33: 1870195 | I33: 1364669.83 | J33: 2155082.198 | K33: 2224291.708 | L33: 1872314.883 | M33: 1926111.56 | N33: 1949560.191 | O33: 1959102.431 | P33: 2058685.639 | Q33: 2244611.333 | R33: 3726175.25 | S33: 3534426.74 | U33: Operational risk capital requirement | V33: 1488061.64 | W33: 1540779.925 | X33: 1586296.043 | Y33: 1636597.398 | Z33: 1684206 | AA33: 1733542.296 | AB33: 1787173.655 | AC33: 1840911.342 | AD33: 1889509.07 | AE33: 1938402.073 | AF33: 1975103.243 | AG33: 2012338.285 | AH33: 2057406.745 | AI33: 2110454.817
U34: Additional capital requirements | V34: 3534426.74 | W34: 3494024.888 | X34: 3595809.694 | Y34: 5383836.753 | Z34: 5418896 | AA34: 5709467.566 | AB34: 5647686.419 | AC34: 6882642.456 | AD34: 7057150.321 | AE34: 7142932.608 | AF34: 7348282.456 | AG34: 8400181.831 | AH34: 8765691.42 | AI34: 9075930.779
B35: Common Equity Tier 1 - Basel IFRS (6) | C35: - | D35: 14682446.35 | E35: 15048138.09 | F35: 15842022.06 | G35: 16146039 | H35: 15266427 | I35: 15256857.78 | J35: 15292574.5 | K35: 14897431.84 | L35: 15557626.45 | M35: 16090388.37 | N35: 17024607.78 | O35: 16477381.58 | P35: 17160381.87 | Q35: 18084114.24 | R35: 18949687.14 | S35: 17588721.38 | U35: Total | V35: 16212107.67 | W35: 16867655.39 | X35: 17346562.4 | Y35: 19386878.31 | Z35: 19267782 | AA35: 20265673.07 | AB35: 20589032.67 | AC35: 22359065.69 | AD35: 23139885.34 | AE35: 23459966.88 | AF35: 24145835.11 | AG35: 25195025.77 | AH35: 26310525.71 | AI35: 27552320.2
B36: Capital and reserves | C36: - | D36: 14912505.14 | E36: 14912505.14 | F36: 14912505.14 | G36: 14912505 | H36: 17231562 | I36: 17231561.79 | J36: 17234056.87 | K36: 17512647.65 | L36: 17512975.06 | M36: 17512975.06 | N36: 17512975.06 | O36: 19180632.7 | P36: 19181019.14 | Q36: 19181019.14 | R36: 18423649.25 | S36: 19499813.4
B37: Retained earnings | C37: - | D37: 2377669.521 | E37: 2809594.572 | F37: 3622886.185 | G37: 4273266 | H37: 742390 | I37: 785734.4824 | J37: 832931.2614 | K37: 723679.5231 | L37: 1522686.939 | M37: 2580201.461 | N37: 3615645.685 | O37: 1740667.901 | P37: 2897372.088 | Q37: 4187467.994 | R37: 5249494.76 | S37: 2746521.779
B38: Unrealized gains (losses) | C38: - | D38: 230992.5551 | E38: 297781.0759 | F38: 298111.8924 | G38: -20316 | H38: 330343 | I38: 326616.2736 | J38: 691093.7742 | K38: -68242.3276 | L38: -123541.9203 | M38: -583177.9781 | N38: -495370.7387 | O38: -780063.1409 | P38: -1089746.85 | Q38: -1274917.937 | R38: -549318.8811 | S38: -467040.5331 | U38: [1] (1) Up to 1.25% of total risk-weighted assets.
B39: Goodwill and intangibles | C39: - | D39: -934862.5749 | E39: -965168.9538 | F39: -1026444.234 | G39: -1010634 | H39: -1017336 | I39: -1069017.565 | J39: -1167628.203 | K39: -1179721.567 | L39: -1230017.021 | M39: -1228407.418 | N39: -1302414.162 | O39: -1266217.765 | P39: -1312577.94 | Q39: -1355923.765 | R39: -1472073.184 | S39: -1454205.112 | U39: [2] Common Equity Tier 1 = Capital Stock + Reserves + Accumulated earnings – Unrealized profits or losses - 100% deductions (investment in subsidiaries, goodwill, intangible assets and deferred tax assets based on future returns).
B40: Investments in subsidiaries | C40: - | D40: -1903858.29 | E40: -2006573.744 | F40: -1965036.921 | G40: -2008782 | H40: -2020533 | I40: -2018037.208 | J40: -2297879.198 | K40: -2090931.435 | L40: -2124476.606 | M40: -2191202.753 | N40: -2306228.061 | O40: -2397638.124 | P40: -2515684.568 | Q40: -2653531.187 | R40: -2702064.805 | S40: -2736368.151 | U40: [3] Regulatory Tier 1 Capital = Common Equity Tier 1 + Tier 1 Subordinated Debt (Perpetual).
U41: [4] Regulatory Tier 2 Capital = Subordinated Debt + Loan loss reserves.
